Workbook

Sheet Fig1b
B1: I*t(capacity)[C] | C1: C_rate | D1: Ion conductivity | F1: I*t(capacity)[C]/85948
A2: 90 | B2: 64207 | C2: 1 | D2: 0.01 | F2: =B2/85948 -> 0.7470447247
A3: 175 | B3: 84110 | C3: 1 | D3: 0.02 | F3: =B3/85948 -> 0.9786149765
A4: 247 | B4: 85205 | C4: 1 | D4: 0.03 | F4: 0.9913552381
A5: 315 | B5: 85572 | C5: 1 | D5: 0.04 | F5: 0.9956252618
A6: 377 | B6: 85410 | C6: 1 | D6: 0.05 | F6: 0.9937404012
A7: 436 | B7: 85780 | C7: 1 | D7: 0.1 | F7: 0.9980453297
A8: 498 | B8: 85855 | C8: 1 | D8: 0.5 | F8: 0.9989179504
A9: 562 | B9: 85775 | C9: 1 | D9: 1 | F9: 0.997987155
A10: 634 | B10: 85948 | C10: 1 | D10: 5 | F10: 1
A11: 1008 | B11: 42156 | C11: 1.5 | D11: 0.01 | F11: 0.4904826174
A12: 1104 | B12: 74954 | C12: 1.5 | D12: 0.02 | F12: 0.872085447
A13: 1190 | B13: 83727 | C13: 1.5 | D13: 0.03 | F13: 0.9741587937
A14: 1265 | B14: 84711 | C14: 1.5 | D14: 0.04 | F14: 0.9856075767
A15: 1333 | B15: 85278 | C15: 1.5 | D15: 0.05 | F15: 0.9922045888
A16: 1388 | B16: 85431 | C16: 1.5 | D16: 0.1 | F16: 0.993984735
A17: 1448 | B17: 85698 | C17: 1.5 | D17: 0.5 | F17: 0.9970912645
A18: 1943 | B18: 28385 | C18: 2 | D18: 0.01 | F18: 0.3302578303
A19: 2026 | B19: 60574 | C19: 2 | D19: 0.02 | F19: 0.7047749802
A20: 2115 | B20: 78439 | C20: 2 | D20: 0.03 | F20: 0.9126332201
A21: 2194 | B21: 83517 | C21: 2 | D21: 0.04 | F21: 0.9717154559
A22: 2265 | B22: 84560 | C22: 2 | D22: 0.05 | F22: 0.9838507004
A23: 2327 | B23: 85129 | C23: 2 | D23: 0.1 | F23: 0.9904709825
A24: 2382 | B24: 85700 | C24: 2 | D24: 0.5 | F24: 0.9971145344
A25: 2454 | B25: 85690 | C25: 2 | D25: 1 | F25: 0.9969981849
A26: 2527 | B26: 85692 | C26: 2 | D26: 5 | F26: 0.9970214548
A27: 2671 | B27: 85689 | C27: 2 | D27: 10 | F27: 0.99698655
A28: 2743 | B28: 85689 | C28: 2 | D28: 50 | F28: 0.99698655
A29: 2815 | B29: 85689 | C29: 2 | D29: 100 | F29: 0.99698655
A30: 2877 | B30: 19365 | C30: 2.5 | D30: 0.01 | F30: 0.225310653
A31: 2971 | B31: 48802 | C31: 2.5 | D31: 0.02 | F31: 0.5678084423
A32: 3052 | B32: 68719 | C32: 2.5 | D32: 0.03 | F32: 0.7995415833
A33: 3138 | B33: 79264 | C33: 2.5 | D33: 0.04 | F33: 0.9222320473
A34: 3218 | B34: 82582 | C34: 2.5 | D34: 0.05 | F34: 0.960836785
A35: 3280 | B35: 85020 | C35: 2.5 | D35: 0.1 | F35: 0.9892027738
A36: 3331 | B36: 85465 | C36: 2.5 | D36: 0.5 | F36: 0.994380323
A37: 3391 | B37: 85633 | C37: 2.5 | D37: 1 | F37: =B37/85948 -> 0.9963349933
A38: 3590 | B38: 85466 | C38: 2.5 | D38: 5 | F38: 0.9943919579
A39: 3656 | B39: 85467 | C39: 2.5 | D39: 10 | F39: 0.9944035929
A40: 3775 | B40: 12720 | C40: 3 | D40: 0.01 | F40: 0.147996463
A41: 3852 | B41: 38205 | C41: 3 | D41: 0.02 | F41: 0.4445129613
A42: 3943 | B42: 58145 | C42: 3 | D42: 0.03 | F42: 0.676513706
A43: 4024 | B43: 71604 | C43: 3 | D43: 0.04 | F43: 0.8331083911
A44: 4114 | B44: 79262 | C44: 3 | D44: 0.05 | F44: 0.9222087774
A45: 4182 | B45: 84786 | C45: 3 | D45: 0.1 | F45: 0.9864801973
A46: 4240 | B46: 85479 | C46: 3 | D46: 0.5 | F46: 0.9945432122
A47: 4304 | B47: 85513 | C47: 3 | D47: 1 | F47: 0.9949388002
A48: 4434 | B48: 85457 | C48: 3 | D48: 5 | F48: 0.9942872434
A49: 4498 | B49: 85461 | C49: 3 | D49: 10 | F49: 0.9943337832
A50: 4668 | B50: 8634.9 | C50: 3.5 | D50: 0.01 | F50: =B50/85948 -> 0.1004665612
A51: 4741 | B51: 30670 | C51: 3.5 | D51: 0.02 | F51: 0.3568436729
A52: 4817 | B52: 49101 | C52: 3.5 | D52: 0.03 | F52: 0.57128729
A53: 4897 | B53: 63535 | C53: 3.5 | D53: 0.04 | F53: 0.7392260437
A54: 4979 | B54: 73525 | C54: 3.5 | D54: 0.05 | F54: 0.8554591148
A55: 5044 | B55: 84257 | C55: 3.5 | D55: 0.1 | F55: 0.980325313
A56: 5099 | B56: 85309 | C56: 3.5 | D56: 0.5 | F56: 0.992565272
A57: 5151 | B57: 85218 | C57: 3.5 | D57: 1 | F57: 0.9915064923
A58: 5219 | B58: 85234 | C58: 3.5 | D58: 5 | F58: 0.9916926514
A59: 5287 | B59: 85450 | C59: 3.5 | D59: 10 | F59: 0.9942057989
A60: 5526 | B60: 5308.4 | C60: 4 | D60: 0.01 | F60: 0.06176292642
A61: 5593 | B61: 24225 | C61: 4 | D61: 0.02 | F61: =B61/85948 -> 0.2818564714
A62: 5678 | B62: 41889 | C62: 4 | D62: 0.03 | F62: 0.4873760879
A63: 5763 | B63: 55728 | C63: 4 | D63: 0.04 | F63: 0.648392051
A64: 5841 | B64: 66540 | C64: 4 | D64: 0.05 | F64: 0.7741890445
A65: 5909 | B65: 83930 | C65: 4 | D65: 0.1 | F65: 0.9765206869
A66: 5961 | B66: 84895 | C66: 4 | D66: 0.5 | F66: 0.987748406
A67: 6014 | B67: 85209 | C67: 4 | D67: 1 | F67: =B67/85948 -> 0.9914017778
A68: 6074 | B68: 85208 | C68: 4 | D68: 5 | F68: 0.9913901429
A69: 6140 | B69: 85218 | C69: 4 | D69: 10 | F69: 0.9915064923
A70: 6204 | B70: 85222 | C70: 4 | D70: 50 | F70: 0.9915530321
A71: 6359 | B71: 3056.3 | C71: 4.5 | D71: 0.01 | F71: 0.03555987341
A72: 6419 | B72: 18931 | C72: 4.5 | D72: 0.02 | F72: 0.2202610881
A73: 6493 | B73: 35374 | C73: 4.5 | D73: 0.03 | F73: 0.4115744404
A74: 6569 | B74: 48563 | C74: 4.5 | D74: 0.04 | F74: 0.5650276912
A75: 6647 | B75: 59742 | C75: 4.5 | D75: 0.05 | F75: 0.6950947084
A76: 6723 | B76: 82735 | C76: 4.5 | D76: 0.1 | F76: 0.9626169312
A77: 6775 | B77: 85060 | C77: 4.5 | D77: 0.5 | F77: 0.9896681715
A78: 6892 | B78: 84752 | C78: 4.5 | D78: 1 | F78: =B78/85948 -> 0.9860846093
A79: 6954 | B79: 84899 | C79: 4.5 | D79: 5 | F79: =B79/85948 -> 0.9877949458
A80: 7016 | B80: 84900 | C80: 4.5 | D80: 10 | F80: 0.9878065807
A81: 7078 | B81: 84900 | C81: 4.5 | D81: 50 | F81: 0.9878065807
A82: 7140 | B82: 84900 | C82: 4.5 | D82: 100 | F82: 0.9878065807
A83: 7159 | B83: 1246.5 | C83: 5 | D83: 0.01 | F83: 0.01450295528
A84: 7216 | B84: 14876 | C84: 5 | D84: 0.02 | F84: 0.1730813981
A85: 7286 | B85: 29573 | C85: 5 | D85: 0.03 | F85: 0.3440801415
A86: 7368 | B86: 42574 | C86: 5 | D86: 0.04 | F86: 0.4953460232
A87: 7446 | B87: 53565 | C87: 5 | D87: 0.05 | F87: 0.6232256713
A88: 7521 | B88: 81025 | C88: 5 | D88: 0.1 | F88: 0.9427211802
A89: 7572 | B89: 84739 | C89: 5 | D89: 0.5 | F89: 0.9859333551
A90: 7625 | B90: 84875 | C90: 5 | D90: 1 | F90: 0.9875157072
A91: 7688 | B91: 84745 | C91: 5 | D91: 5 | F91: =B91/85948 -> 0.9860031647
A92: 7750 | B92: 84904 | C92: 5 | D92: 10 | F92: =B92/85948 -> 0.9878531205
A93: 7807 | B93: 85031 | C93: 5 | D93: 50 | F93: 0.9893307581
A94: 7930 | B94: 120.3 | C94: 5.5 | D94: 0.01 | F94: 0.00139968353
A95: 7976 | B95: 11091 | C95: 5.5 | D95: 0.02 | F95: 0.1290431424
A96: 8038 | B96: 24564 | C96: 5.5 | D96: 0.03 | F96: 0.2858007167
A97: 8113 | B97: 37058 | C97: 5.5 | D97: 0.04 | F97: 0.4311676828
A98: 8195 | B98: 47936 | C98: 5.5 | D98: 0.05 | F98: 0.5577325825
A99: 8272 | B99: 79206 | C99: 5.5 | D99: 0.1 | F99: 0.9215572206
A100: 8324 | B100: 84634 | C100: 5.5 | D100: 0.5 | F100: 0.9847116861
A101: 8377 | B101: 84792 | C101: 5.5 | D101: 1 | F101: 0.986550007
A102: 8431 | B102: 84894 | C102: 5.5 | D102: 5 | F102: 0.9877367711

Sheet Fig1d1e
A1: group3 | B1: Mn-Ni | C1: 0.3171
B2: Fe-Ni | C2: 0.2115
B3: Ni-Ni | C3: 0.4043
B4: Cu-Ni | C4: 2.0302
B5: Co-Zn | C5: 0.6342
B6: Ge-Cu | C6: 1.9501
B7: Fe-Cu | C7: 1.01
B8: Cu-Cu | C8: 2.5468
B9: Hg-Pt | C9: 1.4279
B10: Cr-Mn | C10: 0.669
B11: zn-ni | C11: 0.7787
B12: nimn | C12: 2.686
B13: mgmg | C13: 0.807
A14: group6 | B14: V-Mg | C14: 1.1393
B15: Ni-Pd | C15: 2.5409
B16: Pt-Pb | C16: 14.1305
B17: Pb-Pt | C17: 6.1411
B18: Cd-Ni | C18: 19.5627
A19: group16 | B19: Pb-Pd | C19: 22.9163
B20: Pt-Ni | C20: 7.4594
B21: ptzn | C21: 3.8486
B22: ptmn | C22: 17.5456

Sheet Fig2b
A1: mn | C1: fe | E1: co | G1: ni | I1: cu
A2: 5 | B2: 483 | C2: 5 | D2: 629 | E2: 5 | F2: 854 | G2: 5 | H2: 540 | I2: 5 | J2: 617
A3: 5.01 | B3: 487 | C3: 5.01 | D3: 637 | E3: 5.01 | F3: 877 | G3: 5.01 | H3: 539 | I3: 5.01 | J3: 628
A4: 5.02 | B4: 484 | C4: 5.02 | D4: 618 | E4: 5.02 | F4: 880 | G4: 5.02 | H4: 542 | I4: 5.02 | J4: 634
A5: 5.03 | B5: 482 | C5: 5.03 | D5: 624 | E5: 5.03 | F5: 867 | G5: 5.03 | H5: 556 | I5: 5.03 | J5: 620
A6: 5.04 | B6: 477 | C6: 5.04 | D6: 622 | E6: 5.04 | F6: 860 | G6: 5.04 | H6: 544 | I6: 5.04 | J6: 606
A7: 5.05 | B7: 474 | C7: 5.05 | D7: 616 | E7: 5.05 | F7: 859 | G7: 5.05 | H7: 526 | I7: 5.05 | J7: 627
A8: 5.06 | B8: 474 | C8: 5.06 | D8: 623 | E8: 5.06 | F8: 844 | G8: 5.06 | H8: 539 | I8: 5.06 | J8: 651
A9: 5.07 | B9: 463 | C9: 5.07 | D9: 631 | E9: 5.07 | F9: 842 | G9: 5.07 | H9: 556 | I9: 5.07 | J9: 654
A10: 5.08 | B10: 464 | C10: 5.08 | D10: 639 | E10: 5.08 | F10: 857 | G10: 5.08 | H10: 562 | I10: 5.08 | J10: 651
A11: 5.09 | B11: 476 | C11: 5.09 | D11: 643 | E11: 5.09 | F11: 886 | G11: 5.09 | H11: 543 | I11: 5.09 | J11: 645
A12: 5.1 | B12: 475 | C12: 5.1 | D12: 650 | E12: 5.1 | F12: 875 | G12: 5.1 | H12: 532 | I12: 5.1 | J12: 636
A13: 5.11 | B13: 466 | C13: 5.11 | D13: 650 | E13: 5.11 | F13: 856 | G13: 5.11 | H13: 528 | I13: 5.11 | J13: 622
A14: 5.12 | B14: 455 | C14: 5.12 | D14: 634 | E14: 5.12 | F14: 855 | G14: 5.12 | H14: 541 | I14: 5.12 | J14: 614
A15: 5.13 | B15: 458 | C15: 5.13 | D15: 617 | E15: 5.13 | F15: 857 | G15: 5.13 | H15: 561 | I15: 5.13 | J15: 627
A16: 5.14 | B16: 473 | C16: 5.14 | D16: 617 | E16: 5.14 | F16: 868 | G16: 5.14 | H16: 557 | I16: 5.14 | J16: 643
A17: 5.15 | B17: 485 | C17: 5.15 | D17: 606 | E17: 5.15 | F17: 866 | G17: 5.15 | H17: 560 | I17: 5.15 | J17: 634
A18: 5.16 | B18: 499 | C18: 5.16 | D18: 597 | E18: 5.16 | F18: 863 | G18: 5.16 | H18: 565 | I18: 5.16 | J18: 626
A19: 5.17 | B19: 502 | C19: 5.17 | D19: 606 | E19: 5.17 | F19: 853 | G19: 5.17 | H19: 554 | I19: 5.17 | J19: 628
A20: 5.18 | B20: 492 | C20: 5.18 | D20: 621 | E20: 5.18 | F20: 849 | G20: 5.18 | H20: 556 | I20: 5.18 | J20: 639
A21: 5.19 | B21: 493 | C21: 5.19 | D21: 630 | E21: 5.19 | F21: 862 | G21: 5.19 | H21: 575 | I21: 5.19 | J21: 653
A22: 5.2 | B22: 495 | C22: 5.2 | D22: 648 | E22: 5.2 | F22: 885 | G22: 5.2 | H22: 592 | I22: 5.2 | J22: 649
A23: 5.21 | B23: 494 | C23: 5.21 | D23: 656 | E23: 5.21 | F23: 892 | G23: 5.21 | H23: 584 | I23: 5.21 | J23: 645
A24: 5.22 | B24: 495 | C24: 5.22 | D24: 634 | E24: 5.22 | F24: 873 | G24: 5.22 | H24: 547 | I24: 5.22 | J24: 653
A25: 5.23 | B25: 492 | C25: 5.23 | D25: 621 | E25: 5.23 | F25: 872 | G25: 5.23 | H25: 522 | I25: 5.23 | J25: 665
A26: 5.24 | B26: 494 | C26: 5.24 | D26: 625 | E26: 5.24 | F26: 890 | G26: 5.24 | H26: 540 | I26: 5.24 | J26: 679
A27: 5.25 | B27: 496 | C27: 5.25 | D27: 630 | E27: 5.25 | F27: 881 | G27: 5.25 | H27: 547 | I27: 5.25 | J27: 664
A28: 5.26 | B28: 489 | C28: 5.26 | D28: 644 | E28: 5.26 | F28: 859 | G28: 5.26 | H28: 531 | I28: 5.26 | J28: 640
A29: 5.27 | B29: 502 | C29: 5.27 | D29: 653 | E29: 5.27 | F29: 852 | G29: 5.27 | H29: 566 | I29: 5.27 | J29: 656
A30: 5.28 | B30: 513 | C30: 5.28 | D30: 647 | E30: 5.28 | F30: 856 | G30: 5.28 | H30: 590 | I30: 5.28 | J30: 670
A31: 5.29 | B31: 511 | C31: 5.29 | D31: 622 | E31: 5.29 | F31: 867 | G31: 5.29 | H31: 578 | I31: 5.29 | J31: 637
A32: 5.3 | B32: 502 | C32: 5.3 | D32: 614 | E32: 5.3 | F32: 875 | G32: 5.3 | H32: 561 | I32: 5.3 | J32: 615
A33: 5.31 | B33: 496 | C33: 5.31 | D33: 624 | E33: 5.31 | F33: 866 | G33: 5.31 | H33: 539 | I33: 5.31 | J33: 633
A34: 5.32 | B34: 494 | C34: 5.32 | D34: 621 | E34: 5.32 | F34: 879 | G34: 5.32 | H34: 553 | I34: 5.32 | J34: 636
A35: 5.33 | B35: 489 | C35: 5.33 | D35: 631 | E35: 5.33 | F35: 900 | G35: 5.33 | H35: 570 | I35: 5.33 | J35: 626
A36: 5.34 | B36: 493 | C36: 5.34 | D36: 634 | E36: 5.34 | F36: 896 | G36: 5.34 | H36: 571 | I36: 5.34 | J36: 642
A37: 5.35 | B37: 518 | C37: 5.35 | D37: 627 | E37: 5.35 | F37: 889 | G37: 5.35 | H37: 551 | I37: 5.35 | J37: 668
A38: 5.36 | B38: 524 | C38: 5.36 | D38: 616 | E38: 5.36 | F38: 890 | G38: 5.36 | H38: 538 | I38: 5.36 | J38: 680
A39: 5.37 | B39: 519 | C39: 5.37 | D39: 624 | E39: 5.37 | F39: 874 | G39: 5.37 | H39: 556 | I39: 5.37 | J39: 671
A40: 5.38 | B40: 520 | C40: 5.38 | D40: 631 | E40: 5.38 | F40: 844 | G40: 5.38 | H40: 565 | I40: 5.38 | J40: 653
A41: 5.39 | B41: 507 | C41: 5.39 | D41: 622 | E41: 5.39 | F41: 853 | G41: 5.39 | H41: 565 | I41: 5.39 | J41: 645
A42: 5.4 | B42: 498 | C42: 5.4 | D42: 625 | E42: 5.4 | F42: 880 | G42: 5.4 | H42: 575 | I42: 5.4 | J42: 655
A43: 5.41 | B43: 515 | C43: 5.41 | D43: 613 | E43: 5.41 | F43: 894 | G43: 5.41 | H43: 569 | I43: 5.41 | J43: 675
A44: 5.42 | B44: 519 | C44: 5.42 | D44: 620 | E44: 5.42 | F44: 892 | G44: 5.42 | H44: 548 | I44: 5.42 | J44: 675
A45: 5.43 | B45: 521 | C45: 5.43 | D45: 649 | E45: 5.43 | F45: 878 | G45: 5.43 | H45: 544 | I45: 5.43 | J45: 665
A46: 5.44 | B46: 525 | C46: 5.44 | D46: 639 | E46: 5.44 | F46: 878 | G46: 5.44 | H46: 559 | I46: 5.44 | J46: 655
A47: 5.45 | B47: 517 | C47: 5.45 | D47: 637 | E47: 5.45 | F47: 896 | G47: 5.45 | H47: 572 | I47: 5.45 | J47: 646
A48: 5.46 | B48: 503 | C48: 5.46 | D48: 662 | E48: 5.46 | F48: 909 | G48: 5.46 | H48: 578 | I48: 5.46 | J48: 638
A49: 5.47 | B49: 489 | C49: 5.47 | D49: 665 | E49: 5.47 | F49: 881 | G49: 5.47 | H49: 576 | I49: 5.47 | J49: 633
A50: 5.48 | B50: 491 | C50: 5.48 | D50: 646 | E50: 5.48 | F50: 868 | G50: 5.48 | H50: 564 | I50: 5.48 | J50: 623
A51: 5.49 | B51: 501 | C51: 5.49 | D51: 643 | E51: 5.49 | F51: 866 | G51: 5.49 | H51: 578 | I51: 5.49 | J51: 617
A52: 5.5 | B52: 505 | C52: 5.5 | D52: 650 | E52: 5.5 | F52: 891 | G52: 5.5 | H52: 586 | I52: 5.5 | J52: 629
A53: 5.51 | B53: 512 | C53: 5.51 | D53: 643 | E53: 5.51 | F53: 920 | G53: 5.51 | H53: 567 | I53: 5.51 | J53: 659
A54: 5.52 | B54: 520 | C54: 5.52 | D54: 648 | E54: 5.52 | F54: 912 | G54: 5.52 | H54: 558 | I54: 5.52 | J54: 668
A55: 5.53 | B55: 520 | C55: 5.53 | D55: 674 | E55: 5.53 | F55: 885 | G55: 5.53 | H55: 578 | I55: 5.53 | J55: 670
A56: 5.54 | B56: 511 | C56: 5.54 | D56: 666 | E56: 5.54 | F56: 896 | G56: 5.54 | H56: 603 | I56: 5.54 | J56: 685
A57: 5.55 | B57: 493 | C57: 5.55 | D57: 629 | E57: 5.55 | F57: 906 | G57: 5.55 | H57: 579 | I57: 5.55 | J57: 687
A58: 5.56 | B58: 486 | C58: 5.56 | D58: 626 | E58: 5.56 | F58: 878 | G58: 5.56 | H58: 559 | I58: 5.56 | J58: 691
A59: 5.57 | B59: 508 | C59: 5.57 | D59: 616 | E59: 5.57 | F59: 881 | G59: 5.57 | H59: 566 | I59: 5.57 | J59: 681
A60: 5.58 | B60: 534 | C60: 5.58 | D60: 620 | E60: 5.58 | F60: 898 | G60: 5.58 | H60: 565 | I60: 5.58 | J60: 670
A61: 5.59 | B61: 539 | C61: 5.59 | D61: 650 | E61: 5.59 | F61: 906 | G61: 5.59 | H61: 567 | I61: 5.59 | J61: 663
A62: 5.6 | B62: 545 | C62: 5.6 | D62: 658 | E62: 5.6 | F62: 900 | G62: 5.6 | H62: 570 | I62: 5.6 | J62: 656
A63: 5.61 | B63: 534 | C63: 5.61 | D63: 658 | E63: 5.61 | F63: 913 | G63: 5.61 | H63: 567 | I63: 5.61 | J63: 663
A64: 5.62 | B64: 517 | C64: 5.62 | D64: 652 | E64: 5.62 | F64: 933 | G64: 5.62 | H64: 572 | I64: 5.62 | J64: 668
A65: 5.63 | B65: 530 | C65: 5.63 | D65: 641 | E65: 5.63 | F65: 933 | G65: 5.63 | H65: 572 | I65: 5.63 | J65: 684
A66: 5.64 | B66: 534 | C66: 5.64 | D66: 641 | E66: 5.64 | F66: 919 | G66: 5.64 | H66: 558 | I66: 5.64 | J66: 694
A67: 5.65 | B67: 525 | C67: 5.65 | D67: 648 | E67: 5.65 | F67: 907 | G67: 5.65 | H67: 550 | I67: 5.65 | J67: 686
A68: 5.66 | B68: 523 | C68: 5.66 | D68: 663 | E68: 5.66 | F68: 909 | G68: 5.66 | H68: 546 | I68: 5.66 | J68: 674
A69: 5.67 | B69: 523 | C69: 5.67 | D69: 675 | E69: 5.67 | F69: 907 | G69: 5.67 | H69: 554 | I69: 5.67 | J69: 645
A70: 5.68 | B70: 514 | C70: 5.68 | D70: 660 | E70: 5.68 | F70: 915 | G70: 5.68 | H70: 555 | I70: 5.68 | J70: 635
A71: 5.69 | B71: 502 | C71: 5.69 | D71: 641 | E71: 5.69 | F71: 897 | G71: 5.69 | H71: 556 | I71: 5.69 | J71: 662
A72: 5.7 | B72: 517 | C72: 5.7 | D72: 633 | E72: 5.7 | F72: 897 | G72: 5.7 | H72: 561 | I72: 5.7 | J72: 686
A73: 5.71 | B73: 540 | C73: 5.71 | D73: 650 | E73: 5.71 | F73: 922 | G73: 5.71 | H73: 550 | I73: 5.71 | J73: 678
A74: 5.72 | B74: 540 | C74: 5.72 | D74: 670 | E74: 5.72 | F74: 901 | G74: 5.72 | H74: 543 | I74: 5.72 | J74: 673
A75: 5.73 | B75: 518 | C75: 5.73 | D75: 671 | E75: 5.73 | F75: 913 | G75: 5.73 | H75: 542 | I75: 5.73 | J75: 684
A76: 5.74 | B76: 519 | C76: 5.74 | D76: 669 | E76: 5.74 | F76: 941 | G76: 5.74 | H76: 547 | I76: 5.74 | J76: 698
A77: 5.75 | B77: 531 | C77: 5.75 | D77: 676 | E77: 5.75 | F77: 941 | G77: 5.75 | H77: 580 | I77: 5.75 | J77: 691
A78: 5.76 | B78: 535 | C78: 5.76 | D78: 677 | E78: 5.76 | F78: 950 | G78: 5.76 | H78: 602 | I78: 5.76 | J78: 666
A79: 5.77 | B79: 538 | C79: 5.77 | D79: 658 | E79: 5.77 | F79: 929 | G79: 5.77 | H79: 592 | I79: 5.77 | J79: 675
A80: 5.78 | B80: 529 | C80: 5.78 | D80: 645 | E80: 5.78 | F80: 939 | G80: 5.78 | H80: 592 | I80: 5.78 | J80: 714
A81: 5.79 | B81: 522 | C81: 5.79 | D81: 642 | E81: 5.79 | F81: 940 | G81: 5.79 | H81: 600 | I81: 5.79 | J81: 723
A82: 5.8 | B82: 524 | C82: 5.8 | D82: 624 | E82: 5.8 | F82: 941 | G82: 5.8 | H82: 601 | I82: 5.8 | J82: 700
A83: 5.81 | B83: 529 | C83: 5.81 | D83: 632 | E83: 5.81 | F83: 958 | G83: 5.81 | H83: 591 | I83: 5.81 | J83: 693
A84: 5.82 | B84: 540 | C84: 5.82 | D84: 678 | E84: 5.82 | F84: 938 | G84: 5.82 | H84: 586 | I84: 5.82 | J84: 692
A85: 5.83 | B85: 534 | C85: 5.83 | D85: 691 | E85: 5.83 | F85: 927 | G85: 5.83 | H85: 584 | I85: 5.83 | J85: 695
A86: 5.84 | B86: 517 | C86: 5.84 | D86: 668 | E86: 5.84 | F86: 947 | G86: 5.84 | H86: 555 | I86: 5.84 | J86: 698
A87: 5.85 | B87: 508 | C87: 5.85 | D87: 659 | E87: 5.85 | F87: 951 | G87: 5.85 | H87: 543 | I87: 5.85 | J87: 698
A88: 5.86 | B88: 500 | C88: 5.86 | D88: 649 | E88: 5.86 | F88: 923 | G88: 5.86 | H88: 563 | I88: 5.86 | J88: 702
A89: 5.87 | B89: 504 | C89: 5.87 | D89: 659 | E89: 5.87 | F89: 922 | G89: 5.87 | H89: 571 | I89: 5.87 | J89: 678
A90: 5.88 | B90: 523 | C90: 5.88 | D90: 677 | E90: 5.88 | F90: 919 | G90: 5.88 | H90: 569 | I90: 5.88 | J90: 666
A91: 5.89 | B91: 520 | C91: 5.89 | D91: 677 | E91: 5.89 | F91: 930 | G91: 5.89 | H91: 566 | I91: 5.89 | J91: 680
A92: 5.9 | B92: 505 | C92: 5.9 | D92: 656 | E92: 5.9 | F92: 952 | G92: 5.9 | H92: 562 | I92: 5.9 | J92: 689
A93: 5.91 | B93: 522 | C93: 5.91 | D93: 658 | E93: 5.91 | F93: 956 | G93: 5.91 | H93: 567 | I93: 5.91 | J93: 695
A94: 5.92 | B94: 546 | C94: 5.92 | D94: 664 | E94: 5.92 | F94: 938 | G94: 5.92 | H94: 575 | I94: 5.92 | J94: 692
A95: 5.93 | B95: 539 | C95: 5.93 | D95: 658 | E95: 5.93 | F95: 930 | G95: 5.93 | H95: 571 | I95: 5.93 | J95: 683
A96: 5.94 | B96: 523 | C96: 5.94 | D96: 673 | E96: 5.94 | F96: 943 | G96: 5.94 | H96: 581 | I96: 5.94 | J96: 711
A97: 5.95 | B97: 511 | C97: 5.95 | D97: 656 | E97: 5.95 | F97: 948 | G97: 5.95 | H97: 596 | I97: 5.95 | J97: 712
A98: 5.96 | B98: 516 | C98: 5.96 | D98: 629 | E98: 5.96 | F98: 956 | G98: 5.96 | H98: 587 | I98: 5.96 | J98: 693
A99: 5.97 | B99: 526 | C99: 5.97 | D99: 639 | E99: 5.97 | F99: 947 | G99: 5.97 | H99: 579 | I99: 5.97 | J99: 694
A100: 5.98 | B100: 541 | C100: 5.98 | D100: 661 | E100: 5.98 | F100: 922 | G100: 5.98 | H100: 592 | I100: 5.98 | J100: 680
A101: 5.99 | B101: 561 | C101: 5.99 | D101: 668 | E101: 5.99 | F101: 959 | G101: 5.99 | H101: 610 | I101: 5.99 | J101: 678
A102: 6 | B102: 553 | C102: 6 | D102: 651 | E102: 6 | F102: 972 | G102: 6 | H102: 581 | I102: 6 | J102: 710
A103: 6.01 | B103: 538 | C103: 6.01 | D103: 642 | E103: 6.01 | F103: 936 | G103: 6.01 | H103: 552 | I103: 6.01 | J103: 731
A104: 6.02 | B104: 539 | C104: 6.02 | D104: 646 | E104: 6.02 | F104: 960 | G104: 6.02 | H104: 568 | I104: 6.02 | J104: 714
A105: 6.03 | B105: 552 | C105: 6.03 | D105: 652 | E105: 6.03 | F105: 981 | G105: 6.03 | H105: 577 | I105: 6.03 | J105: 700
A106: 6.04 | B106: 545 | C106: 6.04 | D106: 670 | E106: 6.04 | F106: 948 | G106: 6.04 | H106: 581 | I106: 6.04 | J106: 712
A107: 6.05 | B107: 532 | C107: 6.05 | D107: 678 | E107: 6.05 | F107: 947 | G107: 6.05 | H107: 593 | I107: 6.05 | J107: 723
A108: 6.06 | B108: 540 | C108: 6.06 | D108: 673 | E108: 6.06 | F108: 971 | G108: 6.06 | H108: 581 | I108: 6.06 | J108: 703
A109: 6.07 | B109: 540 | C109: 6.07 | D109: 669 | E109: 6.07 | F109: 955 | G109: 6.07 | H109: 583 | I109: 6.07 | J109: 704
A110: 6.08 | B110: 515 | C110: 6.08 | D110: 667 | E110: 6.08 | F110: 943 | G110: 6.08 | H110: 586 | I110: 6.08 | J110: 733
A111: 6.09 | B111: 512 | C111: 6.09 | D111: 668 | E111: 6.09 | F111: 965 | G111: 6.09 | H111: 584 | I111: 6.09 | J111: 735
A112: 6.1 | B112: 541 | C112: 6.1 | D112: 676 | E112: 6.1 | F112: 977 | G112: 6.1 | H112: 583 | I112: 6.1 | J112: 711
A113: 6.11 | B113: 564 | C113: 6.11 | D113: 681 | E113: 6.11 | F113: 962 | G113: 6.11 | H113: 574 | I113: 6.11 | J113: 701
A114: 6.12 | B114: 579 | C114: 6.12 | D114: 674 | E114: 6.12 | F114: 948 | G114: 6.12 | H114: 587 | I114: 6.12 | J114: 716
A115: 6.13 | B115: 566 | C115: 6.13 | D115: 685 | E115: 6.13 | F115: 961 | G115: 6.13 | H115: 601 | I115: 6.13 | J115: 727
A116: 6.14 | B116: 533 | C116: 6.14 | D116: 705 | E116: 6.14 | F116: 984 | G116: 6.14 | H116: 616 | I116: 6.14 | J116: 729
A117: 6.15 | B117: 519 | C117: 6.15 | D117: 708 | E117: 6.15 | F117: 1003 | G117: 6.15 | H117: 601 | I117: 6.15 | J117: 731
A118: 6.16 | B118: 523 | C118: 6.16 | D118: 696 | E118: 6.16 | F118: 1004 | G118: 6.16 | H118: 575 | I118: 6.16 | J118: 727
A119: 6.17 | B119: 543 | C119: 6.17 | D119: 668 | E119: 6.17 | F119: 991 | G119: 6.17 | H119: 587 | I119: 6.17 | J119: 725
A120: 6.18 | B120: 564 | C120: 6.18 | D120: 678 | E120: 6.18 | F120: 991 | G120: 6.18 | H120: 583 | I120: 6.18 | J120: 727
A121: 6.19 | B121: 575 | C121: 6.19 | D121: 702 | E121: 6.19 | F121: 983 | G121: 6.19 | H121: 565 | I121: 6.19 | J121: 715
A122: 6.2 | B122: 574 | C122: 6.2 | D122: 691 | E122: 6.2 | F122: 983 | G122: 6.2 | H122: 566 | I122: 6.2 | J122: 738
A123: 6.21 | B123: 544 | C123: 6.21 | D123: 685 | E123: 6.21 | F123: 974 | G123: 6.21 | H123: 591 | I123: 6.21 | J123: 757
A124: 6.22 | B124: 523 | C124: 6.22 | D124: 695 | E124: 6.22 | F124: 959 | G124: 6.22 | H124: 602 | I124: 6.22 | J124: 742
A125: 6.23 | B125: 525 | C125: 6.23 | D125: 693 | E125: 6.23 | F125: 988 | G125: 6.23 | H125: 605 | I125: 6.23 | J125: 731
A126: 6.24 | B126: 539 | C126: 6.24 | D126: 679 | E126: 6.24 | F126: 1005 | G126: 6.24 | H126: 615 | I126: 6.24 | J126: 724
A127: 6.25 | B127: 550 | C127: 6.25 | D127: 674 | E127: 6.25 | F127: 970 | G127: 6.25 | H127: 596 | I127: 6.25 | J127: 717
A128: 6.26 | B128: 553 | C128: 6.26 | D128: 684 | E128: 6.26 | F128: 967 | G128: 6.26 | H128: 573 | I128: 6.26 | J128: 729
A129: 6.27 | B129: 558 | C129: 6.27 | D129: 681 | E129: 6.27 | F129: 994 | G129: 6.27 | H129: 572 | I129: 6.27 | J129: 745
A130: 6.28 | B130: 547 | C130: 6.28 | D130: 675 | E130: 6.28 | F130: 988 | G130: 6.28 | H130: 576 | I130: 6.28 | J130: 759
A131: 6.29 | B131: 542 | C131: 6.29 | D131: 701 | E131: 6.29 | F131: 989 | G131: 6.29 | H131: 584 | I131: 6.29 | J131: 755
A132: 6.3 | B132: 534 | C132: 6.3 | D132: 711 | E132: 6.3 | F132: 996 | G132: 6.3 | H132: 607 | I132: 6.3 | J132: 733
A133: 6.31 | B133: 521 | C133: 6.31 | D133: 706 | E133: 6.31 | F133: 982 | G133: 6.31 | H133: 620 | I133: 6.31 | J133: 729
A134: 6.32 | B134: 530 | C134: 6.32 | D134: 699 | E134: 6.32 | F134: 969 | G134: 6.32 | H134: 598 | I134: 6.32 | J134: 731
A135: 6.33 | B135: 553 | C135: 6.33 | D135: 682 | E135: 6.33 | F135: 970 | G135: 6.33 | H135: 583 | I135: 6.33 | J135: 742
A136: 6.34 | B136: 573 | C136: 6.34 | D136: 690 | E136: 6.34 | F136: 990 | G136: 6.34 | H136: 572 | I136: 6.34 | J136: 768
A137: 6.35 | B137: 569 | C137: 6.35 | D137: 686 | E137: 6.35 | F137: 977 | G137: 6.35 | H137: 563 | I137: 6.35 | J137: 760
A138: 6.36 | B138: 546 | C138: 6.36 | D138: 673 | E138: 6.36 | F138: 975 | G138: 6.36 | H138: 570 | I138: 6.36 | J138: 736
A139: 6.37 | B139: 526 | C139: 6.37 | D139: 698 | E139: 6.37 | F139: 1004 | G139: 6.37 | H139: 600 | I139: 6.37 | J139: 746
A140: 6.38 | B140: 534 | C140: 6.38 | D140: 698 | E140: 6.38 | F140: 1013 | G140: 6.38 | H140: 616 | I140: 6.38 | J140: 755
A141: 6.39 | B141: 535 | C141: 6.39 | D141: 665 | E141: 6.39 | F141: 1011 | G141: 6.39 | H141: 610 | I141: 6.39 | J141: 733
A142: 6.4 | B142: 538 | C142: 6.4 | D142: 652 | E142: 6.4 | F142: 994 | G142: 6.4 | H142: 603 | I142: 6.4 | J142: 743
A143: 6.41 | B143: 547 | C143: 6.41 | D143: 663 | E143: 6.41 | F143: 984 | G143: 6.41 | H143: 592 | I143: 6.41 | J143: 757
A144: 6.42 | B144: 542 | C144: 6.42 | D144: 689 | E144: 6.42 | F144: 997 | G144: 6.42 | H144: 587 | I144: 6.42 | J144: 756
A145: 6.43 | B145: 540 | C145: 6.43 | D145: 698 | E145: 6.43 | F145: 1016 | G145: 6.43 | H145: 596 | I145: 6.43 | J145: 768
A146: 6.44 | B146: 549 | C146: 6.44 | D146: 678 | E146: 6.44 | F146: 1032 | G146: 6.44 | H146: 591 | I146: 6.44 | J146: 770
A147: 6.45 | B147: 562 | C147: 6.45 | D147: 671 | E147: 6.45 | F147: 1031 | G147: 6.45 | H147: 577 | I147: 6.45 | J147: 778
A148: 6.46 | B148: 558 | C148: 6.46 | D148: 666 | E148: 6.46 | F148: 1028 | G148: 6.46 | H148: 588 | I148: 6.46 | J148: 771
A149: 6.47 | B149: 549 | C149: 6.47 | D149: 677 | E149: 6.47 | F149: 1022 | G149: 6.47 | H149: 602 | I149: 6.47 | J149: 752
A150: 6.48 | B150: 568 | C150: 6.48 | D150: 713 | E150: 6.48 | F150: 1025 | G150: 6.48 | H150: 598 | I150: 6.48 | J150: 752
A151: 6.49 | B151: 565 | C151: 6.49 | D151: 711 | E151: 6.49 | F151: 1026 | G151: 6.49 | H151: 601 | I151: 6.49 | J151: 748
A152: 6.5 | B152: 551 | C152: 6.5 | D152: 703 | E152: 6.5 | F152: 1025 | G152: 6.5 | H152: 598 | I152: 6.5 | J152: 754
A153: 6.51 | B153: 557 | C153: 6.51 | D153: 688 | E153: 6.51 | F153: 1026 | G153: 6.51 | H153: 592 | I153: 6.51 | J153: 774
A154: 6.52 | B154: 561 | C154: 6.52 | D154: 666 | E154: 6.52 | F154: 1035 | G154: 6.52 | H154: 587 | I154: 6.52 | J154: 777
A155: 6.53 | B155: 567 | C155: 6.53 | D155: 666 | E155: 6.53 | F155: 1050 | G155: 6.53 | H155: 572 | I155: 6.53 | J155: 774
A156: 6.54 | B156: 554 | C156: 6.54 | D156: 681 | E156: 6.54 | F156: 1032 | G156: 6.54 | H156: 575 | I156: 6.54 | J156: 799
A157: 6.55 | B157: 553 | C157: 6.55 | D157: 706 | E157: 6.55 | F157: 1001 | G157: 6.55 | H157: 577 | I157: 6.55 | J157: 800
A158: 6.56 | B158: 560 | C158: 6.56 | D158: 712 | E158: 6.56 | F158: 1008 | G158: 6.56 | H158: 591 | I158: 6.56 | J158: 764
A159: 6.57 | B159: 562 | C159: 6.57 | D159: 713 | E159: 6.57 | F159: 1025 | G159: 6.57 | H159: 609 | I159: 6.57 | J159: 747
A160: 6.58 | B160: 564 | C160: 6.58 | D160: 698 | E160: 6.58 | F160: 1048 | G160: 6.58 | H160: 600 | I160: 6.58 | J160: 765
A161: 6.59 | B161: 574 | C161: 6.59 | D161: 676 | E161: 6.59 | F161: 1053 | G161: 6.59 | H161: 594 | I161: 6.59 | J161: 771
A162: 6.6 | B162: 576 | C162: 6.6 | D162: 672 | E162: 6.6 | F162: 1037 | G162: 6.6 | H162: 609 | I162: 6.6 | J162: 778
A163: 6.61 | B163: 555 | C163: 6.61 | D163: 673 | E163: 6.61 | F163: 1046 | G163: 6.61 | H163: 597 | I163: 6.61 | J163: 776
A164: 6.62 | B164: 561 | C164: 6.62 | D164: 684 | E164: 6.62 | F164: 1052 | G164: 6.62 | H164: 590 | I164: 6.62 | J164: 763
A165: 6.63 | B165: 561 | C165: 6.63 | D165: 707 | E165: 6.63 | F165: 1055 | G165: 6.63 | H165: 604 | I165: 6.63 | J165: 775
A166: 6.64 | B166: 540 | C166: 6.64 | D166: 712 | E166: 6.64 | F166: 1059 | G166: 6.64 | H166: 601 | I166: 6.64 | J166: 801
A167: 6.65 | B167: 549 | C167: 6.65 | D167: 700 | E167: 6.65 | F167: 1050 | G167: 6.65 | H167: 607 | I167: 6.65 | J167: 805
A168: 6.66 | B168: 560 | C168: 6.66 | D168: 717 | E168: 6.66 | F168: 1061 | G168: 6.66 | H168: 611 | I168: 6.66 | J168: 796
A169: 6.67 | B169: 557 | C169: 6.67 | D169: 744 | E169: 6.67 | F169: 1093 | G169: 6.67 | H169: 590 | I169: 6.67 | J169: 791
A170: 6.68 | B170: 564 | C170: 6.68 | D170: 734 | E170: 6.68 | F170: 1082 | G170: 6.68 | H170: 577 | I170: 6.68 | J170: 782
A171: 6.69 | B171: 558 | C171: 6.69 | D171: 731 | E171: 6.69 | F171: 1034 | G171: 6.69 | H171: 593 | I171: 6.69 | J171: 772
A172: 6.7 | B172: 556 | C172: 6.7 | D172: 747 | E172: 6.7 | F172: 1012 | G172: 6.7 | H172: 605 | I172: 6.7 | J172: 770
A173: 6.71 | B173: 562 | C173: 6.71 | D173: 726 | E173: 6.71 | F173: 1034 | G173: 6.71 | H173: 593 | I173: 6.71 | J173: 788
A174: 6.72 | B174: 556 | C174: 6.72 | D174: 712 | E174: 6.72 | F174: 1059 | G174: 6.72 | H174: 575 | I174: 6.72 | J174: 819
A175: 6.73 | B175: 551 | C175: 6.73 | D175: 721 | E175: 6.73 | F175: 1051 | G175: 6.73 | H175: 573 | I175: 6.73 | J175: 822
A176: 6.74 | B176: 558 | C176: 6.74 | D176: 729 | E176: 6.74 | F176: 1046 | G176: 6.74 | H176: 590 | I176: 6.74 | J176: 802
A177: 6.75 | B177: 564 | C177: 6.75 | D177: 727 | E177: 6.75 | F177: 1046 | G177: 6.75 | H177: 592 | I177: 6.75 | J177: 807
A178: 6.76 | B178: 563 | C178: 6.76 | D178: 737 | E178: 6.76 | F178: 1030 | G178: 6.76 | H178: 580 | I178: 6.76 | J178: 809
A179: 6.77 | B179: 566 | C179: 6.77 | D179: 743 | E179: 6.77 | F179: 1043 | G179: 6.77 | H179: 584 | I179: 6.77 | J179: 792
A180: 6.78 | B180: 567 | C180: 6.78 | D180: 730 | E180: 6.78 | F180: 1035 | G180: 6.78 | H180: 592 | I180: 6.78 | J180: 793
A181: 6.79 | B181: 552 | C181: 6.79 | D181: 709 | E181: 6.79 | F181: 1032 | G181: 6.79 | H181: 587 | I181: 6.79 | J181: 812
A182: 6.8 | B182: 538 | C182: 6.8 | D182: 692 | E182: 6.8 | F182: 1058 | G182: 6.8 | H182: 590 | I182: 6.8 | J182: 837
A183: 6.81 | B183: 546 | C183: 6.81 | D183: 707 | E183: 6.81 | F183: 1068 | G183: 6.81 | H183: 594 | I183: 6.81 | J183: 835
A184: 6.82 | B184: 561 | C184: 6.82 | D184: 740 | E184: 6.82 | F184: 1070 | G184: 6.82 | H184: 590 | I184: 6.82 | J184: 813
A185: 6.83 | B185: 577 | C185: 6.83 | D185: 750 | E185: 6.83 | F185: 1074 | G185: 6.83 | H185: 594 | I185: 6.83 | J185: 813
A186: 6.84 | B186: 587 | C186: 6.84 | D186: 723 | E186: 6.84 | F186: 1060 | G186: 6.84 | H186: 601 | I186: 6.84 | J186: 831
A187: 6.85 | B187: 584 | C187: 6.85 | D187: 719 | E187: 6.85 | F187: 1042 | G187: 6.85 | H187: 625 | I187: 6.85 | J187: 829
A188: 6.86 | B188: 565 | C188: 6.86 | D188: 738 | E188: 6.86 | F188: 1039 | G188: 6.86 | H188: 630 | I188: 6.86 | J188: 809
A189: 6.87 | B189: 564 | C189: 6.87 | D189: 753 | E189: 6.87 | F189: 1044 | G189: 6.87 | H189: 609 | I189: 6.87 | J189: 807
A190: 6.88 | B190: 580 | C190: 6.88 | D190: 743 | E190: 6.88 | F190: 1053 | G190: 6.88 | H190: 595 | I190: 6.88 | J190: 812
A191: 6.89 | B191: 586 | C191: 6.89 | D191: 721 | E191: 6.89 | F191: 1077 | G191: 6.89 | H191: 593 | I191: 6.89 | J191: 814
A192: 6.9 | B192: 581 | C192: 6.9 | D192: 719 | E192: 6.9 | F192: 1089 | G192: 6.9 | H192: 595 | I192: 6.9 | J192: 836
A193: 6.91 | B193: 578 | C193: 6.91 | D193: 721 | E193: 6.91 | F193: 1070 | G193: 6.91 | H193: 613 | I193: 6.91 | J193: 852
A194: 6.92 | B194: 565 | C194: 6.92 | D194: 727 | E194: 6.92 | F194: 1049 | G194: 6.92 | H194: 638 | I194: 6.92 | J194: 825
A195: 6.93 | B195: 542 | C195: 6.93 | D195: 750 | E195: 6.93 | F195: 1041 | G195: 6.93 | H195: 617 | I195: 6.93 | J195: 837
A196: 6.94 | B196: 547 | C196: 6.94 | D196: 747 | E196: 6.94 | F196: 1037 | G196: 6.94 | H196: 585 | I196: 6.94 | J196: 876
A197: 6.95 | B197: 571 | C197: 6.95 | D197: 729 | E197: 6.95 | F197: 1037 | G197: 6.95 | H197: 602 | I197: 6.95 | J197: 862
A198: 6.96 | B198: 568 | C198: 6.96 | D198: 752 | E198: 6.96 | F198: 1053 | G198: 6.96 | H198: 617 | I198: 6.96 | J198: 836
A199: 6.97 | B199: 548 | C199: 6.97 | D199: 768 | E199: 6.97 | F199: 1089 | G199: 6.97 | H199: 615 | I199: 6.97 | J199: 843
A200: 6.98 | B200: 549 | C200: 6.98 | D200: 747 | E200: 6.98 | F200: 1118 | G200: 6.98 | H200: 620 | I200: 6.98 | J200: 841
... 8302 more rows

Sheet Fig2c
A1: cm-1 | B1: %T | C1: cm-1 | D1: %T | E1: cm-1 | F1: %T
A2: 4000 | B2: 99.97 | C2: 4000 | D2: 96.18 | E2: 4000 | F2: 98.83
A3: 3999.5 | B3: 99.98 | C3: 3999.5 | D3: 96.17 | E3: 3999.5 | F3: 98.82
A4: 3999 | B4: 99.99 | C4: 3999 | D4: 96.17 | E4: 3999 | F4: 98.82
A5: 3998.5 | B5: 99.99 | C5: 3998.5 | D5: 96.17 | E5: 3998.5 | F5: 98.82
A6: 3998 | B6: 99.99 | C6: 3998 | D6: 96.19 | E6: 3998 | F6: 98.81
A7: 3997.5 | B7: 99.99 | C7: 3997.5 | D7: 96.21 | E7: 3997.5 | F7: 98.81
A8: 3997 | B8: 99.97 | C8: 3997 | D8: 96.23 | E8: 3997 | F8: 98.81
A9: 3996.5 | B9: 99.95 | C9: 3996.5 | D9: 96.24 | E9: 3996.5 | F9: 98.81
A10: 3996 | B10: 99.94 | C10: 3996 | D10: 96.22 | E10: 3996 | F10: 98.82
A11: 3995.5 | B11: 99.93 | C11: 3995.5 | D11: 96.2 | E11: 3995.5 | F11: 98.83
A12: 3995 | B12: 99.94 | C12: 3995 | D12: 96.19 | E12: 3995 | F12: 98.85
A13: 3994.5 | B13: 99.94 | C13: 3994.5 | D13: 96.19 | E13: 3994.5 | F13: 98.87
A14: 3994 | B14: 99.95 | C14: 3994 | D14: 96.19 | E14: 3994 | F14: 98.87
A15: 3993.5 | B15: 99.94 | C15: 3993.5 | D15: 96.2 | E15: 3993.5 | F15: 98.87
A16: 3993 | B16: 99.94 | C16: 3993 | D16: 96.2 | E16: 3993 | F16: 98.86
A17: 3992.5 | B17: 99.93 | C17: 3992.5 | D17: 96.2 | E17: 3992.5 | F17: 98.85
A18: 3992 | B18: 99.93 | C18: 3992 | D18: 96.19 | E18: 3992 | F18: 98.84
A19: 3991.5 | B19: 99.93 | C19: 3991.5 | D19: 96.19 | E19: 3991.5 | F19: 98.84
A20: 3991 | B20: 99.93 | C20: 3991 | D20: 96.19 | E20: 3991 | F20: 98.83
A21: 3990.5 | B21: 99.92 | C21: 3990.5 | D21: 96.2 | E21: 3990.5 | F21: 98.83
A22: 3990 | B22: 99.92 | C22: 3990 | D22: 96.2 | E22: 3990 | F22: 98.82
A23: 3989.5 | B23: 99.92 | C23: 3989.5 | D23: 96.2 | E23: 3989.5 | F23: 98.82
A24: 3989 | B24: 99.92 | C24: 3989 | D24: 96.19 | E24: 3989 | F24: 98.83
A25: 3988.5 | B25: 99.92 | C25: 3988.5 | D25: 96.19 | E25: 3988.5 | F25: 98.84
A26: 3988 | B26: 99.93 | C26: 3988 | D26: 96.19 | E26: 3988 | F26: 98.85
A27: 3987.5 | B27: 99.94 | C27: 3987.5 | D27: 96.2 | E27: 3987.5 | F27: 98.85
A28: 3987 | B28: 99.96 | C28: 3987 | D28: 96.21 | E28: 3987 | F28: 98.84
A29: 3986.5 | B29: 99.97 | C29: 3986.5 | D29: 96.21 | E29: 3986.5 | F29: 98.84
A30: 3986 | B30: 99.97 | C30: 3986 | D30: 96.2 | E30: 3986 | F30: 98.84
A31: 3985.5 | B31: 99.96 | C31: 3985.5 | D31: 96.18 | E31: 3985.5 | F31: 98.84
A32: 3985 | B32: 99.95 | C32: 3985 | D32: 96.18 | E32: 3985 | F32: 98.83
A33: 3984.5 | B33: 99.94 | C33: 3984.5 | D33: 96.18 | E33: 3984.5 | F33: 98.82
A34: 3984 | B34: 99.93 | C34: 3984 | D34: 96.18 | E34: 3984 | F34: 98.8
A35: 3983.5 | B35: 99.93 | C35: 3983.5 | D35: 96.19 | E35: 3983.5 | F35: 98.79
A36: 3983 | B36: 99.92 | C36: 3983 | D36: 96.19 | E36: 3983 | F36: 98.79
A37: 3982.5 | B37: 99.92 | C37: 3982.5 | D37: 96.18 | E37: 3982.5 | F37: 98.81
A38: 3982 | B38: 99.93 | C38: 3982 | D38: 96.19 | E38: 3982 | F38: 98.83
A39: 3981.5 | B39: 99.93 | C39: 3981.5 | D39: 96.19 | E39: 3981.5 | F39: 98.85
A40: 3981 | B40: 99.94 | C40: 3981 | D40: 96.2 | E40: 3981 | F40: 98.86
A41: 3980.5 | B41: 99.95 | C41: 3980.5 | D41: 96.21 | E41: 3980.5 | F41: 98.86
A42: 3980 | B42: 99.96 | C42: 3980 | D42: 96.21 | E42: 3980 | F42: 98.86
A43: 3979.5 | B43: 99.97 | C43: 3979.5 | D43: 96.22 | E43: 3979.5 | F43: 98.85
A44: 3979 | B44: 99.97 | C44: 3979 | D44: 96.23 | E44: 3979 | F44: 98.84
A45: 3978.5 | B45: 99.96 | C45: 3978.5 | D45: 96.22 | E45: 3978.5 | F45: 98.83
A46: 3978 | B46: 99.95 | C46: 3978 | D46: 96.21 | E46: 3978 | F46: 98.82
A47: 3977.5 | B47: 99.94 | C47: 3977.5 | D47: 96.2 | E47: 3977.5 | F47: 98.82
A48: 3977 | B48: 99.94 | C48: 3977 | D48: 96.19 | E48: 3977 | F48: 98.83
A49: 3976.5 | B49: 99.94 | C49: 3976.5 | D49: 96.19 | E49: 3976.5 | F49: 98.84
A50: 3976 | B50: 99.95 | C50: 3976 | D50: 96.21 | E50: 3976 | F50: 98.85
A51: 3975.5 | B51: 99.96 | C51: 3975.5 | D51: 96.22 | E51: 3975.5 | F51: 98.85
A52: 3975 | B52: 99.96 | C52: 3975 | D52: 96.23 | E52: 3975 | F52: 98.84
A53: 3974.5 | B53: 99.95 | C53: 3974.5 | D53: 96.22 | E53: 3974.5 | F53: 98.83
A54: 3974 | B54: 99.94 | C54: 3974 | D54: 96.22 | E54: 3974 | F54: 98.81
A55: 3973.5 | B55: 99.94 | C55: 3973.5 | D55: 96.21 | E55: 3973.5 | F55: 98.8
A56: 3973 | B56: 99.94 | C56: 3973 | D56: 96.21 | E56: 3973 | F56: 98.8
A57: 3972.5 | B57: 99.95 | C57: 3972.5 | D57: 96.21 | E57: 3972.5 | F57: 98.81
A58: 3972 | B58: 99.95 | C58: 3972 | D58: 96.21 | E58: 3972 | F58: 98.81
A59: 3971.5 | B59: 99.94 | C59: 3971.5 | D59: 96.21 | E59: 3971.5 | F59: 98.82
A60: 3971 | B60: 99.93 | C60: 3971 | D60: 96.21 | E60: 3971 | F60: 98.83
A61: 3970.5 | B61: 99.92 | C61: 3970.5 | D61: 96.21 | E61: 3970.5 | F61: 98.84
A62: 3970 | B62: 99.92 | C62: 3970 | D62: 96.2 | E62: 3970 | F62: 98.85
A63: 3969.5 | B63: 99.92 | C63: 3969.5 | D63: 96.2 | E63: 3969.5 | F63: 98.86
A64: 3969 | B64: 99.92 | C64: 3969 | D64: 96.2 | E64: 3969 | F64: 98.86
A65: 3968.5 | B65: 99.92 | C65: 3968.5 | D65: 96.19 | E65: 3968.5 | F65: 98.84
A66: 3968 | B66: 99.92 | C66: 3968 | D66: 96.19 | E66: 3968 | F66: 98.83
A67: 3967.5 | B67: 99.92 | C67: 3967.5 | D67: 96.18 | E67: 3967.5 | F67: 98.82
A68: 3967 | B68: 99.92 | C68: 3967 | D68: 96.19 | E68: 3967 | F68: 98.82
A69: 3966.5 | B69: 99.91 | C69: 3966.5 | D69: 96.19 | E69: 3966.5 | F69: 98.83
A70: 3966 | B70: 99.92 | C70: 3966 | D70: 96.2 | E70: 3966 | F70: 98.83
A71: 3965.5 | B71: 99.92 | C71: 3965.5 | D71: 96.2 | E71: 3965.5 | F71: 98.84
A72: 3965 | B72: 99.93 | C72: 3965 | D72: 96.2 | E72: 3965 | F72: 98.84
A73: 3964.5 | B73: 99.93 | C73: 3964.5 | D73: 96.21 | E73: 3964.5 | F73: 98.83
A74: 3964 | B74: 99.94 | C74: 3964 | D74: 96.21 | E74: 3964 | F74: 98.83
A75: 3963.5 | B75: 99.94 | C75: 3963.5 | D75: 96.22 | E75: 3963.5 | F75: 98.83
A76: 3963 | B76: 99.94 | C76: 3963 | D76: 96.22 | E76: 3963 | F76: 98.83
A77: 3962.5 | B77: 99.94 | C77: 3962.5 | D77: 96.22 | E77: 3962.5 | F77: 98.83
A78: 3962 | B78: 99.94 | C78: 3962 | D78: 96.22 | E78: 3962 | F78: 98.83
A79: 3961.5 | B79: 99.94 | C79: 3961.5 | D79: 96.23 | E79: 3961.5 | F79: 98.82
A80: 3961 | B80: 99.94 | C80: 3961 | D80: 96.23 | E80: 3961 | F80: 98.81
A81: 3960.5 | B81: 99.94 | C81: 3960.5 | D81: 96.23 | E81: 3960.5 | F81: 98.81
A82: 3960 | B82: 99.95 | C82: 3960 | D82: 96.23 | E82: 3960 | F82: 98.83
A83: 3959.5 | B83: 99.95 | C83: 3959.5 | D83: 96.23 | E83: 3959.5 | F83: 98.85
A84: 3959 | B84: 99.95 | C84: 3959 | D84: 96.22 | E84: 3959 | F84: 98.86
A85: 3958.5 | B85: 99.95 | C85: 3958.5 | D85: 96.21 | E85: 3958.5 | F85: 98.86
A86: 3958 | B86: 99.94 | C86: 3958 | D86: 96.2 | E86: 3958 | F86: 98.85
A87: 3957.5 | B87: 99.94 | C87: 3957.5 | D87: 96.19 | E87: 3957.5 | F87: 98.84
A88: 3957 | B88: 99.94 | C88: 3957 | D88: 96.2 | E88: 3957 | F88: 98.83
A89: 3956.5 | B89: 99.95 | C89: 3956.5 | D89: 96.2 | E89: 3956.5 | F89: 98.83
A90: 3956 | B90: 99.96 | C90: 3956 | D90: 96.21 | E90: 3956 | F90: 98.82
A91: 3955.5 | B91: 99.96 | C91: 3955.5 | D91: 96.21 | E91: 3955.5 | F91: 98.81
A92: 3955 | B92: 99.95 | C92: 3955 | D92: 96.22 | E92: 3955 | F92: 98.8
A93: 3954.5 | B93: 99.93 | C93: 3954.5 | D93: 96.23 | E93: 3954.5 | F93: 98.79
A94: 3954 | B94: 99.92 | C94: 3954 | D94: 96.24 | E94: 3954 | F94: 98.78
A95: 3953.5 | B95: 99.91 | C95: 3953.5 | D95: 96.24 | E95: 3953.5 | F95: 98.79
A96: 3953 | B96: 99.91 | C96: 3953 | D96: 96.24 | E96: 3953 | F96: 98.8
A97: 3952.5 | B97: 99.92 | C97: 3952.5 | D97: 96.24 | E97: 3952.5 | F97: 98.81
A98: 3952 | B98: 99.93 | C98: 3952 | D98: 96.24 | E98: 3952 | F98: 98.83
A99: 3951.5 | B99: 99.93 | C99: 3951.5 | D99: 96.24 | E99: 3951.5 | F99: 98.83
A100: 3951 | B100: 99.93 | C100: 3951 | D100: 96.23 | E100: 3951 | F100: 98.82
A101: 3950.5 | B101: 99.92 | C101: 3950.5 | D101: 96.22 | E101: 3950.5 | F101: 98.8
A102: 3950 | B102: 99.92 | C102: 3950 | D102: 96.22 | E102: 3950 | F102: 98.78
A103: 3949.5 | B103: 99.92 | C103: 3949.5 | D103: 96.22 | E103: 3949.5 | F103: 98.77
A104: 3949 | B104: 99.92 | C104: 3949 | D104: 96.22 | E104: 3949 | F104: 98.77
A105: 3948.5 | B105: 99.92 | C105: 3948.5 | D105: 96.22 | E105: 3948.5 | F105: 98.78
A106: 3948 | B106: 99.92 | C106: 3948 | D106: 96.21 | E106: 3948 | F106: 98.79
A107: 3947.5 | B107: 99.92 | C107: 3947.5 | D107: 96.21 | E107: 3947.5 | F107: 98.8
A108: 3947 | B108: 99.91 | C108: 3947 | D108: 96.22 | E108: 3947 | F108: 98.8
A109: 3946.5 | B109: 99.91 | C109: 3946.5 | D109: 96.23 | E109: 3946.5 | F109: 98.8
A110: 3946 | B110: 99.9 | C110: 3946 | D110: 96.23 | E110: 3946 | F110: 98.8
A111: 3945.5 | B111: 99.9 | C111: 3945.5 | D111: 96.23 | E111: 3945.5 | F111: 98.8
A112: 3945 | B112: 99.89 | C112: 3945 | D112: 96.24 | E112: 3945 | F112: 98.79
A113: 3944.5 | B113: 99.89 | C113: 3944.5 | D113: 96.25 | E113: 3944.5 | F113: 98.8
A114: 3944 | B114: 99.9 | C114: 3944 | D114: 96.25 | E114: 3944 | F114: 98.81
A115: 3943.5 | B115: 99.91 | C115: 3943.5 | D115: 96.24 | E115: 3943.5 | F115: 98.83
A116: 3943 | B116: 99.91 | C116: 3943 | D116: 96.23 | E116: 3943 | F116: 98.83
A117: 3942.5 | B117: 99.91 | C117: 3942.5 | D117: 96.22 | E117: 3942.5 | F117: 98.82
A118: 3942 | B118: 99.91 | C118: 3942 | D118: 96.22 | E118: 3942 | F118: 98.82
A119: 3941.5 | B119: 99.9 | C119: 3941.5 | D119: 96.23 | E119: 3941.5 | F119: 98.81
A120: 3941 | B120: 99.89 | C120: 3941 | D120: 96.24 | E120: 3941 | F120: 98.81
A121: 3940.5 | B121: 99.89 | C121: 3940.5 | D121: 96.25 | E121: 3940.5 | F121: 98.81
A122: 3940 | B122: 99.89 | C122: 3940 | D122: 96.25 | E122: 3940 | F122: 98.81
A123: 3939.5 | B123: 99.89 | C123: 3939.5 | D123: 96.25 | E123: 3939.5 | F123: 98.81
A124: 3939 | B124: 99.89 | C124: 3939 | D124: 96.25 | E124: 3939 | F124: 98.81
A125: 3938.5 | B125: 99.89 | C125: 3938.5 | D125: 96.24 | E125: 3938.5 | F125: 98.81
A126: 3938 | B126: 99.9 | C126: 3938 | D126: 96.23 | E126: 3938 | F126: 98.81
A127: 3937.5 | B127: 99.9 | C127: 3937.5 | D127: 96.22 | E127: 3937.5 | F127: 98.81
A128: 3937 | B128: 99.9 | C128: 3937 | D128: 96.22 | E128: 3937 | F128: 98.81
A129: 3936.5 | B129: 99.9 | C129: 3936.5 | D129: 96.23 | E129: 3936.5 | F129: 98.8
A130: 3936 | B130: 99.9 | C130: 3936 | D130: 96.24 | E130: 3936 | F130: 98.81
A131: 3935.5 | B131: 99.89 | C131: 3935.5 | D131: 96.24 | E131: 3935.5 | F131: 98.81
A132: 3935 | B132: 99.88 | C132: 3935 | D132: 96.24 | E132: 3935 | F132: 98.81
A133: 3934.5 | B133: 99.87 | C133: 3934.5 | D133: 96.24 | E133: 3934.5 | F133: 98.81
A134: 3934 | B134: 99.87 | C134: 3934 | D134: 96.24 | E134: 3934 | F134: 98.81
A135: 3933.5 | B135: 99.87 | C135: 3933.5 | D135: 96.25 | E135: 3933.5 | F135: 98.81
A136: 3933 | B136: 99.87 | C136: 3933 | D136: 96.25 | E136: 3933 | F136: 98.82
A137: 3932.5 | B137: 99.88 | C137: 3932.5 | D137: 96.24 | E137: 3932.5 | F137: 98.83
A138: 3932 | B138: 99.88 | C138: 3932 | D138: 96.24 | E138: 3932 | F138: 98.83
A139: 3931.5 | B139: 99.88 | C139: 3931.5 | D139: 96.23 | E139: 3931.5 | F139: 98.82
A140: 3931 | B140: 99.88 | C140: 3931 | D140: 96.23 | E140: 3931 | F140: 98.82
A141: 3930.5 | B141: 99.89 | C141: 3930.5 | D141: 96.23 | E141: 3930.5 | F141: 98.82
A142: 3930 | B142: 99.89 | C142: 3930 | D142: 96.24 | E142: 3930 | F142: 98.83
A143: 3929.5 | B143: 99.9 | C143: 3929.5 | D143: 96.26 | E143: 3929.5 | F143: 98.84
A144: 3929 | B144: 99.9 | C144: 3929 | D144: 96.26 | E144: 3929 | F144: 98.83
A145: 3928.5 | B145: 99.9 | C145: 3928.5 | D145: 96.26 | E145: 3928.5 | F145: 98.82
A146: 3928 | B146: 99.89 | C146: 3928 | D146: 96.26 | E146: 3928 | F146: 98.8
A147: 3927.5 | B147: 99.89 | C147: 3927.5 | D147: 96.25 | E147: 3927.5 | F147: 98.78
A148: 3927 | B148: 99.88 | C148: 3927 | D148: 96.24 | E148: 3927 | F148: 98.77
A149: 3926.5 | B149: 99.87 | C149: 3926.5 | D149: 96.23 | E149: 3926.5 | F149: 98.78
A150: 3926 | B150: 99.87 | C150: 3926 | D150: 96.22 | E150: 3926 | F150: 98.8
A151: 3925.5 | B151: 99.88 | C151: 3925.5 | D151: 96.21 | E151: 3925.5 | F151: 98.83
A152: 3925 | B152: 99.89 | C152: 3925 | D152: 96.2 | E152: 3925 | F152: 98.85
A153: 3924.5 | B153: 99.89 | C153: 3924.5 | D153: 96.21 | E153: 3924.5 | F153: 98.86
A154: 3924 | B154: 99.89 | C154: 3924 | D154: 96.23 | E154: 3924 | F154: 98.86
A155: 3923.5 | B155: 99.9 | C155: 3923.5 | D155: 96.24 | E155: 3923.5 | F155: 98.85
A156: 3923 | B156: 99.9 | C156: 3923 | D156: 96.25 | E156: 3923 | F156: 98.82
A157: 3922.5 | B157: 99.91 | C157: 3922.5 | D157: 96.26 | E157: 3922.5 | F157: 98.79
A158: 3922 | B158: 99.91 | C158: 3922 | D158: 96.28 | E158: 3922 | F158: 98.77
A159: 3921.5 | B159: 99.92 | C159: 3921.5 | D159: 96.28 | E159: 3921.5 | F159: 98.77
A160: 3921 | B160: 99.92 | C160: 3921 | D160: 96.27 | E160: 3921 | F160: 98.77
A161: 3920.5 | B161: 99.91 | C161: 3920.5 | D161: 96.24 | E161: 3920.5 | F161: 98.77
A162: 3920 | B162: 99.9 | C162: 3920 | D162: 96.21 | E162: 3920 | F162: 98.78
A163: 3919.5 | B163: 99.9 | C163: 3919.5 | D163: 96.21 | E163: 3919.5 | F163: 98.78
A164: 3919 | B164: 99.89 | C164: 3919 | D164: 96.22 | E164: 3919 | F164: 98.79
A165: 3918.5 | B165: 99.87 | C165: 3918.5 | D165: 96.23 | E165: 3918.5 | F165: 98.8
A166: 3918 | B166: 99.86 | C166: 3918 | D166: 96.23 | E166: 3918 | F166: 98.81
A167: 3917.5 | B167: 99.84 | C167: 3917.5 | D167: 96.22 | E167: 3917.5 | F167: 98.82
A168: 3917 | B168: 99.84 | C168: 3917 | D168: 96.22 | E168: 3917 | F168: 98.82
A169: 3916.5 | B169: 99.84 | C169: 3916.5 | D169: 96.22 | E169: 3916.5 | F169: 98.81
A170: 3916 | B170: 99.85 | C170: 3916 | D170: 96.23 | E170: 3916 | F170: 98.81
A171: 3915.5 | B171: 99.86 | C171: 3915.5 | D171: 96.24 | E171: 3915.5 | F171: 98.81
A172: 3915 | B172: 99.87 | C172: 3915 | D172: 96.24 | E172: 3915 | F172: 98.81
A173: 3914.5 | B173: 99.87 | C173: 3914.5 | D173: 96.24 | E173: 3914.5 | F173: 98.81
A174: 3914 | B174: 99.88 | C174: 3914 | D174: 96.24 | E174: 3914 | F174: 98.8
A175: 3913.5 | B175: 99.88 | C175: 3913.5 | D175: 96.24 | E175: 3913.5 | F175: 98.79
A176: 3913 | B176: 99.89 | C176: 3913 | D176: 96.25 | E176: 3913 | F176: 98.78
A177: 3912.5 | B177: 99.9 | C177: 3912.5 | D177: 96.25 | E177: 3912.5 | F177: 98.78
A178: 3912 | B178: 99.92 | C178: 3912 | D178: 96.26 | E178: 3912 | F178: 98.79
A179: 3911.5 | B179: 99.92 | C179: 3911.5 | D179: 96.26 | E179: 3911.5 | F179: 98.8
A180: 3911 | B180: 99.91 | C180: 3911 | D180: 96.25 | E180: 3911 | F180: 98.82
A181: 3910.5 | B181: 99.89 | C181: 3910.5 | D181: 96.25 | E181: 3910.5 | F181: 98.84
A182: 3910 | B182: 99.87 | C182: 3910 | D182: 96.26 | E182: 3910 | F182: 98.84
A183: 3909.5 | B183: 99.87 | C183: 3909.5 | D183: 96.27 | E183: 3909.5 | F183: 98.84
A184: 3909 | B184: 99.86 | C184: 3909 | D184: 96.28 | E184: 3909 | F184: 98.84
A185: 3908.5 | B185: 99.86 | C185: 3908.5 | D185: 96.28 | E185: 3908.5 | F185: 98.82
A186: 3908 | B186: 99.85 | C186: 3908 | D186: 96.28 | E186: 3908 | F186: 98.81
A187: 3907.5 | B187: 99.84 | C187: 3907.5 | D187: 96.28 | E187: 3907.5 | F187: 98.8
A188: 3907 | B188: 99.84 | C188: 3907 | D188: 96.27 | E188: 3907 | F188: 98.79
A189: 3906.5 | B189: 99.86 | C189: 3906.5 | D189: 96.26 | E189: 3906.5 | F189: 98.8
A190: 3906 | B190: 99.88 | C190: 3906 | D190: 96.27 | E190: 3906 | F190: 98.82
A191: 3905.5 | B191: 99.89 | C191: 3905.5 | D191: 96.28 | E191: 3905.5 | F191: 98.83
A192: 3905 | B192: 99.87 | C192: 3905 | D192: 96.26 | E192: 3905 | F192: 98.83
A193: 3904.5 | B193: 99.84 | C193: 3904.5 | D193: 96.23 | E193: 3904.5 | F193: 98.8
A194: 3904 | B194: 99.83 | C194: 3904 | D194: 96.21 | E194: 3904 | F194: 98.77
A195: 3903.5 | B195: 99.82 | C195: 3903.5 | D195: 96.22 | E195: 3903.5 | F195: 98.76
A196: 3903 | B196: 99.81 | C196: 3903 | D196: 96.23 | E196: 3903 | F196: 98.74
A197: 3902.5 | B197: 99.8 | C197: 3902.5 | D197: 96.22 | E197: 3902.5 | F197: 98.72
A198: 3902 | B198: 99.8 | C198: 3902 | D198: 96.2 | E198: 3902 | F198: 98.71
A199: 3901.5 | B199: 99.81 | C199: 3901.5 | D199: 96.21 | E199: 3901.5 | F199: 98.72
A200: 3901 | B200: 99.81 | C200: 3901 | D200: 96.23 | E200: 3901 | F200: 98.76
... 6402 more rows

Sheet Fig2d
A1: mn | C1: fe | E1: co | G1: ni | I1: cu
A2: 0 | B2: 0.14373 | C2: 0 | D2: 0.08395 | E2: 0 | F2: 0.05052 | G2: 0 | H2: 0.06323 | I2: 0 | J2: 0.03461
A3: 0.03068 | B3: 0.1462 | C3: 0.03068 | D3: 0.08883 | E3: 0.03068 | F3: 0.06353 | G3: 0.03068 | H3: 0.06077 | I3: 0.03068 | J3: 0.03322
A4: 0.06136 | B4: 0.15281 | C4: 0.06136 | D4: 0.10022 | E4: 0.06136 | F4: 0.09001 | G4: 0.06136 | H4: 0.05375 | I4: 0.06136 | J4: 0.02915
A5: 0.09204 | B5: 0.16161 | C5: 0.09204 | D5: 0.11199 | E5: 0.09204 | F5: 0.11691 | G5: 0.09204 | H5: 0.0433 | I5: 0.09204 | J5: 0.02281
A6: 0.12272 | B6: 0.17031 | C6: 0.12272 | D6: 0.1194 | E6: 0.12272 | F6: 0.13868 | G6: 0.12272 | H6: 0.032 | I6: 0.12272 | J6: 0.01525
A7: 0.1534 | B7: 0.17691 | C7: 0.1534 | D7: 0.12006 | E7: 0.1534 | F7: 0.15244 | G7: 0.1534 | H7: 0.02565 | I7: 0.1534 | J7: 0.01031
A8: 0.18408 | B8: 0.18002 | C8: 0.18408 | D8: 0.11379 | E8: 0.18408 | F8: 0.15653 | G8: 0.18408 | H8: 0.0306 | I8: 0.18408 | J8: 0.0153
A9: 0.21476 | B9: 0.179 | C9: 0.21476 | D9: 0.1028 | E9: 0.21476 | F9: 0.15013 | G9: 0.21476 | H9: 0.04238 | I9: 0.21476 | J9: 0.02556
A10: 0.24544 | B10: 0.17401 | C10: 0.24544 | D10: 0.09205 | E10: 0.24544 | F10: 0.13335 | G10: 0.24544 | H10: 0.05445 | I10: 0.24544 | J10: 0.03647
A11: 0.27612 | B11: 0.16621 | C11: 0.27612 | D11: 0.08845 | E11: 0.27612 | F11: 0.10737 | G11: 0.27612 | H11: 0.06367 | I11: 0.27612 | J11: 0.04648
A12: 0.3068 | B12: 0.15795 | C12: 0.3068 | D12: 0.09589 | E12: 0.3068 | F12: 0.07505 | G12: 0.3068 | H12: 0.06848 | I12: 0.3068 | J12: 0.0546
A13: 0.33748 | B13: 0.15274 | C13: 0.33748 | D13: 0.11072 | E13: 0.33748 | F13: 0.0451 | G13: 0.33748 | H13: 0.06818 | I13: 0.33748 | J13: 0.0601
A14: 0.36816 | B14: 0.15454 | C14: 0.36816 | D14: 0.12592 | E14: 0.36816 | F14: 0.04642 | G14: 0.36816 | H14: 0.0628 | I14: 0.36816 | J14: 0.06233
A15: 0.39884 | B15: 0.16585 | C15: 0.39884 | D15: 0.13582 | E15: 0.39884 | F15: 0.08007 | G15: 0.39884 | H15: 0.0532 | I15: 0.39884 | J15: 0.06085
A16: 0.42951 | B16: 0.1862 | C16: 0.42951 | D16: 0.13718 | E16: 0.42951 | F16: 0.11813 | G16: 0.42951 | H16: 0.04151 | I16: 0.42951 | J16: 0.05537
A17: 0.46019 | B17: 0.21273 | C17: 0.46019 | D17: 0.12926 | E17: 0.46019 | F17: 0.15101 | G17: 0.46019 | H17: 0.03242 | I17: 0.46019 | J17: 0.04591
A18: 0.49087 | B18: 0.2418 | C18: 0.49087 | D18: 0.11442 | E18: 0.49087 | F18: 0.17416 | G18: 0.49087 | H18: 0.03306 | I18: 0.49087 | J18: 0.03307
A19: 0.52155 | B19: 0.27 | C19: 0.52155 | D19: 0.09961 | E19: 0.52155 | F19: 0.18458 | G19: 0.52155 | H19: 0.04311 | I19: 0.52155 | J19: 0.02004
A20: 0.55223 | B20: 0.29441 | C20: 0.55223 | D20: 0.09698 | E20: 0.55223 | F20: 0.18038 | G20: 0.55223 | H20: 0.05531 | I20: 0.55223 | J20: 0.02197
A21: 0.58291 | B21: 0.31266 | C21: 0.58291 | D21: 0.11421 | E21: 0.58291 | F21: 0.16088 | G21: 0.58291 | H21: 0.06473 | I21: 0.58291 | J21: 0.04242
A22: 0.61359 | B22: 0.32286 | C22: 0.61359 | D22: 0.14452 | E22: 0.61359 | F22: 0.12668 | G22: 0.61359 | H22: 0.06868 | I22: 0.61359 | J22: 0.06898
A23: 0.64427 | B23: 0.32367 | C23: 0.64427 | D23: 0.17696 | E23: 0.64427 | F23: 0.07971 | G23: 0.64427 | H23: 0.0656 | I23: 0.64427 | J23: 0.09819
A24: 0.67495 | B24: 0.31435 | C24: 0.67495 | D24: 0.20411 | E24: 0.67495 | F24: 0.02339 | G24: 0.67495 | H24: 0.05482 | I24: 0.67495 | J24: 0.12869
A25: 0.70563 | B25: 0.29494 | C25: 0.70563 | D25: 0.2223 | E25: 0.70563 | F25: 0.03943 | G25: 0.70563 | H25: 0.03692 | I25: 0.70563 | J25: 0.15948
A26: 0.73631 | B26: 0.26652 | C26: 0.73631 | D26: 0.2317 | E26: 0.73631 | F26: 0.10167 | G26: 0.73631 | H26: 0.01825 | I26: 0.73631 | J26: 0.18971
A27: 0.76699 | B27: 0.23189 | C27: 0.76699 | D27: 0.23713 | E27: 0.76699 | F27: 0.1589 | G27: 0.76699 | H27: 0.03262 | I27: 0.76699 | J27: 0.21869
A28: 0.79767 | B28: 0.19707 | C28: 0.79767 | D28: 0.24805 | E28: 0.79767 | F28: 0.20549 | G28: 0.79767 | H28: 0.06746 | I28: 0.79767 | J28: 0.24592
A29: 0.82835 | B29: 0.17373 | C29: 0.82835 | D29: 0.27493 | E29: 0.82835 | F29: 0.23638 | G29: 0.82835 | H29: 0.10624 | I29: 0.82835 | J29: 0.27118
A30: 0.85903 | B30: 0.17768 | C30: 0.85903 | D30: 0.32205 | E30: 0.85903 | F30: 0.24746 | G30: 0.85903 | H30: 0.14489 | I30: 0.85903 | J30: 0.29455
A31: 0.88971 | B31: 0.21439 | C31: 0.88971 | D31: 0.38466 | E31: 0.88971 | F31: 0.23616 | G31: 0.88971 | H31: 0.18049 | I31: 0.88971 | J31: 0.31652
A32: 0.92039 | B32: 0.27383 | C32: 0.92039 | D32: 0.45294 | E32: 0.92039 | F32: 0.20216 | G32: 0.92039 | H32: 0.21044 | I32: 0.92039 | J32: 0.33792
A33: 0.95107 | B33: 0.34424 | C33: 0.95107 | D33: 0.51626 | E33: 0.95107 | F33: 0.14948 | G33: 0.95107 | H33: 0.23271 | I33: 0.95107 | J33: 0.35996
A34: 0.98175 | B34: 0.41766 | C34: 0.98175 | D34: 0.56512 | E34: 0.98175 | F34: 0.09742 | G34: 0.98175 | H34: 0.24597 | I34: 0.98175 | J34: 0.38404
A35: 1.01243 | B35: 0.48875 | C35: 1.01243 | D35: 0.59212 | E35: 1.01243 | F35: 0.11298 | G35: 1.01243 | H35: 0.24995 | I35: 1.01243 | J35: 0.41159
A36: 1.04311 | B36: 0.55347 | C36: 1.04311 | D36: 0.59265 | E36: 1.04311 | F36: 0.20151 | G36: 1.04311 | H36: 0.24569 | I36: 1.04311 | J36: 0.44377
A37: 1.07379 | B37: 0.6086 | C37: 1.07379 | D37: 0.56589 | E37: 1.07379 | F37: 0.31017 | G37: 1.07379 | H37: 0.23585 | I37: 1.07379 | J37: 0.48131
A38: 1.10447 | B38: 0.65156 | C38: 1.10447 | D38: 0.51623 | E38: 1.10447 | F38: 0.41873 | G38: 1.10447 | H38: 0.22484 | I38: 1.10447 | J38: 0.5243
A39: 1.13515 | B39: 0.68039 | C39: 1.13515 | D39: 0.45571 | E39: 1.13515 | F39: 0.51577 | G39: 1.13515 | H39: 0.21828 | I39: 1.13515 | J39: 0.57227
A40: 1.16583 | B40: 0.69381 | C40: 1.16583 | D40: 0.40737 | E40: 1.16583 | F40: 0.59216 | G40: 1.16583 | H40: 0.22098 | I40: 1.16583 | J40: 0.62418
A41: 1.19651 | B41: 0.69134 | C41: 1.19651 | D41: 0.40217 | E41: 1.19651 | F41: 0.64049 | G41: 1.19651 | H41: 0.23409 | I41: 1.19651 | J41: 0.67863
A42: 1.22718 | B42: 0.67348 | C42: 1.22718 | D42: 0.45512 | E42: 1.22718 | F42: 0.65564 | G42: 1.22718 | H42: 0.25413 | I42: 1.22718 | J42: 0.73394
A43: 1.25786 | B43: 0.6419 | C43: 1.25786 | D43: 0.54899 | E43: 1.25786 | F43: 0.63592 | G43: 1.25786 | H43: 0.27505 | I43: 1.25786 | J43: 0.78834
A44: 1.28854 | B44: 0.59986 | C44: 1.28854 | D44: 0.65581 | E44: 1.28854 | F44: 0.58491 | G44: 1.28854 | H44: 0.29068 | I44: 1.28854 | J44: 0.84
A45: 1.31922 | B45: 0.5527 | C45: 1.31922 | D45: 0.75406 | E45: 1.31922 | F45: 0.51539 | G45: 1.31922 | H45: 0.29589 | I45: 1.31922 | J45: 0.88718
A46: 1.3499 | B46: 0.50861 | C46: 1.3499 | D46: 0.83027 | E46: 1.3499 | F46: 0.45695 | G46: 1.3499 | H46: 0.28698 | I46: 1.3499 | J46: 0.92824
A47: 1.38058 | B47: 0.47868 | C47: 1.38058 | D47: 0.87765 | E47: 1.38058 | F47: 0.45861 | G47: 1.38058 | H47: 0.26177 | I47: 1.38058 | J47: 0.96171
A48: 1.41126 | B48: 0.47468 | C48: 1.41126 | D48: 0.89578 | E48: 1.41126 | F48: 0.55205 | G48: 1.41126 | H48: 0.21972 | I48: 1.41126 | J48: 0.98637
A49: 1.44194 | B49: 0.50342 | C49: 1.44194 | D49: 0.89087 | E49: 1.44194 | F49: 0.71642 | G49: 1.44194 | H49: 0.16229 | I49: 1.44194 | J49: 1.00121
A50: 1.47262 | B50: 0.56252 | C50: 1.47262 | D50: 0.87578 | E50: 1.47262 | F50: 0.91441 | G50: 1.47262 | H50: 0.0954 | I50: 1.47262 | J50: 1.00552
A51: 1.5033 | B51: 0.64304 | C51: 1.5033 | D51: 0.86833 | E51: 1.5033 | F51: 1.11774 | G51: 1.5033 | H51: 0.05708 | I51: 1.5033 | J51: 0.99888
A52: 1.53398 | B52: 0.7348 | C52: 1.53398 | D52: 0.88581 | E52: 1.53398 | F52: 1.30621 | G52: 1.53398 | H52: 0.11902 | I52: 1.53398 | J52: 0.98115
A53: 1.56466 | B53: 0.82911 | C53: 1.56466 | D53: 0.93659 | E53: 1.56466 | F53: 1.46434 | G53: 1.56466 | H53: 0.21059 | I53: 1.56466 | J53: 0.95252
A54: 1.59534 | B54: 0.91919 | C54: 1.59534 | D54: 1.01524 | E54: 1.59534 | F54: 1.58014 | G54: 1.59534 | H54: 0.30419 | I54: 1.59534 | J54: 0.91343
A55: 1.62602 | B55: 0.9998 | C55: 1.62602 | D55: 1.106 | E55: 1.62602 | F55: 1.64482 | G55: 1.62602 | H55: 0.39184 | I55: 1.62602 | J55: 0.86464
A56: 1.6567 | B56: 1.0669 | C56: 1.6567 | D56: 1.19011 | E56: 1.6567 | F56: 1.65293 | G56: 1.6567 | H56: 0.468 | I56: 1.6567 | J56: 0.80715
A57: 1.68738 | B57: 1.11749 | C57: 1.68738 | D57: 1.2509 | E57: 1.68738 | F57: 1.6025 | G57: 1.68738 | H57: 0.52827 | I57: 1.68738 | J57: 0.74223
A58: 1.71806 | B58: 1.14943 | C58: 1.71806 | D58: 1.27604 | E58: 1.71806 | F58: 1.4951 | G58: 1.71806 | H58: 0.56934 | I58: 1.71806 | J58: 0.67137
A59: 1.74874 | B59: 1.1614 | C59: 1.74874 | D59: 1.25824 | E59: 1.74874 | F59: 1.33572 | G59: 1.74874 | H59: 0.58916 | I59: 1.74874 | J59: 0.59636
A60: 1.77942 | B60: 1.15285 | C60: 1.77942 | D60: 1.1952 | E60: 1.77942 | F60: 1.13251 | G60: 1.77942 | H60: 0.58714 | I60: 1.77942 | J60: 0.51932
A61: 1.8101 | B61: 1.12399 | C61: 1.8101 | D61: 1.08938 | E61: 1.8101 | F61: 0.89654 | G61: 1.8101 | H61: 0.56423 | I61: 1.8101 | J61: 0.44291
A62: 1.84078 | B62: 1.07565 | C62: 1.84078 | D62: 0.94753 | E62: 1.84078 | F62: 0.6417 | G62: 1.84078 | H62: 0.52301 | I62: 1.84078 | J62: 0.37066
A63: 1.87146 | B63: 1.00933 | C63: 1.87146 | D63: 0.78014 | E63: 1.87146 | F63: 0.38728 | G63: 1.87146 | H63: 0.46787 | I63: 1.87146 | J63: 0.30774
A64: 1.90214 | B64: 0.92703 | C64: 1.90214 | D64: 0.60123 | E64: 1.90214 | F64: 0.1846 | G64: 1.90214 | H64: 0.40523 | I64: 1.90214 | J64: 0.26165
A65: 1.93282 | B65: 0.83123 | C65: 1.93282 | D65: 0.42937 | E65: 1.93282 | F65: 0.22621 | G65: 1.93282 | H65: 0.34414 | I65: 1.93282 | J65: 0.24111
A66: 1.9635 | B66: 0.72474 | C66: 1.9635 | D66: 0.29302 | E66: 1.9635 | F66: 0.40609 | G66: 1.9635 | H66: 0.29659 | I66: 1.9635 | J66: 0.24989
A67: 1.99418 | B67: 0.61064 | C67: 1.99418 | D67: 0.23634 | E67: 1.99418 | F67: 0.57021 | G67: 1.99418 | H67: 0.275 | I67: 1.99418 | J67: 0.28205
A68: 2.02485 | B68: 0.49212 | C68: 2.02485 | D68: 0.2667 | E68: 2.02485 | F68: 0.69268 | G68: 2.02485 | H68: 0.28374 | I68: 2.02485 | J68: 0.32743
A69: 2.05553 | B69: 0.37245 | C69: 2.05553 | D69: 0.32218 | E69: 2.05553 | F69: 0.76562 | G69: 2.05553 | H69: 0.3141 | I69: 2.05553 | J69: 0.3781
A70: 2.08621 | B70: 0.25489 | C70: 2.08621 | D70: 0.36039 | E70: 2.08621 | F70: 0.7868 | G70: 2.08621 | H70: 0.35271 | I70: 2.08621 | J70: 0.42928
A71: 2.11689 | B71: 0.14299 | C71: 2.11689 | D71: 0.3679 | E71: 2.11689 | F71: 0.7578 | G71: 2.11689 | H71: 0.38971 | I71: 2.11689 | J71: 0.47824
A72: 2.14757 | B72: 0.04593 | C72: 2.14757 | D72: 0.34385 | E72: 2.14757 | F72: 0.68344 | G72: 2.14757 | H72: 0.42006 | I72: 2.14757 | J72: 0.5234
A73: 2.17825 | B73: 0.0707 | C73: 2.17825 | D73: 0.2944 | E73: 2.17825 | F73: 0.57139 | G73: 2.17825 | H73: 0.44227 | I73: 2.17825 | J73: 0.56381
A74: 2.20893 | B74: 0.15172 | C74: 2.20893 | D74: 0.23258 | E74: 2.20893 | F74: 0.43203 | G74: 2.20893 | H74: 0.45738 | I74: 2.20893 | J74: 0.59888
A75: 2.23961 | B75: 0.22305 | C75: 2.23961 | D75: 0.18281 | E75: 2.23961 | F75: 0.27998 | G75: 2.23961 | H75: 0.46791 | I75: 2.23961 | J75: 0.62824
A76: 2.27029 | B76: 0.28139 | C76: 2.27029 | D76: 0.17993 | E76: 2.27029 | F76: 0.14885 | G76: 2.27029 | H76: 0.47703 | I76: 2.27029 | J76: 0.65164
A77: 2.30097 | B77: 0.326 | C77: 2.30097 | D77: 0.22629 | E77: 2.30097 | F77: 0.1559 | G77: 2.30097 | H77: 0.48744 | I77: 2.30097 | J77: 0.66893
A78: 2.33165 | B78: 0.35688 | C78: 2.33165 | D78: 0.28861 | E78: 2.33165 | F78: 0.27768 | G78: 2.33165 | H78: 0.50046 | I78: 2.33165 | J78: 0.68002
A79: 2.36233 | B79: 0.37455 | C79: 2.36233 | D79: 0.34354 | E79: 2.36233 | F79: 0.40263 | G79: 2.36233 | H79: 0.51563 | I79: 2.36233 | J79: 0.68487
A80: 2.39301 | B80: 0.37998 | C80: 2.39301 | D80: 0.38031 | E80: 2.39301 | F80: 0.50565 | G80: 2.39301 | H80: 0.53082 | I80: 2.39301 | J80: 0.68351
A81: 2.42369 | B81: 0.37446 | C81: 2.42369 | D81: 0.3947 | E81: 2.42369 | F81: 0.57889 | G81: 2.42369 | H81: 0.54301 | I81: 2.42369 | J81: 0.67603
A82: 2.45437 | B82: 0.35955 | C82: 2.45437 | D82: 0.38656 | E82: 2.45437 | F82: 0.61953 | G82: 2.45437 | H82: 0.54901 | I82: 2.45437 | J82: 0.66259
A83: 2.48505 | B83: 0.33702 | C83: 2.48505 | D83: 0.35899 | E83: 2.48505 | F83: 0.628 | G83: 2.48505 | H83: 0.54615 | I83: 2.48505 | J83: 0.64347
A84: 2.51573 | B84: 0.30873 | C84: 2.51573 | D84: 0.31793 | E84: 2.51573 | F84: 0.60753 | G84: 2.51573 | H84: 0.53265 | I84: 2.51573 | J84: 0.61901
A85: 2.54641 | B85: 0.2766 | C85: 2.54641 | D85: 0.27224 | E85: 2.54641 | F85: 0.56391 | G85: 2.54641 | H85: 0.50778 | I85: 2.54641 | J85: 0.58969
A86: 2.57709 | B86: 0.2425 | C86: 2.57709 | D86: 0.23366 | E86: 2.57709 | F86: 0.50541 | G86: 2.57709 | H86: 0.47187 | I86: 2.57709 | J86: 0.55607
A87: 2.60777 | B87: 0.20824 | C87: 2.60777 | D87: 0.21462 | E87: 2.60777 | F87: 0.44279 | G87: 2.60777 | H87: 0.42625 | I87: 2.60777 | J87: 0.51882
A88: 2.63845 | B88: 0.17552 | C88: 2.63845 | D88: 0.22025 | E88: 2.63845 | F88: 0.38891 | G88: 2.63845 | H88: 0.37309 | I88: 2.63845 | J88: 0.47873
A89: 2.66913 | B89: 0.14597 | C89: 2.66913 | D89: 0.24304 | E89: 2.66913 | F89: 0.35628 | G89: 2.66913 | H89: 0.31521 | I89: 2.66913 | J89: 0.43664
A90: 2.69981 | B90: 0.12115 | C90: 2.69981 | D90: 0.27088 | E90: 2.69981 | F90: 0.35087 | G90: 2.69981 | H90: 0.25602 | I90: 2.69981 | J90: 0.39347
A91: 2.73049 | B91: 0.10255 | C91: 2.73049 | D91: 0.29508 | E91: 2.73049 | F91: 0.36712 | G91: 2.73049 | H91: 0.19946 | I91: 2.73049 | J91: 0.35021
A92: 2.76117 | B92: 0.09125 | C92: 2.76117 | D92: 0.31124 | E92: 2.76117 | F92: 0.39247 | G92: 2.76117 | H92: 0.1503 | I92: 2.76117 | J92: 0.30787
A93: 2.79185 | B93: 0.08725 | C93: 2.79185 | D93: 0.31794 | E93: 2.79185 | F93: 0.41529 | G93: 2.79185 | H93: 0.11463 | I93: 2.79185 | J93: 0.2675
A94: 2.82252 | B94: 0.08913 | C94: 2.82252 | D94: 0.31546 | E94: 2.82252 | F94: 0.42809 | G94: 2.82252 | H94: 0.09826 | I94: 2.82252 | J94: 0.23016
A95: 2.8532 | B95: 0.09473 | C95: 2.8532 | D95: 0.30491 | E95: 2.8532 | F95: 0.42733 | G95: 2.8532 | H95: 0.09969 | I95: 2.8532 | J95: 0.19693
A96: 2.88388 | B96: 0.10215 | C96: 2.88388 | D96: 0.28763 | E96: 2.88388 | F96: 0.41233 | G96: 2.88388 | H96: 0.10894 | I96: 2.88388 | J96: 0.16884
A97: 2.91456 | B97: 0.11002 | C97: 2.91456 | D97: 0.26481 | E97: 2.91456 | F97: 0.38452 | G97: 2.91456 | H97: 0.11741 | I97: 2.91456 | J97: 0.1468
A98: 2.94524 | B98: 0.11742 | C98: 2.94524 | D98: 0.23735 | E98: 2.94524 | F98: 0.34677 | G98: 2.94524 | H98: 0.12117 | I98: 2.94524 | J98: 0.13131
A99: 2.97592 | B99: 0.12363 | C99: 2.97592 | D99: 0.20591 | E99: 2.97592 | F99: 0.303 | G99: 2.97592 | H99: 0.11925 | I99: 2.97592 | J99: 0.12217
A100: 3.0066 | B100: 0.12803 | C100: 3.0066 | D100: 0.17106 | E100: 3.0066 | F100: 0.25791 | G100: 3.0066 | H100: 0.11219 | I100: 3.0066 | J100: 0.11834
A101: 3.03728 | B101: 0.13009 | C101: 3.03728 | D101: 0.13351 | E101: 3.03728 | F101: 0.21684 | G101: 3.03728 | H101: 0.10135 | I101: 3.03728 | J101: 0.11825
A102: 3.06796 | B102: 0.12935 | C102: 3.06796 | D102: 0.09426 | E102: 3.06796 | F102: 0.18544 | G102: 3.06796 | H102: 0.08862 | I102: 3.06796 | J102: 0.12034
A103: 3.09864 | B103: 0.12551 | C103: 3.09864 | D103: 0.05486 | E103: 3.09864 | F103: 0.16837 | G103: 3.09864 | H103: 0.07626 | I103: 3.09864 | J103: 0.12345
A104: 3.12932 | B104: 0.11852 | C104: 3.12932 | D104: 0.02109 | E104: 3.12932 | F104: 0.16635 | G104: 3.12932 | H104: 0.06668 | I104: 3.12932 | J104: 0.12685
A105: 3.16 | B105: 0.1086 | C105: 3.16 | D105: 0.0326 | E105: 3.16 | F105: 0.17523 | G105: 3.16 | H105: 0.06184 | I105: 3.16 | J105: 0.13013
A106: 3.19068 | B106: 0.09648 | C106: 3.19068 | D106: 0.06645 | E106: 3.19068 | F106: 0.18913 | G106: 3.19068 | H106: 0.06204 | I106: 3.19068 | J106: 0.1331
A107: 3.22136 | B107: 0.08364 | C107: 3.22136 | D107: 0.09924 | E107: 3.22136 | F107: 0.20347 | G107: 3.22136 | H107: 0.06568 | I107: 3.22136 | J107: 0.13561
A108: 3.25204 | B108: 0.0728 | C108: 3.25204 | D108: 0.12886 | E108: 3.25204 | F108: 0.21552 | G108: 3.25204 | H108: 0.07053 | I108: 3.25204 | J108: 0.13752
A109: 3.28272 | B109: 0.06805 | C109: 3.28272 | D109: 0.15454 | E109: 3.28272 | F109: 0.22374 | G109: 3.28272 | H109: 0.07489 | I109: 3.28272 | J109: 0.13859
A110: 3.3134 | B110: 0.07277 | C110: 3.3134 | D110: 0.17558 | E110: 3.3134 | F110: 0.22723 | G110: 3.3134 | H110: 0.07775 | I110: 3.3134 | J110: 0.13859
A111: 3.34408 | B111: 0.08621 | C111: 3.34408 | D111: 0.19113 | E111: 3.34408 | F111: 0.22548 | G111: 3.34408 | H111: 0.07861 | I111: 3.34408 | J111: 0.13723
A112: 3.37476 | B112: 0.10471 | C112: 3.37476 | D112: 0.20011 | E112: 3.37476 | F112: 0.21819 | G112: 3.37476 | H112: 0.07729 | I112: 3.37476 | J112: 0.13428
A113: 3.40544 | B113: 0.12492 | C113: 3.40544 | D113: 0.20138 | E113: 3.40544 | F113: 0.20546 | G113: 3.40544 | H113: 0.07386 | I113: 3.40544 | J113: 0.12958
A114: 3.43612 | B114: 0.14447 | C114: 3.43612 | D114: 0.194 | E114: 3.43612 | F114: 0.18777 | G114: 3.43612 | H114: 0.06857 | I114: 3.43612 | J114: 0.12312
A115: 3.4668 | B115: 0.16172 | C115: 3.4668 | D115: 0.17752 | E115: 3.4668 | F115: 0.16625 | G115: 3.4668 | H115: 0.06196 | I115: 3.4668 | J115: 0.11508
A116: 3.49748 | B116: 0.17548 | C116: 3.49748 | D116: 0.15249 | E116: 3.49748 | F116: 0.14273 | G116: 3.49748 | H116: 0.055 | I116: 3.49748 | J116: 0.10596
A117: 3.52816 | B117: 0.18488 | C117: 3.52816 | D117: 0.1212 | E117: 3.52816 | F117: 0.12 | G117: 3.52816 | H117: 0.04924 | I117: 3.52816 | J117: 0.09662
A118: 3.55884 | B118: 0.18933 | C118: 3.55884 | D118: 0.08985 | E118: 3.55884 | F118: 0.10178 | G118: 3.55884 | H118: 0.04672 | I118: 3.55884 | J118: 0.0884
A119: 3.58952 | B119: 0.1885 | C119: 3.58952 | D119: 0.07398 | E119: 3.58952 | F119: 0.0918 | G119: 3.58952 | H119: 0.04889 | I119: 3.58952 | J119: 0.08312
A120: 3.62019 | B120: 0.18233 | C120: 3.62019 | D120: 0.09014 | E120: 3.62019 | F120: 0.09109 | G120: 3.62019 | H120: 0.05526 | I120: 3.62019 | J120: 0.08257
A121: 3.65087 | B121: 0.17099 | C121: 3.65087 | D121: 0.12624 | E121: 3.65087 | F121: 0.0963 | G121: 3.65087 | H121: 0.06395 | I121: 3.65087 | J121: 0.08753
A122: 3.68155 | B122: 0.1549 | C122: 3.68155 | D122: 0.16536 | E122: 3.68155 | F122: 0.10247 | G122: 3.68155 | H122: 0.073 | I122: 3.68155 | J122: 0.09731
A123: 3.71223 | B123: 0.13477 | C123: 3.71223 | D123: 0.19913 | E123: 3.71223 | F123: 0.10595 | G123: 3.71223 | H123: 0.08089 | I123: 3.71223 | J123: 0.11028
A124: 3.74291 | B124: 0.11159 | C124: 3.74291 | D124: 0.22305 | E124: 3.74291 | F124: 0.10508 | G124: 3.74291 | H124: 0.0866 | I124: 3.74291 | J124: 0.12476
A125: 3.77359 | B125: 0.08682 | C125: 3.77359 | D125: 0.23456 | E125: 3.77359 | F125: 0.09999 | G125: 3.77359 | H125: 0.08947 | I125: 3.77359 | J125: 0.13938
A126: 3.80427 | B126: 0.06306 | C126: 3.80427 | D126: 0.23262 | E126: 3.80427 | F126: 0.0926 | G126: 3.80427 | H126: 0.08915 | I126: 3.80427 | J126: 0.15316
A127: 3.83495 | B127: 0.04608 | C127: 3.83495 | D127: 0.21766 | E127: 3.83495 | F127: 0.08657 | G127: 3.83495 | H127: 0.0856 | I127: 3.83495 | J127: 0.16547
A128: 3.86563 | B128: 0.04574 | C128: 3.86563 | D128: 0.19159 | E128: 3.86563 | F128: 0.08641 | G128: 3.86563 | H128: 0.07902 | I128: 3.86563 | J128: 0.17596
A129: 3.89631 | B129: 0.06121 | C129: 3.89631 | D129: 0.15791 | E129: 3.89631 | F129: 0.09435 | G129: 3.89631 | H129: 0.06989 | I129: 3.89631 | J129: 0.18462
A130: 3.92699 | B130: 0.08208 | C130: 3.92699 | D130: 0.12216 | E130: 3.92699 | F130: 0.10832 | G130: 3.92699 | H130: 0.05889 | I130: 3.92699 | J130: 0.1917
A131: 3.95767 | B131: 0.10269 | C131: 3.95767 | D131: 0.09312 | E131: 3.95767 | F131: 0.12401 | G131: 3.95767 | H131: 0.04702 | I131: 3.95767 | J131: 0.19775
A132: 3.98835 | B132: 0.12074 | C132: 3.98835 | D132: 0.08225 | E132: 3.98835 | F132: 0.13738 | G132: 3.98835 | H132: 0.03579 | I132: 3.98835 | J132: 0.2036
A133: 4.01903 | B133: 0.13506 | C133: 4.01903 | D133: 0.09121 | E133: 4.01903 | F133: 0.1454 | G133: 4.01903 | H133: 0.02782 | I133: 4.01903 | J133: 0.21026
A134: 4.04971 | B134: 0.14501 | C134: 4.04971 | D134: 0.10691 | E134: 4.04971 | F134: 0.14601 | G134: 4.04971 | H134: 0.02673 | I134: 4.04971 | J134: 0.21877
A135: 4.08039 | B135: 0.15027 | C135: 4.08039 | D135: 0.11814 | E135: 4.08039 | F135: 0.13801 | G135: 4.08039 | H135: 0.03267 | I135: 4.08039 | J135: 0.23004
A136: 4.11107 | B136: 0.15076 | C136: 4.11107 | D136: 0.11973 | E136: 4.11107 | F136: 0.12104 | G136: 4.11107 | H136: 0.04201 | I136: 4.11107 | J136: 0.24462
A137: 4.14175 | B137: 0.1466 | C137: 4.14175 | D137: 0.11024 | E137: 4.14175 | F137: 0.09553 | G137: 4.14175 | H137: 0.0523 | I137: 4.14175 | J137: 0.26262
A138: 4.17243 | B138: 0.13812 | C138: 4.17243 | D138: 0.09084 | E138: 4.17243 | F138: 0.06295 | G138: 4.17243 | H138: 0.06264 | I138: 4.17243 | J138: 0.2837
A139: 4.20311 | B139: 0.12579 | C139: 4.20311 | D139: 0.06624 | E139: 4.20311 | F139: 0.02893 | G139: 4.20311 | H139: 0.07279 | I139: 4.20311 | J139: 0.30719
A140: 4.23379 | B140: 0.1102 | C140: 4.23379 | D140: 0.05043 | E140: 4.23379 | F140: 0.03521 | G140: 4.23379 | H140: 0.08272 | I140: 4.23379 | J140: 0.33217
A141: 4.26447 | B141: 0.09204 | C141: 4.26447 | D141: 0.06464 | E141: 4.26447 | F141: 0.07839 | G141: 4.26447 | H141: 0.09244 | I141: 4.26447 | J141: 0.35766
A142: 4.29515 | B142: 0.07208 | C142: 4.29515 | D142: 0.09835 | E142: 4.29515 | F142: 0.12568 | G142: 4.29515 | H142: 0.10185 | I142: 4.29515 | J142: 0.38264
A143: 4.32583 | B143: 0.0511 | C143: 4.32583 | D143: 0.13469 | E143: 4.32583 | F143: 0.1722 | G143: 4.32583 | H143: 0.11074 | I143: 4.32583 | J143: 0.40619
A144: 4.35651 | B144: 0.02992 | C144: 4.35651 | D144: 0.16645 | E144: 4.35651 | F144: 0.21562 | G144: 4.35651 | H144: 0.11879 | I144: 4.35651 | J144: 0.42745
A145: 4.38719 | B145: 0.00972 | C145: 4.38719 | D145: 0.18986 | E145: 4.38719 | F145: 0.25427 | G145: 4.38719 | H145: 0.1256 | I145: 4.38719 | J145: 0.4457
A146: 4.41786 | B146: 0.0117 | C146: 4.41786 | D146: 0.2028 | E146: 4.41786 | F146: 0.28694 | G146: 4.41786 | H146: 0.13078 | I146: 4.41786 | J146: 0.46034
A147: 4.44854 | B147: 0.02928 | C147: 4.44854 | D147: 0.20436 | E147: 4.44854 | F147: 0.31287 | G147: 4.44854 | H147: 0.13398 | I147: 4.44854 | J147: 0.47094
A148: 4.47922 | B148: 0.04508 | C148: 4.47922 | D148: 0.1947 | E148: 4.47922 | F148: 0.33175 | G148: 4.47922 | H148: 0.13494 | I148: 4.47922 | J148: 0.47716
A149: 4.5099 | B149: 0.05848 | C149: 4.5099 | D149: 0.17495 | E149: 4.5099 | F149: 0.34368 | G149: 4.5099 | H149: 0.13353 | I149: 4.5099 | J149: 0.47886
A150: 4.54058 | B150: 0.06926 | C150: 4.54058 | D150: 0.147 | E150: 4.54058 | F150: 0.34908 | G150: 4.54058 | H150: 0.12972 | I150: 4.54058 | J150: 0.47599
A151: 4.57126 | B151: 0.07735 | C151: 4.57126 | D151: 0.11334 | E151: 4.57126 | F151: 0.34866 | G151: 4.57126 | H151: 0.12362 | I151: 4.57126 | J151: 0.46866
A152: 4.60194 | B152: 0.08284 | C152: 4.60194 | D152: 0.0769 | E152: 4.60194 | F152: 0.34327 | G152: 4.60194 | H152: 0.11547 | I152: 4.60194 | J152: 0.45706
A153: 4.63262 | B153: 0.08593 | C153: 4.63262 | D153: 0.04149 | E153: 4.63262 | F153: 0.33384 | G153: 4.63262 | H153: 0.10558 | I153: 4.63262 | J153: 0.44152
A154: 4.6633 | B154: 0.08696 | C154: 4.6633 | D154: 0.01941 | E154: 4.6633 | F154: 0.32125 | G154: 4.6633 | H154: 0.09434 | I154: 4.6633 | J154: 0.42243
A155: 4.69398 | B155: 0.08635 | C155: 4.69398 | D155: 0.03612 | E155: 4.69398 | F155: 0.30629 | G155: 4.69398 | H155: 0.08217 | I155: 4.69398 | J155: 0.40024
A156: 4.72466 | B156: 0.08457 | C156: 4.72466 | D156: 0.05937 | E156: 4.72466 | F156: 0.28955 | G156: 4.72466 | H156: 0.06953 | I156: 4.72466 | J156: 0.37546
A157: 4.75534 | B157: 0.08215 | C157: 4.75534 | D157: 0.07729 | E157: 4.75534 | F157: 0.27144 | G157: 4.75534 | H157: 0.05687 | I157: 4.75534 | J157: 0.34862
A158: 4.78602 | B158: 0.07958 | C158: 4.78602 | D158: 0.08826 | E158: 4.78602 | F158: 0.25212 | G158: 4.78602 | H158: 0.04462 | I158: 4.78602 | J158: 0.32028
A159: 4.8167 | B159: 0.07726 | C159: 4.8167 | D159: 0.09207 | E159: 4.8167 | F159: 0.23159 | G159: 4.8167 | H159: 0.03323 | I159: 4.8167 | J159: 0.29097
A160: 4.84738 | B160: 0.07548 | C160: 4.84738 | D160: 0.08918 | E160: 4.84738 | F160: 0.20973 | G160: 4.84738 | H160: 0.02322 | I160: 4.84738 | J160: 0.26123
A161: 4.87806 | B161: 0.07435 | C161: 4.87806 | D161: 0.08052 | E161: 4.87806 | F161: 0.18646 | G161: 4.87806 | H161: 0.01546 | I161: 4.87806 | J161: 0.23154
A162: 4.90874 | B162: 0.07383 | C162: 4.90874 | D162: 0.06742 | E162: 4.90874 | F162: 0.16189 | G162: 4.90874 | H162: 0.01161 | I162: 4.90874 | J162: 0.20239
A163: 4.93942 | B163: 0.07373 | C163: 4.93942 | D163: 0.05182 | E163: 4.93942 | F163: 0.13667 | G163: 4.93942 | H163: 0.01246 | I163: 4.93942 | J163: 0.17423
A164: 4.9701 | B164: 0.07382 | C164: 4.9701 | D164: 0.03702 | E164: 4.9701 | F164: 0.11259 | G164: 4.9701 | H164: 0.01539 | I164: 4.9701 | J164: 0.14748
A165: 5.00078 | B165: 0.07388 | C165: 5.00078 | D165: 0.02986 | E165: 5.00078 | F165: 0.09372 | G165: 5.00078 | H165: 0.01809 | I165: 5.00078 | J165: 0.1226
A166: 5.03146 | B166: 0.07373 | C166: 5.03146 | D166: 0.03612 | E166: 5.03146 | F166: 0.08698 | G166: 5.03146 | H166: 0.01977 | I166: 5.03146 | J166: 0.10012
A167: 5.06214 | B167: 0.07327 | C167: 5.06214 | D167: 0.04933 | E167: 5.06214 | F167: 0.09715 | G167: 5.06214 | H167: 0.02021 | I167: 5.06214 | J167: 0.08075
A168: 5.09282 | B168: 0.07245 | C168: 5.09282 | D168: 0.06262 | E168: 5.09282 | F168: 0.12055 | G168: 5.09282 | H168: 0.0194 | I168: 5.09282 | J168: 0.06551
A169: 5.1235 | B169: 0.07126 | C169: 5.1235 | D169: 0.07296 | E169: 5.1235 | F169: 0.15026 | G169: 5.1235 | H169: 0.01746 | I169: 5.1235 | J169: 0.0557
A170: 5.15418 | B170: 0.06974 | C170: 5.15418 | D170: 0.07893 | E170: 5.15418 | F170: 0.18124 | G170: 5.15418 | H170: 0.01456 | I170: 5.15418 | J170: 0.05223
A171: 5.18486 | B171: 0.06792 | C171: 5.18486 | D171: 0.07984 | E171: 5.18486 | F171: 0.21024 | G171: 5.18486 | H171: 0.01093 | I171: 5.18486 | J171: 0.05434
A172: 5.21553 | B172: 0.06583 | C172: 5.21553 | D172: 0.0756 | E172: 5.21553 | F172: 0.23494 | G172: 5.21553 | H172: 0.00691 | I172: 5.21553 | J172: 0.05987
A173: 5.24621 | B173: 0.06347 | C173: 5.24621 | D173: 0.06665 | E173: 5.24621 | F173: 0.25364 | G173: 5.24621 | H173: 0.00324 | I173: 5.24621 | J173: 0.06673
A174: 5.27689 | B174: 0.06081 | C174: 5.27689 | D174: 0.05402 | E174: 5.27689 | F174: 0.26509 | G174: 5.27689 | H174: 0.00351 | I174: 5.27689 | J174: 0.07356
A175: 5.30757 | B175: 0.05781 | C175: 5.30757 | D175: 0.03955 | E175: 5.30757 | F175: 0.26857 | G175: 5.30757 | H175: 0.00694 | I175: 5.30757 | J175: 0.07963
A176: 5.33825 | B176: 0.05444 | C176: 5.33825 | D176: 0.0268 | E176: 5.33825 | F176: 0.26388 | G176: 5.33825 | H176: 0.01023 | I176: 5.33825 | J176: 0.08457
A177: 5.36893 | B177: 0.05068 | C177: 5.36893 | D177: 0.02297 | E177: 5.36893 | F177: 0.25138 | G177: 5.36893 | H177: 0.01283 | I177: 5.36893 | J177: 0.08819
A178: 5.39961 | B178: 0.04654 | C178: 5.39961 | D178: 0.03014 | E178: 5.39961 | F178: 0.23204 | G178: 5.39961 | H178: 0.01449 | I178: 5.39961 | J178: 0.09044
A179: 5.43029 | B179: 0.04211 | C179: 5.43029 | D179: 0.03982 | E179: 5.43029 | F179: 0.20749 | G179: 5.43029 | H179: 0.01511 | I179: 5.43029 | J179: 0.09132
A180: 5.46097 | B180: 0.03753 | C180: 5.46097 | D180: 0.04697 | E180: 5.46097 | F180: 0.18003 | G180: 5.46097 | H180: 0.01466 | I180: 5.46097 | J180: 0.09092
A181: 5.49165 | B181: 0.03309 | C181: 5.49165 | D181: 0.04976 | E181: 5.49165 | F181: 0.15278 | G181: 5.49165 | H181: 0.01321 | I181: 5.49165 | J181: 0.08934
A182: 5.52233 | B182: 0.02918 | C182: 5.52233 | D182: 0.04765 | E182: 5.52233 | F182: 0.12968 | G182: 5.52233 | H182: 0.01089 | I182: 5.52233 | J182: 0.08671
A183: 5.55301 | B183: 0.0263 | C183: 5.55301 | D183: 0.04099 | E183: 5.55301 | F183: 0.11485 | G183: 5.55301 | H183: 0.00805 | I183: 5.55301 | J183: 0.0832
A184: 5.58369 | B184: 0.02494 | C184: 5.58369 | D184: 0.03105 | E184: 5.58369 | F184: 0.11039 | G184: 5.58369 | H184: 0.00543 | I184: 5.58369 | J184: 0.07899
A185: 5.61437 | B185: 0.02529 | C185: 5.61437 | D185: 0.02093 | E185: 5.61437 | F185: 0.11403 | G185: 5.61437 | H185: 0.00499 | I185: 5.61437 | J185: 0.07427
A186: 5.64505 | B186: 0.02705 | C186: 5.64505 | D186: 0.01847 | E186: 5.64505 | F186: 0.12068 | G186: 5.64505 | H186: 0.00743 | I186: 5.64505 | J186: 0.06921
A187: 5.67573 | B187: 0.02965 | C187: 5.67573 | D187: 0.02709 | E187: 5.67573 | F187: 0.12568 | G187: 5.67573 | H187: 0.01074 | I187: 5.67573 | J187: 0.06399
A188: 5.70641 | B188: 0.03252 | C188: 5.70641 | D188: 0.03838 | E188: 5.70641 | F188: 0.12605 | G188: 5.70641 | H188: 0.01385 | I188: 5.70641 | J188: 0.05876
A189: 5.73709 | B189: 0.03529 | C189: 5.73709 | D189: 0.04761 | E189: 5.73709 | F189: 0.12038 | G189: 5.73709 | H189: 0.01633 | I189: 5.73709 | J189: 0.05366
A190: 5.76777 | B190: 0.03771 | C190: 5.76777 | D190: 0.05289 | E190: 5.76777 | F190: 0.10843 | G190: 5.76777 | H190: 0.01794 | I190: 5.76777 | J190: 0.04879
A191: 5.79845 | B191: 0.0397 | C191: 5.79845 | D191: 0.05337 | E191: 5.79845 | F191: 0.09092 | G191: 5.79845 | H191: 0.01852 | I191: 5.79845 | J191: 0.04422
A192: 5.82913 | B192: 0.04128 | C192: 5.82913 | D192: 0.04893 | E192: 5.82913 | F192: 0.06964 | G192: 5.82913 | H192: 0.01802 | I192: 5.82913 | J192: 0.03999
A193: 5.85981 | B193: 0.04255 | C193: 5.85981 | D193: 0.04007 | E193: 5.85981 | F193: 0.04828 | G193: 5.85981 | H193: 0.01648 | I193: 5.85981 | J193: 0.03613
A194: 5.89049 | B194: 0.04368 | C194: 5.89049 | D194: 0.02785 | E194: 5.89049 | F194: 0.03601 | G194: 5.89049 | H194: 0.01402 | I194: 5.89049 | J194: 0.03264
A195: 5.92117 | B195: 0.04483 | C195: 5.92117 | D195: 0.01401 | E195: 5.92117 | F195: 0.04396 | G195: 5.92117 | H195: 0.01089 | I195: 5.92117 | J195: 0.02955
A196: 5.95185 | B196: 0.04614 | C196: 5.95185 | D196: 0.00596 | E196: 5.95185 | F196: 0.06299 | G196: 5.95185 | H196: 0.00767 | I196: 5.95185 | J196: 0.0269
A197: 5.98253 | B197: 0.04767 | C197: 5.98253 | D197: 0.01651 | E197: 5.98253 | F197: 0.08214 | G197: 5.98253 | H197: 0.0059 | I197: 5.98253 | J197: 0.02477
A198: 6.0132 | B198: 0.04938 | C198: 6.0132 | D198: 0.02672 | E198: 6.0132 | F198: 0.09701 | G198: 6.0132 | H198: 0.00758 | I198: 6.0132 | J198: 0.02323

Sheet Fig3a
A1: Mn−Ni | B1: 0.221 | C1: 0.25 | D1: 0.13169
A2: Fe−Ni | B2: 0.459 | C2: 0.39 | D2: 0.11623
A3: Co−Ni | B3: 0.996 | C3: 0.74 | D3: 0.05628
A4: Ni−Ni | B4: 0.586 | C4: 0.56 | D4: 0.08169
A5: Cu−Ni | B5: 0.126 | C5: 0.25 | D5: 0.21814

Sheet Fig3b
A1: 0 | B1: -0.0062 | C1: 0 | D1: 0.0012 | E1: 0 | F1: 0.0016 | G1: 0 | H1: 0.0124 | I1: 0 | J1: 0.0047 | O1: Mn−Ni | P1: 53.9
A2: 0 | B2: -0.0031 | C2: 0 | D2: 0.0012 | E2: 0 | F2: 0.0016 | G2: 0 | H2: 0.0127 | I2: 0 | J2: 0.0047 | O2: Fe−Ni | P2: 41.9
A3: 0 | B3: 3.00E-04 | C3: 0 | D3: 0.0012 | E3: 0.01 | F3: 0.0016 | G3: 0 | H3: 0.013 | I3: 0.01 | J3: 0.005 | O3: Co−Ni | P3: 27.9
A4: 0.01 | B4: 0.004 | C4: 0 | D4: 0.0012 | E4: 0.01 | F4: 0.0016 | G4: 0.01 | H4: 0.0133 | I4: 0.01 | J4: 0.005 | O4: Ni−Ni | P4: 38.8
A5: 0.01 | B5: 0.0065 | C5: 0.01 | D5: 0.0012 | E5: 0.01 | F5: 0.0016 | G5: 0.01 | H5: 0.0133 | I5: 0.01 | J5: 0.005 | O5: Cu−Ni | P5: 72.9
A6: 0.01 | B6: 0.0081 | C6: 0.01 | D6: 0.0012 | E6: 0.01 | F6: 0.0016 | G6: 0.01 | H6: 0.0133 | I6: 0.01 | J6: 0.005
A7: 0.01 | B7: 0.0093 | C7: 0.01 | D7: 0.0012 | E7: 0.02 | F7: 0.0016 | G7: 0.02 | H7: 0.0133 | I7: 0.02 | J7: 0.005
A8: 0.02 | B8: 0.0105 | C8: 0.01 | D8: 0.0012 | E8: 0.02 | F8: 0.0016 | G8: 0.02 | H8: 0.0136 | I8: 0.02 | J8: 0.005
A9: 0.02 | B9: 0.0118 | C9: 0.02 | D9: 0.0012 | E9: 0.02 | F9: 0.0016 | G9: 0.02 | H9: 0.0136 | I9: 0.02 | J9: 0.0047
A10: 0.02 | B10: 0.0127 | C10: 0.02 | D10: 0.0012 | E10: 0.03 | F10: 0.0016 | G10: 0.02 | H10: 0.0136 | I10: 0.03 | J10: 0.0047
A11: 0.03 | B11: 0.0136 | C11: 0.02 | D11: 0.0012 | E11: 0.03 | F11: 0.0016 | G11: 0.03 | H11: 0.014 | I11: 0.03 | J11: 0.005
A12: 0.03 | B12: 0.0146 | C12: 0.03 | D12: 0.0012 | E12: 0.03 | F12: 0.0016 | G12: 0.03 | H12: 0.014 | I12: 0.03 | J12: 0.0047
A13: 0.03 | B13: 0.0152 | C13: 0.03 | D13: 0.0012 | E13: 0.03 | F13: 0.0016 | G13: 0.03 | H13: 0.014 | I13: 0.03 | J13: 0.005
A14: 0.03 | B14: 0.0161 | C14: 0.03 | D14: 0.0012 | E14: 0.04 | F14: 0.0016 | G14: 0.04 | H14: 0.014 | I14: 0.04 | J14: 0.0047
A15: 0.04 | B15: 0.0167 | C15: 0.03 | D15: 0.0012 | E15: 0.04 | F15: 0.0016 | G15: 0.04 | H15: 0.014 | I15: 0.04 | J15: 0.005
A16: 0.04 | B16: 0.0174 | C16: 0.04 | D16: 0.0012 | E16: 0.04 | F16: 0.0016 | G16: 0.04 | H16: 0.014 | I16: 0.04 | J16: 0.005
A17: 0.04 | B17: 0.018 | C17: 0.04 | D17: 0.0012 | E17: 0.04 | F17: 0.0016 | G17: 0.04 | H17: 0.014 | I17: 0.04 | J17: 0.0047
A18: 0.05 | B18: 0.0186 | C18: 0.04 | D18: 0.0012 | E18: 0.05 | F18: 0.0016 | G18: 0.05 | H18: 0.0143 | I18: 0.05 | J18: 0.0047
A19: 0.05 | B19: 0.0192 | C19: 0.04 | D19: 0.0012 | E19: 0.05 | F19: 0.0016 | G19: 0.05 | H19: 0.0143 | I19: 0.05 | J19: 0.0047
A20: 0.05 | B20: 0.0198 | C20: 0.05 | D20: 0.0012 | E20: 0.05 | F20: 0.0012 | G20: 0.05 | H20: 0.0143 | I20: 0.05 | J20: 0.0047
A21: 0.05 | B21: 0.0202 | C21: 0.05 | D21: 0.0012 | E21: 0.06 | F21: 0.0016 | G21: 0.05 | H21: 0.0143 | I21: 0.06 | J21: 0.005
A22: 0.06 | B22: 0.0208 | C22: 0.05 | D22: 0.0012 | E22: 0.06 | F22: 0.0016 | G22: 0.06 | H22: 0.0143 | I22: 0.06 | J22: 0.005
A23: 0.06 | B23: 0.0211 | C23: 0.06 | D23: 0.0012 | E23: 0.06 | F23: 0.0016 | G23: 0.06 | H23: 0.0143 | I23: 0.06 | J23: 0.0047
A24: 0.06 | B24: 0.0217 | C24: 0.06 | D24: 0.0012 | E24: 0.06 | F24: 0.0016 | G24: 0.06 | H24: 0.0143 | I24: 0.06 | J24: 0.005
A25: 0.07 | B25: 0.022 | C25: 0.06 | D25: 0.0012 | E25: 0.07 | F25: 0.0016 | G25: 0.07 | H25: 0.0146 | I25: 0.07 | J25: 0.0047
A26: 0.07 | B26: 0.0226 | C26: 0.06 | D26: 0.0012 | E26: 0.07 | F26: 0.0016 | G26: 0.07 | H26: 0.0146 | I26: 0.07 | J26: 0.0047
A27: 0.07 | B27: 0.0229 | C27: 0.07 | D27: 0.0012 | E27: 0.07 | F27: 0.0016 | G27: 0.07 | H27: 0.0146 | I27: 0.07 | J27: 0.0047
A28: 0.07 | B28: 0.0233 | C28: 0.07 | D28: 0.0012 | E28: 0.08 | F28: 0.0016 | G28: 0.07 | H28: 0.0146 | I28: 0.08 | J28: 0.005
A29: 0.08 | B29: 0.0236 | C29: 0.07 | D29: 0.0012 | E29: 0.08 | F29: 0.0016 | G29: 0.08 | H29: 0.0146 | I29: 0.08 | J29: 0.005
A30: 0.08 | B30: 0.0239 | C30: 0.08 | D30: 0.0012 | E30: 0.08 | F30: 0.0016 | G30: 0.08 | H30: 0.0146 | I30: 0.08 | J30: 0.0047
A31: 0.08 | B31: 0.0245 | C31: 0.08 | D31: 0.0012 | E31: 0.08 | F31: 0.0012 | G31: 0.08 | H31: 0.0146 | I31: 0.08 | J31: 0.0047
A32: 0.08 | B32: 0.0248 | C32: 0.08 | D32: 0.0012 | E32: 0.09 | F32: 0.0012 | G32: 0.09 | H32: 0.0146 | I32: 0.09 | J32: 0.0047
A33: 0.09 | B33: 0.0248 | C33: 0.08 | D33: 0.0012 | E33: 0.09 | F33: 0.0016 | G33: 0.09 | H33: 0.0146 | I33: 0.09 | J33: 0.0047
A34: 0.09 | B34: 0.0251 | C34: 0.09 | D34: 9.00E-04 | E34: 0.09 | F34: 0.0016 | G34: 0.09 | H34: 0.0146 | I34: 0.09 | J34: 0.0047
A35: 0.09 | B35: 0.0254 | C35: 0.09 | D35: 9.00E-04 | E35: 0.09 | F35: 0.0012 | G35: 0.09 | H35: 0.0146 | I35: 0.09 | J35: 0.0047
A36: 0.1 | B36: 0.0257 | C36: 0.09 | D36: 0.0012 | E36: 0.1 | F36: 0.0012 | G36: 0.1 | H36: 0.0146 | I36: 0.1 | J36: 0.005
A37: 0.1 | B37: 0.026 | C37: 0.09 | D37: 0.0012 | E37: 0.1 | F37: 0.0016 | G37: 0.1 | H37: 0.0146 | I37: 0.1 | J37: 0.0047
A38: 0.1 | B38: 0.0264 | C38: 0.1 | D38: 0.0012 | E38: 0.1 | F38: 0.0016 | G38: 0.1 | H38: 0.0146 | I38: 0.1 | J38: 0.0047
A39: 0.1 | B39: 0.0267 | C39: 0.1 | D39: 0.0012 | E39: 0.11 | F39: 0.0012 | G39: 0.11 | H39: 0.0146 | I39: 0.11 | J39: 0.0047
A40: 0.11 | B40: 0.0267 | C40: 0.1 | D40: 0.0012 | E40: 0.11 | F40: 0.0012 | G40: 0.11 | H40: 0.0146 | I40: 0.11 | J40: 0.0047
A41: 0.11 | B41: 0.0273 | C41: 0.11 | D41: 9.00E-04 | E41: 0.11 | F41: 0.0016 | G41: 0.11 | H41: 0.0149 | I41: 0.11 | J41: 0.0047
A42: 0.11 | B42: 0.0273 | C42: 0.11 | D42: 9.00E-04 | E42: 0.11 | F42: 0.0016 | G42: 0.11 | H42: 0.0146 | I42: 0.11 | J42: 0.0047
A43: 0.11 | B43: 0.0276 | C43: 0.11 | D43: 9.00E-04 | E43: 0.12 | F43: 0.0012 | G43: 0.12 | H43: 0.0149 | I43: 0.12 | J43: 0.0047
A44: 0.12 | B44: 0.0279 | C44: 0.11 | D44: 0.0012 | E44: 0.12 | F44: 0.0012 | G44: 0.12 | H44: 0.0149 | I44: 0.12 | J44: 0.0047
A45: 0.12 | B45: 0.0279 | C45: 0.12 | D45: 9.00E-04 | E45: 0.12 | F45: 0.0012 | G45: 0.12 | H45: 0.0149 | I45: 0.12 | J45: 0.0047
A46: 0.12 | B46: 0.0282 | C46: 0.12 | D46: 0.0012 | E46: 0.13 | F46: 0.0012 | G46: 0.12 | H46: 0.0149 | I46: 0.13 | J46: 0.0047
A47: 0.13 | B47: 0.0285 | C47: 0.12 | D47: 9.00E-04 | E47: 0.13 | F47: 0.0016 | G47: 0.13 | H47: 0.0149 | I47: 0.13 | J47: 0.0047
A48: 0.13 | B48: 0.0288 | C48: 0.13 | D48: 9.00E-04 | E48: 0.13 | F48: 0.0012 | G48: 0.13 | H48: 0.0149 | I48: 0.13 | J48: 0.0047
A49: 0.13 | B49: 0.0288 | C49: 0.13 | D49: 9.00E-04 | E49: 0.13 | F49: 0.0016 | G49: 0.13 | H49: 0.0149 | I49: 0.13 | J49: 0.0047
A50: 0.13 | B50: 0.0291 | C50: 0.13 | D50: 9.00E-04 | E50: 0.14 | F50: 0.0012 | G50: 0.14 | H50: 0.0149 | I50: 0.14 | J50: 0.0047
A51: 0.14 | B51: 0.0295 | C51: 0.13 | D51: 9.00E-04 | E51: 0.14 | F51: 0.0012 | G51: 0.14 | H51: 0.0149 | I51: 0.14 | J51: 0.0047
A52: 0.14 | B52: 0.0295 | C52: 0.14 | D52: 0.0012 | E52: 0.14 | F52: 0.0012 | G52: 0.14 | H52: 0.0149 | I52: 0.14 | J52: 0.0043
A53: 0.14 | B53: 0.0298 | C53: 0.14 | D53: 9.00E-04 | E53: 0.14 | F53: 0.0012 | G53: 0.14 | H53: 0.0149 | I53: 0.14 | J53: 0.005
A54: 0.15 | B54: 0.0298 | C54: 0.14 | D54: 9.00E-04 | E54: 0.15 | F54: 0.0012 | G54: 0.15 | H54: 0.0149 | I54: 0.15 | J54: 0.0047
A55: 0.15 | B55: 0.0301 | C55: 0.14 | D55: 9.00E-04 | E55: 0.15 | F55: 0.0012 | G55: 0.15 | H55: 0.0149 | I55: 0.15 | J55: 0.0047
A56: 0.15 | B56: 0.0301 | C56: 0.15 | D56: 9.00E-04 | E56: 0.15 | F56: 0.0012 | G56: 0.15 | H56: 0.0149 | I56: 0.15 | J56: 0.0047
A57: 0.15 | B57: 0.0304 | C57: 0.15 | D57: 9.00E-04 | E57: 0.16 | F57: 0.0012 | G57: 0.15 | H57: 0.0149 | I57: 0.16 | J57: 0.0047
A58: 0.16 | B58: 0.0304 | C58: 0.15 | D58: 9.00E-04 | E58: 0.16 | F58: 0.0012 | G58: 0.16 | H58: 0.0149 | I58: 0.16 | J58: 0.0047
A59: 0.16 | B59: 0.0307 | C59: 0.16 | D59: 9.00E-04 | E59: 0.16 | F59: 0.0012 | G59: 0.16 | H59: 0.0149 | I59: 0.16 | J59: 0.0047
A60: 0.16 | B60: 0.0307 | C60: 0.16 | D60: 9.00E-04 | E60: 0.16 | F60: 0.0012 | G60: 0.16 | H60: 0.0149 | I60: 0.16 | J60: 0.0047
A61: 0.16 | B61: 0.0307 | C61: 0.16 | D61: 9.00E-04 | E61: 0.17 | F61: 0.0012 | G61: 0.17 | H61: 0.0149 | I61: 0.17 | J61: 0.0047
A62: 0.17 | B62: 0.031 | C62: 0.16 | D62: 9.00E-04 | E62: 0.17 | F62: 0.0012 | G62: 0.17 | H62: 0.0149 | I62: 0.17 | J62: 0.0047
A63: 0.17 | B63: 0.0313 | C63: 0.17 | D63: 9.00E-04 | E63: 0.17 | F63: 0.0012 | G63: 0.17 | H63: 0.0149 | I63: 0.17 | J63: 0.0047
A64: 0.17 | B64: 0.0313 | C64: 0.17 | D64: 9.00E-04 | E64: 0.18 | F64: 0.0012 | G64: 0.17 | H64: 0.0149 | I64: 0.18 | J64: 0.0047
A65: 0.18 | B65: 0.0313 | C65: 0.17 | D65: 9.00E-04 | E65: 0.18 | F65: 0.0012 | G65: 0.18 | H65: 0.0149 | I65: 0.18 | J65: 0.0047
A66: 0.18 | B66: 0.0316 | C66: 0.18 | D66: 9.00E-04 | E66: 0.18 | F66: 0.0012 | G66: 0.18 | H66: 0.0149 | I66: 0.18 | J66: 0.0047
A67: 0.18 | B67: 0.0316 | C67: 0.18 | D67: 9.00E-04 | E67: 0.18 | F67: 0.0012 | G67: 0.18 | H67: 0.0149 | I67: 0.18 | J67: 0.0043
A68: 0.18 | B68: 0.0316 | C68: 0.18 | D68: 9.00E-04 | E68: 0.19 | F68: 0.0012 | G68: 0.19 | H68: 0.0149 | I68: 0.19 | J68: 0.0047
A69: 0.19 | B69: 0.0319 | C69: 0.18 | D69: 9.00E-04 | E69: 0.19 | F69: 0.0012 | G69: 0.19 | H69: 0.0149 | I69: 0.19 | J69: 0.0047
A70: 0.19 | B70: 0.0319 | C70: 0.19 | D70: 9.00E-04 | E70: 0.19 | F70: 0.0012 | G70: 0.19 | H70: 0.0149 | I70: 0.19 | J70: 0.0043
A71: 0.19 | B71: 0.0322 | C71: 0.19 | D71: 9.00E-04 | E71: 0.19 | F71: 0.0012 | G71: 0.19 | H71: 0.0149 | I71: 0.19 | J71: 0.0047
A72: 0.2 | B72: 0.0322 | C72: 0.19 | D72: 9.00E-04 | E72: 0.2 | F72: 0.0012 | G72: 0.2 | H72: 0.0149 | I72: 0.2 | J72: 0.0047
A73: 0.2 | B73: 0.0322 | C73: 0.19 | D73: 9.00E-04 | E73: 0.2 | F73: 0.0012 | G73: 0.2 | H73: 0.0149 | I73: 0.2 | J73: 0.0047
A74: 0.2 | B74: 0.0326 | C74: 0.2 | D74: 9.00E-04 | E74: 0.2 | F74: 0.0012 | G74: 0.2 | H74: 0.0149 | I74: 0.2 | J74: 0.0047
A75: 0.2 | B75: 0.0326 | C75: 0.2 | D75: 9.00E-04 | E75: 0.21 | F75: 0.0012 | G75: 0.2 | H75: 0.0149 | I75: 0.21 | J75: 0.0047
A76: 0.21 | B76: 0.0326 | C76: 0.2 | D76: 9.00E-04 | E76: 0.21 | F76: 0.0012 | G76: 0.21 | H76: 0.0149 | I76: 0.21 | J76: 0.0043
A77: 0.21 | B77: 0.0326 | C77: 0.21 | D77: 9.00E-04 | E77: 0.21 | F77: 0.0012 | G77: 0.21 | H77: 0.0149 | I77: 0.21 | J77: 0.0047
A78: 0.21 | B78: 0.0326 | C78: 0.21 | D78: 9.00E-04 | E78: 0.21 | F78: 0.0012 | G78: 0.21 | H78: 0.0149 | I78: 0.21 | J78: 0.0043
A79: 0.22 | B79: 0.0329 | C79: 0.21 | D79: 9.00E-04 | E79: 0.22 | F79: 0.0012 | G79: 0.22 | H79: 0.0149 | I79: 0.22 | J79: 0.0047
A80: 0.22 | B80: 0.0329 | C80: 0.21 | D80: 9.00E-04 | E80: 0.22 | F80: 0.0012 | G80: 0.22 | H80: 0.0149 | I80: 0.22 | J80: 0.0047
A81: 0.22 | B81: 0.0329 | C81: 0.22 | D81: 9.00E-04 | E81: 0.22 | F81: 0.0012 | G81: 0.22 | H81: 0.0149 | I81: 0.22 | J81: 0.0043
A82: 0.22 | B82: 0.0332 | C82: 0.22 | D82: 9.00E-04 | E82: 0.23 | F82: 0.0012 | G82: 0.22 | H82: 0.0152 | I82: 0.23 | J82: 0.0047
A83: 0.23 | B83: 0.0332 | C83: 0.22 | D83: 9.00E-04 | E83: 0.23 | F83: 0.0012 | G83: 0.23 | H83: 0.0152 | I83: 0.23 | J83: 0.0047
A84: 0.23 | B84: 0.0332 | C84: 0.23 | D84: 9.00E-04 | E84: 0.23 | F84: 0.0012 | G84: 0.23 | H84: 0.0149 | I84: 0.23 | J84: 0.0047
A85: 0.23 | B85: 0.0332 | C85: 0.23 | D85: 9.00E-04 | E85: 0.23 | F85: 0.0012 | G85: 0.23 | H85: 0.0149 | I85: 0.23 | J85: 0.0043
A86: 0.23 | B86: 0.0335 | C86: 0.23 | D86: 9.00E-04 | E86: 0.24 | F86: 0.0012 | G86: 0.24 | H86: 0.0149 | I86: 0.24 | J86: 0.0043
A87: 0.24 | B87: 0.0335 | C87: 0.23 | D87: 9.00E-04 | E87: 0.24 | F87: 0.0012 | G87: 0.24 | H87: 0.0149 | I87: 0.24 | J87: 0.0047
A88: 0.24 | B88: 0.0335 | C88: 0.24 | D88: 9.00E-04 | E88: 0.24 | F88: 0.0012 | G88: 0.24 | H88: 0.0149 | I88: 0.24 | J88: 0.0047
A89: 0.24 | B89: 0.0335 | C89: 0.24 | D89: 9.00E-04 | E89: 0.24 | F89: 0.0012 | G89: 0.24 | H89: 0.0149 | I89: 0.24 | J89: 0.0047
A90: 0.25 | B90: 0.0335 | C90: 0.24 | D90: 9.00E-04 | E90: 0.25 | F90: 0.0012 | G90: 0.25 | H90: 0.0149 | I90: 0.25 | J90: 0.0047
A91: 0.25 | B91: 0.0338 | C91: 0.24 | D91: 9.00E-04 | E91: 0.25 | F91: 0.0012 | G91: 0.25 | H91: 0.0149 | I91: 0.25 | J91: 0.0043
A92: 0.25 | B92: 0.0338 | C92: 0.25 | D92: 9.00E-04 | E92: 0.25 | F92: 0.0012 | G92: 0.25 | H92: 0.0149 | I92: 0.25 | J92: 0.0047
A93: 0.25 | B93: 0.0338 | C93: 0.25 | D93: 9.00E-04 | E93: 0.26 | F93: 0.0012 | G93: 0.25 | H93: 0.0149 | I93: 0.26 | J93: 0.0043
A94: 0.26 | B94: 0.0338 | C94: 0.25 | D94: 9.00E-04 | E94: 0.26 | F94: 0.0012 | G94: 0.26 | H94: 0.0152 | I94: 0.26 | J94: 0.0043
A95: 0.26 | B95: 0.0338 | C95: 0.26 | D95: 9.00E-04 | E95: 0.26 | F95: 0.0012 | G95: 0.26 | H95: 0.0149 | I95: 0.26 | J95: 0.0047
A96: 0.26 | B96: 0.0338 | C96: 0.26 | D96: 9.00E-04 | E96: 0.26 | F96: 0.0012 | G96: 0.26 | H96: 0.0152 | I96: 0.26 | J96: 0.0043
A97: 0.26 | B97: 0.0341 | C97: 0.26 | D97: 9.00E-04 | E97: 0.27 | F97: 0.0012 | G97: 0.27 | H97: 0.0152 | I97: 0.27 | J97: 0.0043
A98: 0.27 | B98: 0.0341 | C98: 0.26 | D98: 9.00E-04 | E98: 0.27 | F98: 0.0012 | G98: 0.27 | H98: 0.0152 | I98: 0.27 | J98: 0.0043
A99: 0.27 | B99: 0.0341 | C99: 0.27 | D99: 9.00E-04 | E99: 0.27 | F99: 0.0012 | G99: 0.27 | H99: 0.0149 | I99: 0.27 | J99: 0.0043
A100: 0.27 | B100: 0.0341 | C100: 0.27 | D100: 9.00E-04 | E100: 0.28 | F100: 0.0012 | G100: 0.27 | H100: 0.0149 | I100: 0.28 | J100: 0.0043
A101: 0.28 | B101: 0.0341 | C101: 0.27 | D101: 9.00E-04 | E101: 0.28 | F101: 0.0012 | G101: 0.28 | H101: 0.0149 | I101: 0.28 | J101: 0.0043
A102: 0.28 | B102: 0.0344 | C102: 0.28 | D102: 9.00E-04 | E102: 0.28 | F102: 0.0012 | G102: 0.28 | H102: 0.0149 | I102: 0.28 | J102: 0.0047
A103: 0.28 | B103: 0.0344 | C103: 0.28 | D103: 9.00E-04 | E103: 0.28 | F103: 0.0012 | G103: 0.28 | H103: 0.0152 | I103: 0.28 | J103: 0.0043
A104: 0.28 | B104: 0.0344 | C104: 0.28 | D104: 9.00E-04 | E104: 0.29 | F104: 0.0012 | G104: 0.29 | H104: 0.0149 | I104: 0.29 | J104: 0.0047
A105: 0.29 | B105: 0.0344 | C105: 0.28 | D105: 9.00E-04 | E105: 0.29 | F105: 0.0012 | G105: 0.29 | H105: 0.0149 | I105: 0.29 | J105: 0.0043
A106: 0.29 | B106: 0.0344 | C106: 0.29 | D106: 9.00E-04 | E106: 0.29 | F106: 0.0012 | G106: 0.29 | H106: 0.0152 | I106: 0.29 | J106: 0.0043
A107: 0.29 | B107: 0.0347 | C107: 0.29 | D107: 9.00E-04 | E107: 0.29 | F107: 0.0012 | G107: 0.29 | H107: 0.0149 | I107: 0.29 | J107: 0.0043
A108: 0.3 | B108: 0.0344 | C108: 0.29 | D108: 9.00E-04 | E108: 0.3 | F108: 0.0012 | G108: 0.3 | H108: 0.0152 | I108: 0.3 | J108: 0.0047
A109: 0.3 | B109: 0.0347 | C109: 0.29 | D109: 9.00E-04 | E109: 0.3 | F109: 0.0012 | G109: 0.3 | H109: 0.0152 | I109: 0.3 | J109: 0.0043
A110: 0.3 | B110: 0.0347 | C110: 0.3 | D110: 9.00E-04 | E110: 0.3 | F110: 0.0012 | G110: 0.3 | H110: 0.0149 | I110: 0.3 | J110: 0.0047
A111: 0.31 | B111: 0.0347 | C111: 0.3 | D111: 9.00E-04 | E111: 0.31 | F111: 0.0012 | G111: 0.3 | H111: 0.0152 | I111: 0.31 | J111: 0.0043
A112: 0.31 | B112: 0.0347 | C112: 0.3 | D112: 9.00E-04 | E112: 0.31 | F112: 0.0012 | G112: 0.31 | H112: 0.0152 | I112: 0.31 | J112: 0.0047
A113: 0.31 | B113: 0.0347 | C113: 0.31 | D113: 9.00E-04 | E113: 0.31 | F113: 0.0012 | G113: 0.31 | H113: 0.0152 | I113: 0.31 | J113: 0.0043
A114: 0.31 | B114: 0.0347 | C114: 0.31 | D114: 9.00E-04 | E114: 0.31 | F114: 0.0012 | G114: 0.31 | H114: 0.0152 | I114: 0.31 | J114: 0.0047
A115: 0.31 | B115: 0.0347 | C115: 0.31 | D115: 9.00E-04 | E115: 0.32 | F115: 0.0012 | G115: 0.32 | H115: 0.0152 | I115: 0.32 | J115: 0.0043
A116: 0.32 | B116: 0.0347 | C116: 0.31 | D116: 9.00E-04 | E116: 0.32 | F116: 0.0012 | G116: 0.32 | H116: 0.0152 | I116: 0.32 | J116: 0.0047
A117: 0.32 | B117: 0.035 | C117: 0.32 | D117: 9.00E-04 | E117: 0.32 | F117: 0.0012 | G117: 0.32 | H117: 0.0149 | I117: 0.32 | J117: 0.0043
A118: 0.32 | B118: 0.035 | C118: 0.32 | D118: 9.00E-04 | E118: 0.33 | F118: 0.0012 | G118: 0.32 | H118: 0.0149 | I118: 0.33 | J118: 0.0047
A119: 0.33 | B119: 0.035 | C119: 0.32 | D119: 9.00E-04 | E119: 0.33 | F119: 0.0012 | G119: 0.33 | H119: 0.0149 | I119: 0.33 | J119: 0.0043
A120: 0.33 | B120: 0.035 | C120: 0.33 | D120: 9.00E-04 | E120: 0.33 | F120: 0.0012 | G120: 0.33 | H120: 0.0149 | I120: 0.33 | J120: 0.0043
A121: 0.33 | B121: 0.035 | C121: 0.33 | D121: 9.00E-04 | E121: 0.33 | F121: 0.0012 | G121: 0.33 | H121: 0.0152 | I121: 0.33 | J121: 0.0047
A122: 0.33 | B122: 0.035 | C122: 0.33 | D122: 9.00E-04 | E122: 0.34 | F122: 0.0012 | G122: 0.34 | H122: 0.0152 | I122: 0.34 | J122: 0.0043
A123: 0.34 | B123: 0.035 | C123: 0.33 | D123: 9.00E-04 | E123: 0.34 | F123: 0.0012 | G123: 0.34 | H123: 0.0152 | I123: 0.34 | J123: 0.0043
A124: 0.34 | B124: 0.035 | C124: 0.34 | D124: 9.00E-04 | E124: 0.34 | F124: 0.0012 | G124: 0.34 | H124: 0.0149 | I124: 0.34 | J124: 0.0043
A125: 0.34 | B125: 0.035 | C125: 0.34 | D125: 9.00E-04 | E125: 0.34 | F125: 0.0012 | G125: 0.34 | H125: 0.0152 | I125: 0.34 | J125: 0.0043
A126: 0.35 | B126: 0.035 | C126: 0.34 | D126: 9.00E-04 | E126: 0.35 | F126: 0.0012 | G126: 0.35 | H126: 0.0152 | I126: 0.35 | J126: 0.0047
A127: 0.35 | B127: 0.035 | C127: 0.34 | D127: 9.00E-04 | E127: 0.35 | F127: 0.0012 | G127: 0.35 | H127: 0.0152 | I127: 0.35 | J127: 0.0043
A128: 0.35 | B128: 0.035 | C128: 0.35 | D128: 9.00E-04 | E128: 0.35 | F128: 0.0012 | G128: 0.35 | H128: 0.0149 | I128: 0.35 | J128: 0.0043
A129: 0.35 | B129: 0.035 | C129: 0.35 | D129: 9.00E-04 | E129: 0.36 | F129: 0.0012 | G129: 0.35 | H129: 0.0149 | I129: 0.36 | J129: 0.0043
A130: 0.36 | B130: 0.035 | C130: 0.35 | D130: 9.00E-04 | E130: 0.36 | F130: 0.0012 | G130: 0.36 | H130: 0.0152 | I130: 0.36 | J130: 0.0043
A131: 0.36 | B131: 0.035 | C131: 0.36 | D131: 9.00E-04 | E131: 0.36 | F131: 0.0012 | G131: 0.36 | H131: 0.0152 | I131: 0.36 | J131: 0.0043
A132: 0.36 | B132: 0.035 | C132: 0.36 | D132: 9.00E-04 | E132: 0.36 | F132: 0.0012 | G132: 0.36 | H132: 0.0152 | I132: 0.36 | J132: 0.004
A133: 0.36 | B133: 0.035 | C133: 0.36 | D133: 9.00E-04 | E133: 0.37 | F133: 0.0012 | G133: 0.37 | H133: 0.0149 | I133: 0.37 | J133: 0.004
A134: 0.37 | B134: 0.035 | C134: 0.36 | D134: 9.00E-04 | E134: 0.37 | F134: 0.0012 | G134: 0.37 | H134: 0.0149 | I134: 0.37 | J134: 0.0043
A135: 0.37 | B135: 0.035 | C135: 0.37 | D135: 9.00E-04 | E135: 0.37 | F135: 0.0012 | G135: 0.37 | H135: 0.0149 | I135: 0.37 | J135: 0.0043
A136: 0.37 | B136: 0.035 | C136: 0.37 | D136: 9.00E-04 | E136: 0.38 | F136: 0.0012 | G136: 0.37 | H136: 0.0152 | I136: 0.38 | J136: 0.0043
A137: 0.38 | B137: 0.035 | C137: 0.37 | D137: 9.00E-04 | E137: 0.38 | F137: 0.0012 | G137: 0.38 | H137: 0.0152 | I137: 0.38 | J137: 0.0043
A138: 0.38 | B138: 0.0357 | C138: 0.38 | D138: 9.00E-04 | E138: 0.38 | F138: 0.0012 | G138: 0.38 | H138: 0.0152 | I138: 0.38 | J138: 0.0043
A139: 0.38 | B139: 0.0357 | C139: 0.38 | D139: 9.00E-04 | E139: 0.38 | F139: 0.0012 | G139: 0.38 | H139: 0.0152 | I139: 0.38 | J139: 0.0043
A140: 0.38 | B140: 0.0357 | C140: 0.38 | D140: 9.00E-04 | E140: 0.39 | F140: 0.0012 | G140: 0.39 | H140: 0.0152 | I140: 0.39 | J140: 0.0047
A141: 0.39 | B141: 0.0357 | C141: 0.38 | D141: 9.00E-04 | E141: 0.39 | F141: 0.0012 | G141: 0.39 | H141: 0.0152 | I141: 0.39 | J141: 0.0043
A142: 0.39 | B142: 0.0357 | C142: 0.39 | D142: 9.00E-04 | E142: 0.39 | F142: 0.0012 | G142: 0.39 | H142: 0.0152 | I142: 0.39 | J142: 0.0043
A143: 0.39 | B143: 0.0357 | C143: 0.39 | D143: 9.00E-04 | E143: 0.39 | F143: 0.0012 | G143: 0.39 | H143: 0.0152 | I143: 0.39 | J143: 0.0043
A144: 0.4 | B144: 0.0357 | C144: 0.39 | D144: 9.00E-04 | E144: 0.4 | F144: 0.0012 | G144: 0.4 | H144: 0.0152 | I144: 0.4 | J144: 0.0043
A145: 0.4 | B145: 0.0357 | C145: 0.39 | D145: 9.00E-04 | E145: 0.4 | F145: 0.0012 | G145: 0.4 | H145: 0.0152 | I145: 0.4 | J145: 0.0043
A146: 0.4 | B146: 0.0357 | C146: 0.4 | D146: 9.00E-04 | E146: 0.4 | F146: 0.0012 | G146: 0.4 | H146: 0.0152 | I146: 0.4 | J146: 0.0043
A147: 0.4 | B147: 0.0357 | C147: 0.4 | D147: 9.00E-04 | E147: 0.41 | F147: 0.0012 | G147: 0.4 | H147: 0.0152 | I147: 0.41 | J147: 0.0043
A148: 0.41 | B148: 0.0357 | C148: 0.4 | D148: 9.00E-04 | E148: 0.41 | F148: 0.0012 | G148: 0.41 | H148: 0.0152 | I148: 0.41 | J148: 0.0043
A149: 0.41 | B149: 0.0357 | C149: 0.41 | D149: 9.00E-04 | E149: 0.41 | F149: 0.0012 | G149: 0.41 | H149: 0.0152 | I149: 0.41 | J149: 0.0043
A150: 0.41 | B150: 0.0357 | C150: 0.41 | D150: 9.00E-04 | E150: 0.41 | F150: 0.0012 | G150: 0.41 | H150: 0.0152 | I150: 0.41 | J150: 0.0043
A151: 0.42 | B151: 0.0357 | C151: 0.41 | D151: 9.00E-04 | E151: 0.42 | F151: 0.0012 | G151: 0.42 | H151: 0.0152 | I151: 0.42 | J151: 0.0043
A152: 0.42 | B152: 0.0357 | C152: 0.41 | D152: 9.00E-04 | E152: 0.42 | F152: 0.0012 | G152: 0.42 | H152: 0.0152 | I152: 0.42 | J152: 0.0043
A153: 0.42 | B153: 0.036 | C153: 0.42 | D153: 9.00E-04 | E153: 0.42 | F153: 0.0012 | G153: 0.42 | H153: 0.0152 | I153: 0.42 | J153: 0.0043
A154: 0.42 | B154: 0.0357 | C154: 0.42 | D154: 9.00E-04 | E154: 0.43 | F154: 0.0012 | G154: 0.42 | H154: 0.0152 | I154: 0.43 | J154: 0.0043
A155: 0.43 | B155: 0.0357 | C155: 0.42 | D155: 9.00E-04 | E155: 0.43 | F155: 0.0012 | G155: 0.43 | H155: 0.0152 | I155: 0.43 | J155: 0.0043
A156: 0.43 | B156: 0.0357 | C156: 0.43 | D156: 9.00E-04 | E156: 0.43 | F156: 0.0012 | G156: 0.43 | H156: 0.0152 | I156: 0.43 | J156: 0.004
A157: 0.43 | B157: 0.0357 | C157: 0.43 | D157: 9.00E-04 | E157: 0.43 | F157: 0.0012 | G157: 0.43 | H157: 0.0152 | I157: 0.43 | J157: 0.0043
A158: 0.43 | B158: 0.036 | C158: 0.43 | D158: 9.00E-04 | E158: 0.44 | F158: 0.0012 | G158: 0.44 | H158: 0.0152 | I158: 0.44 | J158: 0.004
A159: 0.44 | B159: 0.0357 | C159: 0.43 | D159: 9.00E-04 | E159: 0.44 | F159: 0.0012 | G159: 0.44 | H159: 0.0152 | I159: 0.44 | J159: 0.0043
A160: 0.44 | B160: 0.036 | C160: 0.44 | D160: 9.00E-04 | E160: 0.44 | F160: 0.0012 | G160: 0.44 | H160: 0.0152 | I160: 0.44 | J160: 0.0043
A161: 0.44 | B161: 0.036 | C161: 0.44 | D161: 9.00E-04 | E161: 0.44 | F161: 0.0012 | G161: 0.44 | H161: 0.0152 | I161: 0.44 | J161: 0.0043
A162: 0.45 | B162: 0.036 | C162: 0.44 | D162: 9.00E-04 | E162: 0.45 | F162: 0.0012 | G162: 0.45 | H162: 0.0152 | I162: 0.45 | J162: 0.0043
A163: 0.45 | B163: 0.036 | C163: 0.44 | D163: 9.00E-04 | E163: 0.45 | F163: 0.0012 | G163: 0.45 | H163: 0.0152 | I163: 0.45 | J163: 0.0043
A164: 0.45 | B164: 0.036 | C164: 0.45 | D164: 9.00E-04 | E164: 0.45 | F164: 0.0012 | G164: 0.45 | H164: 0.0152 | I164: 0.45 | J164: 0.004
A165: 0.45 | B165: 0.036 | C165: 0.45 | D165: 9.00E-04 | E165: 0.46 | F165: 0.0012 | G165: 0.46 | H165: 0.0152 | I165: 0.46 | J165: 0.0043
A166: 0.46 | B166: 0.036 | C166: 0.45 | D166: 9.00E-04 | E166: 0.46 | F166: 0.0012 | G166: 0.46 | H166: 0.0152 | I166: 0.46 | J166: 0.0043
A167: 0.46 | B167: 0.036 | C167: 0.46 | D167: 9.00E-04 | E167: 0.46 | F167: 0.0012 | G167: 0.46 | H167: 0.0152 | I167: 0.46 | J167: 0.004
A168: 0.46 | B168: 0.036 | C168: 0.46 | D168: 9.00E-04 | E168: 0.46 | F168: 0.0012 | G168: 0.46 | H168: 0.0149 | I168: 0.46 | J168: 0.0043
A169: 0.46 | B169: 0.036 | C169: 0.46 | D169: 9.00E-04 | E169: 0.47 | F169: 0.0012 | G169: 0.47 | H169: 0.0152 | I169: 0.47 | J169: 0.0043
A170: 0.47 | B170: 0.036 | C170: 0.46 | D170: 9.00E-04 | E170: 0.47 | F170: 0.0012 | G170: 0.47 | H170: 0.0152 | I170: 0.47 | J170: 0.0043
A171: 0.47 | B171: 0.036 | C171: 0.47 | D171: 9.00E-04 | E171: 0.47 | F171: 0.0012 | G171: 0.47 | H171: 0.0152 | I171: 0.47 | J171: 0.004
A172: 0.47 | B172: 0.036 | C172: 0.47 | D172: 9.00E-04 | E172: 0.48 | F172: 0.0012 | G172: 0.47 | H172: 0.0152 | I172: 0.48 | J172: 0.0043
A173: 0.48 | B173: 0.036 | C173: 0.47 | D173: 9.00E-04 | E173: 0.48 | F173: 0.0012 | G173: 0.48 | H173: 0.0152 | I173: 0.48 | J173: 0.004
A174: 0.48 | B174: 0.036 | C174: 0.48 | D174: 9.00E-04 | E174: 0.48 | F174: 0.0012 | G174: 0.48 | H174: 0.0152 | I174: 0.48 | J174: 0.0043
A175: 0.48 | B175: 0.036 | C175: 0.48 | D175: 9.00E-04 | E175: 0.48 | F175: 0.0012 | G175: 0.48 | H175: 0.0152 | I175: 0.48 | J175: 0.0043
A176: 0.49 | B176: 0.036 | C176: 0.48 | D176: 9.00E-04 | E176: 0.49 | F176: 0.0012 | G176: 0.49 | H176: 0.0152 | I176: 0.49 | J176: 0.0043
A177: 0.49 | B177: 0.036 | C177: 0.48 | D177: 9.00E-04 | E177: 0.49 | F177: 0.0012 | G177: 0.49 | H177: 0.0152 | I177: 0.49 | J177: 0.004
A178: 0.49 | B178: 0.036 | C178: 0.49 | D178: 9.00E-04 | E178: 0.49 | F178: 0.0012 | G178: 0.49 | H178: 0.0152 | I178: 0.49 | J178: 0.0043
A179: 0.5 | B179: 0.036 | C179: 0.49 | D179: 9.00E-04 | E179: 0.49 | F179: 0.0012 | G179: 0.49 | H179: 0.0152 | I179: 0.49 | J179: 0.004
A180: 0.5 | B180: 0.036 | C180: 0.49 | D180: 9.00E-04 | E180: 0.5 | F180: 0.0012 | G180: 0.5 | H180: 0.0152 | I180: 0.5 | J180: 0.0043
A181: 0.5 | B181: 0.036 | C181: 0.49 | D181: 9.00E-04 | E181: 0.5 | F181: 0.0012 | G181: 0.5 | H181: 0.0152 | I181: 0.5 | J181: 0.004
A182: 0.5 | B182: 0.036 | C182: 0.5 | D182: 9.00E-04 | E182: 0.5 | F182: 0.0012 | G182: 0.5 | H182: 0.0152 | I182: 0.5 | J182: 0.004
A183: 0.51 | B183: 0.036 | C183: 0.5 | D183: 9.00E-04 | E183: 0.51 | F183: 0.0012 | G183: 0.5 | H183: 0.0152 | I183: 0.51 | J183: 0.0043
A184: 0.51 | B184: 0.036 | C184: 0.5 | D184: 9.00E-04 | E184: 0.51 | F184: 0.0012 | G184: 0.51 | H184: 0.0152 | I184: 0.51 | J184: 0.004
A185: 0.51 | B185: 0.036 | C185: 0.51 | D185: 9.00E-04 | E185: 0.51 | F185: 0.0012 | G185: 0.51 | H185: 0.0152 | I185: 0.51 | J185: 0.0043
A186: 0.51 | B186: 0.036 | C186: 0.51 | D186: 9.00E-04 | E186: 0.51 | F186: 0.0012 | G186: 0.51 | H186: 0.0152 | I186: 0.52 | J186: 0.0043
A187: 0.52 | B187: 0.036 | C187: 0.51 | D187: 9.00E-04 | E187: 0.52 | F187: 0.0012 | G187: 0.52 | H187: 0.0152 | I187: 0.52 | J187: 0.0043
A188: 0.52 | B188: 0.0363 | C188: 0.51 | D188: 9.00E-04 | E188: 0.52 | F188: 0.0012 | G188: 0.52 | H188: 0.0152 | I188: 0.52 | J188: 0.0043
A189: 0.52 | B189: 0.036 | C189: 0.52 | D189: 9.00E-04 | E189: 0.52 | F189: 0.0012 | G189: 0.52 | H189: 0.0152 | I189: 0.52 | J189: 0.0043
A190: 0.53 | B190: 0.0363 | C190: 0.52 | D190: 9.00E-04 | E190: 0.53 | F190: 0.0012 | G190: 0.52 | H190: 0.0152 | I190: 0.53 | J190: 0.004
A191: 0.53 | B191: 0.036 | C191: 0.52 | D191: 9.00E-04 | E191: 0.53 | F191: 0.0012 | G191: 0.53 | H191: 0.0152 | I191: 0.53 | J191: 0.004
A192: 0.53 | B192: 0.0363 | C192: 0.53 | D192: 9.00E-04 | E192: 0.53 | F192: 0.0012 | G192: 0.53 | H192: 0.0152 | I192: 0.53 | J192: 0.004
A193: 0.53 | B193: 0.0363 | C193: 0.53 | D193: 9.00E-04 | E193: 0.53 | F193: 0.0012 | G193: 0.53 | H193: 0.0152 | I193: 0.53 | J193: 0.004
A194: 0.54 | B194: 0.0363 | C194: 0.53 | D194: 9.00E-04 | E194: 0.54 | F194: 0.0012 | G194: 0.54 | H194: 0.0152 | I194: 0.54 | J194: 0.004
A195: 0.54 | B195: 0.0363 | C195: 0.53 | D195: 9.00E-04 | E195: 0.54 | F195: 0.0012 | G195: 0.54 | H195: 0.0152 | I195: 0.54 | J195: 0.0043
A196: 0.54 | B196: 0.0363 | C196: 0.54 | D196: 9.00E-04 | E196: 0.54 | F196: 0.0012 | G196: 0.54 | H196: 0.0152 | I196: 0.54 | J196: 0.0043
A197: 0.55 | B197: 0.0363 | C197: 0.54 | D197: 9.00E-04 | E197: 0.54 | F197: 0.0012 | G197: 0.54 | H197: 0.0152 | I197: 0.54 | J197: 0.004
A198: 0.55 | B198: 0.0363 | C198: 0.54 | D198: 9.00E-04 | E198: 0.55 | F198: 0.0012 | G198: 0.55 | H198: 0.0152 | I198: 0.55 | J198: 0.0043
A199: 0.55 | B199: 0.0363 | C199: 0.54 | D199: 9.00E-04 | E199: 0.55 | F199: 0.0012 | G199: 0.55 | H199: 0.0152 | I199: 0.55 | J199: 0.004
A200: 0.55 | B200: 0.0363 | C200: 0.55 | D200: 9.00E-04 | E200: 0.55 | F200: 0.0012 | G200: 0.55 | H200: 0.0152 | I200: 0.55 | J200: 0.0043
... 4300 more rows

Sheet Fig3c
A1: mAh/g | B1: % | C1: mAh/g | D1: % | E1: mAh/g | F1: % | G1: mAh/g | H1: % | I1: mAh/g | J1: %
A2: 994.7 | B2: 96.77 | C2: 1227.6 | D2: 96.7 | E2: 1275.2 | F2: -- | G2: 1259.3 | H2: 98.86 | I2: 1086.3 | J2: 96.81
A3: 1024.1 | B3: 97.93 | C3: 1219.7 | D3: 97.96 | E3: 1260.9 | F3: -- | G3: 1246 | H3: 98.26 | I3: 1082.2 | J3: 98.05
A4: 1046.4 | B4: 97.88 | C4: 1217.1 | D4: 98.8 | E4: 1257 | F4: 96.06 | G4: 1249 | H4: 99.33 | I4: 1074.7 | J4: 98.14
A5: 1066 | B5: 98.18 | C5: 1217 | D5: 98.54 | E5: 1249.3 | F5: 96.04 | G5: 1245.9 | H5: 98.96 | I5: 1073.6 | J5: 98.37
A6: 1080 | B6: 98.32 | C6: 1214.6 | D6: 98.49 | E6: 1245.6 | F6: 96.78 | G6: 1247 | H6: 99.13 | I6: 1072.1 | J6: 98.12
A7: 1090.9 | B7: 98.45 | C7: 1213.8 | D7: 98.9 | E7: 1243.8 | F7: 97.25 | G7: 1246.7 | H7: 99.19 | I7: 1072.1 | J7: 98.57
A8: 1089.8 | B8: 98.32 | C8: 1215.6 | D8: 98.85 | E8: 1239.9 | F8: 97.21 | G8: 1244.2 | H8: 98.93 | I8: 1094.4 | J8: 100.87
A9: 1097 | B9: 98.93 | C9: 1217 | D9: 98.85 | E9: 1220.7 | F9: 96.27 | G9: 1226.1 | H9: 97.92 | I9: 1073.9 | J9: 98.64
A10: 1108.2 | B10: 98.71 | C10: 1212.4 | D10: 98.6 | E10: 1198.5 | F10: 97.04 | G10: 1225.9 | H10: 99.54 | I10: 1070.1 | J10: 98.53
A11: 1109.6 | B11: 99 | C11: 1208.9 | D11: 99.02 | E11: 1200.4 | F11: 98.58 | G11: 1223.8 | H11: 99.16 | I11: 1068.9 | J11: 98.71
A12: 1114.1 | B12: 98.94 | C12: 1211.2 | D12: 99.22 | E12: 1196 | F12: 98.19 | G12: 1223.9 | H12: 99.32 | I12: 1071.9 | J12: 98.81
A13: 1119.8 | B13: 99.17 | C13: 1216.5 | D13: 98.84 | E13: 1195.7 | F13: 98.64 | G13: 1223.5 | H13: 99.26 | I13: 1068.8 | J13: 98.93
A14: 1129.8 | B14: 99.2 | C14: 1212.9 | D14: 98.75 | E14: 1195 | F14: 98.55 | G14: 1224.2 | H14: 99.16 | I14: 1068.3 | J14: 98.92
A15: 1135.5 | B15: 98.94 | C15: 1214.9 | D15: 99 | E15: 1195.6 | F15: 98.59 | G15: 1244.9 | H15: 100.86 | I15: 1068.3 | J15: 99.04
A16: 1137.4 | B16: 99.2 | C16: 1211.8 | D16: 98.72 | E16: 1228.1 | F16: 100.92 | G16: 1253.2 | H16: 99.38 | I16: 1065.3 | J16: 99.07
A17: 1146.4 | B17: 99.53 | C17: 1207.1 | D17: 98.94 | E17: 1250.3 | F17: 99.2 | G17: 1254.2 | H17: 99.13 | I17: 1062.7 | J17: 98.68
A18: 1147.9 | B18: 99.28 | C18: 1207.2 | D18: 98.97 | E18: 1265.4 | F18: 97.1 | G18: 1261 | H18: 99.61 | I18: 1062.1 | J18: 98.89
A19: 1151.9 | B19: 99.37 | C19: 1212.9 | D19: 99.15 | E19: 1298.8 | F19: 100.1 | G19: 1264.7 | H19: 99.15 | I19: 1060.3 | J19: 98.94
A20: 1145.6 | B20: 98.89 | C20: 1212.1 | D20: 99.03 | E20: 1306.5 | F20: 98.39 | G20: 1267.1 | H20: 99.17 | I20: 1064.9 | J20: 99.06
A21: 1157.6 | B21: 99.77 | C21: 1212.9 | D21: 99.01 | E21: 1312.8 | F21: 98.82 | G21: 1267.1 | H21: 99.07 | I21: 1062.7 | J21: 98.9
A22: 1161 | B22: 99.39 | C22: 1213.8 | D22: 99.22 | E22: 1313.5 | F22: 98.71 | G22: 1270.3 | H22: 99.08 | I22: 1062.1 | J22: 99.3
A23: 1152.5 | B23: 98.42 | C23: 1210.8 | D23: 98.59 | E23: 1327.1 | F23: 99.64 | G23: 1268.8 | H23: 99 | I23: 1060.2 | J23: 98.88
A24: 1132.8 | B24: 97.98 | C24: 1208.8 | D24: 98.82 | E24: 1324.1 | F24: 98.64 | G24: 1261.8 | H24: 98.46 | I24: 1057.5 | J24: 98.83
A25: 1153.4 | B25: 99.69 | C25: 1204.9 | D25: 98.89 | E25: 1329.6 | F25: 99.18 | G25: 1242.9 | H25: 98.44 | I25: 1055.4 | J25: 98.84
A26: 1159.6 | B26: 99.39 | C26: 1203.9 | D26: 99.14 | E26: 1268.2 | F26: -- | G26: 1227.2 | H26: 98.38 | I26: 1057.9 | J26: 98.98
A27: 1155.8 | B27: 98.99 | C27: 1203.7 | D27: 98.69 | E27: 1247.5 | F27: 98.3 | G27: 1214.7 | H27: 98.3 | I27: 1058.8 | J27: 98.98
A28: 1160.4 | B28: 99.7 | C28: 1207 | D28: 99.38 | E28: 1229.5 | F28: 98.39 | G28: 1200.2 | H28: 98.91 | I28: 1058.8 | J28: 99.02
A29: 1170.8 | B29: 99.84 | C29: 1203.5 | D29: 98.88 | E29: 1206.9 | F29: 97.69 | G29: 1228.6 | H29: 99.84 | I29: 1057.8 | J29: 98.92
A30: 1176.1 | B30: 99.68 | C30: 1197.9 | D30: 98.49 | E30: 1212.6 | F30: -- | G30: 1205.4 | H30: 98.49 | I30: 1056.1 | J30: 98.9
A31: 1179.4 | B31: 99.42 | C31: 1201.3 | D31: 98.9 | E31: 1228.6 | F31: 99.55 | G31: 1195.4 | H31: 99.02 | I31: 1053.9 | J31: 98.78
A32: 1187.4 | B32: 99.89 | C32: 1199.5 | D32: 98.88 | E32: 1210.4 | F32: 98.45 | G32: 1193.2 | H32: 98.89 | I32: 1054 | J32: 99
A33: 1195.4 | B33: 99.48 | C33: 1200.7 | D33: 98.99 | E33: 1188.6 | F33: 98.68 | G33: 1122.8 | H33: 95.42 | I33: 1049.4 | J33: 98.58
A34: 1188.6 | B34: 98.77 | C34: 1199.4 | D34: 98.87 | E34: 1193.2 | F34: 99.59 | G34: 1116.1 | H34: 99.17 | I34: 1050.5 | J34: 98.87
A35: 1184.1 | B35: 99.46 | C35: 1199.9 | D35: 99.08 | E35: 1159.5 | F35: 97.31 | G35: 1119.8 | H35: 99.79 | I35: 1050 | J35: 98.89
A36: 1189.9 | B36: 99.89 | C36: 1206.2 | D36: 99.13 | E36: 1143.9 | F36: 98.51 | G36: 1111 | H36: 98.85 | I36: 1049.2 | J36: 98.97
A37: 1192.5 | B37: 99.31 | C37: 1202.5 | D37: 98.85 | E37: 1155.8 | F37: 100.57 | G37: 1107.3 | H37: 99.35 | I37: 1049.9 | J37: 99.02
A38: 1145.6 | B38: 96.9 | C38: 1205.8 | D38: 99.19 | E38: 1146.1 | F38: 98.66 | G38: 1113.3 | H38: 99.97 | I38: 1047.7 | J38: 98.85
A39: 1125.7 | B39: 99.42 | C39: 1210 | D39: 99.15 | E39: 1133.3 | F39: 98.69 | G39: 1113.8 | H39: 99.55 | I39: 1046.9 | J39: 98.94
A40: 1142.9 | B40: 100.47 | C40: 1202.8 | D40: 98.86 | E40: 1142.3 | F40: 100.32 | G40: 1111.7 | H40: 99.38 | I40: 1045.1 | J40: 98.75
A41: 1143.6 | B41: 99.15 | C41: 1206.7 | D41: 99.37 | E41: 1151 | F41: 99.99 | G41: 1110.8 | H41: 99.52 | I41: 1044.5 | J41: 98.92
A42: 1136.4 | B42: 99.36 | C42: 1203.9 | D42: 98.84 | E42: 1150.1 | F42: 99.2 | G42: 1150.9 | H42: 102.46 | I42: 1043.5 | J42: 98.81
A43: 1140.6 | B43: 99.82 | C43: 1197.5 | D43: 98.74 | E43: 1146.6 | F43: 99.15 | G43: 1158.9 | H43: 99.47 | I43: 1042.9 | J43: 98.87
A44: 1154.5 | B44: 100.23 | C44: 1198.4 | D44: 99.13 | E44: 1150.1 | F44: 99.69 | G44: 1159.1 | H44: 99.51 | I44: 1041.7 | J44: 98.83
A45: 1144 | B45: 99.1 | C45: 1197.4 | D45: 98.99 | E45: 1158.7 | F45: 99.78 | G45: 1160.9 | H45: 99.63 | I45: 1040.1 | J45: 98.84
A46: 1131.5 | B46: 98.9 | C46: 1196.3 | D46: 99.21 | E46: 1161.3 | F46: 99.4 | G46: 1160.2 | H46: 99.43 | I46: 1039.5 | J46: 98.89
A47: 1130.3 | B47: 99.78 | C47: 1197.6 | D47: 99.45 | E47: 1162.5 | F47: 99.45 | G47: 1167.5 | H47: 100.05 | I47: 1037.8 | J47: 98.8
A48: 1144.4 | B48: 99.91 | C48: 1202.5 | D48: 99.41 | E48: 1167.2 | F48: 99.7 | G48: 1179.3 | H48: 100.28 | I48: 1035.2 | J48: 98.69
A49: 1142.6 | B49: 99.45 | C49: 1196.6 | D49: 98.96 | E49: 1167.4 | F49: 99.37 | G49: 1178.7 | H49: 99.17 | I49: 1031.3 | J49: 98.61
A50: 1140.2 | B50: 99.61 | C50: 1195.6 | D50: 99.19 | E50: 1171 | F50: 99.7 | G50: 1169.4 | H50: 99.1 | I50: 1030.4 | J50: 99.13
A51: 1137.7 | B51: 99.63 | C51: 1196.4 | D51: 99.23 | E51: 1181.3 | F51: 100.23 | G51: 1169.9 | H51: 99.58 | I51: 1027.9 | J51: 98.82
A52: 1144.7 | B52: 100.23 | C52: 1195.5 | D52: 99.16 | E52: 1200.7 | F52: 99.92 | G52: 1175 | H52: 99.69 | I52: 1026.5 | J52: 98.88
A53: 1141.2 | B53: 99.46 | C53: 1194.5 | D53: 99.18 | E53: 1181.3 | F53: 98.35 | G53: 1166.2 | H53: 98.55 | I53: 1027.7 | J53: 98.77
A54: 1141.4 | B54: 99.69 | C54: 1193.6 | D54: 99.09 | E54: 1174.9 | F54: 99.32 | G54: 1100.7 | H54: 97.43 | I54: 1022.9 | J54: 98.69
A55: 1148.6 | B55: 100.26 | C55: 1189.6 | D55: 98.98 | E55: 1189.7 | F55: 100.67 | G55: 1102.3 | H55: 99.76 | I55: 1025.2 | J55: 98.67
A56: 1152.9 | B56: 99.7 | C56: 1193.5 | D56: 99.36 | E56: 1198.8 | F56: 99.86 | G56: 1093.2 | H56: 98.71 | I56: 1020.7 | J56: 98.53
A57: 1144.8 | B57: 99.12 | C57: 1193.2 | D57: 99.12 | E57: 1167.9 | F57: 98.13 | G57: 1084 | H57: 99.03 | I57: 1020.2 | J57: 98.95
A58: 1135.8 | B58: 99.16 | C58: 1184.6 | D58: 98.86 | E58: 1149.1 | F58: 98.75 | G58: 1082.9 | H58: 99.6 | I58: 1019.9 | J58: 98.84
A59: 1140.8 | B59: 100.17 | C59: 1191 | D59: 99.52 | E59: 1153.2 | F59: 99.93 | G59: 1083.6 | H59: 99.53 | I59: 1015.7 | J59: 98.8
A60: 1142 | B60: 99.48 | C60: 1190.7 | D60: 99.13 | E60: 1135.9 | F60: 98.22 | G60: 1079.3 | H60: 99.14 | I60: 1014 | J60: 98.86
A61: 1135.9 | B61: 99.46 | C61: 1185.1 | D61: 99.11 | E61: 1123.3 | F61: 98.83 | G61: 1078.1 | H61: 99.29 | I61: 1011.7 | J61: 98.46
A62: 1132.9 | B62: 99.71 | C62: 1189.7 | D62: 99.46 | E62: 1125.9 | F62: 99.91 | G62: 1147.1 | H62: 101.24 | I62: 1010.3 | J62: 98.75
A63: 1142.7 | B63: 100.15 | C63: 1189.9 | D63: 99.18 | E63: 1127.5 | F63: 99.65 | G63: 1155.7 | H63: 99.11 | I63: 1011.5 | J63: 98.8
A64: 1141.9 | B64: 99.41 | C64: 1185.6 | D64: 99.07 | E64: 1121.3 | F64: 99.17 | G64: 1146.7 | H64: 98.18 | I64: 1005.8 | J64: 98.54
A65: 1147.6 | B65: 100.37 | C65: 1189.2 | D65: 99.28 | E65: 1120.2 | F65: 99.61 | G65: 1142.9 | H65: 98.76 | I65: 1004.5 | J65: 98.93
A66: 1143.7 | B66: 99.58 | C66: 1188.8 | D66: 99.15 | E66: 1153.4 | F66: -- | G66: 1131.8 | H66: 98.19 | I66: 1008.7 | J66: 99.13
A67: 1144 | B67: 99.88 | C67: 1188.4 | D67: 99.25 | E67: 1169.9 | F67: 100.17 | G67: 1124 | H67: 98.61 | I67: 1007.5 | J67: 98.99
A68: 1142.8 | B68: 99.38 | C68: 1188.2 | D68: 99.28 | E68: 1167.1 | F68: 98.8 | G68: 1078.4 | H68: 96.17 | I68: 1065.4 | J68: --
A69: 1138.2 | B69: 99.78 | C69: 1188.5 | D69: 99.24 | E69: 1158.9 | F69: 99.35 | G69: 1123.5 | H69: 99.96 | I69: 1037.4 | J69: 101.93
A70: 1133.6 | B70: 99.61 | C70: 1187.1 | D70: 99.19 | E70: 1157 | F70: 99.42 | G70: 1125.2 | H70: 98.7 | I70: 1021.2 | J70: 100.22
A71: 1138.1 | B71: 99.77 | C71: 1185.8 | D71: 99.13 | E71: 1145.8 | F71: 98.8 | G71: 1120.8 | H71: 98.71 | I71: 1001 | J71: 99.1
A72: 1131.3 | B72: 99.38 | C72: 1185.7 | D72: 99.23 | E72: 1129.1 | F72: 98.47 | G72: 1128.1 | H72: 99.92 | I72: 998.1 | J72: 98.64
A73: 1134.3 | B73: 99.93 | C73: 1184.7 | D73: 99.19 | E73: 1133.1 | F73: 100.21 | G73: 1129.1 | H73: 99.16 | I73: 1061.7 | J73: --
A74: 1132 | B74: 99.89 | C74: 1186.2 | D74: 99.47 | E74: 1143.3 | F74: 100.29 | G74: 1123.6 | H74: 98.9 | I74: 1105.7 | J74: --
A75: 1136.9 | B75: 99.89 | C75: 1191.4 | D75: 99.5 | E75: 1140.7 | F75: 99.37 | G75: 1124.8 | H75: 99.59 | I75: 996.8 | J75: 98.95
A76: 1132.8 | B76: 99.42 | C76: 1187 | D76: 99.2 | E76: 1137.4 | F76: 99.38 | G76: 1138.6 | H76: 100.01 | I76: 1005.1 | J76: 100.14
A77: 1135.9 | B77: 99.96 | C77: 1186 | D77: 98.99 | E77: 1146.9 | F77: 100.42 | G77: 1135.5 | H77: 99.27 | I77: 1042.6 | J77: --
A78: 1129.7 | B78: 99.22 | C78: 1185.7 | D78: 99.28 | E78: 1146.4 | F78: 99.47 | G78: 1135 | H78: 99.56 | I78: 1038.5 | J78: --
A79: 1128.7 | B79: 99.96 | C79: 1184.4 | D79: 99.09 | E79: 1138.9 | F79: 99.07 | G79: 1148.6 | H79: 100.75 | I79: 982.5 | J79: 97.91
A80: 1142.2 | B80: 100.72 | C80: 1181.8 | D80: 99.13 | E80: 1144.2 | F80: 100.15 | G80: 1152.2 | H80: 99.72 | I80: 981.1 | J80: 98.54
A81: 1148.1 | B81: 99.89 | C81: 1182.4 | D81: 99.22 | E81: 1162.5 | F81: 100.83 | G81: 1150.6 | H81: 99.43 | I81: 974.1 | J81: 98.31
A82: 1147.9 | B82: 99.88 | C82: 1178.4 | D82: 98.94 | E82: 1151.7 | F82: 99.08 | G82: 1154.6 | H82: 99.88 | I82: 971.6 | J82: 98.55
A83: 1155.4 | B83: 99.93 | C83: 1180.1 | D83: 99.25 | E83: 1153.2 | F83: 99.48 | G83: 1165.8 | H83: 99.78 | I83: 966.4 | J83: 98.06
A84: 1149.2 | B84: 99.42 | C84: 1181.1 | D84: 99.34 | E84: 1178 | F84: 100.74 | G84: 1166.3 | H84: 99.51
A85: 1138.5 | B85: 98.84 | C85: 1177.7 | D85: 99.07 | E85: 1183.6 | F85: 99.91 | G85: 1164.2 | H85: 99.32
A86: 1133.5 | B86: 99.63 | C86: 1176.1 | D86: 99.24 | E86: 1183.1 | F86: 99.51 | G86: 1167.1 | H86: 99.62
A87: 1134.8 | B87: 99.62 | C87: 1183.6 | D87: 99.48 | E87: 1187.2 | F87: 99.92 | G87: 1165.3 | H87: 99.34
A88: 1133.9 | B88: 99.48 | C88: 1182.9 | D88: 99.17 | E88: 1204.2 | F88: 100.28 | G88: 1166.4 | H88: 99.54
A89: 1132.1 | B89: 99.63 | C89: 1179.8 | D89: 99.21 | E89: 1206.6 | F89: 99.67 | G89: 1165 | H89: 99.38
A90: 1140 | B90: 100.24 | C90: 1182.5 | D90: 99.32 | E90: 1205.7 | F90: 99.42 | G90: 1166.7 | H90: 99.56
A91: 1148.3 | B91: 100.5 | C91: 1177.5 | D91: 98.93 | E91: 1208 | F91: 99.71 | G91: 1167 | H91: 99.51
A92: 1147.8 | B92: 99.68 | C92: 1174.9 | D92: 99.23 | E92: 1206.7 | F92: 99.38 | G92: 1166.1 | H92: 99.29
A93: 1150.4 | B93: 99.35 | C93: 1173.5 | D93: 99.28 | E93: 1209.7 | F93: 99.76 | G93: 1163.1 | H93: 99.31
A94: 1147.2 | B94: 99.45 | C94: 1169.2 | D94: 98.94 | E94: 1208.1 | F94: 99.35 | G94: 1166.8 | H94: 99.41
A95: 1142.2 | B95: 99.39 | C95: 1165.7 | D95: 99.29 | E95: 1211.7 | F95: 99.82 | G95: 1165.6 | H95: 99.35
A96: 1148.8 | B96: 100.02 | C96: 1172 | D96: 99.88 | E96: 1212 | F96: 99.45 | G96: 1163.2 | H96: 99.32
A97: 1150 | B97: 99.6 | C97: 1169 | D97: 99.01 | E97: 1213.6 | F97: 99.59 | G97: 1167.7 | H97: 99.71
A98: 1144.1 | B98: 99.42 | C98: 1166.4 | D98: 99.15 | E98: 1208.2 | F98: 99.05 | G98: 1170.9 | H98: 99.48
A99: 1141.7 | B99: 99.82 | C99: 1173.5 | D99: 99.56 | E99: 1211.4 | F99: 99.86 | G99: 1164 | H99: 98.86
A100: 1147.9 | B100: 99.8 | C100: 1171.8 | D100: 99.02 | E100: 1213.1 | F100: 99.56 | G100: 1166.8 | H100: 99.97
A101: 1148.1 | B101: 99.55 | C101: 1166.4 | D101: 99.03 | E101: 1212.4 | F101: 99.41 | G101: 1159.4 | H101: 99.04
A102: 1147.7 | B102: 99.57 | C102: 1170.2 | D102: 99.38 | E102: 1209.8 | F102: 99.3 | G102: 1156.1 | H102: 99.2
A103: 1142.8 | B103: 99.37 | C103: 1168.2 | D103: 99.2 | E103: 1211.2 | F103: 99.58 | G103: 1161.3 | H103: 99.99
A104: 1138.6 | B104: 99.28 | C104: 1167.9 | D104: 99.48 | E104: 1212.2 | F104: 99.54 | G104: 1157.3 | H104: 98.57
A105: 1133.2 | B105: 99.51 | C105: 1170.4 | D105: 99.58 | E105: 1207.8 | F105: 99.12 | G105: 1153.9 | H105: 99.53
A106: 1135.8 | B106: 99.87 | C106: 1170.3 | D106: 99.21 | E106: 1210.1 | F106: 99.74 | G106: 1145.8 | H106: 99.28
A107: 1132.3 | B107: 99.52 | C107: 1167.3 | D107: 99.26 | E107: 1207.1 | F107: 99.29 | G107: 1151.9 | H107: 99.59
A108: 1131 | B108: 99.6 | C108: 1165.9 | D108: 99.33 | E108: 1203.8 | F108: 99.22 | G108: 1146.2 | H108: 99.17
A109: 1130.2 | B109: 99.62 | C109: 1167.7 | D109: 99.32 | E109: 1209.4 | F109: 100.01 | G109: 1139.9 | H109: 98.87
A110: 1129.5 | B110: 99.66 | C110: 1166.2 | D110: 99.17 | E110: 1206.5 | F110: 99.17 | G110: 1154.3 | H110: 100.23
A111: 1123.4 | B111: 99.63 | C111: 1165.7 | D111: 99.46 | E111: 1202 | F111: 99.27 | G111: 1153.8 | H111: 98.86
A112: 1091.9 | B112: 97.75 | C112: 1164.6 | D112: 99.29 | E112: 1198.3 | F112: 99.33 | G112: 1146.9 | H112: 99.65
A113: 1093.6 | B113: 99.8 | C113: 1162.5 | D113: 99.28 | E113: 1200.6 | F113: 99.57 | G113: 1148.1 | H113: 99.53
A114: 1089.6 | B114: 99.41 | C114: 1162.9 | D114: 99.26 | E114: 1197.9 | F114: 99.35 | G114: 1158.9 | H114: 99.81
A115: 1082.9 | B115: 99.48 | C115: 1165.2 | D115: 99.34 | E115: 1194.8 | F115: 99.27 | G115: 1158.5 | H115: 99.31
A116: 1078.2 | B116: 99.34 | C116: 1162 | D116: 99.07 | E116: 1201.7 | F116: 100.09 | G116: 1146 | H116: 98.74
A117: 1069.3 | B117: 99.1 | C117: 1163.2 | D117: 99.34 | E117: 1208.7 | F117: 99.41 | G117: 1151.9 | H117: 99.98
A118: 1058.4 | B118: 98.78 | C118: 1162.4 | D118: 99.25 | E118: 1196 | F118: 99.38 | G118: 1148.1 | H118: 98.83
A119: 1070.5 | B119: 100.96 | C119: 1159 | D119: 99.1 | E119: 1197 | F119: 99.56 | G119: 1144 | H119: 99.25
A120: 1071.6 | B120: 99.15 | C120: 1156.9 | D120: 99.14 | E120: 1209.5 | F120: 100.5 | G120: 1144.7 | H120: 99.53
A121: 1050.2 | B121: 97.46 | C121: 1151.8 | D121: 99.17 | E121: 1205 | F121: 99.23 | G121: 1157.5 | H121: 99.95
A122: 982.4 | B122: 93.24 | C122: 1156.1 | D122: 99.63 | E122: 1196.6 | F122: 98.97 | G122: 1154.4 | H122: 99.23
C123: 1153.7 | D123: 99.3 | E123: 1197.4 | F123: 99.6 | G123: 1152.8 | H123: 99.27
C124: 1154.2 | D124: 99.16 | E124: 1199.8 | F124: 99.1 | G124: 1162.4 | H124: 100.23
C125: 1153.3 | D125: 99.17 | E125: 1195.4 | F125: 99.31 | G125: 1165.4 | H125: 99.02
C126: 1153.7 | D126: 99.44 | E126: 1193.3 | F126: 99.36 | G126: 1169.5 | H126: 99.67
C127: 1147.8 | D127: 98.83 | E127: 1221.3 | F127: -- | G127: 1160.7 | H127: 98.99
C128: 1150.5 | D128: 99.31 | E128: 1230.1 | F128: 98.51 | G128: 1162.3 | H128: 99.37
C129: 1148.9 | D129: 99.29 | E129: 1207.3 | F129: 99.19 | G129: 1159.4 | H129: 98.99
C130: 1147.2 | D130: 99.16 | E130: 1223 | F130: 101.18 | G130: 1152.6 | H130: 98.97
C131: 1148.2 | D131: 99.31 | E131: 1259.5 | F131: 99.97 | G131: 1155.4 | H131: 99.54
C132: 1149.3 | D132: 99.25 | E132: 1248.9 | F132: 98.63 | G132: 1148.9 | H132: 98.89
C133: 1140.9 | D133: 98.85 | E133: 1225.5 | F133: 99.33 | G133: 1146.8 | H133: 99.11
C134: 1140.6 | D134: 99.3 | E134: 1222.3 | F134: 99.4 | G134: 1140.3 | H134: 99.24
C135: 1139 | D135: 99.18 | E135: 1223.3 | F135: 99.34 | G135: 1145.8 | H135: 99.57
C136: 1138.9 | D136: 99.39 | E136: 1223.2 | F136: 99.16 | G136: 1145.5 | H136: 99.3
C137: 1139.9 | D137: 99.36 | E137: 1210 | F137: 99.19 | G137: 1141.3 | H137: 99
C138: 1140.9 | D138: 99.14 | E138: 1215 | F138: 98.69 | G138: 1152 | H138: 99.94
C139: 1138.6 | D139: 99.14 | E139: 1208.3 | F139: 99.24 | G139: 1148.5 | H139: 98.91
C140: 1138.2 | D140: 99.2 | E140: 1208.1 | F140: 99.3 | G140: 1141.1 | H140: 99.18
C141: 1134.5 | D141: 99.06 | E141: 1206.6 | F141: 99.22 | G141: 1144 | H141: 99.83
C142: 1131.7 | D142: 99.03 | E142: 1204.5 | F142: 99.22 | G142: 1152.4 | H142: 99.58
C143: 1129.4 | D143: 99.1 | E143: 1203.6 | F143: 99.23 | G143: 1144.9 | H143: 99.09
C144: 1128.9 | D144: 99.21 | E144: 1202.8 | F144: 99.19 | G144: 1140.1 | H144: 99.02
C145: 1129.3 | D145: 99.29 | E145: 1216.2 | F145: 99.4 | G145: 1148.4 | H145: 99.4
C146: 1126.7 | D146: 99.11 | E146: 1201.6 | F146: 98.12 | G146: 1147.3 | H146: 99.26
C147: 1124.4 | D147: 99.12 | E147: 1200.8 | F147: 99.29 | G147: 1140.6 | H147: 98.69
C148: 1126.1 | D148: 99.37 | E148: 1213.4 | F148: 100.08 | G148: 1139.5 | H148: 99.5
C149: 1123.2 | D149: 99.11 | E149: 1212.5 | F149: 99.35 | G149: 1143.3 | H149: 99.35
C150: 1122.2 | D150: 99.29 | E150: 1207.4 | F150: 98.91 | G150: 1134.7 | H150: 99.03
C151: 1121.8 | D151: 99.28 | E151: 1209.2 | F151: 100.11 | G151: 1125.5 | H151: 99.12
C152: 1120.9 | D152: 99.22 | E152: 1213.7 | F152: 99.66 | G152: 1134.7 | H152: 99.69
C153: 1120.1 | D153: 99.22 | E153: 1206.9 | F153: 98.9 | G153: 1124.8 | H153: 98.97
C154: 1118.1 | D154: 99.14 | E154: 1203.6 | F154: 98.98 | G154: 1110.4 | H154: 98.28
C155: 1118.7 | D155: 99.26 | E155: 1205.3 | F155: 99.91 | G155: 1118.1 | H155: 101.16
C156: 1116.2 | D156: 99.21 | E156: 1204 | F156: 99.37 | G156: 1121.9 | H156: 99.36
C157: 1116.1 | D157: 99.28 | E157: 1189.3 | F157: 98.36 | G157: 1113.5 | H157: 98.71
C158: 1115.9 | D158: 99.27 | E158: 1187.6 | F158: 99.16 | G158: 1087.4 | H158: 99.74
C159: 1115.7 | D159: 99.36 | E159: 1194.3 | F159: 99.26 | G159: 1122.1 | H159: 99.8
C160: 1111.3 | D160: 99.15 | E160: 1185.4 | F160: 99.32 | G160: 1116.1 | H160: 98.9
C161: 1110.5 | D161: 99.17 | E161: 1183.3 | F161: 99.17 | G161: 1107.9 | H161: 98.95
C162: 1109.2 | D162: 99.09 | E162: 1181.2 | F162: 99.12 | G162: 1116.9 | H162: 100.78
C163: 1107.7 | D163: 99.12 | E163: 1179.9 | F163: 99.27 | G163: 1123.9 | H163: 99.46
C164: 1105.4 | D164: 99.11 | E164: 1180.1 | F164: 99.36 | G164: 1108.4 | H164: 98.6
C165: 1103.5 | D165: 99.06 | E165: 1176.9 | F165: 99.48 | G165: 1059.9 | H165: 95.91
C166: 1100.4 | D166: 99.05 | E166: 1189 | F166: 100.33 | G166: 1094.6 | H166: 101.91
C167: 1099.4 | D167: 99.06 | E167: 1174.3 | F167: 98.63 | G167: 1056.8 | H167: 98.09
C168: 1097.5 | D168: 99.03 | E168: 1174.7 | F168: 99.32 | G168: 1055.3 | H168: 99.31
C169: 1092.9 | D169: 98.81 | E169: 1179.7 | F169: 99.85 | G169: 1054.1 | H169: 99.32
C170: 1088.9 | D170: 98.76 | E170: 1183.6 | F170: 99.27 | G170: 1097.3 | H170: 99.8
C171: 1041.6 | D171: 94.76 | E171: 1169.1 | F171: 98.44 | G171: 1054.3 | H171: 95.78
E172: 1162.4 | F172: 98.78 | G172: 1051.6 | H172: 99.39
E173: 1166.5 | F173: 99.6 | G173: 1094.4 | H173: 103.14
E174: 1159.3 | F174: 99.05 | G174: 1091.3 | H174: 98.94
E175: 1158.6 | F175: 99.3 | G175: 1046.8 | H175: 97.99
E176: 1156.6 | F176: 99.21 | G176: 1060.4 | H176: 100.71
E177: 1161 | F177: 99.32 | G177: 1096.1 | H177: 99.66
E178: 1155.1 | F178: 98.81 | G178: 1080.2 | H178: 98.15
E179: 1153.8 | F179: 99.41 | G179: 1041.5 | H179: 99.32
E180: 1156.8 | F180: 99.74 | G180: 1093.8 | H180: 102.12
E181: 1155.8 | F181: 99.36 | G181: 1095.2 | H181: 99.08
E182: 1148.2 | F182: 99.03 | G182: 1087.7 | H182: 99.26
E183: 1147.1 | F183: 99.26 | G183: 1086.6 | H183: 99.32
E184: 1151.5 | F184: 99.33 | G184: 1096.9 | H184: 99.88
E185: 1150 | F185: 99.3 | G185: 1084.8 | H185: 98.65
E186: 1142.9 | F186: 99.18 | G186: 1076.3 | H186: 98.94
E187: 1148.3 | F187: 99.72 | G187: 1080.7 | H187: 100.56
E188: 1157.6 | F188: 99.26 | G188: 1087.5 | H188: 99.4
E189: 1144.3 | F189: 98.87 | G189: 1078.9 | H189: 98.92
E190: 1141.3 | F190: 99.25 | G190: 1072.4 | H190: 99.09
E191: 1153.2 | F191: 100.19 | G191: 1084.2 | H191: 100.08
E192: 1147.1 | F192: 98.93 | G192: 1083 | H192: 98.83
E193: 1138.3 | F193: 99.44 | G193: 1074.2 | H193: 98.72
E194: 1136.4 | F194: 99.35 | G194: 1065 | H194: 99.59
E195: 1148.3 | F195: 100.17 | G195: 1081.5 | H195: 99.45
E196: 1135.7 | F196: 98.45 | G196: 1077.1 | H196: 98.84
E197: 1132.7 | F197: 99.44 | G197: 1061.8 | H197: 98.19
E198: 1132.3 | F198: 99.4 | G198: 1071.6 | H198: 101.61
E199: 1141.8 | F199: 99.28 | G199: 1075.9 | H199: 98.89
E200: 1135.1 | F200: 98.76 | G200: 1068.2 | H200: 98.58
... 301 more rows

Sheet Fig3d
A1: 循环序号 | B1: 放电比容量/mAh/g
A2: 2 | B2: 1076.9
A3: 3 | B3: 1072.2
A4: 4 | B4: 1068.7
A5: 5 | B5: 1066.8
A6: 6 | B6: 1065.8
A7: 7 | B7: 1064.2
A8: 8 | B8: 1063.6
A9: 9 | B9: 1063.7
A10: 10 | B10: 1063.3
A11: 11 | B11: 1063.5
A12: 12 | B12: 1063.4
A13: 13 | B13: 1062.2
A14: 14 | B14: 1063
A15: 15 | B15: 1061.4
A16: 16 | B16: 1061.7
A17: 17 | B17: 1061.4
A18: 18 | B18: 1061.4
A19: 19 | B19: 1062.5
A20: 20 | B20: 1062.2
A21: 21 | B21: 1062.4
A22: 22 | B22: 1062.2
A23: 23 | B23: 1062.6
A24: 24 | B24: 1062.8
A25: 25 | B25: 1063.2
A26: 26 | B26: 1063.3
A27: 27 | B27: 1063.1
A28: 28 | B28: 1063.9
A29: 29 | B29: 1064.6
A30: 30 | B30: 1064.6
A31: 31 | B31: 1064.3
A32: 32 | B32: 1064.4
A33: 33 | B33: 1064.1
A34: 34 | B34: 1064
A35: 35 | B35: 1063.5
A36: 36 | B36: 1064.3
A37: 37 | B37: 1064.7
A38: 38 | B38: 1065.6
A39: 39 | B39: 1065.7
A40: 40 | B40: 1064.4
A41: 41 | B41: 1066.9
A42: 42 | B42: 1065.7
A43: 43 | B43: 1064
A44: 44 | B44: 1063.1
A45: 45 | B45: 1064
A46: 46 | B46: 1063
A47: 47 | B47: 1063
A48: 48 | B48: 1062.5
A49: 49 | B49: 1061.8
A50: 50 | B50: 1062.6
A51: 51 | B51: 1064.2
A52: 52 | B52: 1061.7
A53: 53 | B53: 1061.3
A54: 54 | B54: 1062.8
A55: 55 | B55: 1062.5
A56: 56 | B56: 1063.7
A57: 57 | B57: 1061.8
A58: 58 | B58: 1059.3
A59: 59 | B59: 1061.3
A60: 60 | B60: 1059.2
A61: 61 | B61: 1057.9
A62: 62 | B62: 1057.7
A63: 63 | B63: 1057.5
A64: 64 | B64: 1052.7
A65: 65 | B65: 1054.7
A66: 66 | B66: 1051.5
A67: 67 | B67: 1058.3
A68: 68 | B68: 1054.5
A69: 69 | B69: 1055.9
A70: 70 | B70: 1046
A71: 71 | B71: 1048
A72: 72 | B72: 1041.9
A73: 73 | B73: 1038.5
A74: 74 | B74: 1028
A75: 75 | B75: 1040.5
A76: 76 | B76: 1040
A77: 77 | B77: 1030.3
A78: 78 | B78: 1053.6
A79: 79 | B79: 1052.2
A80: 80 | B80: 1051.4
A81: 81 | B81: 1052.5
A82: 82 | B82: 1050.8
A83: 83 | B83: 1050.4
A84: 84 | B84: 1050.8
A85: 85 | B85: 1047.9
A86: 86 | B86: 1048.9
A87: 87 | B87: 1049.7
A88: 88 | B88: 1047.2
A89: 89 | B89: 1048.7
A90: 90 | B90: 1044.3
A91: 91 | B91: 1049.8
A92: 92 | B92: 1044.9
A93: 93 | B93: 1045.2
A94: 94 | B94: 1043.8
A95: 95 | B95: 1034.7
A96: 96 | B96: 1047.3
A97: 97 | B97: 1045.4
A98: 98 | B98: 1043.8
A99: 99 | B99: 1045.9
A100: 100 | B100: 1041.6
A101: 101 | B101: 1032.7
A102: 102 | B102: 1036.1
A103: 103 | B103: 1032.6
A104: 104 | B104: 1024.8
A105: 105 | B105: 1024.8
A106: 106 | B106: 1033.4
A107: 107 | B107: 1015.1
A108: 108 | B108: 1029.7
A109: 109 | B109: 1018.3
A110: 110 | B110: 1013.2
A111: 111 | B111: 1022.1
A112: 112 | B112: 1016.9
A113: 113 | B113: 1010.6
A114: 114 | B114: 1018.9
A115: 115 | B115: 999.9
A116: 116 | B116: 1012.8
A117: 117 | B117: 1006.8
A118: 118 | B118: 1024.9
A119: 119 | B119: 1010.6
A120: 120 | B120: 1003
A121: 121 | B121: 1011.9
A122: 122 | B122: 1003.2
A123: 123 | B123: 1021.3
A124: 124 | B124: 1012.4
A125: 125 | B125: 1016.4
A126: 126 | B126: 1017.6
A127: 127 | B127: 1006.5
A128: 128 | B128: 1003.3
A129: 129 | B129: 1014
A130: 130 | B130: 979
A131: 131 | B131: 1023.7
A132: 132 | B132: 1021.9
A133: 133 | B133: 1021
A134: 134 | B134: 1019.8
A135: 135 | B135: 1019.2
A136: 136 | B136: 1017.5
A137: 137 | B137: 1016.7
A138: 138 | B138: 1017.2
A139: 139 | B139: 1016
A140: 140 | B140: 1014.4
A141: 141 | B141: 1014.2
A142: 142 | B142: 1011.6
A143: 143 | B143: 1012.5
A144: 144 | B144: 1012.1
A145: 145 | B145: 1009
A146: 146 | B146: 1009.4
A147: 147 | B147: 1006.5
A148: 148 | B148: 1004.4
A149: 149 | B149: 1008
A150: 150 | B150: 1003.6
A151: 151 | B151: 1005.3
A152: 152 | B152: 1003.9
A153: 153 | B153: 1002.3
A154: 154 | B154: 1003.5
A155: 155 | B155: 1002.4
A156: 156 | B156: 1007.5
A157: 157 | B157: 999.6
A158: 158 | B158: 995.2
A159: 159 | B159: 999.7
A160: 160 | B160: 1001.8
A161: 161 | B161: 999.2
A162: 162 | B162: 997.4
A163: 163 | B163: 998.9
A164: 164 | B164: 997.5
A165: 165 | B165: 997.5
A166: 166 | B166: 996.1
A167: 167 | B167: 994.7
A168: 168 | B168: 991.3
A169: 169 | B169: 990.9
A170: 170 | B170: 990.8
A171: 171 | B171: 985.8
A172: 172 | B172: 984.5
A173: 173 | B173: 986.7
A174: 174 | B174: 980.2
A175: 175 | B175: 980
A176: 176 | B176: 986.1
A177: 177 | B177: 985.7
A178: 178 | B178: 984.5
A179: 179 | B179: 984.5
A180: 180 | B180: 982.6
A181: 181 | B181: 981.6
A182: 182 | B182: 980.7
A183: 183 | B183: 980.2
A184: 184 | B184: 979.1
A185: 185 | B185: 978.5
A186: 186 | B186: 978
A187: 187 | B187: 976.6
A188: 188 | B188: 975.8
A189: 189 | B189: 975.7
A190: 190 | B190: 973.9
A191: 191 | B191: 973.5
A192: 192 | B192: 972.9
A193: 193 | B193: 972.3
A194: 194 | B194: 970.7
A195: 195 | B195: 970.2
A196: 196 | B196: 969.4
A197: 197 | B197: 969.1
A198: 198 | B198: 967
A199: 199 | B199: 966
A200: 200 | B200: 964.5
... 2 more rows

Sheet Fig3e
A1: 60 | B1: 630
A2: 50 | B2: 588
A3: 100 | B3: 380
A4: 110 | B4: 500
A5: 500 | B5: 450
A6: 800 | B6: 775
A7: 100 | B7: 410.5
A8: 100 | B8: 935
A9: 100 | B9: 1066.8
A10: 180 | B10: 720
A11: 100 | B11: 897.4
A12: 500 | B12: 829.6
A13: 200 | B13: 964
A14: 200 | B14: 717
A15: 350 | B15: 812
A16: 400 | B16: 701

Sheet Fig3g
A1: 0.5 | B1: 30.224 | C1: 0.5 | D1: 188.88889 | E1: 94.44444 | F1: 62.96296 | G1: 37.77778 | H1: 26.98413 | I1: 23.61111
A2: 1 | B2: 15.74167 | C2: 1 | D2: 94.44444 | E2: 47.22222 | F2: 31.48148 | G2: 18.88889 | H2: 13.49206 | I2: 11.80556
A3: 1.5 | B3: 10.07467 | C3: 1.5 | D3: 62.96296 | E3: 31.48148 | F3: 20.98765 | G3: 12.59259 | H3: 8.99471 | I3: 7.87037
A4: 2 | B4: 8.99524 | C4: 2 | D4: 47.22222 | E4: 23.61111 | F4: 15.74074 | G4: 9.44444 | H4: 6.74603 | I4: 5.90278
A5: 3 | B5: 6.29667 | C5: 3 | D5: 31.48148 | E5: 15.74074 | F5: 10.49383 | G5: 6.2963 | H5: 4.49735 | I5: 3.93519
A6: 3.8 | B6: 4.91927 | C6: 4 | D6: 23.61111 | E6: 11.80556 | F6: 7.87037 | G6: 4.72222 | H6: 3.37302 | I6: 2.95139
A7: 5 | C7: 5 | D7: 18.88889 | E7: 9.44444 | F7: 6.2963 | G7: 3.77778 | H7: 2.69841 | I7: 2.36111

Sheet Fig3h
A1: 1 | B1: 1430 | C1: 54.83
A2: 2 | B2: 612.9 | C2: 99.206
A3: 3 | B3: 587.88 | C3: 97.96622
A4: 4 | B4: 569.72 | C4: 98.12098
A5: 5 | B5: 555.01 | C5: 98.39033
A6: 6 | B6: 544.26 | C6: 98.52314
A7: 7 | B7: 535.17 | C7: 98.67285
A8: 8 | B8: 527.84 | C8: 98.70694
A9: 9 | B9: 521.94 | C9: 98.81423
A10: 10 | B10: 516.26 | C10: 98.89632
A11: 11 | B11: 511.28 | C11: 98.95014
A12: 12 | B12: 506.53 | C12: 99.02559
A13: 13 | B13: 502.38 | C13: 99.09821
A14: 14 | B14: 498.7 | C14: 99.2034
A15: 15 | B15: 495.32 | C15: 99.13652
A16: 16 | B16: 492.58 | C16: 99.2034
A17: 17 | B17: 488.53 | C17: 99.33643
A18: 18 | B18: 485.87 | C18: 99.28712
A19: 19 | B19: 482.93 | C19: 99.34531
A20: 20 | B20: 480.16 | C20: 99.38481

Sheet Fig4b
A1: ! eV | B1: Cluster 1 spectrum | C1: ! eV | D1: Cluster 2 spectrum | E1: ! eV | F1: Cluster 3 spectrum | G1: ! eV | H1: Cluster 4 spectrum
A2: 772 | B2: 0.20718 | C2: 772 | D2: 1.02469 | E2: 772 | F2: 2.23689 | G2: 772 | H2: 2.7788
A3: 772.857 | B3: 0.20613 | C3: 772.857 | D3: 1.0214 | E3: 772.857 | F3: 2.23091 | G3: 772.857 | H3: 2.78327
A4: 773.714 | B4: 0.20584 | C4: 773.714 | D4: 1.02101 | E4: 773.714 | F4: 2.22891 | G4: 773.714 | H4: 2.78195
A5: 774.571 | B5: 0.20635 | C5: 774.571 | D5: 1.02361 | E5: 774.571 | F5: 2.2371 | G5: 774.571 | H5: 2.78516
A6: 775.429 | B6: 0.20683 | C6: 775.429 | D6: 1.02858 | E6: 775.429 | F6: 2.23558 | G6: 775.429 | H6: 2.78451
A7: 776.286 | B7: 0.21587 | C7: 776.286 | D7: 1.06928 | E7: 776.286 | F7: 2.24787 | G7: 776.286 | H7: 2.8002
A8: 777.143 | B8: 0.26057 | C8: 777.143 | D8: 1.26296 | E8: 777.143 | F8: 2.35707 | G8: 777.143 | H8: 2.89985
A9: 778 | B9: 0.36727 | C9: 778 | D9: 1.71801 | E9: 778 | F9: 2.55959 | G9: 778 | H9: 3.08413
A10: 778.2 | B10: 0.38288 | C10: 778.2 | D10: 1.78069 | E10: 778.2 | F10: 2.58175 | G10: 778.2 | H10: 3.11331
A11: 778.404 | B11: 0.37172 | C11: 778.404 | D11: 1.73449 | E11: 778.404 | F11: 2.56366 | G11: 778.404 | H11: 3.09245
A12: 778.608 | B12: 0.36836 | C12: 778.608 | D12: 1.72025 | E12: 778.608 | F12: 2.56571 | G12: 778.608 | H12: 3.09383
A13: 778.811 | B13: 0.3589 | C13: 778.811 | D13: 1.68187 | E13: 778.811 | F13: 2.54086 | G13: 778.811 | H13: 3.07553
A14: 779.015 | B14: 0.32908 | C14: 779.015 | D14: 1.56358 | E14: 779.015 | F14: 2.48429 | G14: 779.015 | H14: 3.02528
A15: 779.219 | B15: 0.33134 | C15: 779.219 | D15: 1.56784 | E15: 779.219 | F15: 2.4957 | G15: 779.219 | H15: 3.03202
A16: 779.423 | B16: 0.36151 | C16: 779.423 | D16: 1.69907 | E16: 779.423 | F16: 2.54977 | G16: 779.423 | H16: 3.07524
A17: 779.626 | B17: 0.3747 | C17: 779.626 | D17: 1.74918 | E17: 779.626 | F17: 2.57524 | G17: 779.626 | H17: 3.11703
A18: 779.83 | B18: 0.32611 | C18: 779.83 | D18: 1.54642 | E18: 779.83 | F18: 2.49674 | G18: 779.83 | H18: 3.04703
A19: 780.034 | B19: 0.28347 | C19: 780.034 | D19: 1.37088 | E19: 780.034 | F19: 2.40774 | G19: 780.034 | H19: 2.98382
A20: 780.238 | B20: 0.2657 | C20: 780.238 | D20: 1.30117 | E20: 780.238 | F20: 2.38504 | G20: 780.238 | H20: 2.94768
A21: 780.442 | B21: 0.25899 | C21: 780.442 | D21: 1.26716 | E21: 780.442 | F21: 2.35849 | G21: 780.442 | H21: 2.92935
A22: 780.645 | B22: 0.2483 | C22: 780.645 | D22: 1.2209 | E22: 780.645 | F22: 2.33968 | G22: 780.645 | H22: 2.91661
A23: 780.849 | B23: 0.23871 | C23: 780.849 | D23: 1.17372 | E23: 780.849 | F23: 2.30912 | G23: 780.849 | H23: 2.89598
A24: 781.053 | B24: 0.23319 | C24: 781.053 | D24: 1.1538 | E24: 781.053 | F24: 2.3011 | G24: 781.053 | H24: 2.873
A25: 781.257 | B25: 0.2299 | C25: 781.257 | D25: 1.14283 | E25: 781.257 | F25: 2.28885 | G25: 781.257 | H25: 2.85584
A26: 781.46 | B26: 0.22882 | C26: 781.46 | D26: 1.13613 | E26: 781.46 | F26: 2.29258 | G26: 781.46 | H26: 2.87418
A27: 781.664 | B27: 0.23015 | C27: 781.664 | D27: 1.1392 | E27: 781.664 | F27: 2.28424 | G27: 781.664 | H27: 2.87533
A28: 781.868 | B28: 0.23013 | C28: 781.868 | D28: 1.14196 | E28: 781.868 | F28: 2.28532 | G28: 781.868 | H28: 2.87554
A29: 782.072 | B29: 0.2276 | C29: 782.072 | D29: 1.13028 | E29: 782.072 | F29: 2.27328 | G29: 782.072 | H29: 2.85746
A30: 782.275 | B30: 0.22267 | C30: 782.275 | D30: 1.10744 | E30: 782.275 | F30: 2.27364 | G30: 782.275 | H30: 2.86722
A31: 782.479 | B31: 0.21826 | C31: 782.479 | D31: 1.0863 | E31: 782.479 | F31: 2.2566 | G31: 782.479 | H31: 2.8571
A32: 782.683 | B32: 0.21475 | C32: 782.683 | D32: 1.0738 | E32: 782.683 | F32: 2.25033 | G32: 782.683 | H32: 2.84326
A33: 782.887 | B33: 0.21112 | C33: 782.887 | D33: 1.05903 | E33: 782.887 | F33: 2.2465 | G33: 782.887 | H33: 2.81896
A34: 783.091 | B34: 0.20932 | C34: 783.091 | D34: 1.05095 | E34: 783.091 | F34: 2.23003 | G34: 783.091 | H34: 2.83634
A35: 783.294 | B35: 0.20756 | C35: 783.294 | D35: 1.04089 | E35: 783.294 | F35: 2.23213 | G35: 783.294 | H35: 2.82378
A36: 783.498 | B36: 0.20866 | C36: 783.498 | D36: 1.03876 | E36: 783.498 | F36: 2.23627 | G36: 783.498 | H36: 2.83522
A37: 783.702 | B37: 0.20579 | C37: 783.702 | D37: 1.03155 | E37: 783.702 | F37: 2.23452 | G37: 783.702 | H37: 2.8326
A38: 783.906 | B38: 0.20498 | C38: 783.906 | D38: 1.03047 | E38: 783.906 | F38: 2.22833 | G38: 783.906 | H38: 2.82844
A39: 784.109 | B39: 0.20464 | C39: 784.109 | D39: 1.02976 | E39: 784.109 | F39: 2.22416 | G39: 784.109 | H39: 2.82691
A40: 784.313 | B40: 0.20651 | C40: 784.313 | D40: 1.03527 | E40: 784.313 | F40: 2.23395 | G40: 784.313 | H40: 2.8383
A41: 784.517 | B41: 0.20556 | C41: 784.517 | D41: 1.03479 | E41: 784.517 | F41: 2.22881 | G41: 784.517 | H41: 2.84076
A42: 784.721 | B42: 0.20547 | C42: 784.721 | D42: 1.03643 | E42: 784.721 | F42: 2.22905 | G42: 784.721 | H42: 2.83268
A43: 784.924 | B43: 0.20571 | C43: 784.924 | D43: 1.03345 | E43: 784.924 | F43: 2.22688 | G43: 784.924 | H43: 2.82854
A44: 785.128 | B44: 0.2054 | C44: 785.128 | D44: 1.03285 | E44: 785.128 | F44: 2.22357 | G44: 785.128 | H44: 2.82297
A45: 785.332 | B45: 0.20492 | C45: 785.332 | D45: 1.03265 | E45: 785.332 | F45: 2.22633 | G45: 785.332 | H45: 2.83916
A46: 785.536 | B46: 0.20521 | C46: 785.536 | D46: 1.03312 | E46: 785.536 | F46: 2.22657 | G46: 785.536 | H46: 2.82949
A47: 785.74 | B47: 0.20513 | C47: 785.74 | D47: 1.03284 | E47: 785.74 | F47: 2.23929 | G47: 785.74 | H47: 2.85953
A48: 785.943 | B48: 0.20405 | C48: 785.943 | D48: 1.02862 | E48: 785.943 | F48: 2.23327 | G48: 785.943 | H48: 2.84264
A49: 786.147 | B49: 0.20422 | C49: 786.147 | D49: 1.0304 | E49: 786.147 | F49: 2.22207 | G49: 786.147 | H49: 2.83894
A50: 786.351 | B50: 0.20304 | C50: 786.351 | D50: 1.02585 | E50: 786.351 | F50: 2.22819 | G50: 786.351 | H50: 2.8438
A51: 786.555 | B51: 0.20184 | C51: 786.555 | D51: 1.02242 | E51: 786.555 | F51: 2.21956 | G51: 786.555 | H51: 2.83859
A52: 786.758 | B52: 0.20262 | C52: 786.758 | D52: 1.02292 | E52: 786.758 | F52: 2.22581 | G52: 786.758 | H52: 2.84142
A53: 786.962 | B53: 0.2015 | C53: 786.962 | D53: 1.02391 | E53: 786.962 | F53: 2.22157 | G53: 786.962 | H53: 2.84397
A54: 787.166 | B54: 0.20217 | C54: 787.166 | D54: 1.02199 | E54: 787.166 | F54: 2.22202 | G54: 787.166 | H54: 2.84581
A55: 787.37 | B55: 0.20142 | C55: 787.37 | D55: 1.02167 | E55: 787.37 | F55: 2.21444 | G55: 787.37 | H55: 2.84799
A56: 787.574 | B56: 0.202 | C56: 787.574 | D56: 1.02238 | E56: 787.574 | F56: 2.22485 | G56: 787.574 | H56: 2.84725
A57: 787.777 | B57: 0.20131 | C57: 787.777 | D57: 1.02296 | E57: 787.777 | F57: 2.22321 | G57: 787.777 | H57: 2.86553
A58: 787.981 | B58: 0.20292 | C58: 787.981 | D58: 1.02422 | E58: 787.981 | F58: 2.22801 | G58: 787.981 | H58: 2.8696
A59: 788.185 | B59: 0.20087 | C59: 788.185 | D59: 1.0229 | E59: 788.185 | F59: 2.2325 | G59: 788.185 | H59: 2.87189
A60: 788.389 | B60: 0.20313 | C60: 788.389 | D60: 1.02601 | E60: 788.389 | F60: 2.23626 | G60: 788.389 | H60: 2.87061
A61: 788.592 | B61: 0.20305 | C61: 788.592 | D61: 1.02613 | E61: 788.592 | F61: 2.22721 | G61: 788.592 | H61: 2.8645
A62: 788.796 | B62: 0.20126 | C62: 788.796 | D62: 1.02013 | E62: 788.796 | F62: 2.2296 | G62: 788.796 | H62: 2.87184
A63: 789 | B63: 0.20191 | C63: 789 | D63: 1.02111 | E63: 789 | F63: 2.23805 | G63: 789 | H63: 2.88013
A64: 789.2 | B64: 0.20094 | C64: 789.2 | D64: 1.02153 | E64: 789.2 | F64: 2.23234 | G64: 789.2 | H64: 2.87189
A65: 789.833 | B65: 0.20118 | C65: 789.833 | D65: 1.0197 | E65: 789.833 | F65: 2.22377 | G65: 789.833 | H65: 2.86787
A66: 790.467 | B66: 0.20242 | C66: 790.467 | D66: 1.02032 | E66: 790.467 | F66: 2.23097 | G66: 790.467 | H66: 2.8837
A67: 791.1 | B67: 0.20011 | C67: 791.1 | D67: 1.02147 | E67: 791.1 | F67: 2.2366 | G67: 791.1 | H67: 2.88782
A68: 791.733 | B68: 0.20602 | C68: 791.733 | D68: 1.04366 | E68: 791.733 | F68: 2.24832 | G68: 791.733 | H68: 2.88421
A69: 792.367 | B69: 0.21116 | C69: 792.367 | D69: 1.07092 | E69: 792.367 | F69: 2.26198 | G69: 792.367 | H69: 2.93688
A70: 793 | B70: 0.23868 | C70: 793 | D70: 1.19212 | E70: 793 | F70: 2.32286 | G70: 793 | H70: 2.99493
A71: 793.2 | B71: 0.24128 | C71: 793.2 | D71: 1.20869 | E71: 793.2 | F71: 2.33838 | G71: 793.2 | H71: 3.01041
A72: 793.503 | B72: 0.24626 | C72: 793.503 | D72: 1.21832 | E72: 793.503 | F72: 2.35235 | G72: 793.503 | H72: 3.01906
A73: 793.807 | B73: 0.24211 | C73: 793.807 | D73: 1.2111 | E73: 793.807 | F73: 2.34693 | G73: 793.807 | H73: 3.0285
A74: 794.11 | B74: 0.23982 | C74: 794.11 | D74: 1.19977 | E74: 794.11 | F74: 2.33793 | G74: 794.11 | H74: 3.01093
A75: 794.414 | B75: 0.23312 | C75: 794.414 | D75: 1.17079 | E75: 794.414 | F75: 2.32082 | G75: 794.414 | H75: 2.99666
A76: 794.717 | B76: 0.22451 | C76: 794.717 | D76: 1.13236 | E76: 794.717 | F76: 2.30043 | G76: 794.717 | H76: 2.98016
A77: 795.021 | B77: 0.21911 | C77: 795.021 | D77: 1.10157 | E77: 795.021 | F77: 2.28733 | G77: 795.021 | H77: 2.98298
A78: 795.324 | B78: 0.21645 | C78: 795.324 | D78: 1.09301 | E78: 795.324 | F78: 2.28138 | G78: 795.324 | H78: 2.96059
A79: 795.628 | B79: 0.21551 | C79: 795.628 | D79: 1.08556 | E79: 795.628 | F79: 2.26859 | G79: 795.628 | H79: 2.95298
A80: 795.931 | B80: 0.21398 | C80: 795.931 | D80: 1.08068 | E80: 795.931 | F80: 2.27052 | G80: 795.931 | H80: 2.94637
A81: 796.234 | B81: 0.20977 | C81: 796.234 | D81: 1.06817 | E81: 796.234 | F81: 2.26733 | G81: 796.234 | H81: 2.95662
A82: 796.538 | B82: 0.20864 | C82: 796.538 | D82: 1.05926 | E82: 796.538 | F82: 2.26213 | G82: 796.538 | H82: 2.95393
A83: 796.841 | B83: 0.20671 | C83: 796.841 | D83: 1.05072 | E83: 796.841 | F83: 2.25415 | G83: 796.841 | H83: 2.95739
A84: 797.145 | B84: 0.20551 | C84: 797.145 | D84: 1.04388 | E84: 797.145 | F84: 2.25375 | G84: 797.145 | H84: 2.93774
A85: 797.448 | B85: 0.20332 | C85: 797.448 | D85: 1.03811 | E85: 797.448 | F85: 2.25028 | G85: 797.448 | H85: 2.92915
A86: 797.752 | B86: 0.20297 | C86: 797.752 | D86: 1.03643 | E86: 797.752 | F86: 2.24575 | G86: 797.752 | H86: 2.93654
A87: 798.055 | B87: 0.20357 | C87: 798.055 | D87: 1.03224 | E87: 798.055 | F87: 2.23791 | G87: 798.055 | H87: 2.95493
A88: 798.359 | B88: 0.20313 | C88: 798.359 | D88: 1.03493 | E88: 798.359 | F88: 2.24506 | G88: 798.359 | H88: 2.9496
A89: 798.662 | B89: 0.20407 | C89: 798.662 | D89: 1.03629 | E89: 798.662 | F89: 2.25269 | G89: 798.662 | H89: 2.96511
A90: 798.966 | B90: 0.20562 | C90: 798.966 | D90: 1.03703 | E90: 798.966 | F90: 2.26168 | G90: 798.966 | H90: 2.97684
A91: 799.269 | B91: 0.20201 | C91: 799.269 | D91: 1.03527 | E91: 799.269 | F91: 2.2436 | G91: 799.269 | H91: 2.94559
A92: 799.572 | B92: 0.2031 | C92: 799.572 | D92: 1.03388 | E92: 799.572 | F92: 2.24765 | G92: 799.572 | H92: 2.95292
A93: 799.876 | B93: 0.20227 | C93: 799.876 | D93: 1.03181 | E93: 799.876 | F93: 2.2472 | G93: 799.876 | H93: 2.96893
A94: 800.179 | B94: 0.2015 | C94: 800.179 | D94: 1.03507 | E94: 800.179 | F94: 2.25014 | G94: 800.179 | H94: 2.95659
A95: 800.483 | B95: 0.20334 | C95: 800.483 | D95: 1.03849 | E95: 800.483 | F95: 2.24671 | G95: 800.483 | H95: 2.94234
A96: 800.786 | B96: 0.20292 | C96: 800.786 | D96: 1.03594 | E96: 800.786 | F96: 2.24987 | G96: 800.786 | H96: 2.96924
A97: 801.09 | B97: 0.20244 | C97: 801.09 | D97: 1.0326 | E97: 801.09 | F97: 2.24448 | G97: 801.09 | H97: 2.95912
A98: 801.393 | B98: 0.20273 | C98: 801.393 | D98: 1.03415 | E98: 801.393 | F98: 2.24054 | G98: 801.393 | H98: 2.95709
A99: 801.697 | B99: 0.20212 | C99: 801.697 | D99: 1.03274 | E99: 801.697 | F99: 2.23117 | G99: 801.697 | H99: 2.954
A100: 802 | B100: 0.20417 | C100: 802 | D100: 1.03799 | E100: 802 | F100: 2.24402 | G100: 802 | H100: 2.97201
A101: 802.2 | B101: 0.20335 | C101: 802.2 | D101: 1.03589 | E101: 802.2 | F101: 2.24309 | G101: 802.2 | H101: 2.96797
A102: 803.833 | B102: 0.20176 | C102: 803.833 | D102: 1.03086 | E102: 803.833 | F102: 2.23409 | G102: 803.833 | H102: 2.96289
A103: 805.467 | B103: 0.2004 | C103: 805.467 | D103: 1.03016 | E103: 805.467 | F103: 2.23067 | G103: 805.467 | H103: 2.96429
A104: 807.1 | B104: 0.20234 | C104: 807.1 | D104: 1.03223 | E104: 807.1 | F104: 2.23602 | G104: 807.1 | H104: 2.99631
A105: 808.733 | B105: 0.20285 | C105: 808.733 | D105: 1.03206 | E105: 808.733 | F105: 2.24301 | G105: 808.733 | H105: 3.00106
A106: 810.367 | B106: 0.20446 | C106: 810.367 | D106: 1.03998 | E106: 810.367 | F106: 2.25879 | G106: 810.367 | H106: 3.04046
A107: 812 | B107: 0.20595 | C107: 812 | D107: 1.04969 | E107: 812 | F107: 2.25273 | G107: 812 | H107: 3.07437

Sheet Fig4c
A1: -11.04841 | B1: 0 | C1: -9.77897 | D1: 0.01024 | E1: -9.65524 | F1: 0 | G1: -9.45022 | H1: 0.03872 | I1: -8.82245 | J1: 0.0618
A2: -10.93341 | B2: 0 | C2: -9.66297 | D2: 0.05859 | E2: -9.53924 | F2: 1.10E-04 | G2: -9.33022 | H2: 0.03778 | I2: -8.70345 | J2: 0.15482
A3: -10.81841 | B3: 4.00E-05 | C3: -9.54697 | D3: 0.076 | E3: -9.42324 | F3: 0.00853 | G3: -9.21122 | H3: 0.11853 | I3: -8.58345 | J3: 0.14047
A4: -10.70341 | B4: 0.00237 | C4: -9.42997 | D4: 0.07984 | E4: -9.30724 | F4: 0.07829 | G4: -9.09122 | H4: 0.10678 | I4: -8.46445 | J4: 0.04321
A5: -10.58841 | B5: 0.01841 | C5: -9.31397 | D5: 0.04244 | E5: -9.19024 | F5: 0.13346 | G5: -8.97222 | H5: 0.06943 | I5: -8.34445 | J5: 0.01578
A6: -10.47341 | B6: 0.02441 | C6: -9.19797 | D6: 0.03701 | E6: -9.07424 | F6: 0.08296 | G6: -8.85222 | H6: 0.04963 | I6: -8.22445 | J6: 0.1189
A7: -10.35841 | B7: 0.00543 | C7: -9.08097 | D7: 0.14013 | E7: -8.95824 | F7: 0.15774 | G7: -8.73322 | H7: 0.08709 | I7: -8.10545 | J7: 0.28116
A8: -10.24341 | B8: 1.60E-04 | C8: -8.96497 | D8: 0.22246 | E8: -8.84224 | F8: 0.29194 | G8: -8.61322 | H8: 0.09933 | I8: -7.98545 | J8: 0.16773
A9: -10.12841 | B9: 8.00E-05 | C9: -8.84897 | D9: 0.17702 | E9: -8.72524 | F9: 0.22937 | G9: -8.49422 | H9: 0.04182 | I9: -7.86545 | J9: 0.02591
A10: -10.01341 | B10: 0.004 | C10: -8.73197 | D10: 0.29026 | E10: -8.60924 | F10: 0.11345 | G10: -8.37422 | H10: 0.00287 | I10: -7.74645 | J10: 0.02441
A11: -9.89841 | B11: 0.02004 | C11: -8.61597 | D11: 0.35359 | E11: -8.49324 | F11: 0.11401 | G11: -8.25522 | H11: 0.00173 | I11: -7.62645 | J11: 0.10262
A12: -9.78341 | B12: 0.0233 | C12: -8.49997 | D12: 0.14031 | E12: -8.37724 | F12: 0.17386 | G12: -8.13522 | H12: 0.00994 | I12: -7.50745 | J12: 0.12433
A13: -9.66841 | B13: 0.07542 | C13: -8.38297 | D13: 0.02524 | E13: -8.26024 | F13: 0.13037 | G13: -8.01622 | H13: 0.02418 | I13: -7.38745 | J13: 0.24968
A14: -9.55341 | B14: 0.13552 | C14: -8.26697 | D14: 0.05077 | E14: -8.14424 | F14: 0.0392 | G14: -7.89622 | H14: 0.02689 | I14: -7.26745 | J14: 1.28398
A15: -9.43841 | B15: 0.05246 | C15: -8.15097 | D15: 0.07744 | E15: -8.02824 | F15: 0.10813 | G15: -7.77722 | H15: 0.04217 | I15: -7.14845 | J15: 1.6412
A16: -9.32341 | B16: 0.00884 | C16: -8.03397 | D16: 0.09338 | E16: -7.91224 | F16: 0.24509 | G16: -7.65722 | H16: 0.05804 | I16: -7.02845 | J16: 0.55806
A17: -9.20741 | B17: 0.04274 | C17: -7.91797 | D17: 0.14397 | E17: -7.79524 | F17: 0.09698 | G17: -7.53722 | H17: 0.05182 | I17: -6.90845 | J17: 0.44533
A18: -9.09241 | B18: 0.0655 | C18: -7.80197 | D18: 0.19476 | E18: -7.67924 | F18: 0.05363 | G18: -7.41822 | H18: 0.48815 | I18: -6.78945 | J18: 0.16316
A19: -8.97741 | B19: 0.11091 | C19: -7.68497 | D19: 0.14906 | E19: -7.56324 | F19: 0.12421 | G19: -7.29822 | H19: 0.78447 | I19: -6.66945 | J19: 0.02529
A20: -8.86241 | B20: 0.08542 | C20: -7.56897 | D20: 0.11197 | E20: -7.44724 | F20: 0.04978 | G20: -7.17922 | H20: 0.23046 | I20: -6.55045 | J20: 0.04394
A21: -8.74741 | B21: 0.01836 | C21: -7.45297 | D21: 0.19617 | E21: -7.33024 | F21: 0.01298 | G21: -7.05922 | H21: 0.03222 | I21: -6.43045 | J21: 0.11873
A22: -8.63241 | B22: 0.06639 | C22: -7.33597 | D22: 0.64769 | E22: -7.21424 | F22: 0.14032 | G22: -6.94022 | H22: 0.01292 | I22: -6.31045 | J22: 0.17066
A23: -8.51741 | B23: 0.32104 | C23: -7.21997 | D23: 0.65951 | E23: -7.09824 | F23: 0.63231 | G23: -6.82022 | H23: 0.02717 | I23: -6.19145 | J23: 0.36027
A24: -8.40241 | B24: 0.62802 | C24: -7.10397 | D24: 0.35467 | E24: -6.98224 | F24: 1.31109 | G24: -6.70122 | H24: 0.03624 | I24: -6.07145 | J24: 0.50893
A25: -8.28741 | B25: 0.76959 | C25: -6.98697 | D25: 0.32928 | E25: -6.86624 | F25: 0.93661 | G25: -6.58122 | H25: 0.04229 | I25: -5.95145 | J25: 0.29643
A26: -8.17241 | B26: 0.6333 | C26: -6.87097 | D26: 0.3756 | E26: -6.74924 | F26: 0.34964 | G26: -6.46222 | H26: 0.06429 | I26: -5.83245 | J26: 0.27375
A27: -8.05741 | B27: 0.61879 | C27: -6.75497 | D27: 0.25294 | E27: -6.63324 | F27: 0.1757 | G27: -6.34222 | H27: 0.10465 | I27: -5.71245 | J27: 0.37414
A28: -7.94241 | B28: 0.21477 | C28: -6.63797 | D28: 0.16865 | E28: -6.51724 | F28: 0.07944 | G28: -6.22322 | H28: 0.29525 | I28: -5.59345 | J28: 0.39485
A29: -7.82741 | B29: 0.03554 | C29: -6.52197 | D29: 0.1245 | E29: -6.40124 | F29: 0.05559 | G29: -6.10322 | H29: 0.30121 | I29: -5.47345 | J29: 0.48551
A30: -7.71241 | B30: 0.07709 | C30: -6.40597 | D30: 0.05038 | E30: -6.28424 | F30: 0.07166 | G30: -5.98422 | H30: 0.2625 | I30: -5.35345 | J30: 0.36789
A31: -7.59741 | B31: 0.16719 | C31: -6.28897 | D31: 0.05834 | E31: -6.16824 | F31: 0.0216 | G31: -5.86422 | H31: 0.46652 | I31: -5.23445 | J31: 0.32786
A32: -7.48241 | B32: 0.15193 | C32: -6.17297 | D32: 0.37289 | E32: -6.05224 | F32: 0.02455 | G32: -5.74522 | H32: 0.50941 | I32: -5.11445 | J32: 0.30732
A33: -7.36741 | B33: 0.09027 | C33: -6.05697 | D33: 0.51975 | E33: -5.93624 | F33: 0.27956 | G33: -5.62522 | H33: 0.55335 | I33: -4.99445 | J33: 0.427
A34: -7.25241 | B34: 0.04817 | C34: -5.93997 | D34: 0.51588 | E34: -5.81924 | F34: 0.62174 | G34: -5.50522 | H34: 0.34821 | I34: -4.87545 | J34: 0.64359
A35: -7.13741 | B35: 0.06576 | C35: -5.82397 | D35: 0.67024 | E35: -5.70324 | F35: 0.77396 | G35: -5.38622 | H35: 0.13895 | I35: -4.75545 | J35: 0.709
A36: -7.02241 | B36: 0.25116 | C36: -5.70797 | D36: 0.87634 | E36: -5.58724 | F36: 1.04309 | G36: -5.26622 | H36: 0.26737 | I36: -4.63645 | J36: 0.74854
A37: -6.90741 | B37: 0.24326 | C37: -5.59097 | D37: 1.1031 | E37: -5.47124 | F37: 0.91702 | G37: -5.14722 | H37: 0.4194 | I37: -4.51645 | J37: 0.67894
A38: -6.79241 | B38: 0.35427 | C38: -5.47497 | D38: 0.69518 | E38: -5.35424 | F38: 1.03613 | G38: -5.02722 | H38: 0.37988 | I38: -4.39645 | J38: 0.68264
A39: -6.67741 | B39: 0.31155 | C39: -5.35897 | D39: 0.4183 | E39: -5.23824 | F39: 0.98883 | G39: -4.90822 | H39: 0.39212 | I39: -4.27745 | J39: 0.83121
A40: -6.56241 | B40: 0.1304 | C40: -5.24197 | D40: 0.40203 | E40: -5.12224 | F40: 0.71674 | G40: -4.78822 | H40: 0.60641 | I40: -4.15745 | J40: 1.1143
A41: -6.44741 | B41: 0.37569 | C41: -5.12597 | D41: 0.45431 | E41: -5.00624 | F41: 0.48612 | G41: -4.66922 | H41: 0.88432 | I41: -4.03745 | J41: 1.32792
A42: -6.33241 | B42: 0.59256 | C42: -5.00997 | D42: 0.70075 | E42: -4.88924 | F42: 0.42281 | G42: -4.54922 | H42: 0.87875 | I42: -3.91845 | J42: 1.70749
A43: -6.21741 | B43: 0.4605 | C43: -4.89297 | D43: 0.88203 | E43: -4.77324 | F43: 0.73972 | G43: -4.43022 | H43: 0.70285 | I43: -3.79845 | J43: 1.51835
A44: -6.10241 | B44: 0.34919 | C44: -4.77697 | D44: 0.83192 | E44: -4.65724 | F44: 0.69099 | G44: -4.31022 | H44: 0.51845 | I44: -3.67945 | J44: 1.36394
A45: -5.98741 | B45: 0.3903 | C45: -4.66097 | D45: 1.44031 | E45: -4.54124 | F45: 0.64464 | G45: -4.19122 | H45: 0.2592 | I45: -3.55945 | J45: 1.03937
A46: -5.87241 | B46: 0.55352 | C46: -4.54397 | D46: 1.73931 | E46: -4.42424 | F46: 0.86417 | G46: -4.07122 | H46: 0.20419 | I46: -3.43945 | J46: 0.93291
A47: -5.75741 | B47: 0.47465 | C47: -4.42797 | D47: 1.50558 | E47: -4.30824 | F47: 1.00734 | G47: -3.95222 | H47: 0.25381 | I47: -3.32045 | J47: 1.04876
A48: -5.64241 | B48: 0.33713 | C48: -4.31197 | D48: 1.90141 | E48: -4.19224 | F48: 1.5058 | G48: -3.83222 | H48: 0.1607 | I48: -3.20045 | J48: 0.73921
A49: -5.52741 | B49: 0.31253 | C49: -4.19497 | D49: 1.93483 | E49: -4.07624 | F49: 1.62702 | G49: -3.71322 | H49: 0.08285 | I49: -3.08145 | J49: 0.3247
A50: -5.41241 | B50: 0.43365 | C50: -4.07897 | D50: 1.41618 | E50: -3.95924 | F50: 1.05515 | G50: -3.59322 | H50: 0.02884 | I50: -2.96145 | J50: 0.66382
A51: -5.29741 | B51: 0.66946 | C51: -3.96297 | D51: 0.90785 | E51: -3.84324 | F51: 0.98387 | G51: -3.47422 | H51: 0.01596 | I51: -2.84145 | J51: 2.09574
A52: -5.18241 | B52: 0.95787 | C52: -3.84597 | D52: 0.60023 | E52: -3.72724 | F52: 0.72769 | G52: -3.35422 | H52: 0.04524 | I52: -2.72245 | J52: 2.47392
A53: -5.06741 | B53: 1.24042 | C53: -3.72997 | D53: 0.62558 | E53: -3.61124 | F53: 0.55765 | G53: -3.23422 | H53: 0.16756 | I53: -2.60245 | J53: 3.5734
A54: -4.95241 | B54: 1.16602 | C54: -3.61397 | D54: 0.34394 | E54: -3.49424 | F54: 0.27961 | G54: -3.11522 | H54: 0.6941 | I54: -2.48245 | J54: 3.01556
A55: -4.83741 | B55: 0.93001 | C55: -3.49697 | D55: 0.14062 | E55: -3.37824 | F55: 0.14966 | G55: -2.99522 | H55: 0.96626 | I55: -2.36345 | J55: 2.3186
A56: -4.72241 | B56: 0.69913 | C56: -3.38097 | D56: 0.08649 | E56: -3.26224 | F56: 0.04446 | G56: -2.87622 | H56: 1.26024 | I56: -2.24345 | J56: 5.3084
A57: -4.60741 | B57: 0.81702 | C57: -3.26497 | D57: 0.68573 | E57: -3.14624 | F57: 0.122 | G57: -2.75622 | H57: 0.92759 | I57: -2.12445 | J57: 7.9844
A58: -4.49241 | B58: 0.88634 | C58: -3.14797 | D58: 1.46447 | E58: -3.02924 | F58: 1.37392 | G58: -2.63722 | H58: 1.34017 | I58: -2.00445 | J58: 7.9778
A59: -4.37741 | B59: 0.57525 | C59: -3.03197 | D59: 1.31142 | E59: -2.91324 | F59: 3.11363 | G59: -2.51722 | H59: 1.73939 | I59: -1.88445 | J59: 4.86694
A60: -4.26241 | B60: 0.35779 | C60: -2.91597 | D60: 2.74753 | E60: -2.79724 | F60: 2.20718 | G60: -2.39822 | H60: 0.92127 | I60: -1.76545 | J60: 3.59478
A61: -4.14741 | B61: 0.2615 | C61: -2.79897 | D61: 5.13394 | E61: -2.68124 | F61: 1.8216 | G61: -2.27822 | H61: 2.82283 | I61: -1.64545 | J61: 1.427
A62: -4.03241 | B62: 0.64474 | C62: -2.68297 | D62: 3.01394 | E62: -2.56424 | F62: 1.85302 | G62: -2.15922 | H62: 2.86313 | I62: -1.52545 | J62: 0.1341
A63: -3.91741 | B63: 1.9926 | C63: -2.56697 | D63: 0.59562 | E63: -2.44824 | F63: 1.73271 | G63: -2.03922 | H63: 1.87252 | I63: -1.40645 | J63: 0.00138
A64: -3.80241 | B64: 2.65067 | C64: -2.44997 | D64: 0.79818 | E64: -2.33224 | F64: 0.49226 | G64: -1.92022 | H64: 3.0108 | I64: -1.28645 | J64: 0
A65: -3.68741 | B65: 2.55934 | C65: -2.33397 | D65: 1.29701 | E65: -2.21624 | F65: 0.19361 | G65: -1.80022 | H65: 1.71459 | I65: -1.16745 | J65: 0.00235
A66: -3.57241 | B66: 1.87324 | C66: -2.21797 | D66: 1.00028 | E66: -2.09924 | F66: 0.13915 | G66: -1.68122 | H66: 0.29316 | I66: -1.04745 | J66: 0.1046
A67: -3.45741 | B67: 1.59542 | C67: -2.10097 | D67: 1.05521 | E67: -1.98324 | F67: 1.12377 | G67: -1.56122 | H67: 0.00874 | I67: -0.92745 | J67: 0.57218
A68: -3.34241 | B68: 1.68859 | C68: -1.98497 | D68: 0.35505 | E68: -1.86724 | F68: 4.84916 | G68: -1.44222 | H68: 0.00833 | I68: -0.80845 | J68: 1.12096
A69: -3.22741 | B69: 1.82453 | C69: -1.86897 | D69: 2.19343 | E69: -1.75124 | F69: 7.06764 | G69: -1.32222 | H69: 0.04668 | I69: -0.68845 | J69: 1.85788
A70: -3.11241 | B70: 3.04103 | C70: -1.75197 | D70: 6.44879 | E70: -1.63424 | F70: 5.24545 | G70: -1.20322 | H70: 0.04721 | I70: -0.56845 | J70: 3.67555
A71: -2.99741 | B71: 4.98182 | C71: -1.63597 | D71: 6.52173 | E71: -1.51824 | F71: 5.00881 | G71: -1.08322 | H71: 0.01911 | I71: -0.44945 | J71: 2.24099
A72: -2.88241 | B72: 7.07664 | C72: -1.51997 | D72: 3.2075 | E72: -1.40224 | F72: 3.10757 | G72: -0.96322 | H72: 0.02439 | I72: -0.32945 | J72: 0.24779
A73: -2.76741 | B73: 4.10227 | C73: -1.40297 | D73: 0.9481 | E73: -1.28624 | F73: 0.79427 | G73: -0.84422 | H73: 0.04563 | I73: -0.21045 | J73: 0.02483
A74: -2.65241 | B74: 0.92562 | C74: -1.28697 | D74: 0.45631 | E74: -1.16924 | F74: 0.41494 | G74: -0.72422 | H74: 0.02706 | I74: -0.09045 | J74: 0.00274
A75: -2.53741 | B75: 0.41463 | C75: -1.17097 | D75: 0.30333 | E75: -1.05324 | F75: 0.54901 | G75: -0.60522 | H75: 0.29341 | I75: 0.02955 | J75: 1.20E-04
A76: -2.42241 | B76: 0.74509 | C76: -1.05397 | D76: 1.39145 | E76: -0.93724 | F76: 0.43018 | G76: -0.48522 | H76: 1.54159 | I76: 0.14855 | J76: 0
A77: -2.30741 | B77: 2.38861 | C77: -0.93797 | D77: 2.22325 | E77: -0.82124 | F77: 0.09721 | G77: -0.36622 | H77: 0.84188 | I77: 0.26855 | J77: 0
A78: -2.19241 | B78: 3.04503 | C78: -0.82197 | D78: 0.91665 | E78: -0.70424 | F78: 0.252 | G78: -0.24622 | H78: 0.0441 | I78: 0.38855 | J78: 0
A79: -2.07741 | B79: 1.80037 | C79: -0.70497 | D79: 0.17856 | E79: -0.58824 | F79: 1.81153 | G79: -0.12722 | H79: 1.80E-04 | I79: 0.50755 | J79: 0
A80: -1.96241 | B80: 2.35977 | C80: -0.58897 | D80: 0.01347 | E80: -0.47224 | F80: 2.70111 | G80: -0.00722 | H80: 0 | I80: 0.62755 | J80: 0
A81: -1.84741 | B81: 2.25577 | C81: -0.47297 | D81: 1.40E-04 | E81: -0.35624 | F81: 1.04392 | G81: 0.11178 | H81: 0 | I81: 0.74655 | J81: 0
A82: -1.73241 | B82: 2.30846 | C82: -0.35597 | D82: 0 | E82: -0.24024 | F82: 0.06239 | G82: 0.23178 | H82: 0 | I82: 0.86655 | J82: 0
A83: -1.61741 | B83: 0.39079 | C83: -0.23997 | D83: 0 | E83: -0.12324 | F83: 3.70E-04 | G83: 0.35078 | H83: 0 | I83: 0.98655 | J83: 0
A84: -1.50241 | B84: 0.00696 | C84: -0.12397 | D84: 0 | E84: -0.00724 | F84: 0 | G84: 0.47078 | H84: 0 | I84: 1.10555 | J84: 0
A85: -1.38741 | B85: 1.00E-05 | C85: -0.00697 | D85: 0 | E85: 0.10876 | F85: 0 | G85: 0.58978 | H85: 0 | I85: 1.22555 | J85: 0
A86: -1.27241 | B86: 0 | C86: 0.10903 | D86: 0 | E86: 0.22476 | F86: 0 | G86: 0.70978 | H86: 0 | I86: 1.34555 | J86: 0
A87: -1.15741 | B87: 0 | C87: 0.22503 | D87: 0 | E87: 0.34176 | F87: 0 | G87: 0.82878 | H87: 0 | I87: 1.46455 | J87: 0
A88: -1.04241 | B88: 1.00E-05 | C88: 0.34203 | D88: 0 | E88: 0.45776 | F88: 0 | G88: 0.94878 | H88: 0 | I88: 1.58455 | J88: 0
A89: -0.92741 | B89: 0.00378 | C89: 0.45803 | D89: 0 | E89: 0.57376 | F89: 0 | G89: 1.06778 | H89: 2.00E-05 | I89: 1.70355 | J89: 0
A90: -0.81241 | B90: 0.13212 | C90: 0.57403 | D90: 0 | E90: 0.68976 | F90: 0 | G90: 1.18778 | H90: 0.00864 | I90: 1.82355 | J90: 0
A91: -0.69741 | B91: 0.50083 | C91: 0.69103 | D91: 0 | E91: 0.80676 | F91: 0 | G91: 1.30778 | H91: 0.25725 | I91: 1.94355 | J91: 0
A92: -0.58241 | B92: 0.80441 | C92: 0.80703 | D92: 0 | E92: 0.92276 | F92: 0 | G92: 1.42678 | H92: 0.69983 | I92: 2.06255 | J92: 0
A93: -0.46741 | B93: 2.24524 | C93: 0.92303 | D93: 0 | E93: 1.03876 | F93: 0 | G93: 1.54678 | H93: 0.35265 | I93: 2.18255 | J93: 0
A94: -0.35241 | B94: 1.31931 | C94: 1.04003 | D94: 0 | E94: 1.15476 | F94: 0 | G94: 1.66578 | H94: 1.67076 | I94: 2.30255 | J94: 1.70E-04
A95: -0.23741 | B95: 0.12346 | C95: 1.15603 | D95: 0 | E95: 1.27176 | F95: 0 | G95: 1.78578 | H95: 1.91435 | I95: 2.42155 | J95: 0.00545
A96: -0.12241 | B96: 0.00152 | C96: 1.27203 | D96: 0 | E96: 1.38776 | F96: 0 | G96: 1.90478 | H96: 0.24141 | I96: 2.54155 | J96: 0.02007
A97: -0.00741 | B97: 0 | C97: 1.38903 | D97: 0 | E97: 1.50376 | F97: 0 | G97: 2.02478 | H97: 0.0051 | I97: 2.66055 | J97: 0.05448
A98: 0.10759 | B98: 0 | C98: 1.50503 | D98: 0 | E98: 1.61976 | F98: 0 | G98: 2.14378 | H98: 0.01785 | I98: 2.78055 | J98: 0.12386
A99: 0.22259 | B99: 0 | C99: 1.62103 | D99: 0 | E99: 1.73676 | F99: 0 | G99: 2.26378 | H99: 0.01443 | I99: 2.90055 | J99: 0.03714
A100: 0.33759 | B100: 0 | C100: 1.73803 | D100: 0 | E100: 1.85276 | F100: 0 | G100: 2.38278 | H100: 0.02968 | I100: 3.01955 | J100: 0.00481
A101: 0.45259 | B101: 0 | C101: 1.85403 | D101: 2.00E-05 | E101: 1.96876 | F101: 9.20E-04 | G101: 2.50278 | H101: 0.11961 | I101: 3.13955 | J101: 0.0129
A102: 0.56759 | B102: 0 | C102: 1.97003 | D102: 0.00789 | E102: 2.08476 | F102: 0.06914 | G102: 2.62178 | H102: 0.06233 | I102: 3.25955 | J102: 0.02648
A103: 0.68259 | B103: 0 | C103: 2.08703 | D103: 0.23397 | E103: 2.20176 | F103: 0.58436 | G103: 2.74178 | H103: 0.05254 | I103: 3.37855 | J103: 0.04
A104: 0.79759 | B104: 2.40E-04 | C104: 2.20303 | D104: 0.79522 | E104: 2.31776 | F104: 0.86146 | G104: 2.86078 | H104: 0.11445 | I104: 3.49855 | J104: 0.01789
A105: 0.91259 | B105: 0.03041 | C105: 2.31903 | D105: 0.3533 | E105: 2.43376 | F105: 0.35477 | G105: 2.98078 | H105: 0.05516 | I105: 3.61755 | J105: 8.40E-04
A106: 1.02759 | B106: 0.44291 | C106: 2.43603 | D106: 0.13728 | E106: 2.54976 | F106: 0.81583 | G106: 3.09978 | H106: 0.13911 | I106: 3.73755 | J106: 3.20E-04
A107: 1.14259 | B107: 1.31588 | C107: 2.55203 | D107: 0.92366 | E107: 2.66676 | F107: 2.35251 | G107: 3.21978 | H107: 0.09494 | I107: 3.85755 | J107: 0.00691
A108: 1.25759 | B108: 1.73928 | C108: 2.66803 | D108: 1.12052 | E108: 2.78276 | F108: 2.52809 | G108: 3.33978 | H108: 0.0163 | I108: 3.97655 | J108: 0.01901
A109: 1.37259 | B109: 1.21626 | C109: 2.78503 | D109: 0.29994 | E109: 2.89876 | F109: 1.24861 | G109: 3.45878 | H109: 0.06409 | I109: 4.09655 | J109: 0.02448
A110: 1.48759 | B110: 0.47837 | C110: 2.90103 | D110: 0.41041 | E110: 3.01476 | F110: 0.27446 | G110: 3.57878 | H110: 0.04924 | I110: 4.21655 | J110: 0.06073
A111: 1.60259 | B111: 0.39245 | C111: 3.01703 | D111: 1.4897 | E111: 3.13176 | F111: 0.26701 | G111: 3.69778 | H111: 0.04072 | I111: 4.33555 | J111: 0.05372
A112: 1.71759 | B112: 0.60524 | C112: 3.13403 | D112: 1.73351 | E112: 3.24776 | F112: 0.65909 | G112: 3.81778 | H112: 0.02703 | I112: 4.45555 | J112: 0.04067
A113: 1.83259 | B113: 0.17662 | C113: 3.25003 | D113: 2.07065 | E113: 3.36376 | F113: 0.82573 | G113: 3.93678 | H113: 0.01593 | I113: 4.57455 | J113: 0.04471
A114: 1.94759 | B114: 0.08325 | C114: 3.36603 | D114: 0.96801 | E114: 3.47976 | F114: 0.26267 | G114: 4.05678 | H114: 0.03788 | I114: 4.69455 | J114: 0.05961
A115: 2.06259 | B115: 0.23804 | C115: 3.48303 | D115: 0.52655 | E115: 3.59676 | F115: 0.33666 | G115: 4.17578 | H115: 0.02801 | I115: 4.81455 | J115: 0.07793
A116: 2.17759 | B116: 0.26589 | C116: 3.59903 | D116: 0.9249 | E116: 3.71276 | F116: 0.42165 | G116: 4.29578 | H116: 0.01692 | I116: 4.93355 | J116: 0.09852
A117: 2.29259 | B117: 0.12953 | C117: 3.71503 | D117: 0.48795 | E117: 3.82876 | F117: 0.30686 | G117: 4.41478 | H117: 0.05128 | I117: 5.05355 | J117: 0.11231
A118: 2.40759 | B118: 0.14974 | C118: 3.83203 | D118: 0.28549 | E118: 3.94476 | F118: 0.32476 | G118: 4.53478 | H118: 0.14427 | I118: 5.17355 | J118: 0.12436
A119: 2.52259 | B119: 0.11442 | C119: 3.94803 | D119: 0.11537 | E119: 4.06176 | F119: 0.21519 | G119: 4.65378 | H119: 0.18527 | I119: 5.29255 | J119: 0.13941
A120: 2.63759 | B120: 0.13287 | C120: 4.06403 | D120: 0.10899 | E120: 4.17776 | F120: 0.12006 | G120: 4.77378 | H120: 0.08312 | I120: 5.41255 | J120: 0.20027
A121: 2.75259 | B121: 0.07226 | C121: 4.18103 | D121: 0.07624 | E121: 4.29376 | F121: 0.03378 | G121: 4.89278 | H121: 0.05009 | I121: 5.53155 | J121: 0.1686
A122: 2.86759 | B122: 0.05346 | C122: 4.29703 | D122: 0.02603 | E122: 4.40976 | F122: 0.05561 | G122: 5.01278 | H122: 0.07625 | I122: 5.65155 | J122: 0.06239
A123: 2.98259 | B123: 0.07748 | C123: 4.41303 | D123: 0.05653 | E123: 4.52676 | F123: 0.05609 | G123: 5.13178 | H123: 0.10604 | I123: 5.77155 | J123: 0.00947
A124: 3.09759 | B124: 0.04412 | C124: 4.53003 | D124: 0.15758 | E124: 4.64276 | F124: 0.05179 | G124: 5.25178 | H124: 0.04763 | I124: 5.89055 | J124: 0.00543
A125: 3.21259 | B125: 0.02402 | C125: 4.64603 | D125: 0.4057 | E125: 4.75876 | F125: 0.12245 | G125: 5.37078 | H125: 0.01973 | I125: 6.01055 | J125: 0.00756
A126: 3.32759 | B126: 0.03205 | C126: 4.76203 | D126: 0.46469 | E126: 4.87476 | F126: 0.28623 | G126: 5.49078 | H126: 0.00958 | I126: 6.13055 | J126: 0.00566
A127: 3.44259 | B127: 0.08969 | C127: 4.87903 | D127: 0.26341 | E127: 4.99176 | F127: 0.334 | G127: 5.61078 | H127: 0.00602 | I127: 6.24955 | J127: 0.01071
A128: 3.55859 | B128: 0.12944 | C128: 4.99503 | D128: 0.2411 | E128: 5.10776 | F128: 0.22748 | G128: 5.72978 | H128: 0.00685 | I128: 6.36955 | J128: 0.02558
A129: 3.67359 | B129: 0.16602 | C129: 5.11103 | D129: 0.25386 | E129: 5.22376 | F129: 0.12541 | G129: 5.84978 | H129: 0.00685 | I129: 6.48855 | J129: 0.05915
A130: 3.78859 | B130: 0.19662 | C130: 5.22803 | D130: 0.08029 | E130: 5.33976 | F130: 0.15907 | G130: 5.96878 | H130: 0.02456 | I130: 6.60855 | J130: 0.09059
A131: 3.90359 | B131: 0.16204 | C131: 5.34403 | D131: 0.03746 | E131: 5.45676 | F131: 0.23369 | G131: 6.08878 | H131: 0.04599 | I131: 6.72855 | J131: 0.06082
A132: 4.01859 | B132: 0.11373 | C132: 5.46003 | D132: 0.0335 | E132: 5.57276 | F132: 0.15052 | G132: 6.20778 | H132: 0.0143 | I132: 6.84755 | J132: 0.02094
A133: 4.13359 | B133: 0.16426 | C133: 5.57703 | D133: 0.01589 | E133: 5.68876 | F133: 0.06967 | G133: 6.32778 | H133: 0.00687 | I133: 6.96755 | J133: 0.01715
A134: 4.24859 | B134: 0.12127 | C134: 5.69303 | D134: 0.00193 | E134: 5.80476 | F134: 0.04042 | G134: 6.44678 | H134: 0.01392 | I134: 7.08755 | J134: 0.01244
A135: 4.36359 | B135: 0.06651 | C135: 5.80903 | D135: 0.0038 | E135: 5.92076 | F135: 0.0175 | G135: 6.56678 | H135: 0.0088 | I135: 7.20655 | J135: 0.01161
A136: 4.47859 | B136: 0.06398 | C136: 5.92603 | D136: 0.01561 | E136: 6.03776 | F136: 0.01892 | G136: 6.68578 | H136: 0.0054 | I136: 7.32655 | J136: 0.01487
A137: 4.59359 | B137: 0.03033 | C137: 6.04203 | D137: 0.04041 | E137: 6.15376 | F137: 0.01593 | G137: 6.80578 | H137: 0.00484 | I137: 7.44555 | J137: 0.01707
A138: 4.70859 | B138: 0.01358 | C138: 6.15803 | D138: 0.12184 | E138: 6.26976 | F138: 0.01865 | G138: 6.92478 | H138: 0.00476 | I138: 7.56555 | J138: 0.01458
A139: 4.82359 | B139: 0.01088 | C139: 6.27503 | D139: 0.07991 | E139: 6.38576 | F139: 0.06678 | G139: 7.04478 | H139: 0.00484 | I139: 7.68555 | J139: 0.01434
A140: 4.93859 | B140: 0.01713 | C140: 6.39103 | D140: 0.03338 | E140: 6.50276 | F140: 0.09301 | G140: 7.16378 | H140: 0.00441 | I140: 7.80455 | J140: 0.01537
A141: 5.05359 | B141: 0.04836 | C141: 6.50703 | D141: 0.03595 | E141: 6.61876 | F141: 0.03752 | G141: 7.28378 | H141: 0.00403 | I141: 7.92455 | J141: 0.01708
A142: 5.16859 | B142: 0.03861 | C142: 6.62403 | D142: 0.02096 | E142: 6.73476 | F142: 0.02127 | G142: 7.40278 | H142: 0.00418 | I142: 8.04455 | J142: 0.01761
A143: 5.28359 | B143: 0.02598 | C143: 6.74003 | D143: 0.0143 | E143: 6.85076 | F143: 0.02528 | G143: 7.52278 | H143: 0.00395 | I143: 8.16355 | J143: 0.021
A144: 5.39859 | B144: 0.05139 | C144: 6.85603 | D144: 0.01511 | E144: 6.96776 | F144: 0.01393 | G144: 7.64178 | H144: 0.00522 | I144: 8.28355 | J144: 0.0301
A145: 5.51359 | B145: 0.04763 | C145: 6.97303 | D145: 0.01697 | E145: 7.08376 | F145: 0.00896 | G145: 7.76178 | H145: 0.00639 | I145: 8.40255 | J145: 0.03411
A146: 5.62859 | B146: 0.02019 | C146: 7.08903 | D146: 0.012 | E146: 7.19976 | F146: 0.00796 | G146: 7.88178 | H146: 0.00917 | I146: 8.52255 | J146: 0.03176
A147: 5.74359 | B147: 0.01032 | C147: 7.20503 | D147: 0.00787 | E147: 7.31576 | F147: 0.01012 | G147: 8.00078 | H147: 0.01232 | I147: 8.64255 | J147: 0.03244
A148: 5.85859 | B148: 0.00799 | C148: 7.32203 | D148: 0.00826 | E148: 7.43276 | F148: 0.01119 | G148: 8.12078 | H148: 0.01446 | I148: 8.76155 | J148: 0.0255
A149: 5.97359 | B149: 0.00584 | C149: 7.43803 | D149: 0.01176 | E149: 7.54876 | F149: 0.00963 | G149: 8.23978 | H149: 0.01295 | I149: 8.88155 | J149: 0.02025
A150: 6.08859 | B150: 0.00729 | C150: 7.55403 | D150: 0.02356 | E150: 7.66476 | F150: 0.01013 | G150: 8.35978 | H150: 0.01302 | I150: 9.00155 | J150: 0.02455
A151: 6.20359 | B151: 0.00899 | C151: 7.67103 | D151: 0.03655 | E151: 7.78076 | F151: 0.00996 | G151: 8.47878 | H151: 0.01637 | I151: 9.12055 | J151: 0.02663
A152: 6.31859 | B152: 0.01181 | C152: 7.78703 | D152: 0.03999 | E152: 7.89776 | F152: 0.01068 | G152: 8.59878 | H152: 0.01778 | I152: 9.24055 | J152: 0.02413
A153: 6.43359 | B153: 0.01541 | C153: 7.90303 | D153: 0.02781 | E153: 8.01376 | F153: 0.0116 | G153: 8.71778 | H153: 0.01342 | I153: 9.35955 | J153: 0.03018
A154: 6.54859 | B154: 0.01624 | C154: 8.02003 | D154: 0.02568 | E154: 8.12976 | F154: 0.01372 | G154: 8.83778 | H154: 0.00891 | I154: 9.47955 | J154: 0.04177
A155: 6.66359 | B155: 0.01727 | C155: 8.13603 | D155: 0.03632 | E155: 8.24576 | F155: 0.02039 | G155: 8.95678 | H155: 0.0096 | I155: 9.59955 | J155: 0.04785
A156: 6.77859 | B156: 0.0207 | C156: 8.25203 | D156: 0.03358 | E156: 8.36276 | F156: 0.02681 | G156: 9.07678 | H156: 0.00945 | I156: 9.71855 | J156: 0.06438
A157: 6.89359 | B157: 0.01925 | C157: 8.36903 | D157: 0.03034 | E157: 8.47876 | F157: 0.02562 | G157: 9.19578 | H157: 0.00956 | I157: 9.83855 | J157: 0.07565
A158: 7.00859 | B158: 0.01691 | C158: 8.48503 | D158: 0.03343 | E158: 8.59476 | F158: 0.02313 | G158: 9.31578 | H158: 0.01028 | I158: 9.95855 | J158: 0.05989
A159: 7.12359 | B159: 0.01162 | C159: 8.60103 | D159: 0.03076 | E159: 8.71076 | F159: 0.02327 | G159: 9.43478 | H159: 0.01076 | I159: 10.07755 | J159: 0.05536
A160: 7.23859 | B160: 0.00966 | C160: 8.71803 | D160: 0.0272 | E160: 8.82776 | F160: 0.02631 | G160: 9.55478 | H160: 0.01244 | I160: 10.19755 | J160: 0.0664
A161: 7.35359 | B161: 0.01182 | C161: 8.83403 | D161: 0.02635 | E161: 8.94376 | F161: 0.02143 | G161: 9.67378 | H161: 0.01321 | I161: 10.31655 | J161: 0.05981
A162: 7.46859 | B162: 0.0189 | C162: 8.95003 | D162: 0.029 | E162: 9.05976 | F162: 0.01929 | G162: 9.79378 | H162: 0.01339 | I162: 10.43655 | J162: 0.04833
A163: 7.58359 | B163: 0.02938 | C163: 9.06703 | D163: 0.02693 | E163: 9.17576 | F163: 0.01839 | G163: 9.91278 | H163: 0.01586 | I163: 10.55655 | J163: 0.04428
A164: 7.69859 | B164: 0.03547 | C164: 9.18303 | D164: 0.02131 | E164: 9.29276 | F164: 0.01661 | G164: 10.03278 | H164: 0.02291 | I164: 10.67555 | J164: 0.03484
A165: 7.81359 | B165: 0.03752 | C165: 9.29903 | D165: 0.0271 | E165: 9.40876 | F165: 0.01302 | G165: 10.15278 | H165: 0.02798 | I165: 10.79555 | J165: 0.02567
A166: 7.92859 | B166: 0.03366 | C166: 9.41603 | D166: 0.03692 | E166: 9.52476 | F166: 0.00864 | G166: 10.27178 | H166: 0.03657 | I166: 10.91455 | J166: 0.02457
A167: 8.04359 | B167: 0.02585 | C167: 9.53203 | D167: 0.04258 | E167: 9.64076 | F167: 0.0105 | G167: 10.39178 | H167: 0.04004 | I167: 11.03455 | J167: 0.02111
A168: 8.15859 | B168: 0.02996 | C168: 9.64903 | D168: 0.04182 | E168: 9.75776 | F168: 0.01622 | G168: 10.51078 | H168: 0.03345 | I168: 11.15455 | J168: 0.018
A169: 8.27359 | B169: 0.03629 | C169: 9.76503 | D169: 0.04548 | E169: 9.87376 | F169: 0.01891 | G169: 10.63078 | H169: 0.03155 | I169: 11.27355 | J169: 0.01304
A170: 8.38859 | B170: 0.03152 | C170: 9.88103 | D170: 0.06509 | E170: 9.98976 | F170: 0.01732 | G170: 10.74978 | H170: 0.0322 | I170: 11.39355 | J170: 0.01035
A171: 8.50359 | B171: 0.02912 | C171: 9.99803 | D171: 0.07506 | E171: 10.10576 | F171: 0.019 | G171: 10.86978 | H171: 0.03067 | I171: 11.51355 | J171: 0.00824
A172: 8.61859 | B172: 0.03516 | C172: 10.11403 | D172: 0.07146 | E172: 10.22276 | F172: 0.01954 | G172: 10.98878 | H172: 0.02987 | I172: 11.63255 | J172: 0.00813
A173: 8.73359 | B173: 0.02644 | C173: 10.23003 | D173: 0.04735 | E173: 10.33876 | F173: 0.01692 | G173: 11.10878 | H173: 0.0257 | I173: 11.75255 | J173: 0.00553
A174: 8.84859 | B174: 0.00923 | C174: 10.34703 | D174: 0.02221 | E174: 10.45476 | F174: 0.01251 | G174: 11.22778 | H174: 0.01305 | I174: 11.87155 | J174: 0.0028
A175: 8.96359 | B175: 6.80E-04 | C175: 10.46303 | D175: 0.00337 | E175: 10.57076 | F175: 0.00447 | G175: 11.34778 | H175: 0.00241 | I175: 11.99155 | J175: 0.00112
A176: 9.07859 | B176: 0 | C176: 10.57903 | D176: 8.00E-05 | E176: 10.68776 | F176: 4.90E-04 | G176: 11.46678 | H176: 8.00E-05 | I176: 12.11155 | J176: 1.50E-04
A177: 9.19359 | B177: 0 | C177: 10.69603 | D177: 0 | E177: 10.80376 | F177: 0 | G177: 11.58678 | H177: 0 | I177: 12.23055 | J177: 0
A178: 9.30859 | B178: 0 | C178: 10.81203 | D178: 0 | E178: 10.91976 | F178: 0 | G178: 11.70578 | H178: 0 | I178: 12.35055 | J178: 0
A179: 9.42359 | B179: 0 | C179: 10.92803 | D179: 0 | E179: 11.03576 | F179: 0 | G179: 11.82578 | H179: 0 | I179: 12.47055 | J179: 0
A180: 9.53859 | B180: 0 | C180: 11.04503 | D180: 0 | E180: 11.15276 | F180: 0 | G180: 11.94478 | H180: 0 | I180: 12.58955 | J180: 0
A181: 9.65359 | B181: 0 | C181: 11.16103 | D181: 0 | E181: 11.26876 | F181: 0 | G181: 12.06478 | H181: 0 | I181: 12.70955 | J181: 0
A182: 9.76859 | B182: 0 | C182: 11.27703 | D182: 0 | E182: 11.38476 | F182: 0 | G182: 12.18378 | H182: 0 | I182: 12.82855 | J182: 0
A183: 9.88359 | B183: 0 | C183: 11.39403 | D183: 0 | E183: 11.50076 | F183: 0 | G183: 12.30378 | H183: 0 | I183: 12.94855 | J183: 0
A184: 9.99859 | B184: 0 | C184: 11.51003 | D184: 0 | E184: 11.61776 | F184: 0 | G184: 12.42378 | H184: 0 | I184: 13.06855 | J184: 0
A185: 10.11359 | B185: 0 | C185: 11.62603 | D185: 0 | E185: 11.73376 | F185: 0 | G185: 12.54278 | H185: 0 | I185: 13.18755 | J185: 0
A186: 10.22859 | B186: 0 | C186: 11.74303 | D186: 0 | E186: 11.84976 | F186: 0 | G186: 12.66278 | H186: 0 | I186: 13.30755 | J186: 0
A187: 10.34359 | B187: 0 | C187: 11.85903 | D187: 0 | E187: 11.96576 | F187: 0 | G187: 12.78178 | H187: 0 | I187: 13.42755 | J187: 0
A188: 10.45859 | B188: 0 | C188: 11.97503 | D188: 0 | E188: 12.08276 | F188: 0 | G188: 12.90178 | H188: 0 | I188: 13.54655 | J188: 0

Sheet Fig4d
A1: M-O | B1: mn-o | D1: fe-o | F1: co-o | H1: ni-o | J1: cu-o | M1: Li-O | N1: mn-Li-o | O1: Start | P1: fe-o | Q1: Start | R1: co-o | S1: Start | T1: ni-o | U1: Start | V1: cu-o
A2: -7.627 | B2: 0.154 | C2: -7.439 | D2: 0.015 | E2: -6.844 | F2: 0.008 | G2: -7.299 | H2: 0.024 | I2: -7.997 | J2: -0.001 | M2: -7.627 | N2: -0.035 | O2: -7.439 | P2: 0.009 | Q2: -6.844 | R2: 0.001 | S2: -7.299 | T2: 0.007 | U2: -7.997 | V2: 0.226
A3: -7.577 | B3: 0.176 | C3: -7.389 | D3: 0.013 | E3: -6.794 | F3: 0.006 | G3: -7.249 | H3: 0.023 | I3: -7.947 | J3: -0.003 | M3: -7.577 | N3: -0.038 | O3: -7.389 | P3: 0.005 | Q3: -6.794 | R3: 0.003 | S3: -7.249 | T3: 0.008 | U3: -7.947 | V3: 0.211
A4: -7.527 | B4: 0.181 | C4: -7.338 | D4: 0.01 | E4: -6.744 | F4: 0.006 | G4: -7.198 | H4: 0.019 | I4: -7.897 | J4: -0.002 | M4: -7.527 | N4: -0.038 | O4: -7.338 | P4: 0.002 | Q4: -6.744 | R4: 0.005 | S4: -7.198 | T4: 0.008 | U4: -7.897 | V4: 0.19
A5: -7.477 | B5: 0.169 | C5: -7.288 | D5: 0.009 | E5: -6.693 | F5: 0.007 | G5: -7.148 | H5: 0.014 | I5: -7.847 | J5: -0.001 | M5: -7.477 | N5: -0.034 | O5: -7.288 | P5: 0 | Q5: -6.693 | R5: 0.007 | S5: -7.148 | T5: 0.006 | U5: -7.847 | V5: 0.165
A6: -7.427 | B6: 0.146 | C6: -7.238 | D6: 0.012 | E6: -6.643 | F6: 0.011 | G6: -7.098 | H6: 0.008 | I6: -7.797 | J6: 0 | M6: -7.427 | N6: -0.027 | O6: -7.238 | P6: 0 | Q6: -6.643 | R6: 0.012 | S6: -7.098 | T6: 0.003 | U6: -7.797 | V6: 0.141
A7: -7.377 | B7: 0.122 | C7: -7.188 | D7: 0.021 | E7: -6.593 | F7: 0.017 | G7: -7.048 | H7: 0.002 | I7: -7.746 | J7: 0.001 | M7: -7.377 | N7: -0.02 | O7: -7.188 | P7: 0 | Q7: -6.593 | R7: 0.018 | S7: -7.048 | T7: 0.001 | U7: -7.746 | V7: 0.121
A8: -7.326 | B8: 0.107 | C8: -7.138 | D8: 0.037 | E8: -6.543 | F8: 0.025 | G8: -6.998 | H8: -0.002 | I8: -7.696 | J8: 0.002 | M8: -7.326 | N8: -0.012 | O8: -7.138 | P8: 0 | Q8: -6.543 | R8: 0.024 | S8: -6.998 | T8: 0 | U8: -7.696 | V8: 0.106
A9: -7.276 | B9: 0.111 | C9: -7.088 | D9: 0.063 | E9: -6.493 | F9: 0.034 | G9: -6.948 | H9: -0.006 | I9: -7.646 | J9: 0.003 | M9: -7.276 | N9: -0.006 | O9: -7.088 | P9: 0 | Q9: -6.493 | R9: 0.031 | S9: -6.948 | T9: 0 | U9: -7.646 | V9: 0.095
A10: -7.226 | B10: 0.135 | C10: -7.038 | D10: 0.095 | E10: -6.443 | F10: 0.045 | G10: -6.898 | H10: -0.008 | I10: -7.596 | J10: 0.004 | M10: -7.226 | N10: 0 | O10: -7.038 | P10: 0 | Q10: -6.443 | R10: 0.038 | S10: -6.898 | T10: 0 | U10: -7.596 | V10: 0.085
A11: -7.176 | B11: 0.177 | C11: -6.987 | D11: 0.13 | E11: -6.393 | F11: 0.056 | G11: -6.847 | H11: -0.007 | I11: -7.546 | J11: 0.004 | M11: -7.176 | N11: 0.007 | O11: -6.987 | P11: 0 | Q11: -6.393 | R11: 0.042 | S11: -6.847 | T11: 0 | U11: -7.546 | V11: 0.072
A12: -7.126 | B12: 0.226 | C12: -6.937 | D12: 0.162 | E12: -6.343 | F12: 0.067 | G12: -6.797 | H12: -0.002 | I12: -7.496 | J12: 0.003 | M12: -7.126 | N12: 0.016 | O12: -6.937 | P12: 0 | Q12: -6.343 | R12: 0.046 | S12: -6.797 | T12: 0.002 | U12: -7.496 | V12: 0.056
A13: -7.076 | B13: 0.27 | C13: -6.887 | D13: 0.18 | E13: -6.292 | F13: 0.08 | G13: -6.747 | H13: 0.008 | I13: -7.446 | J13: 0.003 | M13: -7.076 | N13: 0.03 | O13: -6.887 | P13: 0 | Q13: -6.292 | R13: 0.048 | S13: -6.747 | T13: 0.005 | U13: -7.446 | V13: 0.038
A14: -7.026 | B14: 0.295 | C14: -6.837 | D14: 0.182 | E14: -6.242 | F14: 0.094 | G14: -6.697 | H14: 0.027 | I14: -7.395 | J14: 0.003 | M14: -7.026 | N14: 0.049 | O14: -6.837 | P14: 0.001 | Q14: -6.242 | R14: 0.049 | S14: -6.697 | T14: 0.01 | U14: -7.395 | V14: 0.022
A15: -6.976 | B15: 0.293 | C15: -6.787 | D15: 0.166 | E15: -6.192 | F15: 0.11 | G15: -6.647 | H15: 0.056 | I15: -7.345 | J15: 0.002 | M15: -6.976 | N15: 0.072 | O15: -6.787 | P15: 0.002 | Q15: -6.192 | R15: 0.048 | S15: -6.647 | T15: 0.017 | U15: -7.345 | V15: 0.01
A16: -6.925 | B16: 0.264 | C16: -6.737 | D16: 0.137 | E16: -6.142 | F16: 0.128 | G16: -6.597 | H16: 0.095 | I16: -7.295 | J16: 0.002 | M16: -6.925 | N16: 0.096 | O16: -6.737 | P16: 0.004 | Q16: -6.142 | R16: 0.046 | S16: -6.597 | T16: 0.027 | U16: -7.295 | V16: 0.003
A17: -6.875 | B17: 0.216 | C17: -6.687 | D17: 0.102 | E17: -6.092 | F17: 0.15 | G17: -6.547 | H17: 0.142 | I17: -7.245 | J17: 0.003 | M17: -6.875 | N17: 0.117 | O17: -6.687 | P17: 0.007 | Q17: -6.092 | R17: 0.041 | S17: -6.547 | T17: 0.037 | U17: -7.245 | V17: 0
A18: -6.825 | B18: 0.162 | C18: -6.636 | D18: 0.07 | E18: -6.042 | F18: 0.175 | G18: -6.496 | H18: 0.188 | I18: -7.195 | J18: 0.003 | M18: -6.825 | N18: 0.128 | O18: -6.636 | P18: 0.01 | Q18: -6.042 | R18: 0.034 | S18: -6.496 | T18: 0.047 | U18: -7.195 | V18: 0
A19: -6.775 | B19: 0.111 | C19: -6.586 | D19: 0.046 | E19: -5.992 | F19: 0.199 | G19: -6.446 | H19: 0.227 | I19: -7.145 | J19: 0.004 | M19: -6.775 | N19: 0.128 | O19: -6.586 | P19: 0.013 | Q19: -5.992 | R19: 0.027 | S19: -6.446 | T19: 0.054 | U19: -7.145 | V19: 0
A20: -6.725 | B20: 0.071 | C20: -6.536 | D20: 0.031 | E20: -5.941 | F20: 0.218 | G20: -6.396 | H20: 0.247 | I20: -7.095 | J20: 0.006 | M20: -6.725 | N20: 0.116 | O20: -6.536 | P20: 0.017 | Q20: -5.941 | R20: 0.02 | S20: -6.396 | T20: 0.055 | U20: -7.095 | V20: -0.001
A21: -6.675 | B21: 0.042 | C21: -6.486 | D21: 0.025 | E21: -5.891 | F21: 0.226 | G21: -6.346 | H21: 0.245 | I21: -7.044 | J21: 0.008 | M21: -6.675 | N21: 0.095 | O21: -6.486 | P21: 0.021 | Q21: -5.891 | R21: 0.016 | S21: -6.346 | T21: 0.05 | U21: -7.044 | V21: -0.002
A22: -6.625 | B22: 0.023 | C22: -6.436 | D22: 0.024 | E22: -5.841 | F22: 0.22 | G22: -6.296 | H22: 0.222 | I22: -6.994 | J22: 0.011 | M22: -6.625 | N22: 0.07 | O22: -6.436 | P22: 0.026 | Q22: -5.841 | R22: 0.014 | S22: -6.296 | T22: 0.04 | U22: -6.994 | V22: -0.002
A23: -6.574 | B23: 0.012 | C23: -6.386 | D23: 0.024 | E23: -5.791 | F23: 0.202 | G23: -6.246 | H23: 0.184 | I23: -6.944 | J23: 0.014 | M23: -6.574 | N23: 0.047 | O23: -6.386 | P23: 0.033 | Q23: -5.791 | R23: 0.016 | S23: -6.246 | T23: 0.03 | U23: -6.944 | V23: -0.002
A24: -6.524 | B24: 0.005 | C24: -6.336 | D24: 0.024 | E24: -5.741 | F24: 0.178 | G24: -6.196 | H24: 0.139 | I24: -6.894 | J24: 0.017 | M24: -6.524 | N24: 0.029 | O24: -6.336 | P24: 0.041 | Q24: -5.741 | R24: 0.019 | S24: -6.196 | T24: 0.021 | U24: -6.894 | V24: -0.002
A25: -6.474 | B25: 0.002 | C25: -6.286 | D25: 0.021 | E25: -5.691 | F25: 0.155 | G25: -6.146 | H25: 0.097 | I25: -6.844 | J25: 0.019 | M25: -6.474 | N25: 0.016 | O25: -6.286 | P25: 0.049 | Q25: -5.691 | R25: 0.024 | S25: -6.146 | T25: 0.015 | U25: -6.844 | V25: -0.001
A26: -6.424 | B26: 0 | C26: -6.235 | D26: 0.016 | E26: -5.641 | F26: 0.135 | G26: -6.095 | H26: 0.064 | I26: -6.794 | J26: 0.019 | M26: -6.424 | N26: 0.009 | O26: -6.235 | P26: 0.054 | Q26: -5.641 | R26: 0.027 | S26: -6.095 | T26: 0.011 | U26: -6.794 | V26: 0
A27: -6.374 | B27: 0 | C27: -6.185 | D27: 0.009 | E27: -5.59 | F27: 0.119 | G27: -6.045 | H27: 0.043 | I27: -6.744 | J27: 0.019 | M27: -6.374 | N27: 0.007 | O27: -6.185 | P27: 0.055 | Q27: -5.59 | R27: 0.028 | S27: -6.045 | T27: 0.01 | U27: -6.744 | V27: 0
A28: -6.324 | B28: -0.001 | C28: -6.135 | D28: 0.003 | E28: -5.54 | F28: 0.102 | G28: -5.995 | H28: 0.032 | I28: -6.693 | J28: 0.017 | M28: -6.324 | N28: 0.008 | O28: -6.135 | P28: 0.051 | Q28: -5.54 | R28: 0.026 | S28: -5.995 | T28: 0.011 | U28: -6.693 | V28: 0.001
A29: -6.274 | B29: -0.001 | C29: -6.085 | D29: -0.002 | E29: -5.49 | F29: 0.085 | G29: -5.945 | H29: 0.031 | I29: -6.643 | J29: 0.015 | M29: -6.274 | N29: 0.011 | O29: -6.085 | P29: 0.044 | Q29: -5.49 | R29: 0.021 | S29: -5.945 | T29: 0.011 | U29: -6.643 | V29: 0.004
A30: -6.223 | B30: -0.001 | C30: -6.035 | D30: -0.007 | E30: -5.44 | F30: 0.067 | G30: -5.895 | H30: 0.033 | I30: -6.593 | J30: 0.013 | M30: -6.223 | N30: 0.015 | O30: -6.035 | P30: 0.035 | Q30: -5.44 | R30: 0.015 | S30: -5.895 | T30: 0.012 | U30: -6.593 | V30: 0.008
A31: -6.173 | B31: -0.001 | C31: -5.985 | D31: -0.009 | E31: -5.39 | F31: 0.053 | G31: -5.845 | H31: 0.035 | I31: -6.543 | J31: 0.012 | M31: -6.173 | N31: 0.02 | O31: -5.985 | P31: 0.027 | Q31: -5.39 | R31: 0.009 | S31: -5.845 | T31: 0.012 | U31: -6.543 | V31: 0.017
A32: -6.123 | B32: -0.001 | C32: -5.935 | D32: -0.008 | E32: -5.34 | F32: 0.043 | G32: -5.795 | H32: 0.036 | I32: -6.493 | J32: 0.011 | M32: -6.123 | N32: 0.023 | O32: -5.935 | P32: 0.021 | Q32: -5.34 | R32: 0.003 | S32: -5.795 | T32: 0.011 | U32: -6.493 | V32: 0.03
A33: -6.073 | B33: 0 | C33: -5.884 | D33: -0.003 | E33: -5.29 | F33: 0.039 | G33: -5.744 | H33: 0.033 | I33: -6.443 | J33: 0.011 | M33: -6.073 | N33: 0.023 | O33: -5.884 | P33: 0.018 | Q33: -5.29 | R33: -0.001 | S33: -5.744 | T33: 0.009 | U33: -6.443 | V33: 0.048
A34: -6.023 | B34: 0 | C34: -5.834 | D34: 0.006 | E34: -5.239 | F34: 0.039 | G34: -5.694 | H34: 0.029 | I34: -6.393 | J34: 0.012 | M34: -6.023 | N34: 0.02 | O34: -5.834 | P34: 0.018 | Q34: -5.239 | R34: -0.004 | S34: -5.694 | T34: 0.008 | U34: -6.393 | V34: 0.072
A35: -5.973 | B35: 0.003 | C35: -5.784 | D35: 0.024 | E35: -5.189 | F35: 0.04 | G35: -5.644 | H35: 0.026 | I35: -6.342 | J35: 0.014 | M35: -5.973 | N35: 0.014 | O35: -5.784 | P35: 0.02 | Q35: -5.189 | R35: -0.005 | S35: -5.644 | T35: 0.006 | U35: -6.342 | V35: 0.098
A36: -5.923 | B36: 0.006 | C36: -5.734 | D36: 0.051 | E36: -5.139 | F36: 0.041 | G36: -5.594 | H36: 0.025 | I36: -6.292 | J36: 0.015 | M36: -5.923 | N36: 0.006 | O36: -5.734 | P36: 0.02 | Q36: -5.139 | R36: -0.006 | S36: -5.594 | T36: 0.003 | U36: -6.292 | V36: 0.123
A37: -5.872 | B37: 0.013 | C37: -5.684 | D37: 0.089 | E37: -5.089 | F37: 0.039 | G37: -5.544 | H37: 0.026 | I37: -6.242 | J37: 0.018 | M37: -5.872 | N37: 0 | O37: -5.684 | P37: 0.019 | Q37: -5.089 | R37: -0.005 | S37: -5.544 | T37: 0.001 | U37: -6.242 | V37: 0.142
A38: -5.822 | B38: 0.025 | C38: -5.634 | D38: 0.135 | E38: -5.039 | F38: 0.035 | G38: -5.494 | H38: 0.03 | I38: -6.192 | J38: 0.023 | M38: -5.822 | N38: -0.005 | O38: -5.634 | P38: 0.016 | Q38: -5.039 | R38: -0.004 | S38: -5.494 | T38: -0.001 | U38: -6.192 | V38: 0.151
A39: -5.772 | B39: 0.044 | C39: -5.584 | D39: 0.183 | E39: -4.989 | F39: 0.031 | G39: -5.444 | H39: 0.036 | I39: -6.142 | J39: 0.032 | M39: -5.772 | N39: -0.009 | O39: -5.584 | P39: 0.012 | Q39: -4.989 | R39: -0.003 | S39: -5.444 | T39: -0.003 | U39: -6.142 | V39: 0.15
A40: -5.722 | B40: 0.074 | C40: -5.533 | D40: 0.226 | E40: -4.939 | F40: 0.027 | G40: -5.393 | H40: 0.041 | I40: -6.092 | J40: 0.046 | M40: -5.722 | N40: -0.012 | O40: -5.533 | P40: 0.007 | Q40: -4.939 | R40: -0.002 | S40: -5.393 | T40: -0.005 | U40: -6.092 | V40: 0.139
A41: -5.672 | B41: 0.111 | C41: -5.483 | D41: 0.255 | E41: -4.888 | F41: 0.023 | G41: -5.343 | H41: 0.045 | I41: -6.042 | J41: 0.066 | M41: -5.672 | N41: -0.014 | O41: -5.483 | P41: 0.002 | Q41: -4.888 | R41: -0.002 | S41: -5.343 | T41: -0.006 | U41: -6.042 | V41: 0.118
A42: -5.622 | B42: 0.152 | C42: -5.433 | D42: 0.265 | E42: -4.838 | F42: 0.019 | G42: -5.293 | H42: 0.046 | I42: -5.992 | J42: 0.09 | M42: -5.622 | N42: -0.016 | O42: -5.433 | P42: -0.001 | Q42: -4.838 | R42: -0.002 | S42: -5.293 | T42: -0.006 | U42: -5.992 | V42: 0.093
A43: -5.572 | B43: 0.189 | C43: -5.383 | D43: 0.254 | E43: -4.788 | F43: 0.016 | G43: -5.243 | H43: 0.043 | I43: -5.941 | J43: 0.115 | M43: -5.572 | N43: -0.018 | O43: -5.383 | P43: -0.003 | Q43: -4.788 | R43: -0.003 | S43: -5.243 | T43: -0.005 | U43: -5.941 | V43: 0.067
A44: -5.521 | B44: 0.211 | C44: -5.333 | D44: 0.227 | E44: -4.738 | F44: 0.013 | G44: -5.193 | H44: 0.037 | I44: -5.891 | J44: 0.135 | M44: -5.521 | N44: -0.021 | O44: -5.333 | P44: -0.005 | Q44: -4.738 | R44: -0.004 | S44: -5.193 | T44: -0.005 | U44: -5.891 | V44: 0.044
A45: -5.471 | B45: 0.213 | C45: -5.283 | D45: 0.191 | E45: -4.688 | F45: 0.01 | G45: -5.143 | H45: 0.029 | I45: -5.841 | J45: 0.147 | M45: -5.471 | N45: -0.023 | O45: -5.283 | P45: -0.006 | Q45: -4.688 | R45: -0.005 | S45: -5.143 | T45: -0.004 | U45: -5.841 | V45: 0.026
A46: -5.421 | B46: 0.195 | C46: -5.233 | D46: 0.154 | E46: -4.638 | F46: 0.007 | G46: -5.093 | H46: 0.02 | I46: -5.791 | J46: 0.145 | M46: -5.421 | N46: -0.024 | O46: -5.233 | P46: -0.007 | Q46: -4.638 | R46: -0.006 | S46: -5.093 | T46: -0.003 | U46: -5.791 | V46: 0.015
A47: -5.371 | B47: 0.165 | C47: -5.182 | D47: 0.124 | E47: -4.588 | F47: 0.004 | G47: -5.042 | H47: 0.012 | I47: -5.741 | J47: 0.132 | M47: -5.371 | N47: -0.025 | O47: -5.182 | P47: -0.008 | Q47: -4.588 | R47: -0.007 | S47: -5.042 | T47: -0.003 | U47: -5.741 | V47: 0.009
A48: -5.321 | B48: 0.132 | C48: -5.132 | D48: 0.103 | E48: -4.537 | F48: 0.001 | G48: -4.992 | H48: 0.005 | I48: -5.691 | J48: 0.11 | M48: -5.321 | N48: -0.025 | O48: -5.132 | P48: -0.008 | Q48: -4.537 | R48: -0.008 | S48: -4.992 | T48: -0.003 | U48: -5.691 | V48: 0.006
A49: -5.271 | B49: 0.106 | C49: -5.082 | D49: 0.091 | E49: -4.487 | F49: 0 | G49: -4.942 | H49: 0 | I49: -5.641 | J49: 0.084 | M49: -5.271 | N49: -0.024 | O49: -5.082 | P49: -0.008 | Q49: -4.487 | R49: -0.008 | S49: -4.942 | T49: -0.002 | U49: -5.641 | V49: 0.005
A50: -5.221 | B50: 0.092 | C50: -5.032 | D50: 0.085 | E50: -4.437 | F50: -0.002 | G50: -4.892 | H50: -0.004 | I50: -5.59 | J50: 0.06 | M50: -5.221 | N50: -0.022 | O50: -5.032 | P50: -0.008 | Q50: -4.437 | R50: -0.007 | S50: -4.892 | T50: -0.002 | U50: -5.59 | V50: 0.004
A51: -5.171 | B51: 0.087 | C51: -4.982 | D51: 0.081 | E51: -4.387 | F51: -0.004 | G51: -4.842 | H51: -0.006 | I51: -5.54 | J51: 0.04 | M51: -5.171 | N51: -0.019 | O51: -4.982 | P51: -0.007 | Q51: -4.387 | R51: -0.006 | S51: -4.842 | T51: -0.002 | U51: -5.54 | V51: 0.003
A52: -5.12 | B52: 0.087 | C52: -4.932 | D52: 0.077 | E52: -4.337 | F52: -0.005 | G52: -4.792 | H52: -0.007 | I52: -5.49 | J52: 0.025 | M52: -5.12 | N52: -0.016 | O52: -4.932 | P52: -0.005 | Q52: -4.337 | R52: -0.005 | S52: -4.792 | T52: -0.002 | U52: -5.49 | V52: 0.001
A53: -5.07 | B53: 0.087 | C53: -4.882 | D53: 0.071 | E53: -4.287 | F53: -0.007 | G53: -4.742 | H53: -0.008 | I53: -5.44 | J53: 0.014 | M53: -5.07 | N53: -0.014 | O53: -4.882 | P53: -0.004 | Q53: -4.287 | R53: -0.003 | S53: -4.742 | T53: -0.003 | U53: -5.44 | V53: 0
A54: -5.02 | B54: 0.083 | C54: -4.831 | D54: 0.064 | E54: -4.237 | F54: -0.008 | G54: -4.691 | H54: -0.008 | I54: -5.39 | J54: 0.006 | M54: -5.02 | N54: -0.012 | O54: -4.831 | P54: -0.003 | Q54: -4.237 | R54: -0.002 | S54: -4.691 | T54: -0.003 | U54: -5.39 | V54: 0
A55: -4.97 | B55: 0.074 | C55: -4.781 | D55: 0.056 | E55: -4.187 | F55: -0.008 | G55: -4.641 | H55: -0.008 | I55: -5.34 | J55: 0.001 | M55: -4.97 | N55: -0.011 | O55: -4.781 | P55: -0.002 | Q55: -4.187 | R55: -0.001 | S55: -4.641 | T55: -0.003 | U55: -5.34 | V55: 0
A56: -4.92 | B56: 0.062 | C56: -4.731 | D56: 0.049 | E56: -4.136 | F56: -0.008 | G56: -4.591 | H56: -0.007 | I56: -5.29 | J56: -0.002 | M56: -4.92 | N56: -0.01 | O56: -4.731 | P56: -0.002 | Q56: -4.136 | R56: 0 | S56: -4.591 | T56: -0.003 | U56: -5.29 | V56: -0.001
A57: -4.87 | B57: 0.049 | C57: -4.681 | D57: 0.043 | E57: -4.086 | F57: -0.008 | G57: -4.541 | H57: -0.007 | I57: -5.239 | J57: -0.004 | M57: -4.87 | N57: -0.009 | O57: -4.681 | P57: -0.002 | Q57: -4.086 | R57: 0 | S57: -4.541 | T57: -0.003 | U57: -5.239 | V57: -0.001
A58: -4.82 | B58: 0.037 | C58: -4.631 | D58: 0.039 | E58: -4.036 | F58: -0.007 | G58: -4.491 | H58: -0.008 | I58: -5.189 | J58: -0.006 | M58: -4.82 | N58: -0.009 | O58: -4.631 | P58: -0.003 | Q58: -4.036 | R58: 0 | S58: -4.491 | T58: -0.003 | U58: -5.189 | V58: -0.002
A59: -4.769 | B59: 0.028 | C59: -4.581 | D59: 0.036 | E59: -3.986 | F59: -0.006 | G59: -4.441 | H59: -0.008 | I59: -5.139 | J59: -0.007 | M59: -4.769 | N59: -0.009 | O59: -4.581 | P59: -0.004 | Q59: -3.986 | R59: 0 | S59: -4.441 | T59: -0.002 | U59: -5.139 | V59: -0.003
A60: -4.719 | B60: 0.021 | C60: -4.531 | D60: 0.033 | E60: -3.936 | F60: -0.005 | G60: -4.391 | H60: -0.008 | I60: -5.089 | J60: -0.007 | M60: -4.719 | N60: -0.009 | O60: -4.531 | P60: -0.005 | Q60: -3.936 | R60: 0 | S60: -4.391 | T60: -0.002 | U60: -5.089 | V60: -0.004
A61: -4.669 | B61: 0.016 | C61: -4.48 | D61: 0.03 | E61: -3.886 | F61: -0.004 | G61: -4.341 | H61: -0.009 | I61: -5.039 | J61: -0.006 | M61: -4.669 | N61: -0.01 | O61: -4.48 | P61: -0.005 | Q61: -3.886 | R61: 0 | S61: -4.341 | T61: -0.001 | U61: -5.039 | V61: -0.005
A62: -4.619 | B62: 0.013 | C62: -4.43 | D62: 0.027 | E62: -3.836 | F62: -0.004 | G62: -4.29 | H62: -0.009 | I62: -4.989 | J62: -0.005 | M62: -4.619 | N62: -0.012 | O62: -4.43 | P62: -0.006 | Q62: -3.836 | R62: 0 | S62: -4.29 | T62: 0 | U62: -4.989 | V62: -0.005
A63: -4.569 | B63: 0.011 | C63: -4.38 | D63: 0.025 | E63: -3.785 | F63: -0.005 | G63: -4.24 | H63: -0.008 | I63: -4.939 | J63: -0.005 | M63: -4.569 | N63: -0.014 | O63: -4.38 | P63: -0.006 | Q63: -3.785 | R63: -0.001 | S63: -4.24 | T63: 0 | U63: -4.939 | V63: -0.005
A64: -4.519 | B64: 0.01 | C64: -4.33 | D64: 0.023 | E64: -3.735 | F64: -0.006 | G64: -4.19 | H64: -0.008 | I64: -4.888 | J64: -0.004 | M64: -4.519 | N64: -0.015 | O64: -4.33 | P64: -0.005 | Q64: -3.735 | R64: -0.001 | S64: -4.19 | T64: 0 | U64: -4.888 | V64: -0.006
A65: -4.469 | B65: 0.008 | C65: -4.28 | D65: 0.022 | E65: -3.685 | F65: -0.009 | G65: -4.14 | H65: -0.006 | I65: -4.838 | J65: -0.004 | M65: -4.469 | N65: -0.015 | O65: -4.28 | P65: -0.004 | Q65: -3.685 | R65: -0.002 | S65: -4.14 | T65: 0 | U65: -4.838 | V65: -0.007
A66: -4.418 | B66: 0.006 | C66: -4.23 | D66: 0.022 | E66: -3.635 | F66: -0.011 | G66: -4.09 | H66: -0.004 | I66: -4.788 | J66: -0.004 | M66: -4.418 | N66: -0.013 | O66: -4.23 | P66: -0.003 | Q66: -3.635 | R66: -0.002 | S66: -4.09 | T66: 0 | U66: -4.788 | V66: -0.009
A67: -4.368 | B67: 0.004 | C67: -4.18 | D67: 0.022 | E67: -3.585 | F67: -0.013 | G67: -4.04 | H67: -0.002 | I67: -4.738 | J67: -0.002 | M67: -4.368 | N67: -0.011 | O67: -4.18 | P67: -0.003 | Q67: -3.585 | R67: -0.003 | S67: -4.04 | T67: 0 | U67: -4.738 | V67: -0.011
A68: -4.318 | B68: 0.002 | C68: -4.13 | D68: 0.022 | E68: -3.535 | F68: -0.013 | G68: -3.99 | H68: 0.001 | I68: -4.688 | J68: 0 | M68: -4.318 | N68: -0.009 | O68: -4.13 | P68: -0.002 | Q68: -3.535 | R68: -0.003 | S68: -3.99 | T68: 0 | U68: -4.688 | V68: -0.013
A69: -4.268 | B69: 0.001 | C69: -4.079 | D69: 0.021 | E69: -3.485 | F69: -0.012 | G69: -3.939 | H69: 0.005 | I69: -4.638 | J69: 0.006 | M69: -4.268 | N69: -0.007 | O69: -4.079 | P69: -0.001 | Q69: -3.485 | R69: -0.002 | S69: -3.939 | T69: 0 | U69: -4.638 | V69: -0.015
A70: -4.218 | B70: 0 | C70: -4.029 | D70: 0.019 | E70: -3.434 | F70: -0.009 | G70: -3.889 | H70: 0.008 | I70: -4.588 | J70: 0.013 | M70: -4.218 | N70: -0.005 | O70: -4.029 | P70: 0 | Q70: -3.434 | R70: -0.002 | S70: -3.889 | T70: 0 | U70: -4.588 | V70: -0.015
A71: -4.168 | B71: -0.001 | C71: -3.979 | D71: 0.016 | E71: -3.384 | F71: -0.006 | G71: -3.839 | H71: 0.012 | I71: -4.537 | J71: 0.023 | M71: -4.168 | N71: -0.005 | O71: -3.979 | P71: 0 | Q71: -3.384 | R71: -0.001 | S71: -3.839 | T71: 0 | U71: -4.537 | V71: -0.014
A72: -4.118 | B72: -0.002 | C72: -3.929 | D72: 0.013 | E72: -3.334 | F72: -0.002 | G72: -3.789 | H72: 0.014 | I72: -4.487 | J72: 0.034 | M72: -4.118 | N72: -0.006 | O72: -3.929 | P72: 0 | Q72: -3.334 | R72: -0.001 | S72: -3.789 | T72: 0 | U72: -4.487 | V72: -0.012
A73: -4.067 | B73: -0.003 | C73: -3.879 | D73: 0.009 | E73: -3.284 | F73: 0 | G73: -3.739 | H73: 0.017 | I73: -4.437 | J73: 0.046 | M73: -4.067 | N73: -0.008 | O73: -3.879 | P73: 0 | Q73: -3.284 | R73: -0.001 | S73: -3.739 | T73: -0.001 | U73: -4.437 | V73: -0.01
A74: -4.017 | B74: -0.003 | C74: -3.829 | D74: 0.006 | E74: -3.234 | F74: 0.003 | G74: -3.689 | H74: 0.02 | I74: -4.387 | J74: 0.057 | M74: -4.017 | N74: -0.01 | O74: -3.829 | P74: 0 | Q74: -3.234 | R74: -0.001 | S74: -3.689 | T74: -0.002 | U74: -4.387 | V74: -0.009
A75: -3.967 | B75: -0.004 | C75: -3.779 | D75: 0.002 | E75: -3.184 | F75: 0.005 | G75: -3.639 | H75: 0.024 | I75: -4.337 | J75: 0.065 | M75: -3.967 | N75: -0.011 | O75: -3.779 | P75: 0 | Q75: -3.184 | R75: -0.001 | S75: -3.639 | T75: -0.003 | U75: -4.337 | V75: -0.007
A76: -3.917 | B76: -0.003 | C76: -3.728 | D76: -0.001 | E76: -3.134 | F76: 0.006 | G76: -3.588 | H76: 0.033 | I76: -4.287 | J76: 0.069 | M76: -3.917 | N76: -0.011 | O76: -3.728 | P76: 0 | Q76: -3.134 | R76: -0.002 | S76: -3.588 | T76: -0.004 | U76: -4.287 | V76: -0.007
A77: -3.867 | B77: -0.002 | C77: -3.678 | D77: -0.005 | E77: -3.083 | F77: 0.006 | G77: -3.538 | H77: 0.05 | I77: -4.237 | J77: 0.068 | M77: -3.867 | N77: -0.009 | O77: -3.678 | P77: -0.001 | Q77: -3.083 | R77: -0.004 | S77: -3.538 | T77: -0.004 | U77: -4.237 | V77: -0.006
A78: -3.817 | B78: 0 | C78: -3.628 | D78: -0.009 | E78: -3.033 | F78: 0.006 | G78: -3.488 | H78: 0.082 | I78: -4.186 | J78: 0.064 | M78: -3.817 | N78: -0.007 | O78: -3.628 | P78: -0.001 | Q78: -3.033 | R78: -0.006 | S78: -3.488 | T78: -0.004 | U78: -4.186 | V78: -0.006
A79: -3.767 | B79: 0.002 | C79: -3.578 | D79: -0.013 | E79: -2.983 | F79: 0.006 | G79: -3.438 | H79: 0.137 | I79: -4.136 | J79: 0.057 | M79: -3.767 | N79: -0.003 | O79: -3.578 | P79: -0.002 | Q79: -2.983 | R79: -0.008 | S79: -3.438 | T79: -0.004 | U79: -4.136 | V79: -0.005
A80: -3.716 | B80: 0.006 | C80: -3.528 | D80: -0.015 | E80: -2.933 | F80: 0.005 | G80: -3.388 | H80: 0.22 | I80: -4.086 | J80: 0.052 | M80: -3.716 | N80: 0 | O80: -3.528 | P80: -0.002 | Q80: -2.933 | R80: -0.01 | S80: -3.388 | T80: -0.004 | U80: -4.086 | V80: -0.004
A81: -3.666 | B81: 0.011 | C81: -3.478 | D81: -0.016 | E81: -2.883 | F81: 0.005 | G81: -3.338 | H81: 0.329 | I81: -4.036 | J81: 0.05 | M81: -3.666 | N81: 0.003 | O81: -3.478 | P81: -0.003 | Q81: -2.883 | R81: -0.012 | S81: -3.338 | T81: -0.004 | U81: -4.036 | V81: -0.004
A82: -3.616 | B82: 0.017 | C82: -3.428 | D82: -0.015 | E82: -2.833 | F82: 0.005 | G82: -3.288 | H82: 0.449 | I82: -3.986 | J82: 0.052 | M82: -3.616 | N82: 0.005 | O82: -3.428 | P82: -0.002 | Q82: -2.833 | R82: -0.012 | S82: -3.288 | T82: -0.004 | U82: -3.986 | V82: -0.004
A83: -3.566 | B83: 0.022 | C83: -3.377 | D83: -0.012 | E83: -2.783 | F83: 0.008 | G83: -3.237 | H83: 0.552 | I83: -3.936 | J83: 0.057 | M83: -3.566 | N83: 0.007 | O83: -3.377 | P83: -0.002 | Q83: -2.783 | R83: -0.01 | S83: -3.237 | T83: -0.004 | U83: -3.936 | V83: -0.004
A84: -3.516 | B84: 0.024 | C84: -3.327 | D84: -0.009 | E84: -2.732 | F84: 0.016 | G84: -3.187 | H84: 0.609 | I84: -3.886 | J84: 0.062 | M84: -3.516 | N84: 0.007 | O84: -3.327 | P84: -0.002 | Q84: -2.732 | R84: -0.008 | S84: -3.187 | T84: -0.003 | U84: -3.886 | V84: -0.004
A85: -3.466 | B85: 0.024 | C85: -3.277 | D85: -0.006 | E85: -2.682 | F85: 0.032 | G85: -3.137 | H85: 0.6 | I85: -3.836 | J85: 0.066 | M85: -3.466 | N85: 0.007 | O85: -3.277 | P85: -0.001 | Q85: -2.682 | R85: -0.006 | S85: -3.137 | T85: -0.003 | U85: -3.836 | V85: -0.005
A86: -3.416 | B86: 0.021 | C86: -3.227 | D86: -0.003 | E86: -2.632 | F86: 0.063 | G86: -3.087 | H86: 0.529 | I86: -3.785 | J86: 0.066 | M86: -3.416 | N86: 0.007 | O86: -3.227 | P86: -0.001 | Q86: -2.632 | R86: -0.003 | S86: -3.087 | T86: -0.002 | U86: -3.785 | V86: -0.005
A87: -3.365 | B87: 0.014 | C87: -3.177 | D87: -0.001 | E87: -2.582 | F87: 0.115 | G87: -3.037 | H87: 0.419 | I87: -3.735 | J87: 0.063 | M87: -3.365 | N87: 0.009 | O87: -3.177 | P87: -0.001 | Q87: -2.582 | R87: -0.002 | S87: -3.037 | T87: -0.001 | U87: -3.735 | V87: -0.005
A88: -3.315 | B88: 0.006 | C88: -3.127 | D88: 0 | E88: -2.532 | F88: 0.19 | G88: -2.987 | H88: 0.299 | I88: -3.685 | J88: 0.058 | M88: -3.315 | N88: 0.015 | O88: -3.127 | P88: -0.002 | Q88: -2.532 | R88: -0.001 | S88: -2.987 | T88: -0.001 | U88: -3.685 | V88: -0.005
A89: -3.265 | B89: -0.003 | C89: -3.077 | D89: 0.002 | E89: -2.482 | F89: 0.282 | G89: -2.937 | H89: 0.196 | I89: -3.635 | J89: 0.051 | M89: -3.265 | N89: 0.023 | O89: -3.077 | P89: -0.003 | Q89: -2.482 | R89: 0 | S89: -2.937 | T89: 0 | U89: -3.635 | V89: -0.005
A90: -3.215 | B90: -0.013 | C90: -3.026 | D90: 0.004 | E90: -2.432 | F90: 0.376 | G90: -2.886 | H90: 0.119 | I90: -3.585 | J90: 0.045 | M90: -3.215 | N90: 0.034 | O90: -3.026 | P90: -0.005 | Q90: -2.432 | R90: 0 | S90: -2.886 | T90: 0 | U90: -3.585 | V90: -0.005
A91: -3.165 | B91: -0.021 | C91: -2.976 | D91: 0.008 | E91: -2.381 | F91: 0.451 | G91: -2.836 | H91: 0.071 | I91: -3.535 | J91: 0.039 | M91: -3.165 | N91: 0.046 | O91: -2.976 | P91: -0.007 | Q91: -2.381 | R91: 0 | S91: -2.836 | T91: 0 | U91: -3.535 | V91: -0.005
A92: -3.115 | B92: -0.027 | C92: -2.926 | D92: 0.014 | E92: -2.331 | F92: 0.484 | G92: -2.786 | H92: 0.042 | I92: -3.485 | J92: 0.033 | M92: -3.115 | N92: 0.055 | O92: -2.926 | P92: -0.011 | Q92: -2.331 | R92: 0 | S92: -2.786 | T92: 0 | U92: -3.485 | V92: -0.005
A93: -3.065 | B93: -0.03 | C93: -2.876 | D93: 0.021 | E93: -2.281 | F93: 0.467 | G93: -2.736 | H93: 0.027 | I93: -3.434 | J93: 0.029 | M93: -3.065 | N93: 0.058 | O93: -2.876 | P93: -0.014 | Q93: -2.281 | R93: 0 | S93: -2.736 | T93: 0 | U93: -3.434 | V93: -0.004
A94: -3.015 | B94: -0.028 | C94: -2.826 | D94: 0.03 | E94: -2.231 | F94: 0.408 | G94: -2.686 | H94: 0.019 | I94: -3.384 | J94: 0.024 | M94: -3.015 | N94: 0.054 | O94: -2.826 | P94: -0.016 | Q94: -2.231 | R94: -0.001 | S94: -2.686 | T94: -0.001 | U94: -3.384 | V94: -0.004
A95: -2.964 | B95: -0.024 | C95: -2.776 | D95: 0.038 | E95: -2.181 | F95: 0.326 | G95: -2.636 | H95: 0.017 | I95: -3.334 | J95: 0.02 | M95: -2.964 | N95: 0.045 | O95: -2.776 | P95: -0.016 | Q95: -2.181 | R95: -0.002 | S95: -2.636 | T95: -0.001 | U95: -3.334 | V95: -0.004
A96: -2.914 | B96: -0.018 | C96: -2.726 | D96: 0.044 | E96: -2.131 | F96: 0.243 | G96: -2.586 | H96: 0.019 | I96: -3.284 | J96: 0.016 | M96: -2.914 | N96: 0.032 | O96: -2.726 | P96: -0.015 | Q96: -2.131 | R96: -0.004 | S96: -2.586 | T96: -0.002 | U96: -3.284 | V96: -0.004
A97: -2.864 | B97: -0.012 | C97: -2.675 | D97: 0.046 | E97: -2.081 | F97: 0.175 | G97: -2.535 | H97: 0.025 | I97: -3.234 | J97: 0.013 | M97: -2.864 | N97: 0.021 | O97: -2.675 | P97: -0.012 | Q97: -2.081 | R97: -0.006 | S97: -2.535 | T97: -0.002 | U97: -3.234 | V97: -0.004
A98: -2.814 | B98: -0.007 | C98: -2.625 | D98: 0.044 | E98: -2.031 | F98: 0.125 | G98: -2.485 | H98: 0.037 | I98: -3.184 | J98: 0.01 | M98: -2.814 | N98: 0.012 | O98: -2.625 | P98: -0.009 | Q98: -2.031 | R98: -0.008 | S98: -2.485 | T98: -0.003 | U98: -3.184 | V98: -0.004
A99: -2.764 | B99: -0.004 | C99: -2.575 | D99: 0.04 | E99: -1.98 | F99: 0.091 | G99: -2.435 | H99: 0.053 | I99: -3.134 | J99: 0.007 | M99: -2.764 | N99: 0.005 | O99: -2.575 | P99: -0.006 | Q99: -1.98 | R99: -0.009 | S99: -2.435 | T99: -0.005 | U99: -3.134 | V99: -0.004
A100: -2.714 | B100: -0.002 | C100: -2.525 | D100: 0.035 | E100: -1.93 | F100: 0.066 | G100: -2.385 | H100: 0.07 | I100: -3.083 | J100: 0.005 | M100: -2.714 | N100: 0.002 | O100: -2.525 | P100: -0.004 | Q100: -1.93 | R100: -0.01 | S100: -2.385 | T100: -0.006 | U100: -3.083 | V100: -0.004
A101: -2.664 | B101: -0.001 | C101: -2.475 | D101: 0.032 | E101: -1.88 | F101: 0.045 | G101: -2.335 | H101: 0.083 | I101: -3.033 | J101: 0.003 | M101: -2.664 | N101: 0 | O101: -2.475 | P101: -0.003 | Q101: -1.88 | R101: -0.009 | S101: -2.335 | T101: -0.007 | U101: -3.033 | V101: -0.004
A102: -2.613 | B102: 0 | C102: -2.425 | D102: 0.03 | E102: -1.83 | F102: 0.026 | G102: -2.285 | H102: 0.087 | I102: -2.983 | J102: 0.001 | M102: -2.613 | N102: 0 | O102: -2.425 | P102: -0.003 | Q102: -1.83 | R102: -0.007 | S102: -2.285 | T102: -0.007 | U102: -2.983 | V102: -0.003
A103: -2.563 | B103: 0 | C103: -2.375 | D103: 0.032 | E103: -1.78 | F103: 0.006 | G103: -2.235 | H103: 0.077 | I103: -2.933 | J103: 0 | M103: -2.563 | N103: 0 | O103: -2.375 | P103: -0.003 | Q103: -1.78 | R103: -0.005 | S103: -2.235 | T103: -0.007 | U103: -2.933 | V103: -0.003
A104: -2.513 | B104: 0 | C104: -2.325 | D104: 0.041 | E104: -1.73 | F104: -0.015 | G104: -2.185 | H104: 0.052 | I104: -2.883 | J104: -0.001 | M104: -2.513 | N104: 0 | O104: -2.325 | P104: -0.004 | Q104: -1.73 | R104: -0.004 | S104: -2.185 | T104: -0.006 | U104: -2.883 | V104: -0.003
A105: -2.463 | B105: 0 | C105: -2.274 | D105: 0.059 | E105: -1.68 | F105: -0.039 | G105: -2.134 | H105: 0.014 | I105: -2.833 | J105: -0.003 | M105: -2.463 | N105: 0 | O105: -2.274 | P105: -0.005 | Q105: -1.68 | R105: -0.003 | S105: -2.134 | T105: -0.005 | U105: -2.833 | V105: -0.002
A106: -2.413 | B106: 0 | C106: -2.224 | D106: 0.093 | E106: -1.629 | F106: -0.064 | G106: -2.084 | H106: -0.036 | I106: -2.783 | J106: -0.005 | M106: -2.413 | N106: 0 | O106: -2.224 | P106: -0.006 | Q106: -1.629 | R106: -0.002 | S106: -2.084 | T106: -0.004 | U106: -2.783 | V106: -0.002
A107: -2.363 | B107: 0 | C107: -2.174 | D107: 0.146 | E107: -1.579 | F107: -0.084 | G107: -2.034 | H107: -0.095 | I107: -2.732 | J107: -0.008 | M107: -2.363 | N107: 0 | O107: -2.174 | P107: -0.007 | Q107: -1.579 | R107: -0.001 | S107: -2.034 | T107: -0.003 | U107: -2.732 | V107: -0.002
A108: -2.313 | B108: 0 | C108: -2.124 | D108: 0.217 | E108: -1.529 | F108: -0.097 | G108: -1.984 | H108: -0.156 | I108: -2.682 | J108: -0.012 | M108: -2.313 | N108: 0 | O108: -2.124 | P108: -0.008 | Q108: -1.529 | R108: -0.001 | S108: -1.984 | T108: -0.004 | U108: -2.682 | V108: -0.001
A109: -2.262 | B109: 0 | C109: -2.074 | D109: 0.296 | E109: -1.479 | F109: -0.098 | G109: -1.934 | H109: -0.209 | I109: -2.632 | J109: -0.015 | M109: -2.262 | N109: 0 | O109: -2.074 | P109: -0.008 | Q109: -1.479 | R109: -0.001 | S109: -1.934 | T109: -0.005 | U109: -2.632 | V109: -0.001
A110: -2.212 | B110: 0 | C110: -2.024 | D110: 0.365 | E110: -1.429 | F110: -0.088 | G110: -1.884 | H110: -0.242 | I110: -2.582 | J110: -0.017 | M110: -2.212 | N110: 0 | O110: -2.024 | P110: -0.007 | Q110: -1.429 | R110: 0 | S110: -1.884 | T110: -0.006 | U110: -2.582 | V110: -0.001
A111: -2.162 | B111: 0 | C111: -1.974 | D111: 0.404 | E111: -1.379 | F111: -0.071 | G111: -1.834 | H111: -0.248 | I111: -2.532 | J111: -0.018 | M111: -2.162 | N111: 0 | O111: -1.974 | P111: -0.006 | Q111: -1.379 | R111: 0 | S111: -1.834 | T111: -0.006 | U111: -2.532 | V111: 0
A112: -2.112 | B112: 0.001 | C112: -1.923 | D112: 0.4 | E112: -1.329 | F112: -0.053 | G112: -1.783 | H112: -0.227 | I112: -2.482 | J112: -0.016 | M112: -2.112 | N112: 0 | O112: -1.923 | P112: -0.005 | Q112: -1.329 | R112: 0 | S112: -1.783 | T112: -0.006 | U112: -2.482 | V112: 0
A113: -2.062 | B113: 0.002 | C113: -1.873 | D113: 0.354 | E113: -1.278 | F113: -0.038 | G113: -1.733 | H113: -0.189 | I113: -2.432 | J113: -0.014 | M113: -2.062 | N113: 0 | O113: -1.873 | P113: -0.003 | Q113: -1.278 | R113: 0 | S113: -1.733 | T113: -0.005 | U113: -2.432 | V113: 0
A114: -2.012 | B114: 0.005 | C114: -1.823 | D114: 0.279 | E114: -1.228 | F114: -0.029 | G114: -1.683 | H114: -0.147 | I114: -2.381 | J114: -0.011 | M114: -2.012 | N114: 0 | O114: -1.823 | P114: -0.002 | Q114: -1.228 | R114: 0 | S114: -1.683 | T114: -0.004 | U114: -2.381 | V114: 0
A115: -1.962 | B115: 0.011 | C115: -1.773 | D115: 0.196 | E115: -1.178 | F115: -0.025 | G115: -1.633 | H115: -0.11 | I115: -2.331 | J115: -0.008 | M115: -1.962 | N115: 0 | O115: -1.773 | P115: -0.001 | Q115: -1.178 | R115: 0 | S115: -1.633 | T115: -0.003 | U115: -2.331 | V115: 0
A116: -1.911 | B116: 0.022 | C116: -1.723 | D116: 0.123 | E116: -1.128 | F116: -0.025 | G116: -1.583 | H116: -0.083 | I116: -2.281 | J116: -0.005 | M116: -1.911 | N116: 0 | O116: -1.723 | P116: 0 | Q116: -1.128 | R116: 0 | S116: -1.583 | T116: -0.002 | U116: -2.281 | V116: 0
A117: -1.861 | B117: 0.042 | C117: -1.673 | D117: 0.07 | E117: -1.078 | F117: -0.025 | G117: -1.533 | H117: -0.064 | I117: -2.231 | J117: -0.003 | M117: -1.861 | N117: 0 | O117: -1.673 | P117: 0 | Q117: -1.078 | R117: 0 | S117: -1.533 | T117: -0.001 | U117: -2.231 | V117: 0.001
A118: -1.811 | B118: 0.072 | C118: -1.623 | D118: 0.037 | E118: -1.028 | F118: -0.025 | G118: -1.483 | H118: -0.051 | I118: -2.181 | J118: -0.002 | M118: -1.811 | N118: 0 | O118: -1.623 | P118: 0 | Q118: -1.028 | R118: 0 | S118: -1.483 | T118: -0.001 | U118: -2.181 | V118: 0.001
A119: -1.761 | B119: 0.11 | C119: -1.572 | D119: 0.021 | E119: -0.978 | F119: -0.024 | G119: -1.432 | H119: -0.04 | I119: -2.131 | J119: -0.001 | M119: -1.761 | N119: 0 | O119: -1.572 | P119: 0 | Q119: -0.978 | R119: 0 | S119: -1.432 | T119: -0.001 | U119: -2.131 | V119: 0.001
A120: -1.711 | B120: 0.15 | C120: -1.522 | D120: 0.017 | E120: -0.927 | F120: -0.021 | G120: -1.382 | H120: -0.03 | I120: -2.081 | J120: -0.001 | M120: -1.711 | N120: 0 | O120: -1.522 | P120: 0 | Q120: -0.927 | R120: 0 | S120: -1.382 | T120: 0 | U120: -2.081 | V120: 0.001
A121: -1.661 | B121: 0.182 | C121: -1.472 | D121: 0.021 | E121: -0.877 | F121: -0.017 | G121: -1.332 | H121: -0.022 | I121: -2.031 | J121: -0.001 | M121: -1.661 | N121: 0 | O121: -1.472 | P121: 0 | Q121: -0.877 | R121: 0 | S121: -1.332 | T121: 0 | U121: -2.031 | V121: 0.001
A122: -1.611 | B122: 0.196 | C122: -1.422 | D122: 0.03 | E122: -0.827 | F122: -0.013 | G122: -1.282 | H122: -0.015 | I122: -1.98 | J122: -0.001 | M122: -1.611 | N122: 0 | O122: -1.422 | P122: 0 | Q122: -0.827 | R122: 0 | S122: -1.282 | T122: 0 | U122: -1.98 | V122: 0.001
A123: -1.56 | B123: 0.189 | C123: -1.372 | D123: 0.041 | E123: -0.777 | F123: -0.01 | G123: -1.232 | H123: -0.01 | I123: -1.93 | J123: -0.001 | M123: -1.56 | N123: 0 | O123: -1.372 | P123: 0 | Q123: -0.777 | R123: 0 | S123: -1.232 | T123: 0 | U123: -1.93 | V123: 0.002
A124: -1.51 | B124: 0.164 | C124: -1.322 | D124: 0.051 | E124: -0.727 | F124: -0.006 | G124: -1.182 | H124: -0.008 | I124: -1.88 | J124: -0.002 | M124: -1.51 | N124: 0 | O124: -1.322 | P124: 0 | Q124: -0.727 | R124: 0 | S124: -1.182 | T124: 0 | U124: -1.88 | V124: 0.002
A125: -1.46 | B125: 0.131 | C125: -1.272 | D125: 0.056 | E125: -0.677 | F125: -0.004 | G125: -1.132 | H125: -0.007 | I125: -1.83 | J125: -0.002 | M125: -1.46 | N125: 0 | O125: -1.272 | P125: 0 | Q125: -0.677 | R125: 0 | S125: -1.132 | T125: 0 | U125: -1.83 | V125: 0.003
A126: -1.41 | B126: 0.099 | C126: -1.221 | D126: 0.054 | E126: -0.627 | F126: -0.002 | G126: -1.081 | H126: -0.007 | I126: -1.78 | J126: -0.002 | M126: -1.41 | N126: 0 | O126: -1.221 | P126: 0 | Q126: -0.627 | R126: 0 | S126: -1.081 | T126: 0 | U126: -1.78 | V126: 0.003
A127: -1.36 | B127: 0.072 | C127: -1.171 | D127: 0.044 | E127: -0.576 | F127: -0.001 | G127: -1.031 | H127: -0.008 | I127: -1.73 | J127: -0.001 | M127: -1.36 | N127: 0 | O127: -1.171 | P127: 0 | Q127: -0.576 | R127: 0 | S127: -1.031 | T127: 0 | U127: -1.73 | V127: 0.003
A128: -1.31 | B128: 0.052 | C128: -1.121 | D128: 0.028 | E128: -0.526 | F128: 0 | G128: -0.981 | H128: -0.008 | I128: -1.68 | J128: -0.001 | M128: -1.31 | N128: 0 | O128: -1.121 | P128: 0 | Q128: -0.526 | R128: 0 | S128: -0.981 | T128: 0 | U128: -1.68 | V128: 0.003
A129: -1.26 | B129: 0.036 | C129: -1.071 | D129: 0.011 | E129: -0.476 | F129: 0 | G129: -0.931 | H129: -0.009 | I129: -1.629 | J129: 0 | M129: -1.26 | N129: -0.001 | O129: -1.071 | P129: 0 | Q129: -0.476 | R129: 0 | S129: -0.931 | T129: 0 | U129: -1.629 | V129: 0.003
A130: -1.21 | B130: 0.022 | C130: -1.021 | D130: -0.003 | E130: -0.426 | F130: 0 | G130: -0.881 | H130: -0.01 | I130: -1.579 | J130: 0 | M130: -1.21 | N130: -0.001 | O130: -1.021 | P130: 0 | Q130: -0.426 | R130: 0 | S130: -0.881 | T130: 0 | U130: -1.579 | V130: 0.002
A131: -1.159 | B131: 0.01 | C131: -0.971 | D131: -0.011 | E131: -0.376 | F131: 0 | G131: -0.831 | H131: -0.014 | I131: -1.529 | J131: 0.001 | M131: -1.159 | N131: -0.001 | O131: -0.971 | P131: 0 | Q131: -0.376 | R131: 0 | S131: -0.831 | T131: 0 | U131: -1.529 | V131: 0.002
A132: -1.109 | B132: 0 | C132: -0.921 | D132: -0.014 | E132: -0.326 | F132: 0 | G132: -0.781 | H132: -0.02 | I132: -1.479 | J132: 0.001 | M132: -1.109 | N132: -0.001 | O132: -0.921 | P132: 0 | Q132: -0.326 | R132: 0 | S132: -0.781 | T132: 0 | U132: -1.479 | V132: 0.001
A133: -1.059 | B133: -0.005 | C133: -0.87 | D133: -0.012 | E133: -0.276 | F133: 0 | G133: -0.73 | H133: -0.03 | I133: -1.429 | J133: 0.001 | M133: -1.059 | N133: -0.001 | O133: -0.87 | P133: 0 | Q133: -0.276 | R133: 0 | S133: -0.73 | T133: 0 | U133: -1.429 | V133: 0
A134: -1.009 | B134: -0.008 | C134: -0.82 | D134: -0.008 | E134: -0.225 | F134: 0 | G134: -0.68 | H134: -0.044 | I134: -1.379 | J134: 0.001 | M134: -1.009 | N134: -0.001 | O134: -0.82 | P134: 0 | Q134: -0.225 | R134: 0 | S134: -0.68 | T134: 0 | U134: -1.379 | V134: 0
A135: -0.959 | B135: -0.007 | C135: -0.77 | D135: -0.004 | E135: -0.175 | F135: 0 | G135: -0.63 | H135: -0.06 | I135: -1.329 | J135: 0.001 | M135: -0.959 | N135: -0.001 | O135: -0.77 | P135: 0 | Q135: -0.175 | R135: 0 | S135: -0.63 | T135: 0 | U135: -1.329 | V135: 0
A136: -0.909 | B136: -0.005 | C136: -0.72 | D136: -0.001 | E136: -0.125 | F136: 0 | G136: -0.58 | H136: -0.077 | I136: -1.278 | J136: 0.002 | M136: -0.909 | N136: 0 | O136: -0.72 | P136: 0 | Q136: -0.125 | R136: 0 | S136: -0.58 | T136: 0 | U136: -1.278 | V136: 0
A137: -0.859 | B137: -0.003 | C137: -0.67 | D137: 0 | E137: -0.075 | F137: 0 | G137: -0.53 | H137: -0.092 | I137: -1.228 | J137: 0.003 | M137: -0.859 | N137: 0 | O137: -0.67 | P137: 0 | Q137: -0.075 | R137: 0 | S137: -0.53 | T137: 0 | U137: -1.228 | V137: 0.001
A138: -0.808 | B138: -0.002 | C138: -0.62 | D138: 0 | E138: -0.025 | F138: 0 | G138: -0.48 | H138: -0.101 | I138: -1.178 | J138: 0.004 | M138: -0.808 | N138: 0 | O138: -0.62 | P138: 0 | Q138: -0.025 | R138: 0.001 | S138: -0.48 | T138: 0 | U138: -1.178 | V138: 0.001
A139: -0.758 | B139: -0.001 | C139: -0.57 | D139: 0 | E139: 0.024 | F139: 0 | G139: -0.43 | H139: -0.103 | I139: -1.128 | J139: 0.007 | M139: -0.758 | N139: -0.001 | O139: -0.57 | P139: 0 | Q139: 0.024 | R139: 0.001 | S139: -0.43 | T139: 0 | U139: -1.128 | V139: 0.002
A140: -0.708 | B140: 0 | C140: -0.519 | D140: 0 | E140: 0.074 | F140: 0 | G140: -0.379 | H140: -0.096 | I140: -1.078 | J140: 0.011 | M140: -0.708 | N140: -0.001 | O140: -0.519 | P140: 0 | Q140: 0.074 | R140: 0.001 | S140: -0.379 | T140: 0 | U140: -1.078 | V140: 0.001
A141: -0.658 | B141: 0 | C141: -0.469 | D141: 0 | E141: 0.124 | F141: 0 | G141: -0.329 | H141: -0.082 | I141: -1.028 | J141: 0.019 | M141: -0.658 | N141: -0.001 | O141: -0.469 | P141: 0 | Q141: 0.124 | R141: 0.001 | S141: -0.329 | T141: 0 | U141: -1.028 | V141: 0
A142: -0.608 | B142: 0 | C142: -0.419 | D142: 0 | E142: 0.175 | F142: -0.001 | G142: -0.279 | H142: -0.064 | I142: -0.978 | J142: 0.032 | M142: -0.608 | N142: -0.001 | O142: -0.419 | P142: 0 | Q142: 0.175 | R142: 0.001 | S142: -0.279 | T142: 0 | U142: -0.978 | V142: -0.001
A143: -0.558 | B143: 0 | C143: -0.369 | D143: 0 | E143: 0.225 | F143: -0.003 | G143: -0.229 | H143: -0.045 | I143: -0.927 | J143: 0.05 | M143: -0.558 | N143: -0.001 | O143: -0.369 | P143: 0 | Q143: 0.225 | R143: 0.001 | S143: -0.229 | T143: 0 | U143: -0.927 | V143: -0.005
A144: -0.508 | B144: 0 | C144: -0.319 | D144: 0 | E144: 0.275 | F144: -0.006 | G144: -0.179 | H144: -0.029 | I144: -0.877 | J144: 0.074 | M144: -0.508 | N144: 0 | O144: -0.319 | P144: 0 | Q144: 0.275 | R144: 0 | S144: -0.179 | T144: 0 | U144: -0.877 | V144: -0.011
A145: -0.457 | B145: 0 | C145: -0.269 | D145: 0 | E145: 0.325 | F145: -0.01 | G145: -0.129 | H145: -0.017 | I145: -0.827 | J145: 0.099 | M145: -0.457 | N145: 0 | O145: -0.269 | P145: 0 | Q145: 0.325 | R145: 0 | S145: -0.129 | T145: 0 | U145: -0.827 | V145: -0.017
A146: -0.407 | B146: 0 | C146: -0.219 | D146: 0 | E146: 0.375 | F146: -0.015 | G146: -0.079 | H146: -0.008 | I146: -0.777 | J146: 0.12 | M146: -0.407 | N146: 0 | O146: -0.219 | P146: 0 | Q146: 0.375 | R146: 0 | S146: -0.079 | T146: 0 | U146: -0.777 | V146: -0.023
A147: -0.357 | B147: 0 | C147: -0.169 | D147: 0 | E147: 0.425 | F147: -0.022 | G147: -0.029 | H147: -0.004 | I147: -0.727 | J147: 0.13 | M147: -0.357 | N147: 0 | O147: -0.169 | P147: 0 | Q147: 0.425 | R147: 0 | S147: -0.029 | T147: 0 | U147: -0.727 | V147: -0.026
A148: -0.307 | B148: 0 | C148: -0.118 | D148: 0 | E148: 0.475 | F148: -0.029 | G148: 0.021 | H148: -0.002 | I148: -0.677 | J148: 0.124 | M148: -0.307 | N148: 0 | O148: -0.118 | P148: 0 | Q148: 0.475 | R148: 0 | S148: 0.021 | T148: 0 | U148: -0.677 | V148: -0.026
A149: -0.257 | B149: 0 | C149: -0.068 | D149: 0 | E149: 0.526 | F149: -0.035 | G149: 0.071 | H149: -0.004 | I149: -0.627 | J149: 0.104 | M149: -0.257 | N149: 0 | O149: -0.068 | P149: 0 | Q149: 0.526 | R149: 0 | S149: 0.071 | T149: 0 | U149: -0.627 | V149: -0.023
A150: -0.207 | B150: 0 | C150: -0.018 | D150: 0 | E150: 0.576 | F150: -0.041 | G150: 0.121 | H150: -0.009 | I150: -0.576 | J150: 0.073 | M150: -0.207 | N150: 0 | O150: -0.018 | P150: 0 | Q150: 0.576 | R150: 0 | S150: 0.121 | T150: 0 | U150: -0.576 | V150: -0.018
A151: -0.157 | B151: 0 | C151: 0.031 | D151: 0 | E151: 0.626 | F151: -0.045 | G151: 0.171 | H151: -0.022 | I151: -0.526 | J151: 0.039 | M151: -0.157 | N151: 0 | O151: 0.031 | P151: 0 | Q151: 0.626 | R151: -0.001 | S151: 0.171 | T151: 0 | U151: -0.526 | V151: -0.013
A152: -0.106 | B152: 0 | C152: 0.081 | D152: 0 | E152: 0.676 | F152: -0.046 | G152: 0.221 | H152: -0.049 | I152: -0.476 | J152: 0.003 | M152: -0.106 | N152: 0 | O152: 0.081 | P152: 0 | Q152: 0.676 | R152: -0.003 | S152: 0.221 | T152: -0.001 | U152: -0.476 | V152: -0.009
A153: -0.056 | B153: 0 | C153: 0.131 | D153: -0.001 | E153: 0.726 | F153: -0.044 | G153: 0.271 | H153: -0.099 | I153: -0.426 | J153: -0.033 | M153: -0.056 | N153: 0 | O153: 0.131 | P153: 0 | Q153: 0.726 | R153: -0.006 | S153: 0.271 | T153: -0.003 | U153: -0.426 | V153: -0.006
A154: -0.006 | B154: 0 | C154: 0.181 | D154: -0.003 | E154: 0.776 | F154: -0.039 | G154: 0.321 | H154: -0.179 | I154: -0.376 | J154: -0.075 | M154: -0.006 | N154: 0 | O154: 0.181 | P154: 0 | Q154: 0.776 | R154: -0.011 | S154: 0.321 | T154: -0.005 | U154: -0.376 | V154: -0.005
A155: 0.043 | B155: 0 | C155: 0.232 | D155: -0.006 | E155: 0.826 | F155: -0.032 | G155: 0.372 | H155: -0.293 | I155: -0.326 | J155: -0.122 | M155: 0.043 | N155: 0 | O155: 0.232 | P155: 0 | Q155: 0.826 | R155: -0.018 | S155: 0.372 | T155: -0.009 | U155: -0.326 | V155: -0.006
A156: 0.093 | B156: 0 | C156: 0.282 | D156: -0.012 | E156: 0.877 | F156: -0.023 | G156: 0.422 | H156: -0.432 | I156: -0.276 | J156: -0.173 | M156: 0.093 | N156: 0 | O156: 0.282 | P156: 0 | Q156: 0.877 | R156: -0.027 | S156: 0.422 | T156: -0.014 | U156: -0.276 | V156: -0.007
A157: 0.143 | B157: 0 | C157: 0.332 | D157: -0.02 | E157: 0.927 | F157: -0.015 | G157: 0.472 | H157: -0.575 | I157: -0.225 | J157: -0.218 | M157: 0.143 | N157: 0 | O157: 0.332 | P157: 0 | Q157: 0.927 | R157: -0.035 | S157: 0.472 | T157: -0.02 | U157: -0.225 | V157: -0.009
A158: 0.193 | B158: 0 | C158: 0.382 | D158: -0.031 | E158: 0.977 | F158: -0.009 | G158: 0.522 | H158: -0.689 | I158: -0.175 | J158: -0.247 | M158: 0.193 | N158: 0 | O158: 0.382 | P158: 0 | Q158: 0.977 | R158: -0.04 | S158: 0.522 | T158: -0.024 | U158: -0.175 | V158: -0.01
A159: 0.244 | B159: 0 | C159: 0.432 | D159: -0.045 | E159: 1.027 | F159: -0.005 | G159: 0.572 | H159: -0.743 | I159: -0.125 | J159: -0.251 | M159: 0.244 | N159: 0 | O159: 0.432 | P159: 0 | Q159: 1.027 | R159: -0.04 | S159: 0.572 | T159: -0.027 | U159: -0.125 | V159: -0.01
A160: 0.294 | B160: 0 | C160: 0.482 | D160: -0.061 | E160: 1.077 | F160: -0.002 | G160: 0.622 | H160: -0.72 | I160: -0.075 | J160: -0.229 | M160: 0.294 | N160: 0 | O160: 0.482 | P160: 0 | Q160: 1.077 | R160: -0.036 | S160: 0.622 | T160: -0.028 | U160: -0.075 | V160: -0.009
A161: 0.344 | B161: 0 | C161: 0.532 | D161: -0.078 | E161: 1.127 | F161: -0.001 | G161: 0.672 | H161: -0.627 | I161: -0.025 | J161: -0.188 | M161: 0.344 | N161: 0 | O161: 0.532 | P161: 0 | Q161: 1.127 | R161: -0.028 | S161: 0.672 | T161: -0.025 | U161: -0.025 | V161: -0.007
A162: 0.394 | B162: 0 | C162: 0.583 | D162: -0.093 | E162: 1.177 | F162: 0 | G162: 0.723 | H162: -0.49 | I162: 0.024 | J162: -0.138 | M162: 0.394 | N162: 0 | O162: 0.583 | P162: 0 | Q162: 1.177 | R162: -0.019 | S162: 0.723 | T162: -0.02 | U162: 0.024 | V162: -0.005
A163: 0.444 | B163: -0.001 | C163: 0.633 | D163: -0.105 | E163: 1.228 | F163: 0 | G163: 0.773 | H163: -0.344 | I163: 0.074 | J163: -0.092 | M163: 0.444 | N163: 0 | O163: 0.633 | P163: 0 | Q163: 1.228 | R163: -0.012 | S163: 0.773 | T163: -0.014 | U163: 0.074 | V163: -0.003
A164: 0.494 | B164: -0.003 | C164: 0.683 | D164: -0.11 | E164: 1.278 | F164: 0 | G164: 0.823 | H164: -0.216 | I164: 0.124 | J164: -0.055 | M164: 0.494 | N164: 0 | O164: 0.683 | P164: 0 | Q164: 1.278 | R164: -0.006 | S164: 0.823 | T164: -0.009 | U164: 0.124 | V164: -0.001
A165: 0.544 | B165: -0.007 | C165: 0.733 | D165: -0.106 | E165: 1.328 | F165: 0 | G165: 0.873 | H165: -0.121 | I165: 0.175 | J165: -0.03 | M165: 0.544 | N165: 0 | O165: 0.733 | P165: 0 | Q165: 1.328 | R165: -0.003 | S165: 0.873 | T165: -0.005 | U165: 0.175 | V165: -0.001
A166: 0.595 | B166: -0.014 | C166: 0.783 | D166: -0.095 | E166: 1.378 | F166: 0 | G166: 0.923 | H166: -0.06 | I166: 0.225 | J166: -0.015 | M166: 0.595 | N166: 0 | O166: 0.783 | P166: 0 | Q166: 1.378 | R166: -0.001 | S166: 0.923 | T166: -0.002 | U166: 0.225 | V166: 0
A167: 0.645 | B167: -0.026 | C167: 0.833 | D167: -0.078 | E167: 1.428 | F167: 0 | G167: 0.973 | H167: -0.027 | I167: 0.275 | J167: -0.007 | M167: 0.645 | N167: 0 | O167: 0.833 | P167: 0 | Q167: 1.428 | R167: 0 | S167: 0.973 | T167: -0.001 | U167: 0.275 | V167: 0
A168: 0.695 | B168: -0.042 | C168: 0.883 | D168: -0.058 | E168: 1.478 | F168: 0 | G168: 1.023 | H168: -0.01 | I168: 0.325 | J168: -0.003 | M168: 0.695 | N168: 0 | O168: 0.883 | P168: 0 | Q168: 1.478 | R168: 0 | S168: 1.023 | T168: 0 | U168: 0.325 | V168: 0
A169: 0.745 | B169: -0.064 | C169: 0.934 | D169: -0.039 | E169: 1.528 | F169: 0 | G169: 1.074 | H169: -0.003 | I169: 0.375 | J169: -0.001 | M169: 0.745 | N169: 0 | O169: 0.934 | P169: 0 | Q169: 1.528 | R169: 0 | S169: 1.074 | T169: 0 | U169: 0.375 | V169: 0
A170: 0.795 | B170: -0.09 | C170: 0.984 | D170: -0.024 | E170: 1.579 | F170: 0 | G170: 1.124 | H170: -0.001 | I170: 0.425 | J170: 0 | M170: 0.795 | N170: 0 | O170: 0.984 | P170: 0.001 | Q170: 1.579 | R170: 0 | S170: 1.124 | T170: 0 | U170: 0.425 | V170: 0
A171: 0.845 | B171: -0.117 | C171: 1.034 | D171: -0.013 | E171: 1.629 | F171: 0 | G171: 1.174 | H171: 0 | I171: 0.475 | J171: 0 | M171: 0.845 | N171: 0 | O171: 1.034 | P171: 0.002 | Q171: 1.629 | R171: 0 | S171: 1.174 | T171: 0 | U171: 0.475 | V171: 0
A172: 0.895 | B172: -0.14 | C172: 1.084 | D172: -0.006 | E172: 1.679 | F172: 0 | G172: 1.224 | H172: 0 | I172: 0.526 | J172: 0 | M172: 0.895 | N172: 0 | O172: 1.084 | P172: 0.002 | Q172: 1.679 | R172: 0 | S172: 1.224 | T172: 0 | U172: 0.526 | V172: 0
A173: 0.945 | B173: -0.154 | C173: 1.134 | D173: -0.002 | E173: 1.729 | F173: 0 | G173: 1.274 | H173: 0 | I173: 0.576 | J173: 0 | M173: 0.945 | N173: 0 | O173: 1.134 | P173: 0.003 | Q173: 1.729 | R173: 0 | S173: 1.274 | T173: 0 | U173: 0.576 | V173: 0
A174: 0.996 | B174: -0.155 | C174: 1.184 | D174: -0.001 | E174: 1.779 | F174: 0 | G174: 1.324 | H174: 0 | I174: 0.626 | J174: 0 | M174: 0.996 | N174: 0 | O174: 1.184 | P174: 0.003 | Q174: 1.779 | R174: 0 | S174: 1.324 | T174: 0 | U174: 0.626 | V174: 0
A175: 1.046 | B175: -0.143 | C175: 1.234 | D175: 0 | E175: 1.829 | F175: 0 | G175: 1.374 | H175: 0 | I175: 0.676 | J175: 0 | M175: 1.046 | N175: 0 | O175: 1.234 | P175: 0.004 | Q175: 1.829 | R175: 0 | S175: 1.374 | T175: 0 | U175: 0.676 | V175: 0
A176: 1.096 | B176: -0.123 | C176: 1.285 | D176: -0.001 | E176: 1.879 | F176: 0 | G176: 1.425 | H176: 0 | I176: 0.726 | J176: 0 | M176: 1.096 | N176: 0 | O176: 1.285 | P176: 0.004 | Q176: 1.879 | R176: 0.001 | S176: 1.425 | T176: 0 | U176: 0.726 | V176: 0
A177: 1.146 | B177: -0.099 | C177: 1.335 | D177: -0.003 | E177: 1.929 | F177: 0 | G177: 1.475 | H177: 0 | I177: 0.776 | J177: 0 | M177: 1.146 | N177: 0 | O177: 1.335 | P177: 0.004 | Q177: 1.929 | R177: 0.001 | S177: 1.475 | T177: 0 | U177: 0.776 | V177: 0
A178: 1.196 | B178: -0.075 | C178: 1.385 | D178: -0.009 | E178: 1.98 | F178: 0 | G178: 1.525 | H178: 0 | I178: 0.826 | J178: 0 | M178: 1.196 | N178: 0.001 | O178: 1.385 | P178: 0.004 | Q178: 1.98 | R178: 0.001 | S178: 1.525 | T178: 0 | U178: 0.826 | V178: 0
A179: 1.246 | B179: -0.055 | C179: 1.435 | D179: -0.025 | E179: 2.03 | F179: -0.001 | G179: 1.575 | H179: 0 | I179: 0.877 | J179: 0 | M179: 1.246 | N179: 0.001 | O179: 1.435 | P179: 0.003 | Q179: 2.03 | R179: 0.001 | S179: 1.575 | T179: 0 | U179: 0.877 | V179: 0
A180: 1.296 | B180: -0.039 | C180: 1.485 | D180: -0.061 | E180: 2.08 | F180: -0.005 | G180: 1.625 | H180: 0 | I180: 0.927 | J180: -0.001 | M180: 1.296 | N180: 0.001 | O180: 1.485 | P180: 0.003 | Q180: 2.08 | R180: 0.001 | S180: 1.625 | T180: 0 | U180: 0.927 | V180: 0
A181: 1.347 | B181: -0.026 | C181: 1.535 | D181: -0.132 | E181: 2.13 | F181: -0.014 | G181: 1.675 | H181: 0 | I181: 0.977 | J181: -0.001 | M181: 1.347 | N181: 0 | O181: 1.535 | P181: 0.002 | Q181: 2.13 | R181: 0 | S181: 1.675 | T181: 0 | U181: 0.977 | V181: 0
A182: 1.397 | B182: -0.017 | C182: 1.585 | D182: -0.25 | E182: 2.18 | F182: -0.035 | G182: 1.725 | H182: 0 | I182: 1.027 | J182: -0.001 | M182: 1.397 | N182: 0 | O182: 1.585 | P182: 0.001 | Q182: 2.18 | R182: -0.002 | S182: 1.725 | T182: 0 | U182: 1.027 | V182: 0
A183: 1.447 | B183: -0.01 | C183: 1.636 | D183: -0.42 | E183: 2.23 | F183: -0.078 | G183: 1.775 | H183: 0 | I183: 1.077 | J183: -0.001 | M183: 1.447 | N183: 0 | O183: 1.636 | P183: 0 | Q183: 2.23 | R183: -0.007 | S183: 1.775 | T183: 0 | U183: 1.077 | V183: 0
A184: 1.497 | B184: -0.006 | C184: 1.686 | D184: -0.622 | E184: 2.28 | F184: -0.155 | G184: 1.826 | H184: 0 | I184: 1.127 | J184: -0.001 | M184: 1.497 | N184: 0 | O184: 1.686 | P184: 0 | Q184: 2.28 | R184: -0.018 | S184: 1.826 | T184: 0 | U184: 1.127 | V184: 0
A185: 1.547 | B185: -0.003 | C185: 1.736 | D185: -0.815 | E185: 2.331 | F185: -0.274 | G185: 1.876 | H185: 0 | I185: 1.177 | J185: -0.001 | M185: 1.547 | N185: 0 | O185: 1.736 | P185: 0 | Q185: 2.331 | R185: -0.034 | S185: 1.876 | T185: 0 | U185: 1.177 | V185: 0
A186: 1.597 | B186: -0.001 | C186: 1.786 | D186: -0.943 | E186: 2.381 | F186: -0.429 | G186: 1.926 | H186: -0.001 | I186: 1.228 | J186: -0.001 | M186: 1.597 | N186: 0 | O186: 1.786 | P186: 0 | Q186: 2.381 | R186: -0.057 | S186: 1.926 | T186: 0.001 | U186: 1.228 | V186: 0
A187: 1.647 | B187: -0.001 | C187: 1.836 | D187: -0.964 | E187: 2.431 | F187: -0.598 | G187: 1.976 | H187: -0.002 | I187: 1.278 | J187: -0.001 | M187: 1.647 | N187: 0 | O187: 1.836 | P187: 0 | Q187: 2.431 | R187: -0.084 | S187: 1.976 | T187: 0.001 | U187: 1.278 | V187: 0
A188: 1.698 | B188: -0.001 | C188: 1.886 | D188: -0.871 | E188: 2.481 | F188: -0.739 | G188: 2.026 | H188: -0.004 | I188: 1.328 | J188: 0 | M188: 1.698 | N188: 0 | O188: 1.886 | P188: 0 | Q188: 2.481 | R188: -0.109 | S188: 2.026 | T188: 0 | U188: 1.328 | V188: 0
A189: 1.748 | B189: -0.002 | C189: 1.936 | D189: -0.695 | E189: 2.531 | F189: -0.81 | G189: 2.076 | H189: -0.007 | I189: 1.378 | J189: 0 | M189: 1.748 | N189: 0 | O189: 1.936 | P189: 0 | Q189: 2.531 | R189: -0.125 | S189: 2.076 | T189: -0.002 | U189: 1.378 | V189: 0
A190: 1.798 | B190: -0.005 | C190: 1.986 | D190: -0.49 | E190: 2.581 | F190: -0.789 | G190: 2.126 | H190: -0.012 | I190: 1.428 | J190: 0 | M190: 1.798 | N190: 0 | O190: 1.986 | P190: 0 | Q190: 2.581 | R190: -0.128 | S190: 2.126 | T190: -0.009 | U190: 1.428 | V190: 0
A191: 1.848 | B191: -0.01 | C191: 2.037 | D191: -0.305 | E191: 2.631 | F191: -0.682 | G191: 2.177 | H191: -0.019 | I191: 1.478 | J191: 0 | M191: 1.848 | N191: 0 | O191: 2.037 | P191: 0 | Q191: 2.631 | R191: -0.116 | S191: 2.177 | T191: -0.021 | U191: 1.478 | V191: 0
A192: 1.898 | B192: -0.022 | C192: 2.087 | D192: -0.168 | E192: 2.682 | F192: -0.524 | G192: 2.227 | H192: -0.029 | I192: 1.528 | J192: 0 | M192: 1.898 | N192: 0.001 | O192: 2.087 | P192: 0 | Q192: 2.682 | R192: -0.094 | S192: 2.227 | T192: -0.039 | U192: 1.528 | V192: 0
A193: 1.948 | B193: -0.043 | C193: 2.137 | D193: -0.081 | E193: 2.732 | F193: -0.358 | G193: 2.277 | H193: -0.038 | I193: 1.579 | J193: 0 | M193: 1.948 | N193: 0.001 | O193: 2.137 | P193: -0.002 | Q193: 2.732 | R193: -0.067 | S193: 2.277 | T193: -0.06 | U193: 1.579 | V193: 0
A194: 1.998 | B194: -0.077 | C194: 2.187 | D194: -0.035 | E194: 2.782 | F194: -0.219 | G194: 2.327 | H194: -0.047 | I194: 1.629 | J194: 0 | M194: 1.998 | N194: 0.002 | O194: 2.187 | P194: -0.006 | Q194: 2.782 | R194: -0.042 | S194: 2.327 | T194: -0.081 | U194: 1.629 | V194: 0
A195: 2.049 | B195: -0.127 | C195: 2.237 | D195: -0.013 | E195: 2.832 | F195: -0.121 | G195: 2.377 | H195: -0.052 | I195: 1.679 | J195: 0 | M195: 2.049 | N195: 0.003 | O195: 2.237 | P195: -0.013 | Q195: 2.832 | R195: -0.023 | S195: 2.377 | T195: -0.098 | U195: 1.679 | V195: 0
A196: 2.099 | B196: -0.19 | C196: 2.287 | D196: -0.005 | E196: 2.882 | F196: -0.063 | G196: 2.427 | H196: -0.052 | I196: 1.729 | J196: 0 | M196: 2.099 | N196: 0.003 | O196: 2.287 | P196: -0.025 | Q196: 2.882 | R196: -0.011 | S196: 2.427 | T196: -0.105 | U196: 1.729 | V196: 0
A197: 2.149 | B197: -0.261 | C197: 2.337 | D197: -0.002 | E197: 2.932 | F197: -0.035 | G197: 2.477 | H197: -0.048 | I197: 1.779 | J197: 0 | M197: 2.149 | N197: 0.002 | O197: 2.337 | P197: -0.043 | Q197: 2.932 | R197: -0.004 | S197: 2.477 | T197: -0.101 | U197: 1.779 | V197: 0
A198: 2.199 | B198: -0.327 | C198: 2.388 | D198: -0.001 | E198: 2.982 | F198: -0.025 | G198: 2.528 | H198: -0.041 | I198: 1.829 | J198: 0 | M198: 2.199 | N198: -0.001 | O198: 2.388 | P198: -0.064 | Q198: 2.982 | R198: -0.002 | S198: 2.528 | T198: -0.086 | U198: 1.829 | V198: 0
A199: 2.249 | B199: -0.375 | C199: 2.438 | D199: -0.001 | E199: 3.033 | F199: -0.025 | G199: 2.578 | H199: -0.034 | I199: 1.879 | J199: 0 | M199: 2.249 | N199: -0.007 | O199: 2.438 | P199: -0.085 | Q199: 3.033 | R199: -0.002 | S199: 2.578 | T199: -0.066 | U199: 1.879 | V199: 0
A200: 2.299 | B200: -0.398 | C200: 2.488 | D200: -0.001 | E200: 3.083 | F200: -0.03 | G200: 2.628 | H200: -0.028 | I200: 1.929 | J200: 0 | M200: 2.299 | N200: -0.016 | O200: 2.488 | P200: -0.1 | Q200: 3.083 | R200: -0.003 | S200: 2.628 | T200: -0.046 | U200: 1.929 | V200: 0
... 108 more rows

Sheet Fig4e
A1: -3.91741 | B1: 1.9926 | C1: -2.56697 | D1: 0.59562 | E1: -2.44824 | F1: 1.73271 | G1: -2.03922 | H1: 1.87252 | I1: -1.40645 | J1: 0.00138
A2: -3.80241 | B2: 2.65067 | C2: -2.44997 | D2: 0.79818 | E2: -2.33224 | F2: 0.49226 | G2: -1.92022 | H2: 3.0108 | I2: -1.28645 | J2: 0
A3: -3.68741 | B3: 2.55934 | C3: -2.33397 | D3: 1.29701 | E3: -2.21624 | F3: 0.19361 | G3: -1.80022 | H3: 1.71459 | I3: -1.16745 | J3: 0.00235
A4: -3.57241 | B4: 1.87324 | C4: -2.21797 | D4: 1.00028 | E4: -2.09924 | F4: 0.13915 | G4: -1.68122 | H4: 0.29316 | I4: -1.04745 | J4: 0.1046
A5: -3.45741 | B5: 1.59542 | C5: -2.10097 | D5: 1.05521 | E5: -1.98324 | F5: 1.12377 | G5: -1.56122 | H5: 0.00874 | I5: -0.92745 | J5: 0.57218
A6: -3.34241 | B6: 1.68859 | C6: -1.98497 | D6: 0.35505 | E6: -1.86724 | F6: 4.84916 | G6: -1.44222 | H6: 0.00833 | I6: -0.80845 | J6: 1.12096
A7: -3.22741 | B7: 1.82453 | C7: -1.86897 | D7: 2.19343 | E7: -1.75124 | F7: 7.06764 | G7: -1.32222 | H7: 0.04668 | I7: -0.68845 | J7: 1.85788
A8: -3.11241 | B8: 3.04103 | C8: -1.75197 | D8: 6.44879 | E8: -1.63424 | F8: 5.24545 | G8: -1.20322 | H8: 0.04721 | I8: -0.56845 | J8: 3.67555
A9: -2.99741 | B9: 4.98182 | C9: -1.63597 | D9: 6.52173 | E9: -1.51824 | F9: 5.00881 | G9: -1.08322 | H9: 0.01911 | I9: -0.44945 | J9: 2.24099
A10: -2.88241 | B10: 7.07664 | C10: -1.51997 | D10: 3.2075 | E10: -1.40224 | F10: 3.10757 | G10: -0.96322 | H10: 0.02439 | I10: -0.32945 | J10: 0.24779
A11: -2.76741 | B11: 4.10227 | C11: -1.40297 | D11: 0.9481 | E11: -1.28624 | F11: 0.79427 | G11: -0.84422 | H11: 0.04563 | I11: -0.21045 | J11: 0.02483
A12: -2.65241 | B12: 0.92562 | C12: -1.28697 | D12: 0.45631 | E12: -1.16924 | F12: 0.41494 | G12: -0.72422 | H12: 0.02706 | I12: -0.09045 | J12: 0.00274
A13: -2.53741 | B13: 0.41463 | C13: -1.17097 | D13: 0.30333 | E13: -1.05324 | F13: 0.54901 | G13: -0.60522 | H13: 0.29341 | I13: 0.02955 | J13: 1.20E-04
A14: -2.42241 | B14: 0.74509 | C14: -1.05397 | D14: 1.39145 | E14: -0.93724 | F14: 0.43018 | G14: -0.48522 | H14: 1.54159 | I14: 0.14855 | J14: 0
A15: -2.30741 | B15: 2.38861 | C15: -0.93797 | D15: 2.22325 | E15: -0.82124 | F15: 0.09721 | G15: -0.36622 | H15: 0.84188 | I15: 0.26855 | J15: 0
A16: -2.19241 | B16: 3.04503 | C16: -0.82197 | D16: 0.91665 | E16: -0.70424 | F16: 0.252 | G16: -0.24622 | H16: 0.0441 | I16: 0.38855 | J16: 0
A17: -2.07741 | B17: 1.80037 | C17: -0.70497 | D17: 0.17856 | E17: -0.58824 | F17: 1.81153 | G17: -0.12722 | H17: 1.80E-04 | I17: 0.50755 | J17: 0
A18: -1.96241 | B18: 2.35977 | C18: -0.58897 | D18: 0.01347 | E18: -0.47224 | F18: 2.70111 | G18: -0.00722 | H18: 0 | I18: 0.62755 | J18: 0
A19: -1.84741 | B19: 2.25577 | C19: -0.47297 | D19: 1.40E-04 | E19: -0.35624 | F19: 1.04392 | G19: 0.11178 | H19: 0 | I19: 0.74655 | J19: 0
A20: -1.73241 | B20: 2.30846 | C20: -0.35597 | D20: 0 | E20: -0.24024 | F20: 0.06239 | G20: 0.23178 | H20: 0 | I20: 0.86655 | J20: 0
A21: -1.61741 | B21: 0.39079 | C21: -0.23997 | D21: 0 | E21: -0.12324 | F21: 3.70E-04 | G21: 0.35078 | H21: 0 | I21: 0.98655 | J21: 0
A22: -1.50241 | B22: 0.00696 | C22: -0.12397 | D22: 0 | E22: -0.00724 | F22: 0 | G22: 0.47078 | H22: 0 | I22: 1.10555 | J22: 0
A23: -1.38741 | B23: 1.00E-05 | C23: -0.00697 | D23: 0 | E23: 0.10876 | F23: 0 | G23: 0.58978 | H23: 0 | I23: 1.22555 | J23: 0
A24: -1.27241 | B24: 0 | C24: 0.10903 | D24: 0 | E24: 0.22476 | F24: 0 | G24: 0.70978 | H24: 0 | I24: 1.34555 | J24: 0
A25: -1.15741 | B25: 0 | C25: 0.22503 | D25: 0 | E25: 0.34176 | F25: 0 | G25: 0.82878 | H25: 0 | I25: 1.46455 | J25: 0
A26: -1.04241 | B26: 1.00E-05 | C26: 0.34203 | D26: 0 | E26: 0.45776 | F26: 0 | G26: 0.94878 | H26: 0 | I26: 1.58455 | J26: 0
A27: -0.92741 | B27: 0.00378 | C27: 0.45803 | D27: 0 | E27: 0.57376 | F27: 0 | G27: 1.06778 | H27: 2.00E-05 | I27: 1.70355 | J27: 0
A28: -0.81241 | B28: 0.13212 | C28: 0.57403 | D28: 0 | E28: 0.68976 | F28: 0 | G28: 1.18778 | H28: 0.00864 | I28: 1.82355 | J28: 0
A29: -0.69741 | B29: 0.50083 | C29: 0.69103 | D29: 0 | E29: 0.80676 | F29: 0 | G29: 1.30778 | H29: 0.25725 | I29: 1.94355 | J29: 0
A30: -0.58241 | B30: 0.80441 | C30: 0.80703 | D30: 0 | E30: 0.92276 | F30: 0 | G30: 1.42678 | H30: 0.69983 | I30: 2.06255 | J30: 0
A31: -0.46741 | B31: 2.24524 | C31: 0.92303 | D31: 0 | E31: 1.03876 | F31: 0 | G31: 1.54678 | H31: 0.35265 | I31: 2.18255 | J31: 0
A32: -0.35241 | B32: 1.31931 | C32: 1.04003 | D32: 0 | E32: 1.15476 | F32: 0 | G32: 1.66578 | H32: 1.67076 | I32: 2.30255 | J32: 1.70E-04
A33: -0.23741 | B33: 0.12346 | C33: 1.15603 | D33: 0 | E33: 1.27176 | F33: 0 | G33: 1.78578 | H33: 1.91435 | I33: 2.42155 | J33: 0.00545
A34: -0.12241 | B34: 0.00152 | C34: 1.27203 | D34: 0 | E34: 1.38776 | F34: 0 | G34: 1.90478 | H34: 0.24141 | I34: 2.54155 | J34: 0.02007
A35: -0.00741 | B35: 0 | C35: 1.38903 | D35: 0 | E35: 1.50376 | F35: 0 | G35: 2.02478 | H35: 0.0051 | I35: 2.66055 | J35: 0.05448
A36: 0.10759 | B36: 0 | C36: 1.50503 | D36: 0 | E36: 1.61976 | F36: 0 | G36: 2.14378 | H36: 0.01785 | I36: 2.78055 | J36: 0.12386
A37: 0.22259 | B37: 0 | C37: 1.62103 | D37: 0 | E37: 1.73676 | F37: 0 | G37: 2.26378 | H37: 0.01443 | I37: 2.90055 | J37: 0.03714
A38: 0.33759 | B38: 0 | C38: 1.73803 | D38: 0 | E38: 1.85276 | F38: 0 | G38: 2.38278 | H38: 0.02968 | I38: 3.01955 | J38: 0.00481
A39: 0.45259 | B39: 0 | C39: 1.85403 | D39: 2.00E-05 | E39: 1.96876 | F39: 9.20E-04 | G39: 2.50278 | H39: 0.11961 | I39: 3.13955 | J39: 0.0129
A40: 0.56759 | B40: 0 | C40: 1.97003 | D40: 0.00789 | E40: 2.08476 | F40: 0.06914 | G40: 2.62178 | H40: 0.06233 | I40: 3.25955 | J40: 0.02648
A41: 0.68259 | B41: 0 | C41: 2.08703 | D41: 0.23397 | E41: 2.20176 | F41: 0.58436 | G41: 2.74178 | H41: 0.05254 | I41: 3.37855 | J41: 0.04
A42: 0.79759 | B42: 2.40E-04 | C42: 2.20303 | D42: 0.79522 | E42: 2.31776 | F42: 0.86146 | G42: 2.86078 | H42: 0.11445 | I42: 3.49855 | J42: 0.01789
A43: 0.91259 | B43: 0.03041 | C43: 2.31903 | D43: 0.3533 | E43: 2.43376 | F43: 0.35477 | G43: 2.98078 | H43: 0.05516 | I43: 3.61755 | J43: 8.40E-04
A44: 1.02759 | B44: 0.44291 | C44: 2.43603 | D44: 0.13728 | E44: 2.54976 | F44: 0.81583 | G44: 3.09978 | H44: 0.13911 | I44: 3.73755 | J44: 3.20E-04
A45: 1.14259 | B45: 1.31588 | C45: 2.55203 | D45: 0.92366 | E45: 2.66676 | F45: 2.35251 | G45: 3.21978 | H45: 0.09494 | I45: 3.85755 | J45: 0.00691
A46: 1.25759 | B46: 1.73928 | C46: 2.66803 | D46: 1.12052 | E46: 2.78276 | F46: 2.52809 | G46: 3.33978 | H46: 0.0163 | I46: 3.97655 | J46: 0.01901
A47: 1.37259 | B47: 1.21626 | C47: 2.78503 | D47: 0.29994 | E47: 2.89876 | F47: 1.24861 | G47: 3.45878 | H47: 0.06409 | I47: 4.09655 | J47: 0.02448
A48: 1.48759 | B48: 0.47837 | C48: 2.90103 | D48: 0.41041 | E48: 3.01476 | F48: 0.27446 | G48: 3.57878 | H48: 0.04924 | I48: 4.21655 | J48: 0.06073
A49: 1.60259 | B49: 0.39245 | C49: 3.01703 | D49: 1.4897 | E49: 3.13176 | F49: 0.26701 | G49: 3.69778 | H49: 0.04072 | I49: 4.33555 | J49: 0.05372
A50: 1.71759 | B50: 0.60524 | C50: 3.13403 | D50: 1.73351 | E50: 3.24776 | F50: 0.65909 | G50: 3.81778 | H50: 0.02703 | I50: 4.45555 | J50: 0.04067
A51: 1.83259 | B51: 0.17662 | C51: 3.25003 | D51: 2.07065 | E51: 3.36376 | F51: 0.82573 | G51: 3.93678 | H51: 0.01593 | I51: 4.57455 | J51: 0.04471
A52: 1.94759 | B52: 0.08325 | C52: 3.36603 | D52: 0.96801 | E52: 3.47976 | F52: 0.26267 | G52: 4.05678 | H52: 0.03788 | I52: 4.69455 | J52: 0.05961
A53: 2.06259 | B53: 0.23804 | C53: 3.48303 | D53: 0.52655 | E53: 3.59676 | F53: 0.33666 | G53: 4.17578 | H53: 0.02801 | I53: 4.81455 | J53: 0.07793
A54: 2.17759 | B54: 0.26589 | C54: 3.59903 | D54: 0.9249 | E54: 3.71276 | F54: 0.42165 | G54: 4.29578 | H54: 0.01692 | I54: 4.93355 | J54: 0.09852
A55: 2.29259 | B55: 0.12953 | C55: 3.71503 | D55: 0.48795 | E55: 3.82876 | F55: 0.30686 | G55: 4.41478 | H55: 0.05128 | I55: 5.05355 | J55: 0.11231
A56: 2.40759 | B56: 0.14974 | C56: 3.83203 | D56: 0.28549 | E56: 3.94476 | F56: 0.32476 | G56: 4.53478 | H56: 0.14427 | I56: 5.17355 | J56: 0.12436
A57: 2.52259 | B57: 0.11442 | C57: 3.94803 | D57: 0.11537 | E57: 4.06176 | F57: 0.21519 | G57: 4.65378 | H57: 0.18527 | I57: 5.29255 | J57: 0.13941
A58: 2.63759 | B58: 0.13287 | C58: 4.06403 | D58: 0.10899 | E58: 4.17776 | F58: 0.12006 | G58: 4.77378 | H58: 0.08312 | I58: 5.41255 | J58: 0.20027
A59: 2.75259 | B59: 0.07226 | C59: 4.18103 | D59: 0.07624 | E59: 4.29376 | F59: 0.03378 | G59: 4.89278 | H59: 0.05009 | I59: 5.53155 | J59: 0.1686
A60: 2.86759 | B60: 0.05346 | C60: 4.29703 | D60: 0.02603 | E60: 4.40976 | F60: 0.05561 | G60: 5.01278 | H60: 0.07625 | I60: 5.65155 | J60: 0.06239
A61: 2.98259 | B61: 0.07748 | C61: 4.41303 | D61: 0.05653 | E61: 4.52676 | F61: 0.05609 | G61: 5.13178 | H61: 0.10604 | I61: 5.77155 | J61: 0.00947
A62: 3.09759 | B62: 0.04412 | C62: 4.53003 | D62: 0.15758 | E62: 4.64276 | F62: 0.05179 | G62: 5.25178 | H62: 0.04763 | I62: 5.89055 | J62: 0.00543
A63: 3.21259 | B63: 0.02402 | C63: 4.64603 | D63: 0.4057 | E63: 4.75876 | F63: 0.12245 | G63: 5.37078 | H63: 0.01973 | I63: 6.01055 | J63: 0.00756
A64: 3.32759 | B64: 0.03205 | C64: 4.76203 | D64: 0.46469 | E64: 4.87476 | F64: 0.28623 | G64: 5.49078 | H64: 0.00958 | I64: 6.13055 | J64: 0.00566
A65: 3.44259 | B65: 0.08969 | C65: 4.87903 | D65: 0.26341 | E65: 4.99176 | F65: 0.334 | G65: 5.61078 | H65: 0.00602 | I65: 6.24955 | J65: 0.01071
A66: 3.55859 | B66: 0.12944 | C66: 4.99503 | D66: 0.2411 | E66: 5.10776 | F66: 0.22748 | G66: 5.72978 | H66: 0.00685 | I66: 6.36955 | J66: 0.02558
A67: 3.67359 | B67: 0.16602 | C67: 5.11103 | D67: 0.25386 | E67: 5.22376 | F67: 0.12541 | G67: 5.84978 | H67: 0.00685 | I67: 6.48855 | J67: 0.05915
A68: 3.78859 | B68: 0.19662 | C68: 5.22803 | D68: 0.08029 | E68: 5.33976 | F68: 0.15907 | G68: 5.96878 | H68: 0.02456 | I68: 6.60855 | J68: 0.09059
A69: 3.90359 | B69: 0.16204 | C69: 5.34403 | D69: 0.03746 | E69: 5.45676 | F69: 0.23369 | G69: 6.08878 | H69: 0.04599 | I69: 6.72855 | J69: 0.06082
A70: 4.01859 | B70: 0.11373 | C70: 5.46003 | D70: 0.0335 | E70: 5.57276 | F70: 0.15052 | G70: 6.20778 | H70: 0.0143 | I70: 6.84755 | J70: 0.02094
A71: 4.13359 | B71: 0.16426 | C71: 5.57703 | D71: 0.01589 | E71: 5.68876 | F71: 0.06967 | G71: 6.32778 | H71: 0.00687 | I71: 6.96755 | J71: 0.01715
A72: 4.24859 | B72: 0.12127 | C72: 5.69303 | D72: 0.00193 | E72: 5.80476 | F72: 0.04042 | G72: 6.44678 | H72: 0.01392 | I72: 7.08755 | J72: 0.01244
A73: 4.36359 | B73: 0.06651 | C73: 5.80903 | D73: 0.0038 | E73: 5.92076 | F73: 0.0175 | G73: 6.56678 | H73: 0.0088 | I73: 7.20655 | J73: 0.01161
A74: 4.47859 | B74: 0.06398 | C74: 5.92603 | D74: 0.01561 | E74: 6.03776 | F74: 0.01892 | G74: 6.68578 | H74: 0.0054 | I74: 7.32655 | J74: 0.01487
A75: 4.59359 | B75: 0.03033 | C75: 6.04203 | D75: 0.04041 | E75: 6.15376 | F75: 0.01593 | G75: 6.80578 | H75: 0.00484 | I75: 7.44555 | J75: 0.01707
A76: 4.70859 | B76: 0.01358 | C76: 6.15803 | D76: 0.12184 | E76: 6.26976 | F76: 0.01865 | G76: 6.92478 | H76: 0.00476 | I76: 7.56555 | J76: 0.01458
A77: 4.82359 | B77: 0.01088 | C77: 6.27503 | D77: 0.07991 | E77: 6.38576 | F77: 0.06678 | G77: 7.04478 | H77: 0.00484 | I77: 7.68555 | J77: 0.01434
A78: 4.93859 | B78: 0.01713 | C78: 6.39103 | D78: 0.03338 | E78: 6.50276 | F78: 0.09301 | G78: 7.16378 | H78: 0.00441 | I78: 7.80455 | J78: 0.01537
A79: 5.05359 | B79: 0.04836 | C79: 6.50703 | D79: 0.03595 | E79: 6.61876 | F79: 0.03752 | G79: 7.28378 | H79: 0.00403 | I79: 7.92455 | J79: 0.01708
A80: 5.16859 | B80: 0.03861 | C80: 6.62403 | D80: 0.02096 | E80: 6.73476 | F80: 0.02127 | G80: 7.40278 | H80: 0.00418 | I80: 8.04455 | J80: 0.01761
A81: 5.28359 | B81: 0.02598 | C81: 6.74003 | D81: 0.0143 | E81: 6.85076 | F81: 0.02528 | G81: 7.52278 | H81: 0.00395 | I81: 8.16355 | J81: 0.021
A82: 5.39859 | B82: 0.05139 | C82: 6.85603 | D82: 0.01511 | E82: 6.96776 | F82: 0.01393 | G82: 7.64178 | H82: 0.00522 | I82: 8.28355 | J82: 0.0301
A83: 5.51359 | B83: 0.04763 | C83: 6.97303 | D83: 0.01697 | E83: 7.08376 | F83: 0.00896 | G83: 7.76178 | H83: 0.00639 | I83: 8.40255 | J83: 0.03411
A84: 5.62859 | B84: 0.02019 | C84: 7.08903 | D84: 0.012 | E84: 7.19976 | F84: 0.00796 | G84: 7.88178 | H84: 0.00917 | I84: 8.52255 | J84: 0.03176
A85: 5.74359 | B85: 0.01032 | C85: 7.20503 | D85: 0.00787 | E85: 7.31576 | F85: 0.01012 | G85: 8.00078 | H85: 0.01232 | I85: 8.64255 | J85: 0.03244
A86: 5.85859 | B86: 0.00799 | C86: 7.32203 | D86: 0.00826 | E86: 7.43276 | F86: 0.01119 | G86: 8.12078 | H86: 0.01446 | I86: 8.76155 | J86: 0.0255
A87: 5.97359 | B87: 0.00584 | C87: 7.43803 | D87: 0.01176 | E87: 7.54876 | F87: 0.00963 | G87: 8.23978 | H87: 0.01295 | I87: 8.88155 | J87: 0.02025
A88: 6.08859 | B88: 0.00729 | C88: 7.55403 | D88: 0.02356 | E88: 7.66476 | F88: 0.01013 | G88: 8.35978 | H88: 0.01302 | I88: 9.00155 | J88: 0.02455
A89: 6.20359 | B89: 0.00899 | C89: 7.67103 | D89: 0.03655 | E89: 7.78076 | F89: 0.00996 | G89: 8.47878 | H89: 0.01637 | I89: 9.12055 | J89: 0.02663
A90: 6.31859 | B90: 0.01181 | C90: 7.78703 | D90: 0.03999 | E90: 7.89776 | F90: 0.01068 | G90: 8.59878 | H90: 0.01778 | I90: 9.24055 | J90: 0.02413
A91: 6.43359 | B91: 0.01541 | C91: 7.90303 | D91: 0.02781 | E91: 8.01376 | F91: 0.0116 | G91: 8.71778 | H91: 0.01342 | I91: 9.35955 | J91: 0.03018
A92: 6.54859 | B92: 0.01624 | C92: 8.02003 | D92: 0.02568 | E92: 8.12976 | F92: 0.01372 | G92: 8.83778 | H92: 0.00891 | I92: 9.47955 | J92: 0.04177
A93: 6.66359 | B93: 0.01727 | C93: 8.13603 | D93: 0.03632 | E93: 8.24576 | F93: 0.02039 | G93: 8.95678 | H93: 0.0096 | I93: 9.59955 | J93: 0.04785
A94: 6.77859 | B94: 0.0207 | C94: 8.25203 | D94: 0.03358 | E94: 8.36276 | F94: 0.02681 | G94: 9.07678 | H94: 0.00945 | I94: 9.71855 | J94: 0.06438
A95: 6.89359 | B95: 0.01925 | C95: 8.36903 | D95: 0.03034 | E95: 8.47876 | F95: 0.02562 | G95: 9.19578 | H95: 0.00956 | I95: 9.83855 | J95: 0.07565
A96: 7.00859 | B96: 0.01691 | C96: 8.48503 | D96: 0.03343 | E96: 8.59476 | F96: 0.02313 | G96: 9.31578 | H96: 0.01028 | I96: 9.95855 | J96: 0.05989
A97: 7.12359 | B97: 0.01162 | C97: 8.60103 | D97: 0.03076 | E97: 8.71076 | F97: 0.02327 | G97: 9.43478 | H97: 0.01076 | I97: 10.07755 | J97: 0.05536
A98: 7.23859 | B98: 0.00966 | C98: 8.71803 | D98: 0.0272 | E98: 8.82776 | F98: 0.02631 | G98: 9.55478 | H98: 0.01244
A99: 7.35359 | B99: 0.01182 | C99: 8.83403 | D99: 0.02635 | E99: 8.94376 | F99: 0.02143 | G99: 9.67378 | H99: 0.01321
A100: 7.46859 | B100: 0.0189 | C100: 8.95003 | D100: 0.029 | E100: 9.05976 | F100: 0.01929 | G100: 9.79378 | H100: 0.01339
A101: 7.58359 | B101: 0.02938 | C101: 9.06703 | D101: 0.02693 | E101: 9.17576 | F101: 0.01839 | G101: 9.91278 | H101: 0.01586
A102: 7.69859 | B102: 0.03547 | C102: 9.18303 | D102: 0.02131 | E102: 9.29276 | F102: 0.01661 | G102: 10.03278 | H102: 0.02291
A103: 7.81359 | B103: 0.03752 | C103: 9.29903 | D103: 0.0271 | E103: 9.40876 | F103: 0.01302 | G103: 10.15278 | H103: 0.02798
A104: 7.92859 | B104: 0.03366 | C104: 9.41603 | D104: 0.03692 | E104: 9.52476 | F104: 0.00864
A105: 8.04359 | B105: 0.02585 | C105: 9.53203 | D105: 0.04258 | E105: 9.64076 | F105: 0.0105
A106: 8.15859 | B106: 0.02996 | C106: 9.64903 | D106: 0.04182 | E106: 9.75776 | F106: 0.01622
A107: 8.27359 | B107: 0.03629 | C107: 9.76503 | D107: 0.04548 | E107: 9.87376 | F107: 0.01891
A108: 8.38859 | B108: 0.03152 | C108: 9.88103 | D108: 0.06509 | E108: 9.98976 | F108: 0.01732
A109: 8.50359 | B109: 0.02912 | C109: 9.99803 | D109: 0.07506 | E109: 10.10576 | F109: 0.019
A110: 8.61859 | B110: 0.03516 | C110: 10.11403 | D110: 0.07146 | E110: 10.22276 | F110: 0.01954
A111: 8.73359 | B111: 0.02644 | C111: 10.23003 | D111: 0.04735 | E111: 10.33876 | F111: 0.01692
A112: 8.84859 | B112: 0.00923 | C112: 10.34703 | D112: 0.02221 | E112: 10.45476 | F112: 0.01251
A113: 8.96359 | B113: 6.80E-04 | C113: 10.46303 | D113: 0.00337 | E113: 10.57076 | F113: 0.00447
A114: 9.07859 | B114: 0 | C114: 10.57903 | D114: 8.00E-05 | E114: 10.68776 | F114: 4.90E-04
A115: 9.19359 | B115: 0 | C115: 10.69603 | D115: 0 | E115: 10.80376 | F115: 0
A116: 9.30859 | B116: 0 | C116: 10.81203 | D116: 0 | E116: 10.91976 | F116: 0
A117: 9.42359 | B117: 0
A118: 9.53859 | B118: 0
A119: 9.65359 | B119: 0
A120: 9.76859 | B120: 0
A121: 9.88359 | B121: 0
A122: 9.99859 | B122: 0
A123: 10.11359 | B123: 0
A124: 10.22859 | B124: 0
A125: 10.34359 | B125: 0
A126: 10.45859 | B126: 0

Sheet Fig4f
A1: mn | C1: fe | E1: co | G1: ni | I1: cu | L1: Mn-Ni | M1: -1.27 | N1: -0.705
A2: 7.02 | B2: 6.62924 | C2: 7.02 | D2: 0.66386 | E2: 7.02 | F2: 3.39699 | G2: 7.02 | H2: 3.25426 | I2: 7.02 | J2: 2.50921 | L2: Fe-Ni | M2: -1.22 | N2: -0.574
A3: 7.007 | B3: 6.58397 | C3: 7.007 | D3: 0.66663 | E3: 7.007 | F3: 3.40971 | G3: 7.007 | H3: 3.25144 | I3: 7.007 | J3: 2.51847 | L3: Co-Ni | M3: -1.15 | N3: -0.522
A4: 6.994 | B4: 6.53884 | C4: 6.994 | D4: 0.66938 | E4: 6.994 | F4: 3.42254 | G4: 6.994 | H4: 3.24949 | I4: 6.994 | J4: 2.52775 | L4: Ni-Ni | M4: -1.245 | N4: -0.548
A5: 6.981 | B5: 6.49399 | C5: 6.981 | D5: 0.67213 | E5: 6.981 | F5: 3.43547 | G5: 6.981 | H5: 3.24832 | I5: 6.981 | J5: 2.53702 | L5: Cu-Ni | M5: -1.337 | N5: -0.915
A6: 6.968 | B6: 6.44952 | C6: 6.968 | D6: 0.67486 | E6: 6.968 | F6: 3.44848 | G6: 6.968 | H6: 3.24781 | I6: 6.968 | J6: 2.54628
A7: 6.955 | B7: 6.40559 | C7: 6.955 | D7: 0.67759 | E7: 6.955 | F7: 3.46154 | G7: 6.955 | H7: 3.24784 | I7: 6.955 | J7: 2.55554
A8: 6.942 | B8: 6.36232 | C8: 6.942 | D8: 0.68032 | E8: 6.942 | F8: 3.47465 | G8: 6.942 | H8: 3.24827 | I8: 6.942 | J8: 2.56478
A9: 6.929 | B9: 6.31985 | C9: 6.929 | D9: 0.68307 | E9: 6.929 | F9: 3.48779 | G9: 6.929 | H9: 3.249 | I9: 6.929 | J9: 2.57402
A10: 6.915 | B10: 6.27831 | C10: 6.915 | D10: 0.68583 | E10: 6.915 | F10: 3.50094 | G10: 6.915 | H10: 3.24988 | I10: 6.915 | J10: 2.58327
A11: 6.902 | B11: 6.2378 | C11: 6.902 | D11: 0.68862 | E11: 6.902 | F11: 3.51411 | G11: 6.902 | H11: 3.2508 | I11: 6.902 | J11: 2.59253
A12: 6.889 | B12: 6.19842 | C12: 6.889 | D12: 0.69144 | E12: 6.889 | F12: 3.52731 | G12: 6.889 | H12: 3.25168 | I12: 6.889 | J12: 2.60182
A13: 6.876 | B13: 6.16023 | C13: 6.876 | D13: 0.69431 | E13: 6.876 | F13: 3.54055 | G13: 6.876 | H13: 3.25244 | I13: 6.876 | J13: 2.61114
A14: 6.863 | B14: 6.12322 | C14: 6.863 | D14: 0.69722 | E14: 6.863 | F14: 3.55383 | G14: 6.863 | H14: 3.25302 | I14: 6.863 | J14: 2.62051
A15: 6.85 | B15: 6.08742 | C15: 6.85 | D15: 0.70018 | E15: 6.85 | F15: 3.56719 | G15: 6.85 | H15: 3.25339 | I15: 6.85 | J15: 2.62993
A16: 6.837 | B16: 6.05274 | C16: 6.837 | D16: 0.70319 | E16: 6.837 | F16: 3.58066 | G16: 6.837 | H16: 3.25351 | I16: 6.837 | J16: 2.6394
A17: 6.824 | B17: 6.01914 | C17: 6.824 | D17: 0.70627 | E17: 6.824 | F17: 3.59424 | G17: 6.824 | H17: 3.2534 | I17: 6.824 | J17: 2.64892
A18: 6.811 | B18: 5.98651 | C18: 6.811 | D18: 0.70939 | E18: 6.811 | F18: 3.60797 | G18: 6.811 | H18: 3.25306 | I18: 6.811 | J18: 2.65848
A19: 6.798 | B19: 5.95474 | C19: 6.798 | D19: 0.71257 | E19: 6.798 | F19: 3.62187 | G19: 6.798 | H19: 3.25248 | I19: 6.798 | J19: 2.66808
A20: 6.785 | B20: 5.92376 | C20: 6.785 | D20: 0.7158 | E20: 6.785 | F20: 3.63595 | G20: 6.785 | H20: 3.25169 | I20: 6.785 | J20: 2.67771
A21: 6.771 | B21: 5.89347 | C21: 6.771 | D21: 0.71907 | E21: 6.771 | F21: 3.65022 | G21: 6.771 | H21: 3.25069 | I21: 6.771 | J21: 2.68737
A22: 6.758 | B22: 5.86377 | C22: 6.758 | D22: 0.72238 | E22: 6.758 | F22: 3.6647 | G22: 6.758 | H22: 3.24949 | I22: 6.758 | J22: 2.69703
A23: 6.745 | B23: 5.83461 | C23: 6.745 | D23: 0.72573 | E23: 6.745 | F23: 3.67939 | G23: 6.745 | H23: 3.24809 | I23: 6.745 | J23: 2.7067
A24: 6.732 | B24: 5.8059 | C24: 6.732 | D24: 0.72912 | E24: 6.732 | F24: 3.69429 | G24: 6.732 | H24: 3.24648 | I24: 6.732 | J24: 2.71638
A25: 6.719 | B25: 5.77759 | C25: 6.719 | D25: 0.73254 | E25: 6.719 | F25: 3.70939 | G25: 6.719 | H25: 3.24464 | I25: 6.719 | J25: 2.72607
A26: 6.706 | B26: 5.74961 | C26: 6.706 | D26: 0.73599 | E26: 6.706 | F26: 3.72469 | G26: 6.706 | H26: 3.24254 | I26: 6.706 | J26: 2.73577
A27: 6.693 | B27: 5.7219 | C27: 6.693 | D27: 0.73948 | E27: 6.693 | F27: 3.74017 | G27: 6.693 | H27: 3.24015 | I27: 6.693 | J27: 2.74549
A28: 6.68 | B28: 5.69439 | C28: 6.68 | D28: 0.74302 | E28: 6.68 | F28: 3.75581 | G28: 6.68 | H28: 3.23742 | I28: 6.68 | J28: 2.75523
A29: 6.667 | B29: 5.66701 | C29: 6.667 | D29: 0.74662 | E29: 6.667 | F29: 3.77159 | G29: 6.667 | H29: 3.23429 | I29: 6.667 | J29: 2.765
A30: 6.654 | B30: 5.63968 | C30: 6.654 | D30: 0.75028 | E30: 6.654 | F30: 3.78748 | G30: 6.654 | H30: 3.23072 | I30: 6.654 | J30: 2.77482
A31: 6.64 | B31: 5.61236 | C31: 6.64 | D31: 0.75402 | E31: 6.64 | F31: 3.80346 | G31: 6.64 | H31: 3.22665 | I31: 6.64 | J31: 2.7847
A32: 6.627 | B32: 5.58497 | C32: 6.627 | D32: 0.75784 | E32: 6.627 | F32: 3.81949 | G32: 6.627 | H32: 3.22204 | I32: 6.627 | J32: 2.79465
A33: 6.614 | B33: 5.55752 | C33: 6.614 | D33: 0.76174 | E33: 6.614 | F33: 3.83555 | G33: 6.614 | H33: 3.21686 | I33: 6.614 | J33: 2.80469
A34: 6.601 | B34: 5.52997 | C34: 6.601 | D34: 0.76573 | E34: 6.601 | F34: 3.85161 | G34: 6.601 | H34: 3.21112 | I34: 6.601 | J34: 2.81482
A35: 6.588 | B35: 5.5023 | C35: 6.588 | D35: 0.76979 | E35: 6.588 | F35: 3.86763 | G35: 6.588 | H35: 3.20485 | I35: 6.588 | J35: 2.82506
A36: 6.575 | B36: 5.47455 | C36: 6.575 | D36: 0.77392 | E36: 6.575 | F36: 3.8836 | G36: 6.575 | H36: 3.19808 | I36: 6.575 | J36: 2.83543
A37: 6.562 | B37: 5.44671 | C37: 6.562 | D37: 0.77811 | E37: 6.562 | F37: 3.89948 | G37: 6.562 | H37: 3.19092 | I37: 6.562 | J37: 2.84593
A38: 6.549 | B38: 5.41881 | C38: 6.549 | D38: 0.78235 | E38: 6.549 | F38: 3.91525 | G38: 6.549 | H38: 3.18348 | I38: 6.549 | J38: 2.85658
A39: 6.536 | B39: 5.39089 | C39: 6.536 | D39: 0.78661 | E39: 6.536 | F39: 3.93089 | G39: 6.536 | H39: 3.17587 | I39: 6.536 | J39: 2.8674
A40: 6.523 | B40: 5.36296 | C40: 6.523 | D40: 0.79089 | E40: 6.523 | F40: 3.94638 | G40: 6.523 | H40: 3.16824 | I40: 6.523 | J40: 2.87837
A41: 6.51 | B41: 5.33505 | C41: 6.51 | D41: 0.79517 | E41: 6.51 | F41: 3.96172 | G41: 6.51 | H41: 3.16072 | I41: 6.51 | J41: 2.88953
A42: 6.496 | B42: 5.30719 | C42: 6.496 | D42: 0.79943 | E42: 6.496 | F42: 3.97688 | G42: 6.496 | H42: 3.15342 | I42: 6.496 | J42: 2.90087
A43: 6.483 | B43: 5.27941 | C43: 6.483 | D43: 0.80367 | E43: 6.483 | F43: 3.99188 | G43: 6.483 | H43: 3.14646 | I43: 6.483 | J43: 2.91239
A44: 6.47 | B44: 5.25175 | C44: 6.47 | D44: 0.80786 | E44: 6.47 | F44: 4.00672 | G44: 6.47 | H44: 3.1399 | I44: 6.47 | J44: 2.92409
A45: 6.457 | B45: 5.22423 | C45: 6.457 | D45: 0.812 | E45: 6.457 | F45: 4.02144 | G45: 6.457 | H45: 3.13378 | I45: 6.457 | J45: 2.93598
A46: 6.444 | B46: 5.19689 | C46: 6.444 | D46: 0.81607 | E46: 6.444 | F46: 4.03604 | G46: 6.444 | H46: 3.12811 | I46: 6.444 | J46: 2.94804
A47: 6.431 | B47: 5.16978 | C47: 6.431 | D47: 0.82006 | E47: 6.431 | F47: 4.05055 | G47: 6.431 | H47: 3.12286 | I47: 6.431 | J47: 2.96026
A48: 6.418 | B48: 5.14297 | C48: 6.418 | D48: 0.82396 | E48: 6.418 | F48: 4.06502 | G48: 6.418 | H48: 3.11798 | I48: 6.418 | J48: 2.97262
A49: 6.405 | B49: 5.1165 | C49: 6.405 | D49: 0.82775 | E49: 6.405 | F49: 4.07947 | G49: 6.405 | H49: 3.11339 | I49: 6.405 | J49: 2.98511
A50: 6.392 | B50: 5.09045 | C50: 6.392 | D50: 0.83142 | E50: 6.392 | F50: 4.09393 | G50: 6.392 | H50: 3.109 | I50: 6.392 | J50: 2.99769
A51: 6.379 | B51: 5.06487 | C51: 6.379 | D51: 0.83495 | E51: 6.379 | F51: 4.10844 | G51: 6.379 | H51: 3.10472 | I51: 6.379 | J51: 3.01034
A52: 6.366 | B52: 5.03982 | C52: 6.366 | D52: 0.83832 | E52: 6.366 | F52: 4.12304 | G52: 6.366 | H52: 3.10045 | I52: 6.366 | J52: 3.02302
A53: 6.352 | B53: 5.01537 | C53: 6.352 | D53: 0.84154 | E53: 6.352 | F53: 4.13775 | G53: 6.352 | H53: 3.0961 | I53: 6.352 | J53: 3.03572
A54: 6.339 | B54: 4.99155 | C54: 6.339 | D54: 0.84458 | E54: 6.339 | F54: 4.1526 | G54: 6.339 | H54: 3.09159 | I54: 6.339 | J54: 3.04838
A55: 6.326 | B55: 4.96838 | C55: 6.326 | D55: 0.84745 | E55: 6.326 | F55: 4.16763 | G55: 6.326 | H55: 3.08685 | I55: 6.326 | J55: 3.06099
A56: 6.313 | B56: 4.94587 | C56: 6.313 | D56: 0.85015 | E56: 6.313 | F56: 4.18286 | G56: 6.313 | H56: 3.08183 | I56: 6.313 | J56: 3.07351
A57: 6.3 | B57: 4.924 | C57: 6.3 | D57: 0.85268 | E57: 6.3 | F57: 4.1983 | G57: 6.3 | H57: 3.07649 | I57: 6.3 | J57: 3.08594
A58: 6.287 | B58: 4.90274 | C58: 6.287 | D58: 0.85506 | E58: 6.287 | F58: 4.21397 | G58: 6.287 | H58: 3.0708 | I58: 6.287 | J58: 3.09825
A59: 6.274 | B59: 4.88204 | C59: 6.274 | D59: 0.85732 | E59: 6.274 | F59: 4.22987 | G59: 6.274 | H59: 3.06477 | I59: 6.274 | J59: 3.11046
A60: 6.261 | B60: 4.86184 | C60: 6.261 | D60: 0.85946 | E60: 6.261 | F60: 4.24598 | G60: 6.261 | H60: 3.05839 | I60: 6.261 | J60: 3.12255
A61: 6.248 | B61: 4.84207 | C61: 6.248 | D61: 0.86151 | E61: 6.248 | F61: 4.2623 | G61: 6.248 | H61: 3.05169 | I61: 6.248 | J61: 3.13455
A62: 6.235 | B62: 4.82266 | C62: 6.235 | D62: 0.86351 | E62: 6.235 | F62: 4.27881 | G62: 6.235 | H62: 3.04472 | I62: 6.235 | J62: 3.14647
A63: 6.221 | B63: 4.80355 | C63: 6.221 | D63: 0.86548 | E63: 6.221 | F63: 4.29548 | G63: 6.221 | H63: 3.03754 | I63: 6.221 | J63: 3.15835
A64: 6.208 | B64: 4.78467 | C64: 6.208 | D64: 0.86745 | E64: 6.208 | F64: 4.3123 | G64: 6.208 | H64: 3.03023 | I64: 6.208 | J64: 3.17022
A65: 6.195 | B65: 4.76597 | C65: 6.195 | D65: 0.86944 | E65: 6.195 | F65: 4.32925 | G65: 6.195 | H65: 3.0229 | I65: 6.195 | J65: 3.18211
A66: 6.182 | B66: 4.74739 | C66: 6.182 | D66: 0.87147 | E66: 6.182 | F66: 4.34632 | G66: 6.182 | H66: 3.01566 | I66: 6.182 | J66: 3.19407
A67: 6.169 | B67: 4.72888 | C67: 6.169 | D67: 0.87357 | E67: 6.169 | F67: 4.3635 | G67: 6.169 | H67: 3.00864 | I67: 6.169 | J67: 3.20612
A68: 6.156 | B68: 4.71038 | C68: 6.156 | D68: 0.87576 | E68: 6.156 | F68: 4.3808 | G68: 6.156 | H68: 3.00196 | I68: 6.156 | J68: 3.21831
A69: 6.143 | B69: 4.69187 | C69: 6.143 | D69: 0.87804 | E69: 6.143 | F69: 4.39821 | G69: 6.143 | H69: 2.99574 | I69: 6.143 | J69: 3.23067
A70: 6.13 | B70: 4.67329 | C70: 6.13 | D70: 0.88043 | E70: 6.13 | F70: 4.41574 | G70: 6.13 | H70: 2.99006 | I70: 6.13 | J70: 3.24322
A71: 6.117 | B71: 4.6546 | C71: 6.117 | D71: 0.88294 | E71: 6.117 | F71: 4.43341 | G71: 6.117 | H71: 2.985 | I71: 6.117 | J71: 3.25599
A72: 6.104 | B72: 4.6358 | C72: 6.104 | D72: 0.88557 | E72: 6.104 | F72: 4.45121 | G72: 6.104 | H72: 2.9806 | I72: 6.104 | J72: 3.26899
A73: 6.091 | B73: 4.61686 | C73: 6.091 | D73: 0.88832 | E73: 6.091 | F73: 4.46916 | G73: 6.091 | H73: 2.97688 | I73: 6.091 | J73: 3.28222
A74: 6.077 | B74: 4.59777 | C74: 6.077 | D74: 0.8912 | E74: 6.077 | F74: 4.48724 | G74: 6.077 | H74: 2.9738 | I74: 6.077 | J74: 3.29568
A75: 6.064 | B75: 4.57856 | C75: 6.064 | D75: 0.89419 | E75: 6.064 | F75: 4.50546 | G75: 6.064 | H75: 2.97134 | I75: 6.064 | J75: 3.30936
A76: 6.051 | B76: 4.55925 | C76: 6.051 | D76: 0.89729 | E76: 6.051 | F76: 4.52381 | G76: 6.051 | H76: 2.96942 | I76: 6.051 | J76: 3.32325
A77: 6.038 | B77: 4.5399 | C77: 6.038 | D77: 0.9005 | E77: 6.038 | F77: 4.54227 | G77: 6.038 | H77: 2.96799 | I77: 6.038 | J77: 3.33733
A78: 6.025 | B78: 4.52055 | C78: 6.025 | D78: 0.90378 | E78: 6.025 | F78: 4.56083 | G78: 6.025 | H78: 2.96694 | I78: 6.025 | J78: 3.35155
A79: 6.012 | B79: 4.50128 | C79: 6.012 | D79: 0.90715 | E79: 6.012 | F79: 4.57948 | G79: 6.012 | H79: 2.9662 | I79: 6.012 | J79: 3.36591
A80: 5.999 | B80: 4.48217 | C80: 5.999 | D80: 0.91058 | E80: 5.999 | F80: 4.59819 | G80: 5.999 | H80: 2.96571 | I80: 5.999 | J80: 3.38035
A81: 5.986 | B81: 4.46332 | C81: 5.986 | D81: 0.91407 | E81: 5.986 | F81: 4.61697 | G81: 5.986 | H81: 2.9654 | I81: 5.986 | J81: 3.39485
A82: 5.973 | B82: 4.44483 | C82: 5.973 | D82: 0.91761 | E82: 5.973 | F82: 4.6358 | G82: 5.973 | H82: 2.9652 | I82: 5.973 | J82: 3.40938
A83: 5.96 | B83: 4.4268 | C83: 5.96 | D83: 0.9212 | E83: 5.96 | F83: 4.65469 | G83: 5.96 | H83: 2.96509 | I83: 5.96 | J83: 3.4239
A84: 5.946 | B84: 4.40933 | C84: 5.946 | D84: 0.92483 | E84: 5.946 | F84: 4.67364 | G84: 5.946 | H84: 2.96503 | I84: 5.946 | J84: 3.43838
A85: 5.933 | B85: 4.39251 | C85: 5.933 | D85: 0.92851 | E85: 5.933 | F85: 4.69266 | G85: 5.933 | H85: 2.96499 | I85: 5.933 | J85: 3.4528
A86: 5.92 | B86: 4.37642 | C86: 5.92 | D86: 0.93222 | E86: 5.92 | F86: 4.71175 | G86: 5.92 | H86: 2.96495 | I86: 5.92 | J86: 3.46714
A87: 5.907 | B87: 4.36113 | C87: 5.907 | D87: 0.93599 | E87: 5.907 | F87: 4.73092 | G87: 5.907 | H87: 2.96489 | I87: 5.907 | J87: 3.48138
A88: 5.894 | B88: 4.3467 | C88: 5.894 | D88: 0.93981 | E88: 5.894 | F88: 4.75018 | G88: 5.894 | H88: 2.96476 | I88: 5.894 | J88: 3.49553
A89: 5.881 | B89: 4.33315 | C89: 5.881 | D89: 0.94368 | E89: 5.881 | F89: 4.76953 | G89: 5.881 | H89: 2.96455 | I89: 5.881 | J89: 3.5096
A90: 5.868 | B90: 4.32049 | C90: 5.868 | D90: 0.94761 | E90: 5.868 | F90: 4.78898 | G90: 5.868 | H90: 2.9642 | I90: 5.868 | J90: 3.52357
A91: 5.855 | B91: 4.30872 | C91: 5.855 | D91: 0.9516 | E91: 5.855 | F91: 4.8085 | G91: 5.855 | H91: 2.96369 | I91: 5.855 | J91: 3.53749
A92: 5.842 | B92: 4.29779 | C92: 5.842 | D92: 0.95567 | E92: 5.842 | F92: 4.8281 | G92: 5.842 | H92: 2.96299 | I92: 5.842 | J92: 3.55136
A93: 5.829 | B93: 4.28764 | C93: 5.829 | D93: 0.95982 | E93: 5.829 | F93: 4.84775 | G93: 5.829 | H93: 2.96207 | I93: 5.829 | J93: 3.56521
A94: 5.816 | B94: 4.2782 | C94: 5.816 | D94: 0.96406 | E94: 5.816 | F94: 4.86742 | G94: 5.816 | H94: 2.96093 | I94: 5.816 | J94: 3.57906
A95: 5.802 | B95: 4.26938 | C95: 5.802 | D95: 0.9684 | E95: 5.802 | F95: 4.8871 | G95: 5.802 | H95: 2.95959 | I95: 5.802 | J95: 3.59294
A96: 5.789 | B96: 4.26106 | C96: 5.789 | D96: 0.97284 | E96: 5.789 | F96: 4.90677 | G96: 5.789 | H96: 2.95807 | I96: 5.789 | J96: 3.60688
A97: 5.776 | B97: 4.25316 | C97: 5.776 | D97: 0.9774 | E97: 5.776 | F97: 4.92639 | G97: 5.776 | H97: 2.95643 | I97: 5.776 | J97: 3.6209
A98: 5.763 | B98: 4.24556 | C98: 5.763 | D98: 0.98207 | E98: 5.763 | F98: 4.94596 | G98: 5.763 | H98: 2.95472 | I98: 5.763 | J98: 3.63501
A99: 5.75 | B99: 4.23817 | C99: 5.75 | D99: 0.98685 | E99: 5.75 | F99: 4.96544 | G99: 5.75 | H99: 2.95303 | I99: 5.75 | J99: 3.64924
A100: 5.737 | B100: 4.23091 | C100: 5.737 | D100: 0.99176 | E100: 5.737 | F100: 4.98484 | G100: 5.737 | H100: 2.95142 | I100: 5.737 | J100: 3.6636
A101: 5.724 | B101: 4.22372 | C101: 5.724 | D101: 0.99677 | E101: 5.724 | F101: 5.00417 | G101: 5.724 | H101: 2.94996 | I101: 5.724 | J101: 3.6781
A102: 5.711 | B102: 4.21652 | C102: 5.711 | D102: 1.0019 | E102: 5.711 | F102: 5.02342 | G102: 5.711 | H102: 2.94873 | I102: 5.711 | J102: 3.69275
A103: 5.698 | B103: 4.20929 | C103: 5.698 | D103: 1.00713 | E103: 5.698 | F103: 5.04262 | G103: 5.698 | H103: 2.94777 | I103: 5.698 | J103: 3.70755
A104: 5.685 | B104: 4.20198 | C104: 5.685 | D104: 1.01245 | E104: 5.685 | F104: 5.06178 | G104: 5.685 | H104: 2.94713 | I104: 5.685 | J104: 3.72251
A105: 5.672 | B105: 4.19461 | C105: 5.672 | D105: 1.01784 | E105: 5.672 | F105: 5.08095 | G105: 5.672 | H105: 2.94685 | I105: 5.672 | J105: 3.73764
A106: 5.658 | B106: 4.18715 | C106: 5.658 | D106: 1.02329 | E106: 5.658 | F106: 5.10015 | G106: 5.658 | H106: 2.94696 | I106: 5.658 | J106: 3.75292
A107: 5.645 | B107: 4.17961 | C107: 5.645 | D107: 1.02877 | E107: 5.645 | F107: 5.11943 | G107: 5.645 | H107: 2.94746 | I107: 5.645 | J107: 3.76836
A108: 5.632 | B108: 4.17201 | C108: 5.632 | D108: 1.03428 | E108: 5.632 | F108: 5.1388 | G108: 5.632 | H108: 2.94839 | I108: 5.632 | J108: 3.78394
A109: 5.619 | B109: 4.16436 | C109: 5.619 | D109: 1.03977 | E109: 5.619 | F109: 5.1583 | G109: 5.619 | H109: 2.94975 | I109: 5.619 | J109: 3.79967
A110: 5.606 | B110: 4.15666 | C110: 5.606 | D110: 1.04523 | E110: 5.606 | F110: 5.17794 | G110: 5.606 | H110: 2.95156 | I110: 5.606 | J110: 3.81551
A111: 5.593 | B111: 4.14893 | C111: 5.593 | D111: 1.05064 | E111: 5.593 | F111: 5.19775 | G111: 5.593 | H111: 2.95386 | I111: 5.593 | J111: 3.83148
A112: 5.58 | B112: 4.14115 | C112: 5.58 | D112: 1.05597 | E112: 5.58 | F112: 5.21773 | G112: 5.58 | H112: 2.95668 | I112: 5.58 | J112: 3.84755
A113: 5.567 | B113: 4.13333 | C113: 5.567 | D113: 1.06122 | E113: 5.567 | F113: 5.23789 | G113: 5.567 | H113: 2.96005 | I113: 5.567 | J113: 3.86371
A114: 5.554 | B114: 4.12542 | C114: 5.554 | D114: 1.06636 | E114: 5.554 | F114: 5.25821 | G114: 5.554 | H114: 2.96401 | I114: 5.554 | J114: 3.87997
A115: 5.541 | B115: 4.11741 | C115: 5.541 | D115: 1.07139 | E115: 5.541 | F115: 5.27872 | G115: 5.541 | H115: 2.96859 | I115: 5.541 | J115: 3.89631
A116: 5.527 | B116: 4.10926 | C116: 5.527 | D116: 1.07631 | E116: 5.527 | F116: 5.29941 | G116: 5.527 | H116: 2.97383 | I116: 5.527 | J116: 3.91274
A117: 5.514 | B117: 4.10093 | C117: 5.514 | D117: 1.08114 | E117: 5.514 | F117: 5.32028 | G117: 5.514 | H117: 2.97976 | I117: 5.514 | J117: 3.92925
A118: 5.501 | B118: 4.09239 | C118: 5.501 | D118: 1.08587 | E118: 5.501 | F118: 5.34135 | G118: 5.501 | H118: 2.98637 | I118: 5.501 | J118: 3.94585
A119: 5.488 | B119: 4.08359 | C119: 5.488 | D119: 1.09053 | E119: 5.488 | F119: 5.36261 | G119: 5.488 | H119: 2.99364 | I119: 5.488 | J119: 3.96253
A120: 5.475 | B120: 4.07453 | C120: 5.475 | D120: 1.09513 | E120: 5.475 | F120: 5.38409 | G120: 5.475 | H120: 3.00153 | I120: 5.475 | J120: 3.9793
A121: 5.462 | B121: 4.06517 | C121: 5.462 | D121: 1.09969 | E121: 5.462 | F121: 5.40578 | G121: 5.462 | H121: 3.00996 | I121: 5.462 | J121: 3.99617
A122: 5.449 | B122: 4.05551 | C122: 5.449 | D122: 1.10424 | E122: 5.449 | F122: 5.4277 | G122: 5.449 | H122: 3.01884 | I122: 5.449 | J122: 4.01315
A123: 5.436 | B123: 4.04555 | C123: 5.436 | D123: 1.1088 | E123: 5.436 | F123: 5.44984 | G123: 5.436 | H123: 3.02803 | I123: 5.436 | J123: 4.03023
A124: 5.423 | B124: 4.03527 | C124: 5.423 | D124: 1.11339 | E124: 5.423 | F124: 5.4722 | G124: 5.423 | H124: 3.03738 | I124: 5.423 | J124: 4.04743
A125: 5.41 | B125: 4.02468 | C125: 5.41 | D125: 1.11802 | E125: 5.41 | F125: 5.49477 | G125: 5.41 | H125: 3.04673 | I125: 5.41 | J125: 4.06475
A126: 5.397 | B126: 4.01376 | C126: 5.397 | D126: 1.12271 | E126: 5.397 | F126: 5.51755 | G126: 5.397 | H126: 3.05592 | I126: 5.397 | J126: 4.08219
A127: 5.383 | B127: 4.00251 | C127: 5.383 | D127: 1.12747 | E127: 5.383 | F127: 5.54053 | G127: 5.383 | H127: 3.06479 | I127: 5.383 | J127: 4.09976
A128: 5.37 | B128: 3.99093 | C128: 5.37 | D128: 1.13232 | E128: 5.37 | F128: 5.56369 | G128: 5.37 | H128: 3.0732 | I128: 5.37 | J128: 4.11745
A129: 5.357 | B129: 3.97901 | C129: 5.357 | D129: 1.13725 | E129: 5.357 | F129: 5.58703 | G129: 5.357 | H129: 3.08103 | I129: 5.357 | J129: 4.13526
A130: 5.344 | B130: 3.96675 | C130: 5.344 | D130: 1.14228 | E130: 5.344 | F130: 5.61054 | G130: 5.344 | H130: 3.08821 | I130: 5.344 | J130: 4.15319
A131: 5.331 | B131: 3.95417 | C131: 5.331 | D131: 1.14739 | E131: 5.331 | F131: 5.63422 | G131: 5.331 | H131: 3.09469 | I131: 5.331 | J131: 4.17123
A132: 5.318 | B132: 3.94129 | C132: 5.318 | D132: 1.15258 | E132: 5.318 | F132: 5.65806 | G132: 5.318 | H132: 3.10047 | I132: 5.318 | J132: 4.18938
A133: 5.305 | B133: 3.92815 | C133: 5.305 | D133: 1.15786 | E133: 5.305 | F133: 5.68205 | G133: 5.305 | H133: 3.10557 | I133: 5.305 | J133: 4.20763
A134: 5.292 | B134: 3.91479 | C134: 5.292 | D134: 1.1632 | E134: 5.292 | F134: 5.70617 | G134: 5.292 | H134: 3.11006 | I134: 5.292 | J134: 4.22597
A135: 5.279 | B135: 3.90127 | C135: 5.279 | D135: 1.1686 | E135: 5.279 | F135: 5.73041 | G135: 5.279 | H135: 3.11401 | I135: 5.279 | J135: 4.24441
A136: 5.266 | B136: 3.88765 | C136: 5.266 | D136: 1.17404 | E136: 5.266 | F136: 5.75474 | G136: 5.266 | H136: 3.11752 | I136: 5.266 | J136: 4.26293
A137: 5.253 | B137: 3.87399 | C137: 5.253 | D137: 1.17953 | E137: 5.253 | F137: 5.77913 | G137: 5.253 | H137: 3.12072 | I137: 5.253 | J137: 4.28153
A138: 5.239 | B138: 3.86036 | C138: 5.239 | D138: 1.18504 | E138: 5.239 | F138: 5.80355 | G138: 5.239 | H138: 3.12374 | I138: 5.239 | J138: 4.3002
A139: 5.226 | B139: 3.8468 | C139: 5.226 | D139: 1.19057 | E139: 5.226 | F139: 5.82798 | G139: 5.226 | H139: 3.12668 | I139: 5.226 | J139: 4.31896
A140: 5.213 | B140: 3.83337 | C140: 5.213 | D140: 1.19612 | E140: 5.213 | F140: 5.85238 | G140: 5.213 | H140: 3.12969 | I140: 5.213 | J140: 4.33778
A141: 5.2 | B141: 3.82014 | C141: 5.2 | D141: 1.20168 | E141: 5.2 | F141: 5.87672 | G141: 5.2 | H141: 3.13285 | I141: 5.2 | J141: 4.35668
A142: 5.187 | B142: 3.80715 | C142: 5.187 | D142: 1.20726 | E142: 5.187 | F142: 5.90097 | G142: 5.187 | H142: 3.13628 | I142: 5.187 | J142: 4.37565
A143: 5.174 | B143: 3.79447 | C143: 5.174 | D143: 1.21284 | E143: 5.174 | F143: 5.92514 | G143: 5.174 | H143: 3.14005 | I143: 5.174 | J143: 4.39471
A144: 5.161 | B144: 3.78215 | C144: 5.161 | D144: 1.21843 | E144: 5.161 | F144: 5.9492 | G144: 5.161 | H144: 3.1442 | I144: 5.161 | J144: 4.41386
A145: 5.148 | B145: 3.77029 | C145: 5.148 | D145: 1.22403 | E145: 5.148 | F145: 5.97317 | G145: 5.148 | H145: 3.14879 | I145: 5.148 | J145: 4.4331
A146: 5.135 | B146: 3.75894 | C146: 5.135 | D146: 1.22962 | E146: 5.135 | F146: 5.99704 | G146: 5.135 | H146: 3.15381 | I146: 5.135 | J146: 4.45245
A147: 5.122 | B147: 3.74819 | C147: 5.122 | D147: 1.23521 | E147: 5.122 | F147: 6.02084 | G147: 5.122 | H147: 3.15926 | I147: 5.122 | J147: 4.47193
A148: 5.108 | B148: 3.7381 | C148: 5.108 | D148: 1.24079 | E148: 5.108 | F148: 6.04459 | G148: 5.108 | H148: 3.1651 | I148: 5.108 | J148: 4.49153
A149: 5.095 | B149: 3.72876 | C149: 5.095 | D149: 1.24636 | E149: 5.095 | F149: 6.06831 | G149: 5.095 | H149: 3.1713 | I149: 5.095 | J149: 4.51128
A150: 5.082 | B150: 3.72021 | C150: 5.082 | D150: 1.25192 | E150: 5.082 | F150: 6.09203 | G150: 5.082 | H150: 3.17778 | I150: 5.082 | J150: 4.53118
A151: 5.069 | B151: 3.7125 | C151: 5.069 | D151: 1.25747 | E151: 5.069 | F151: 6.11578 | G151: 5.069 | H151: 3.18449 | I151: 5.069 | J151: 4.55125
A152: 5.056 | B152: 3.70567 | C152: 5.056 | D152: 1.26301 | E152: 5.056 | F152: 6.13961 | G152: 5.056 | H152: 3.19136 | I152: 5.056 | J152: 4.57149
A153: 5.043 | B153: 3.69972 | C153: 5.043 | D153: 1.26856 | E153: 5.043 | F153: 6.16355 | G153: 5.043 | H153: 3.19834 | I153: 5.043 | J153: 4.59193
A154: 5.03 | B154: 3.69465 | C154: 5.03 | D154: 1.27412 | E154: 5.03 | F154: 6.18763 | G154: 5.03 | H154: 3.20538 | I154: 5.03 | J154: 4.61255
A155: 5.017 | B155: 3.69045 | C155: 5.017 | D155: 1.27968 | E155: 5.017 | F155: 6.2119 | G155: 5.017 | H155: 3.21248 | I155: 5.017 | J155: 4.63337
A156: 5.004 | B156: 3.68708 | C156: 5.004 | D156: 1.28526 | E156: 5.004 | F156: 6.2364 | G156: 5.004 | H156: 3.21962 | I156: 5.004 | J156: 4.65439
A157: 4.991 | B157: 3.68448 | C157: 4.991 | D157: 1.29087 | E157: 4.991 | F157: 6.26115 | G157: 4.991 | H157: 3.22684 | I157: 4.991 | J157: 4.6756
A158: 4.978 | B158: 3.68258 | C158: 4.978 | D158: 1.29649 | E158: 4.978 | F158: 6.28619 | G158: 4.978 | H158: 3.23419 | I158: 4.978 | J158: 4.69698
A159: 4.964 | B159: 3.6813 | C159: 4.964 | D159: 1.30215 | E159: 4.964 | F159: 6.31155 | G159: 4.964 | H159: 3.24172 | I159: 4.964 | J159: 4.71853
A160: 4.951 | B160: 3.68053 | C160: 4.951 | D160: 1.30783 | E160: 4.951 | F160: 6.33725 | G160: 4.951 | H160: 3.24952 | I160: 4.951 | J160: 4.74022
A161: 4.938 | B161: 3.68019 | C161: 4.938 | D161: 1.31354 | E161: 4.938 | F161: 6.36332 | G161: 4.938 | H161: 3.25765 | I161: 4.938 | J161: 4.76205
A162: 4.925 | B162: 3.68015 | C162: 4.925 | D162: 1.31927 | E162: 4.925 | F162: 6.38977 | G162: 4.925 | H162: 3.26622 | I162: 4.925 | J162: 4.78398
A163: 4.912 | B163: 3.68033 | C163: 4.912 | D163: 1.32504 | E163: 4.912 | F163: 6.41661 | G163: 4.912 | H163: 3.27529 | I163: 4.912 | J163: 4.806
A164: 4.899 | B164: 3.68061 | C164: 4.899 | D164: 1.33084 | E164: 4.899 | F164: 6.44386 | G164: 4.899 | H164: 3.28496 | I164: 4.899 | J164: 4.82809
A165: 4.886 | B165: 3.68094 | C165: 4.886 | D165: 1.33666 | E165: 4.886 | F165: 6.47153 | G165: 4.886 | H165: 3.29529 | I165: 4.886 | J165: 4.85022
A166: 4.873 | B166: 3.68123 | C166: 4.873 | D166: 1.34253 | E166: 4.873 | F166: 6.49963 | G166: 4.873 | H166: 3.30635 | I166: 4.873 | J166: 4.87239
A167: 4.86 | B167: 3.68144 | C167: 4.86 | D167: 1.34843 | E167: 4.86 | F167: 6.52815 | G167: 4.86 | H167: 3.31818 | I167: 4.86 | J167: 4.89459
A168: 4.847 | B168: 3.68156 | C168: 4.847 | D168: 1.35438 | E168: 4.847 | F168: 6.55712 | G168: 4.847 | H168: 3.33081 | I168: 4.847 | J168: 4.91682
A169: 4.834 | B169: 3.68158 | C169: 4.834 | D169: 1.36037 | E169: 4.834 | F169: 6.58655 | G169: 4.834 | H169: 3.34426 | I169: 4.834 | J169: 4.93906
A170: 4.82 | B170: 3.68151 | C170: 4.82 | D170: 1.36641 | E170: 4.82 | F170: 6.61642 | G170: 4.82 | H170: 3.35853 | I170: 4.82 | J170: 4.96134
A171: 4.807 | B171: 3.68139 | C171: 4.807 | D171: 1.37251 | E171: 4.807 | F171: 6.64676 | G171: 4.807 | H171: 3.37361 | I171: 4.807 | J171: 4.98366
A172: 4.794 | B172: 3.68126 | C172: 4.794 | D172: 1.37868 | E172: 4.794 | F172: 6.67757 | G172: 4.794 | H172: 3.38946 | I172: 4.794 | J172: 5.00602
A173: 4.781 | B173: 3.68117 | C173: 4.781 | D173: 1.38492 | E173: 4.781 | F173: 6.70886 | G173: 4.781 | H173: 3.40604 | I173: 4.781 | J173: 5.02845
A174: 4.768 | B174: 3.68116 | C174: 4.768 | D174: 1.39123 | E174: 4.768 | F174: 6.74062 | G174: 4.768 | H174: 3.42329 | I174: 4.768 | J174: 5.05096
A175: 4.755 | B175: 3.68129 | C175: 4.755 | D175: 1.39764 | E175: 4.755 | F175: 6.77285 | G175: 4.755 | H175: 3.44114 | I175: 4.755 | J175: 5.07356
A176: 4.742 | B176: 3.68159 | C176: 4.742 | D176: 1.40415 | E176: 4.742 | F176: 6.80553 | G176: 4.742 | H176: 3.4595 | I176: 4.742 | J176: 5.09628
A177: 4.729 | B177: 3.68208 | C177: 4.729 | D177: 1.41076 | E177: 4.729 | F177: 6.83865 | G177: 4.729 | H177: 3.4783 | I177: 4.729 | J177: 5.11912
A178: 4.716 | B178: 3.68276 | C178: 4.716 | D178: 1.41748 | E178: 4.716 | F178: 6.8722 | G178: 4.716 | H178: 3.49743 | I178: 4.716 | J178: 5.14211
A179: 4.703 | B179: 3.68362 | C179: 4.703 | D179: 1.42431 | E179: 4.703 | F179: 6.90614 | G179: 4.703 | H179: 3.51678 | I179: 4.703 | J179: 5.16526
A180: 4.689 | B180: 3.68464 | C180: 4.689 | D180: 1.43124 | E180: 4.689 | F180: 6.94045 | G180: 4.689 | H180: 3.53625 | I180: 4.689 | J180: 5.18859
A181: 4.676 | B181: 3.68578 | C181: 4.676 | D181: 1.43828 | E181: 4.676 | F181: 6.97512 | G181: 4.676 | H181: 3.55573 | I181: 4.676 | J181: 5.21213
A182: 4.663 | B182: 3.68701 | C182: 4.663 | D182: 1.44542 | E182: 4.663 | F182: 7.0101 | G182: 4.663 | H182: 3.57509 | I182: 4.663 | J182: 5.23589
A183: 4.65 | B183: 3.6883 | C183: 4.65 | D183: 1.45264 | E183: 4.65 | F183: 7.04538 | G183: 4.65 | H183: 3.59424 | I183: 4.65 | J183: 5.25988
A184: 4.637 | B184: 3.68963 | C184: 4.637 | D184: 1.45994 | E184: 4.637 | F184: 7.08093 | G184: 4.637 | H184: 3.61308 | I184: 4.637 | J184: 5.28413
A185: 4.624 | B185: 3.69101 | C185: 4.624 | D185: 1.4673 | E185: 4.624 | F185: 7.11673 | G185: 4.624 | H185: 3.63151 | I185: 4.624 | J185: 5.30865
A186: 4.611 | B186: 3.69245 | C186: 4.611 | D186: 1.47472 | E186: 4.611 | F186: 7.15275 | G186: 4.611 | H186: 3.64946 | I186: 4.611 | J186: 5.33345
A187: 4.598 | B187: 3.69397 | C187: 4.598 | D187: 1.48219 | E187: 4.598 | F187: 7.18896 | G187: 4.598 | H187: 3.66687 | I187: 4.598 | J187: 5.35855
A188: 4.585 | B188: 3.6956 | C188: 4.585 | D188: 1.4897 | E188: 4.585 | F188: 7.22534 | G188: 4.585 | H188: 3.6837 | I188: 4.585 | J188: 5.38396
A189: 4.572 | B189: 3.69737 | C189: 4.572 | D189: 1.49725 | E189: 4.572 | F189: 7.26188 | G189: 4.572 | H189: 3.69993 | I189: 4.572 | J189: 5.40968
A190: 4.559 | B190: 3.69931 | C190: 4.559 | D190: 1.50482 | E190: 4.559 | F190: 7.29854 | G190: 4.559 | H190: 3.71556 | I190: 4.559 | J190: 5.4357
A191: 4.545 | B191: 3.70141 | C191: 4.545 | D191: 1.51241 | E191: 4.545 | F191: 7.33532 | G191: 4.545 | H191: 3.73059 | I191: 4.545 | J191: 5.46203
A192: 4.532 | B192: 3.70366 | C192: 4.532 | D192: 1.52002 | E192: 4.532 | F192: 7.37222 | G192: 4.532 | H192: 3.74506 | I192: 4.532 | J192: 5.48864
A193: 4.519 | B193: 3.70604 | C193: 4.519 | D193: 1.52765 | E193: 4.519 | F193: 7.40923 | G193: 4.519 | H193: 3.75903 | I193: 4.519 | J193: 5.51554
A194: 4.506 | B194: 3.70851 | C194: 4.506 | D194: 1.53529 | E194: 4.506 | F194: 7.44636 | G194: 4.506 | H194: 3.77255 | I194: 4.506 | J194: 5.54269
A195: 4.493 | B195: 3.711 | C195: 4.493 | D195: 1.54293 | E195: 4.493 | F195: 7.48362 | G195: 4.493 | H195: 3.78571 | I195: 4.493 | J195: 5.57007
A196: 4.48 | B196: 3.71346 | C196: 4.48 | D196: 1.55057 | E196: 4.48 | F196: 7.52104 | G196: 4.48 | H196: 3.79857 | I196: 4.48 | J196: 5.59766
A197: 4.467 | B197: 3.71584 | C197: 4.467 | D197: 1.5582 | E197: 4.467 | F197: 7.55863 | G197: 4.467 | H197: 3.81124 | I197: 4.467 | J197: 5.62543
A198: 4.454 | B198: 3.7181 | C198: 4.454 | D198: 1.56582 | E198: 4.454 | F198: 7.5964 | G198: 4.454 | H198: 3.8238 | I198: 4.454 | J198: 5.65335
A199: 4.441 | B199: 3.72021 | C199: 4.441 | D199: 1.57343 | E199: 4.441 | F199: 7.63438 | G199: 4.441 | H199: 3.83636 | I199: 4.441 | J199: 5.68139
A200: 4.428 | B200: 3.7222 | C200: 4.428 | D200: 1.58101 | E200: 4.428 | F200: 7.67257 | G200: 4.428 | H200: 3.84899 | I200: 4.428 | J200: 5.70954
... 925 more rows
